Workbook

Sheet Как использовать утилиту
E3: =+texte!$H$9 -> Как использовать утилиту?
C5: 0. | D5: =+texte!H10 -> Скопируйте Ваш прайс-лист на лист "'Price List'"
E6: =+texte!H11 -> Обязательно соблюдать порядок следования столбцов
E7: =+texte!H12 -> Скопированный прайс-лист должен быть на том же языке, что и выбранный язык для утилиты.
F8: =+texte!H13 -> Например, если выбранный язык английский, то и прайс-лист должен быть на английском.
C14: 1. | D14: =+texte!H14 -> Выберите нужный язык
C24: 2. | D24: =+texte!$H$15 -> Выберите расположение котлов в каскаде
C44: 3. | D44: =+texte!$H$16 -> Выберите количество котлов и состав каскада
D62: =+texte!$H$17 -> Что обозначает наименование каскада? XX.YYYYkW.ABCDE
E63: XX : | F63: =+texte!H18 -> Тип расположения каскада
G64: =+texte!H19 -> RG: Спина к спине
G65: =+texte!H20 -> LW: На стене
G66: =+texte!H21 -> LV: На полу
E68: YYYYkW : | F68: =+texte!H22 -> Мощность каскада, 80/60°C
F69: =+texte!H23 -> Пример: 356 кВт - каскад мощностью 356 кВт
E71: ABCDE : | F71: =+texte!H24 -> Состав каскада
F72: =+texte!H25 -> A: Количество котлов AMC 45
F73: =+texte!H26 -> B: Количество котлов AMC 65
F74: =+texte!H27 -> C: Количество котлов AMC 90
F75: =+texte!H28 -> D: Количество котлов AMC 115
F76: =+texte!H29 -> E: Количество котлов MCA 160
C79: 4. | D79: =+texte!$H$30 -> Результат поделён на 2 отдельные таблицы
D83: =+texte!$H$31 -> 1-ая таблица: таблица с базовым комплектом для каскада
E84: =+texte!H32 -> Эта таблица содержит обязательные элементы для заказа каскадной системы
E85: =+texte!H33 -> Количество этих элементов нельзя изменить
D123: =+texte!H34 -> 2-ая таблица: таблица с дополнительным оборудованием
E124: =+texte!H35 -> В этой таблице приведено дополнительное оборудование и их необходимое количество
E125: =+texte!H36 -> Пользователь может выбрать нужное количество дополнительного оборудования
C145: 5. | D145: =+texte!$H$37 -> Можно добавить любое дополнительное оборудование при помощи раскрывающегося списка в конце сводной таблицы (см. рисунок ниже).
E146: =+texte!$H$38 -> Затем можно выбрать количество для необходимого дополнительного оборудования
C172: 6. | D172: =+texte!H39 -> Последние строки предназначены для дополниткльной информации - примечание, скидки…
C175: 7. | D175: =+texte!$H$40 -> Будет выведена итоговая сумма и список.

Sheet Выбор котлов
I2: =texte!B1 -> Определение и расчет каскадных систем
H4: =texte!B2 -> Для AMC 45, 65, 90, 115 и MCA 160
Q5: =CONCATENATE(texte!B6," - 01") -> Версия : 06/2020 - 01
Q6: =CONCATENATE(texte!B53," ",2020) -> ПРАЙС-ЛИСТ 2020
C8: =texte!B7 -> Идентификация расчета | Q8: =TODAY() -> 2021-02-11
D11: =CONCATENATE(texte!B8," ") -> Описание объекта | E11: LW.0456kW.00003
C16: =texte!B9 -> Вводимые данные
D17: Y
G21: =texte!B23 -> AMC 45 | H21: =texte!B24 -> AMC 65 | I21: =texte!B25 -> AMC 90 | J21: =texte!B26 -> AMC 115 | K21: MCA160 | N21: =IF(SUM($G$24:$K$24)=$E$26," !! Number of inicontrol must be lower as number of boilers !!","") -> 
C22: =texte!B13 -> Расположение в каскаде | E22: настенное "LW" | G22: 2 | H22: 0 | I22: 0 | J22: 0 | K22: =IF('Cascade AMC'!$T$19="",0,'Cascade AMC'!$T$19) -> 0
D24: =CONCATENATE(texte!B21," inicontrol 2 :") -> Количество котлов inicontrol 2 : | G24: 0 | H24: 0 | I24: 0 | J24: 0 | K24: 0
C26: =texte!B21 -> Количество котлов | E26: 2
C29: =texte!B14 -> Каскадная система | E29: =IF(K22<0,texte!B16,'Cascade AMC'!M37) -> LW.082kW.20000
E31: =texte!B44 -> Повторить код во время заказа
D33: =texte!B15 -> Внимание! При изменении выбора всегда изменять следующие значения!
C36: =texte!B17 -> Решение De Dietrich
C41: =texte!B36 -> Система | E41: =texte!B34 -> Позиция | F41: =texte!B35 -> Наименование | M41: =texte!B52 -> Ед. поставки | N41: =texte!B32 -> Цена за единицу | O41: =texte!$B$61 -> Рекомендуемое количество | Q41: =texte!B33 -> Итоговая цена
N42: =texte!B29 -> €, с НДС | Q42: =texte!B29 -> €, с НДС
C44: ='Cascade AMC'!E260 -> LW.082kW.20000
E45: =IF('Cascade AMC'!F261="","",'Cascade AMC'!F261) -> 
E46: =IF('Cascade AMC'!F262="","",'Cascade AMC'!F262) -> Опора
E47: =IF('Cascade AMC'!F263="","",'Cascade AMC'!F263) -> 
E48: =IF('Cascade AMC'!F264="","",'Cascade AMC'!F264) -> 111688 | F48: =IF('Cascade AMC'!G264="","",'Cascade AMC'!G264) -> Кронштейн для монтажа на стене 2 котлов | M48: =IF('Cascade AMC'!M264="","",'Cascade AMC'!M264) -> HC192 | N48: =IF('Cascade AMC'!N264="","",'Cascade AMC'!N264) -> 57.00 | O48: =IF('Cascade AMC'!O264="","",'Cascade AMC'!O264) -> 1 | Q48: =IFERROR(IF(O48<>0,N48*O48,""),"") -> 57.00
E49: =IF('Cascade AMC'!F265="","",'Cascade AMC'!F265) ->  | F49: =IF('Cascade AMC'!G265="","",'Cascade AMC'!G265) ->  | M49: =IF('Cascade AMC'!M265="","",'Cascade AMC'!M265) ->  | N49: =IF('Cascade AMC'!N265="","",'Cascade AMC'!N265) ->  | O49: =IF('Cascade AMC'!O265="","",'Cascade AMC'!O265) ->  | Q49: =IFERROR(IF(O49<>0,N49*O49,""),"") -> 
E50: =IF('Cascade AMC'!F266="","",'Cascade AMC'!F266) ->  | F50: =IF('Cascade AMC'!G266="","",'Cascade AMC'!G266) ->  | M50: =IF('Cascade AMC'!M266="","",'Cascade AMC'!M266) ->  | N50: =IF('Cascade AMC'!N266="","",'Cascade AMC'!N266) ->  | O50: =IF('Cascade AMC'!O266="","",'Cascade AMC'!O266) -> 
E51: =IF('Cascade AMC'!F267="","",'Cascade AMC'!F267) ->  | F51: =IF('Cascade AMC'!G267="","",'Cascade AMC'!G267) ->  | M51: =IF('Cascade AMC'!M267="","",'Cascade AMC'!M267) ->  | N51: =IF('Cascade AMC'!N267="","",'Cascade AMC'!N267) ->  | O51: =IF('Cascade AMC'!O267="","",'Cascade AMC'!O267) -> 
E52: =IF('Cascade AMC'!F268="","",'Cascade AMC'!F268) ->  | F52: =IF('Cascade AMC'!G268="","",'Cascade AMC'!G268) ->  | M52: =IF('Cascade AMC'!M268="","",'Cascade AMC'!M268) ->  | N52: =IF('Cascade AMC'!N268="","",'Cascade AMC'!N268) ->  | O52: =IF('Cascade AMC'!O268="","",'Cascade AMC'!O268) -> 
E53: =IF('Cascade AMC'!F269="","",'Cascade AMC'!F269) -> Гидравлика | F53: =IF('Cascade AMC'!G269="","",'Cascade AMC'!G269) ->  | M53: =IF('Cascade AMC'!M269="","",'Cascade AMC'!M269) ->  | N53: =IF('Cascade AMC'!N269="","",'Cascade AMC'!N269) ->  | O53: =IF('Cascade AMC'!O269="","",'Cascade AMC'!O269) -> 
E54: =IF('Cascade AMC'!F270="","",'Cascade AMC'!F270) ->  | F54: =IF('Cascade AMC'!G270="","",'Cascade AMC'!G270) ->  | M54: =IF('Cascade AMC'!M270="","",'Cascade AMC'!M270) ->  | N54: =IF('Cascade AMC'!N270="","",'Cascade AMC'!N270) ->  | O54: =IF('Cascade AMC'!O270="","",'Cascade AMC'!O270) -> 
E55: =IF('Cascade AMC'!F271="","",'Cascade AMC'!F271) -> 114311 | F55: =IF('Cascade AMC'!G271="","",'Cascade AMC'!G271) -> Гидравлическая стрелка DN 65 (< 350 кВт) | M55: =IF('Cascade AMC'!M271="","",'Cascade AMC'!M271) -> HC222 | N55: =IF('Cascade AMC'!N271="","",'Cascade AMC'!N271) -> 817.00 | O55: =IF('Cascade AMC'!O271="","",'Cascade AMC'!O271) -> 1 | Q55: 817.00
E56: =IF('Cascade AMC'!F272="","",'Cascade AMC'!F272) -> 110968 | F56: =IF('Cascade AMC'!G272="","",'Cascade AMC'!G272) -> Коллектор на 2 котла DN 65 | M56: =IF('Cascade AMC'!M272="","",'Cascade AMC'!M272) -> HC188 | N56: =IF('Cascade AMC'!N272="","",'Cascade AMC'!N272) -> 1256.00 | O56: =IF('Cascade AMC'!O272="","",'Cascade AMC'!O272) -> 1 | Q56: 1256.00
E57: =IF('Cascade AMC'!F273="","",'Cascade AMC'!F273) ->  | F57: =IF('Cascade AMC'!G273="","",'Cascade AMC'!G273) ->  | M57: =IF('Cascade AMC'!M273="","",'Cascade AMC'!M273) ->  | N57: =IF('Cascade AMC'!N273="","",'Cascade AMC'!N273) ->  | O57: =IF('Cascade AMC'!O273="","",'Cascade AMC'!O273) -> 
E58: =IF('Cascade AMC'!F274="","",'Cascade AMC'!F274) ->  | F58: =IF('Cascade AMC'!G274="","",'Cascade AMC'!G274) ->  | M58: =IF('Cascade AMC'!M274="","",'Cascade AMC'!M274) ->  | N58: =IF('Cascade AMC'!N274="","",'Cascade AMC'!N274) ->  | O58: =IF('Cascade AMC'!O274="","",'Cascade AMC'!O274) -> 
E59: =IF('Cascade AMC'!F275="","",'Cascade AMC'!F275) -> 111022 | F59: =IF('Cascade AMC'!G275="","",'Cascade AMC'!G275) -> Набор подключения котла | M59: =IF('Cascade AMC'!M275="","",'Cascade AMC'!M275) -> HC202 | N59: =IF('Cascade AMC'!N275="","",'Cascade AMC'!N275) -> 803.00 | O59: =IF('Cascade AMC'!O275="","",'Cascade AMC'!O275) -> 2 | Q59: 1606.00
E60: =IF('Cascade AMC'!F276="","",'Cascade AMC'!F276) ->  | F60: =IF('Cascade AMC'!G276="","",'Cascade AMC'!G276) ->  | M60: =IF('Cascade AMC'!M276="","",'Cascade AMC'!M276) ->  | N60: =IF('Cascade AMC'!N276="","",'Cascade AMC'!N276) ->  | O60: =IF('Cascade AMC'!O276="","",'Cascade AMC'!O276) -> 
E61: =IF('Cascade AMC'!F277="","",'Cascade AMC'!F277) ->  | F61: =IF('Cascade AMC'!G277="","",'Cascade AMC'!G277) ->  | M61: =IF('Cascade AMC'!M277="","",'Cascade AMC'!M277) ->  | N61: =IF('Cascade AMC'!N277="","",'Cascade AMC'!N277) ->  | O61: =IF('Cascade AMC'!O277="","",'Cascade AMC'!O277) -> 
E62: =IF('Cascade AMC'!F278="","",'Cascade AMC'!F278) ->  | F62: =IF('Cascade AMC'!G278="","",'Cascade AMC'!G278) ->  | M62: =IF('Cascade AMC'!M278="","",'Cascade AMC'!M278) ->  | N62: =IF('Cascade AMC'!N278="","",'Cascade AMC'!N278) ->  | O62: =IF('Cascade AMC'!O278="","",'Cascade AMC'!O278) ->  | Q62: =IFERROR(IF(O62<>0,N62*O62,""),"") -> 
E63: =IF('Cascade AMC'!F279="","",'Cascade AMC'!F279) ->  | F63: =IF('Cascade AMC'!G279="","",'Cascade AMC'!G279) ->  | M63: =IF('Cascade AMC'!M279="","",'Cascade AMC'!M279) ->  | N63: =IF('Cascade AMC'!N279="","",'Cascade AMC'!N279) ->  | O63: =IF('Cascade AMC'!O279="","",'Cascade AMC'!O279) -> 
E64: =IF('Cascade AMC'!F280="","",'Cascade AMC'!F280) -> S101614 | F64: =IF('Cascade AMC'!G280="","",'Cascade AMC'!G280) -> Электронный насос для AMC 45-65 (класс А) | M64: =IF('Cascade AMC'!M280="","",'Cascade AMC'!M280) -> - | N64: =IF('Cascade AMC'!N280="","",'Cascade AMC'!N280) -> 325.00 | O64: =IF('Cascade AMC'!O280="","",'Cascade AMC'!O280) -> 2 | Q64: 650.00
E65: =IF('Cascade AMC'!F281="","",'Cascade AMC'!F281) ->  | F65: =IF('Cascade AMC'!G281="","",'Cascade AMC'!G281) ->  | M65: =IF('Cascade AMC'!M281="","",'Cascade AMC'!M281) ->  | N65: =IF('Cascade AMC'!N281="","",'Cascade AMC'!N281) ->  | O65: =IF('Cascade AMC'!O281="","",'Cascade AMC'!O281) -> 
E66: =IF('Cascade AMC'!F282="","",'Cascade AMC'!F282) ->  | F66: =IF('Cascade AMC'!G282="","",'Cascade AMC'!G282) ->  | M66: =IF('Cascade AMC'!M282="","",'Cascade AMC'!M282) ->  | N66: =IF('Cascade AMC'!N282="","",'Cascade AMC'!N282) ->  | O66: =IF('Cascade AMC'!O282="","",'Cascade AMC'!O282) -> 
E67: =IF('Cascade AMC'!F283="","",'Cascade AMC'!F283) ->  | F67: =IF('Cascade AMC'!G283="","",'Cascade AMC'!G283) ->  | M67: =IF('Cascade AMC'!M283="","",'Cascade AMC'!M283) ->  | N67: =IF('Cascade AMC'!N283="","",'Cascade AMC'!N283) ->  | O67: =IF('Cascade AMC'!O283="","",'Cascade AMC'!O283) -> 
E68: =IF('Cascade AMC'!F284="","",'Cascade AMC'!F284) -> 111698 | F68: =IF('Cascade AMC'!G284="","",'Cascade AMC'!G284) -> 1 Глухой фланец на газ DN 50 | M68: =IF('Cascade AMC'!M284="","",'Cascade AMC'!M284) -> HC196 | N68: =IF('Cascade AMC'!N284="","",'Cascade AMC'!N284) -> 139.00 | O68: =IF('Cascade AMC'!O284="","",'Cascade AMC'!O284) -> 1 | Q68: 139.00
E69: =IF('Cascade AMC'!F285="","",'Cascade AMC'!F285) -> 111701 | F69: =IF('Cascade AMC'!G285="","",'Cascade AMC'!G285) -> 2 Глухих фланца на воду DN 65 | M69: =IF('Cascade AMC'!M285="","",'Cascade AMC'!M285) -> HC198 | N69: =IF('Cascade AMC'!N285="","",'Cascade AMC'!N285) -> 196.00 | O69: =IF('Cascade AMC'!O285="","",'Cascade AMC'!O285) -> 1 | Q69: 196.00
E70: =IF('Cascade AMC'!F286="","",'Cascade AMC'!F286) -> 111708 | F70: =IF('Cascade AMC'!G286="","",'Cascade AMC'!G286) -> Набор заглушек | M70: =IF('Cascade AMC'!M286="","",'Cascade AMC'!M286) -> HC195 | N70: =IF('Cascade AMC'!N286="","",'Cascade AMC'!N286) -> 54.00 | O70: =IF('Cascade AMC'!O286="","",'Cascade AMC'!O286) -> 2 | Q70: 108.00
E71: =IF('Cascade AMC'!F287="","",'Cascade AMC'!F287) ->  | F71: =IF('Cascade AMC'!G287="","",'Cascade AMC'!G287) ->  | M71: =IF('Cascade AMC'!M287="","",'Cascade AMC'!M287) ->  | N71: =IF('Cascade AMC'!N287="","",'Cascade AMC'!N287) ->  | O71: =IF('Cascade AMC'!O287="","",'Cascade AMC'!O287) -> 
E72: =IF('Cascade AMC'!F288="","",'Cascade AMC'!F288) ->  | F72: =IF('Cascade AMC'!G288="","",'Cascade AMC'!G288) ->  | M72: =IF('Cascade AMC'!M288="","",'Cascade AMC'!M288) ->  | N72: =IF('Cascade AMC'!N288="","",'Cascade AMC'!N288) ->  | O72: =IF('Cascade AMC'!O288="","",'Cascade AMC'!O288) -> 
E73: =IF('Cascade AMC'!F289="","",'Cascade AMC'!F289) ->  | F73: =IF('Cascade AMC'!G289="","",'Cascade AMC'!G289) ->  | M73: =IF('Cascade AMC'!M289="","",'Cascade AMC'!M289) ->  | N73: =IF('Cascade AMC'!N289="","",'Cascade AMC'!N289) ->  | O73: =IF('Cascade AMC'!O289="","",'Cascade AMC'!O289) -> 
E74: =IF('Cascade AMC'!F290="","",'Cascade AMC'!F290) ->  | F74: =IF('Cascade AMC'!G290="","",'Cascade AMC'!G290) ->  | M74: =IF('Cascade AMC'!M290="","",'Cascade AMC'!M290) ->  | N74: =IF('Cascade AMC'!N290="","",'Cascade AMC'!N290) ->  | O74: =IF('Cascade AMC'!O290="","",'Cascade AMC'!O290) -> 
E75: =IF('Cascade AMC'!F291="","",'Cascade AMC'!F291) ->  | F75: =IF('Cascade AMC'!G291="","",'Cascade AMC'!G291) ->  | M75: =IF('Cascade AMC'!M291="","",'Cascade AMC'!M291) ->  | N75: =IF('Cascade AMC'!N291="","",'Cascade AMC'!N291) ->  | O75: =IF('Cascade AMC'!O291="","",'Cascade AMC'!O291) -> 
E76: =IF('Cascade AMC'!F292="","",'Cascade AMC'!F292) ->  | F76: =IF('Cascade AMC'!G292="","",'Cascade AMC'!G292) ->  | M76: =IF('Cascade AMC'!M292="","",'Cascade AMC'!M292) ->  | N76: =IF('Cascade AMC'!N292="","",'Cascade AMC'!N292) ->  | O76: =IF('Cascade AMC'!O292="","",'Cascade AMC'!O292) -> 
E77: =IF('Cascade AMC'!F293="","",'Cascade AMC'!F293) ->  | F77: =IF('Cascade AMC'!G293="","",'Cascade AMC'!G293) ->  | M77: =IF('Cascade AMC'!M293="","",'Cascade AMC'!M293) ->  | N77: =IF('Cascade AMC'!N293="","",'Cascade AMC'!N293) ->  | O77: =IF('Cascade AMC'!O293="","",'Cascade AMC'!O293) -> 
E78: =IF('Cascade AMC'!F294="","",'Cascade AMC'!F294) ->  | F78: =IF('Cascade AMC'!G294="","",'Cascade AMC'!G294) ->  | M78: =IF('Cascade AMC'!M294="","",'Cascade AMC'!M294) ->  | N78: =IF('Cascade AMC'!N294="","",'Cascade AMC'!N294) ->  | O78: =IF('Cascade AMC'!O294="","",'Cascade AMC'!O294) -> 
E80: =IF('Cascade AMC'!F295="","",'Cascade AMC'!F295) -> регулирование | F80: =IF('Cascade AMC'!G295="","",'Cascade AMC'!G295) ->  | M80: =IF('Cascade AMC'!M295="","",'Cascade AMC'!M295) ->  | N80: =IF('Cascade AMC'!N295="","",'Cascade AMC'!N295) ->  | O80: =IF('Cascade AMC'!O295="","",'Cascade AMC'!O295) -> 
E81: =IF('Cascade AMC'!F296="","",'Cascade AMC'!F296) ->  | F81: =IF('Cascade AMC'!G296="","",'Cascade AMC'!G296) ->  | M81: =IF('Cascade AMC'!M296="","",'Cascade AMC'!M296) ->  | N81: =IF('Cascade AMC'!N296="","",'Cascade AMC'!N296) ->  | O81: =IF('Cascade AMC'!O296="","",'Cascade AMC'!O296) -> 
E82: =IF('Cascade AMC'!F297="","",'Cascade AMC'!F297) -> 100013027 | F82: =IF('Cascade AMC'!G297="","",'Cascade AMC'!G297) -> Датчик каскада с погружной гильзой (<350 кВт) | M82: =IF('Cascade AMC'!M297="","",'Cascade AMC'!M297) -> HC223 | N82: =IF('Cascade AMC'!N297="","",'Cascade AMC'!N297) -> 175.00 | O82: =IF('Cascade AMC'!O297="","",'Cascade AMC'!O297) -> 1 | Q82: 175.00
E83: =IF('Cascade AMC'!F298="","",'Cascade AMC'!F298) -> 7663618 | F83: =IF('Cascade AMC'!G298="","",'Cascade AMC'!G298) -> Кабель S-BUS длиной 1,5 м | M83: =IF('Cascade AMC'!M298="","",'Cascade AMC'!M298) -> AD308 | N83: =IF('Cascade AMC'!N298="","",'Cascade AMC'!N298) -> 114.00 | O83: =IF('Cascade AMC'!O298="","",'Cascade AMC'!O298) -> 1 | Q83: 114.00
E84: =IF('Cascade AMC'!F299="","",'Cascade AMC'!F299) ->  | F84: =IF('Cascade AMC'!G299="","",'Cascade AMC'!G299) ->  | M84: =IF('Cascade AMC'!M299="","",'Cascade AMC'!M299) ->  | N84: =IF('Cascade AMC'!N299="","",'Cascade AMC'!N299) ->  | O84: =IF('Cascade AMC'!O299="","",'Cascade AMC'!O299) -> 
E85: =IF('Cascade AMC'!F300="","",'Cascade AMC'!F300) ->  | F85: =IF('Cascade AMC'!G300="","",'Cascade AMC'!G300) ->  | M85: =IF('Cascade AMC'!M300="","",'Cascade AMC'!M300) ->  | N85: =IF('Cascade AMC'!N300="","",'Cascade AMC'!N300) ->  | O85: =IF('Cascade AMC'!O300="","",'Cascade AMC'!O300) -> 
C88: =texte!$B$37 -> Доп. оборудование | E88: =E41 -> Позиция | F88: =F41 -> Наименование | M88: =M41 -> Ед. поставки | N88: =N41 -> Цена за единицу | O88: =texte!B65 -> количество | P88: =texte!$B$62 -> Количество выбрано | Q88: =Q41 -> Итоговая цена
E90: =+texte!$B$60 -> опции
E92: =IF('Cascade AMC'!F305="","",'Cascade AMC'!F305) -> S101655 | F92: =IF('Cascade AMC'!G305="","",'Cascade AMC'!G305) -> Газовый фильтр DN 50 | M92: =IF('Cascade AMC'!M305="","",'Cascade AMC'!M305) -> HC255 | N92: =IF('Cascade AMC'!N305="","",'Cascade AMC'!N305) -> 321.00 | O92: =IF('Cascade AMC'!O305="","",'Cascade AMC'!O305) -> 1 | Q92: =IFERROR(IF(P92="","",P92*N92),"") -> 
E93: =IF('Cascade AMC'!F306="","",'Cascade AMC'!F306) -> 111805 | F93: =IF('Cascade AMC'!G306="","",'Cascade AMC'!G306) -> Труба для газового фильтра DN 50 | M93: =IF('Cascade AMC'!M306="","",'Cascade AMC'!M306) -> HC211 | N93: =IF('Cascade AMC'!N306="","",'Cascade AMC'!N306) -> 343.00 | O93: =IF('Cascade AMC'!O306="","",'Cascade AMC'!O306) -> 1 | Q93: =IFERROR(IF(P93="","",P93*N93),"") -> 
E94: =IF('Cascade AMC'!F307="","",'Cascade AMC'!F307) -> 111788 | F94: =IF('Cascade AMC'!G307="","",'Cascade AMC'!G307) -> Набор колен DN 65 | M94: =IF('Cascade AMC'!M307="","",'Cascade AMC'!M307) -> HC209 | N94: =IF('Cascade AMC'!N307="","",'Cascade AMC'!N307) -> 856.00 | O94: =IF('Cascade AMC'!O307="","",'Cascade AMC'!O307) -> 1
E95: =IF('Cascade AMC'!F308="","",'Cascade AMC'!F308) -> 112632 | F95: =IF('Cascade AMC'!G308="","",'Cascade AMC'!G308) -> Набор контрфланцев под сварку DN 65 | M95: =IF('Cascade AMC'!M308="","",'Cascade AMC'!M308) -> HC217 | N95: =IF('Cascade AMC'!N308="","",'Cascade AMC'!N308) -> 196.00 | O95: =IF('Cascade AMC'!O308="","",'Cascade AMC'!O308) -> 1
E96: =IF('Cascade AMC'!F309="","",'Cascade AMC'!F309) ->  | F96: =IF('Cascade AMC'!G309="","",'Cascade AMC'!G309) ->  | M96: =IF('Cascade AMC'!M309="","",'Cascade AMC'!M309) ->  | N96: =IF('Cascade AMC'!N309="","",'Cascade AMC'!N309) ->  | O96: =IF('Cascade AMC'!O309="","",'Cascade AMC'!O309) -> 
E97: =IF('Cascade AMC'!F310="","",'Cascade AMC'!F310) -> 111069 | F97: =IF('Cascade AMC'!G310="","",'Cascade AMC'!G310) -> Изоляция для коллектора | M97: =IF('Cascade AMC'!M310="","",'Cascade AMC'!M310) -> HC213 | N97: =IF('Cascade AMC'!N310="","",'Cascade AMC'!N310) -> 114.00 | O97: =IF('Cascade AMC'!O310="","",'Cascade AMC'!O310) -> 2
E98: =IF('Cascade AMC'!F311="","",'Cascade AMC'!F311) -> 122441 | F98: =IF('Cascade AMC'!G311="","",'Cascade AMC'!G311) -> Теплоизоляция набора для подключения котла | M98: =IF('Cascade AMC'!M311="","",'Cascade AMC'!M311) -> HC252 | N98: =IF('Cascade AMC'!N311="","",'Cascade AMC'!N311) -> 84.00 | O98: =IF('Cascade AMC'!O311="","",'Cascade AMC'!O311) -> 2
E99: =IF('Cascade AMC'!F312="","",'Cascade AMC'!F312) -> 115269 | F99: =IF('Cascade AMC'!G312="","",'Cascade AMC'!G312) -> Изоляция для гидравлической стрелки (<350 кВт) | M99: =IF('Cascade AMC'!M312="","",'Cascade AMC'!M312) -> HC224 | N99: =IF('Cascade AMC'!N312="","",'Cascade AMC'!N312) -> 46.00 | O99: =IF('Cascade AMC'!O312="","",'Cascade AMC'!O312) -> 1
E100: =IF('Cascade AMC'!F313="","",'Cascade AMC'!F313) -> 111167 | F100: =IF('Cascade AMC'!G313="","",'Cascade AMC'!G313) -> Изоляция для колена 90° | M100: =IF('Cascade AMC'!M313="","",'Cascade AMC'!M313) -> HC216 | N100: =IF('Cascade AMC'!N313="","",'Cascade AMC'!N313) -> 132.00 | O100: =IF('Cascade AMC'!O313="","",'Cascade AMC'!O313) -> 1
E101: =IF('Cascade AMC'!F314="","",'Cascade AMC'!F314) ->  | F101: =IF('Cascade AMC'!G314="","",'Cascade AMC'!G314) ->  | M101: =IF('Cascade AMC'!M314="","",'Cascade AMC'!M314) ->  | N101: =IF('Cascade AMC'!N314="","",'Cascade AMC'!N314) ->  | O101: =IF('Cascade AMC'!O314="","",'Cascade AMC'!O314) -> 
E102: =IF('Cascade AMC'!F315="","",'Cascade AMC'!F315) ->  | F102: =IF('Cascade AMC'!G315="","",'Cascade AMC'!G315) ->  | M102: =IF('Cascade AMC'!M315="","",'Cascade AMC'!M315) ->  | N102: =IF('Cascade AMC'!N315="","",'Cascade AMC'!N315) ->  | O102: =IF('Cascade AMC'!O315="","",'Cascade AMC'!O315) -> 
E103: =IF('Cascade AMC'!F316="","",'Cascade AMC'!F316) ->  | F103: =IF('Cascade AMC'!G316="","",'Cascade AMC'!G316) ->  | M103: =IF('Cascade AMC'!M316="","",'Cascade AMC'!M316) ->  | N103: =IF('Cascade AMC'!N316="","",'Cascade AMC'!N316) ->  | O103: =IF('Cascade AMC'!O316="","",'Cascade AMC'!O316) -> 
E105: =IF('Cascade AMC'!F318="","",'Cascade AMC'!F318) -> 84887768 | F105: =IF('Cascade AMC'!G318="","",'Cascade AMC'!G318) -> Переходник D80/100 | M105: =IF('Cascade AMC'!M318="","",'Cascade AMC'!M318) -> DY768 | N105: =IF('Cascade AMC'!N318="","",'Cascade AMC'!N318) -> 76.00 | O105: =IF('Cascade AMC'!O318="","",'Cascade AMC'!O318) -> 2
D107: =texte!B66 -> Выбор ссылки | F107: =IFERROR(IF($E107="","",VLOOKUP($E107,'Price List'!$A:$D,2,FALSE)),"") ->  | M107: =IFERROR(IF($E107="","",VLOOKUP($E107,'Price List'!$A:$D,3,FALSE)),"") ->  | N107: =IFERROR(IF($E107="","",VLOOKUP($E107,'Price List'!$A:$D,4,FALSE)),"") ->  | Q107: =IFERROR(IF(P107<>0,P107*N107,""),"") -> 
F108: =IFERROR(IF($E108="","",VLOOKUP($E108,'Price List'!$A:$D,2,FALSE)),"") ->  | M108: =IFERROR(IF($E108="","",VLOOKUP($E108,'Price List'!$A:$D,3,FALSE)),"") ->  | N108: =IFERROR(IF($E108="","",VLOOKUP($E108,'Price List'!$A:$D,4,FALSE)),"") -> 
F109: =IFERROR(IF($E109="","",VLOOKUP($E109,'Price List'!$A:$D,2,FALSE)),"") ->  | M109: =IFERROR(IF($E109="","",VLOOKUP($E109,'Price List'!$A:$D,3,FALSE)),"") ->  | N109: =IFERROR(IF($E109="","",VLOOKUP($E109,'Price List'!$A:$D,4,FALSE)),"") -> 
F110: =IFERROR(IF($E110="","",VLOOKUP($E110,'Price List'!$A:$D,2,FALSE)),"") ->  | M110: =IFERROR(IF($E110="","",VLOOKUP($E110,'Price List'!$A:$D,3,FALSE)),"") ->  | N110: =IFERROR(IF($E110="","",VLOOKUP($E110,'Price List'!$A:$D,4,FALSE)),"") -> 
F111: =IFERROR(IF($E111="","",VLOOKUP($E111,'Price List'!$A:$D,2,FALSE)),"") ->  | M111: =IFERROR(IF($E111="","",VLOOKUP($E111,'Price List'!$A:$D,3,FALSE)),"") ->  | N111: =IFERROR(IF($E111="","",VLOOKUP($E111,'Price List'!$A:$D,4,FALSE)),"") -> 
F112: =IFERROR(IF($E112="","",VLOOKUP($E112,'Price List'!$A:$D,2,FALSE)),"") ->  | M112: =IFERROR(IF($E112="","",VLOOKUP($E112,'Price List'!$A:$D,3,FALSE)),"") ->  | N112: =IFERROR(IF($E112="","",VLOOKUP($E112,'Price List'!$A:$D,4,FALSE)),"") -> 
F113: =IFERROR(IF($E113="","",VLOOKUP($E113,'Price List'!$A:$D,2,FALSE)),"") ->  | M113: =IFERROR(IF($E113="","",VLOOKUP($E113,'Price List'!$A:$D,3,FALSE)),"") ->  | N113: =IFERROR(IF($E113="","",VLOOKUP($E113,'Price List'!$A:$D,4,FALSE)),"") -> 
F114: =IFERROR(IF($E114="","",VLOOKUP($E114,'Price List'!$A:$D,2,FALSE)),"") ->  | M114: =IFERROR(IF($E114="","",VLOOKUP($E114,'Price List'!$A:$D,3,FALSE)),"") ->  | N114: =IFERROR(IF($E114="","",VLOOKUP($E114,'Price List'!$A:$D,4,FALSE)),"") -> 
F115: =IFERROR(IF($E115="","",VLOOKUP($E115,'Price List'!$A:$D,2,FALSE)),"") ->  | M115: =IFERROR(IF($E115="","",VLOOKUP($E115,'Price List'!$A:$D,3,FALSE)),"") ->  | N115: =IFERROR(IF($E115="","",VLOOKUP($E115,'Price List'!$A:$D,4,FALSE)),"") -> 
F116: =IFERROR(IF($E116="","",VLOOKUP($E116,'Price List'!$A:$D,2,FALSE)),"") ->  | M116: =IFERROR(IF($E116="","",VLOOKUP($E116,'Price List'!$A:$D,3,FALSE)),"") ->  | N116: =IFERROR(IF($E116="","",VLOOKUP($E116,'Price List'!$A:$D,4,FALSE)),"") -> 
F117: =IFERROR(IF($E117="","",VLOOKUP($E117,'Price List'!$A:$D,2,FALSE)),"") ->  | M117: =IFERROR(IF($E117="","",VLOOKUP($E117,'Price List'!$A:$D,3,FALSE)),"") ->  | N117: =IFERROR(IF($E117="","",VLOOKUP($E117,'Price List'!$A:$D,4,FALSE)),"") -> 
F118: =IFERROR(IF($E118="","",VLOOKUP($E118,'Price List'!$A:$D,2,FALSE)),"") ->  | M118: =IFERROR(IF($E118="","",VLOOKUP($E118,'Price List'!$A:$D,3,FALSE)),"") ->  | N118: =IFERROR(IF($E118="","",VLOOKUP($E118,'Price List'!$A:$D,4,FALSE)),"") -> 
F119: =IFERROR(IF($E119="","",VLOOKUP($E119,'Price List'!$A:$D,2,FALSE)),"") ->  | M119: =IFERROR(IF($E119="","",VLOOKUP($E119,'Price List'!$A:$D,3,FALSE)),"") ->  | N119: =IFERROR(IF($E119="","",VLOOKUP($E119,'Price List'!$A:$D,4,FALSE)),"") -> 
D120: =texte!B67 -> Бесплатные поля
D126: =CONCATENATE(texte!B3," ","(",Q6," ",texte!B56," ",")") -> ИТОГОВАЯ ЦЕНА КАСКАДНОЙ СИСТЕМЫ (ПРАЙС-ЛИСТ 2020 €, с НДС ) | Q126: =SUM($Q$43:$Q$125) -> 5,118.00
D127: =CONCATENATE(texte!B4," ","(",Q6," ",texte!B56," ",")") -> ИТОГОВАЯ ЦЕНА КАСКАДНОЙ СИСТЕМЫ С КОТЛАМИ (ПРАЙС-ЛИСТ 2020 €, с НДС ) | Q127: =IFERROR(Q126+'Cascade AMC'!$F$49," -") -> 12,788.00
Q128: =IF(OR(ISNA(G46),ISNA(G47),ISNA(G48),ISNA(G49),ISNA(G50),ISNA(G56),ISNA(G57),ISNA(G58),ISNA(G59),ISNA(G60),ISNA(G61),ISNA(#REF!),ISNA(G45),ISNA(G125),ISNA(G94),ISNA(#REF!),ISNA(G82),ISNA(G81),ISNA(G80),ISNA(G76),ISNA(G75),ISNA(G73),ISNA(G72),ISNA(G71),ISNA(G69),ISNA(G68),ISNA(G67),ISNA(G66),ISNA(G65),ISNA(G63)),texte!B55,"") -> 
D129: =texte!B43 -> * Для каскадной установки под давлением
D131: =texte!B58 -> The result or the contents are given as an indication. In no event shall De Dietrich be liable for the results or for any other use.

Sheet Price List (hidden)
A1: 110954 | B1: Коллектор на 4 котла DN 100 | C1: HC191 | D1: 2366.00
A2: 110960 | B2: Коллектор на 3 котла DN 100 | C2: HC189 | D2: 1794.00
A3: 110961 | B3: Коллектор на 2 котла DN 100 | C3: HC190 | D3: 1595.00
A4: 110966 | B4: Коллектор на 4 котла DN 65 | C4: HC186 | D4: 1895.00
A5: 110967 | B5: Коллектор на 3 котла DN 65 | C5: HC187 | D5: 1431.00
A6: 110968 | B6: Коллектор на 2 котла DN 65 | C6: HC188 | D6: 1256.00
A7: 111022 | B7: Набор подключения котла | C7: HC202 | D7: 803.00
A8: 111037 | B8: Набор подключения котла (спиной к спине) | C8: HC203 | D8: 803.00
A9: 111067 | B9: Изоляция для гидравлической стрелки (>350 кВт) | C9: HC215 | D9: 314.00
A10: 111069 | B10: Изоляция для коллектора | C10: HC213 | D10: 114.00
A11: 111167 | B11: Изоляция для колена 90° | C11: HC216 | D11: 132.00
A12: 111167 | B12: Изоляция для колена 90° (для каскадной системы AMC/MCA PRO) | C12: HC216 | D12: 132.00
A13: 111688 | B13: Кронштейн для монтажа на стене 2 котлов | C13: HC192 | D13: 57.00
A14: 111689 | B14: Кронштейн для монтажа на стене 3 котлов | C14: HC193 | D14: 69.00
A15: 111690 | B15: Кронштейн для монтажа на стене 4 котлов | C15: HC194 | D15: 84.00
A16: 111698 | B16: 1 Глухой фланец на газ DN 50 | C16: HC196 | D16: 139.00
A17: 111699 | B17: 1 Глухой фланец на газ DN 65 | C17: HC197 | D17: 171.00
A18: 111701 | B18: 2 Глухих фланца на воду DN 65 | C18: HC198 | D18: 196.00
A19: 111703 | B19: 2 Глухих фланца на воду DN 100 | C19: HC199 | D19: 258.00
A20: 111708 | B20: Набор заглушек | C20: HC195 | D20: 54.00
A21: 111712 | B21: Гидравлическая стрелка DN 65 (> 350 кВт и < 460 кВт) | C21: HC200 | D21: 1361.00
A22: 111714 | B22: Гидравлическая стрелка DN 100 | C22: HC201 | D22: 1683.00
A23: 111788 | B23: Набор колен DN 65 | C23: HC209 | D23: 856.00
A24: 111790 | B24: Набор колен DN 100 | C24: HC210 | D24: 1214.00
A25: 111805 | B25: Труба для газового фильтра DN 50 | C25: HC211 | D25: 343.00
A26: 111806 | B26: Труба для газового фильтра DN 65 | C26: HC212 | D26: 371.00
A27: 111807 | B27: Регулируемые ножки | C27: HC219 | D27: 6.00
A28: 112632 | B28: Набор контрфланцев под сварку DN 65 | C28: HC217 | D28: 196.00
A29: 112633 | B29: Набор контрфланцев под сварку DN 100 | C29: HC218 | D29: 232.00
A30: 114311 | B30: Гидравлическая стрелка DN 65 (< 350 кВт) | C30: HC222 | D30: 817.00
A31: 115269 | B31: Изоляция для гидравлической стрелки (<350 кВт) | C31: HC224 | D31: 46.00
A32: 120842 | B32: L-образная монтажная опора AMC | C32: HC249 | D32: 187.00
A33: 120900 | B33: I-образная монтажная опора AMC | C33: HC250 | D33: 118.00
A34: 120918 | B34: Монтажная рама AMC | C34: HC248 | D34: 126.00
A35: 122441 | B35: Теплоизоляция набора для подключения котла | C35: HC252 | D35: 84.00
A36: 123182 | B36: Теплоизоляция набора для подключения котла сзади (только для LV и RG) | C36: HC243 | D36: 11.00
A37: 7608398 | B37: Электронный насос для AMC 90-115 (класс А) | D37: 523.00
A38: 7611306 | B38: Коллектор на 3 котла MCA 160 | C38: EH677 | D38: 2504.00
A39: 7611804 | B39: Теплоизоляция набора для подключения котла | C39: EH648 | D39: 85.00
A40: 7612941 | B40: I-образная монтажная опора МСА 160 | C40: EH663 | D40: 188.00
A41: 7612942 | B41: L-образная монтажная опора МСА 160 | C41: EH662 | D41: 309.00
A42: 7613401 | B42: Теплоизоляция для коллектора (для МСА 160) | C42: EH647 | D42: 97.00
A43: 7614795 | B43: Коллектор на 2 котла MCA 160 | C43: EH676 | D43: 2252.00
A44: 7621566 | B44: Монтажная рама (МСА 160) | C44: EH664 | D44: 256.00
A45: 7622201 | B45: Теплоизоляция фланцевого переходника DN 65-DN 100 | C45: EH650 | D45: 59.00
A46: 7622699 | B46: Набор для подключения котла AMC 45-115, для каскадной системы LV/LW | C46: EH655 | D46: 990.00
A47: 7622701 | B47: Набор для подключения котла MCA 160, для каскадной системы LV/LW | C47: EH656 | D47: 990.00
A48: 7631858 | B48: Задняя теплоизоляция набора для подключения котла | C48: EH649 | D48: 78.00
A49: 7633244 | B49: Переходник DN 65-DN 100 | C49: EH654 | D49: 450.00
A50: 7637077 | B50: Кронштейн для монтажа на стене 2 котлов MCA 160 | C50: EH670 | D50: 58.00
A51: 7637088 | B51: Кронштейн для монтажа на стене 3 котлов MCA 160 | C51: EH671 | D51: 77.00
A52: 7638518 | B52: Набор контрфланцев под сварку DN 65 | C52: EH669 | D52: 142.00
A53: 7663618 | B53: Кабель S-BUS длиной 1,5 м | C53: AD308 | D53: 114.00
A54: 7674140 | B54: Котел INNOVENS MCA Pro 160 c панелью управления iniControl2 | D54: 8690.00
A55: 7674142 | B55: Котел INNOVENS MCA Pro 160 c панелью управления Diematic Evolution | D55: 9290.00
A56: 7684462 | B56: Котел EVODENS PRO AMC 45 c панелью управления INICONTROL 2 | C56: HR157 | D56: 3,400.00
A57: 7684586 | B57: Котел EVODENS PRO AMC 65 c панелью управления INICONTROL 2 | C57: HR158 | D57: 3,910.00
A58: 7684587 | B58: Котел EVODENS PRO AMC 90 c панелью управления INICONTROL 2 | C58: HR159 | D58: 5,161.00
A59: 7684588 | B59: Котел EVODENS PRO AMC 115 c панелью управления INICONTROL 2 | C59: HR160 | D59: 5,617.00
A60: 7699475 | B60: Котел EVODENS PRO AMC 45 c панелью управления DIEMATIC EVOLUTION | C60: HR161 | D60: 3,835.00
A61: 7699476 | B61: Котел EVODENS PRO AMC 65 c панелью управления DIEMATIC EVOLUTION | C61: HR162 | D61: 4,383.00
A62: 7699477 | B62: Котел EVODENS PRO AMC 90 c панелью управления DIEMATIC EVOLUTION | C62: HR163 | D62: 5,726.00
A63: 7699478 | B63: Котел EVODENS PRO AMC 115 c панелью управления DIEMATIC EVOLUTION | C63: HR164 | D63: 6,216.00
A64: 83877011 | B64: Система нейтрализации конденсата с насосом - котел свыше 350 кВт | C64: DU15 | D64: 1295.00
A65: 84887768 | B65: Переходник D80/100 | C65: DY768 | D65: 76.00
A66: 88027177 | B66: Регулятор давления GDJ 50 300 мбар | C66: AD246 | D66: 536.00
A67: 94225601 | B67: Гранулированный наполнитель (10 кг) для системы нейтрализации | D67: 90.00
A68: 100008701 | B68: Датчик каскада с погружной гильзой | C68: HC206 | D68: 205.00
A69: 100011223 | B69: Регулятор давления 300 мбар, диаметр подсоединения 1" GDJ25 | C69: AD245 | D69: 177.00
A70: 100013027 | B70: Датчик каскада с погружной гильзой (<350 кВт) | C70: HC223 | D70: 175.00
A71: S101614 | B71: Электронный насос для AMC 45-65 (класс А) | D71: 325.00
A72: S101655 | B72: Газовый фильтр DN 50 | C72: HC255 | D72: 321.00
A73: S101656 | B73: Газовый фильтр DN 65 | C73: HC256 | D73: 441.00
A74: S103345 | B74: Набор фланцев DN 50 PN 16 | C74: HC261 | D74: 119.00
A75: 7637223 | B75: Электронный насос первичного контура каскада (MCA 160) | C75: EH651 | D75: 695.00

Sheet Language (hidden)
A2: N°
A3: 1 | B3: Français | C3: Deutsch | D3: English | E3: Español | F3: Italiano | G3: Polsky | H3: Русский | I3: Nederlands | J3: Česky | K3: Belge
A4: 2 | B4: Détermination et chiffrage des systèmes cascade | C4: Bestimmung und Bestelldaten der Kaskaden-Système | D4: Determination and calculation of cascade systems | E4: Determinación y cálculo de los sistemas de cascada | F4: Determinazione e cifratura dei sistemi cascata | G4: Określenie i ocena liczbowa systemów kaskadowych | H4: Определение и расчет каскадных систем | I4: Bepaling en calculatie van de cascadesystemen | J4: Specifikace a kalkulace kaskádového systému | K4: =B4 -> Détermination et chiffrage des systèmes cascade
A5: 3 | B5: Pour AMC 45, 65, 90, 115 et MCA 160 | C5: Für AMC 45, 65, 90, 115 und MCA 160 | D5: For AMC 45, 65, 90, 115 and MCA 160 | E5: Para AMC 45, 65, 90, 115 y MCA 160 | F5: Per AMC 45, 65, 90,115 e MCA160 | G5: Dla urządzeń AMC 45, 65, 90,115 oraz MCA 160 | H5: Для AMC 45, 65, 90, 115 и MCA 160 | I5: Voor AMC 45, 65, 90,115 en MCA 160 | J5: Pro AMC 45, 65, 90, 115 a MCA 160 | K5: =B5 -> Pour AMC 45, 65, 90, 115 et MCA 160
A6: 4 | B6: PRIX TOTAL DU SYSTEME CASCADE | C6: GESAMTPREIS DES KASKADENSYSTEMS | D6: TOTAL PRICE OF THE CASCADE SYSTEM | E6: PRECIO TOTAL DEL SISTEMA DE CASCADA | F6: PREZZO TOTALE DEL SISTEMA CASCATA | G6: CAŁKOWITA CENA SYSTEMU KASKADOWEGO | H6: ИТОГОВАЯ ЦЕНА КАСКАДНОЙ СИСТЕМЫ | I6: TOTAALPRIJS VAN HET CASCADESYSTEEM | J6: CELKOVÁ CENA KASKÁDOVÉHO SYSTÉMU | K6: PRIX TOTAL DU SYSTEME CASCADE
A7: 5 | B7: PRIX TOTAL DU SYSTEME CASCADE AVEC CHAUDIERES | C7: GESAMTPREIS DES KASKADENSYSTEMS MIT HEIZKESSELN | D7: TOTAL PRICE OF THE CASCADE SYSTEM WITH BOILERS | E7: PRECIO TOTAL DEL SISTEMA DE CASCADA CON CALDERAS | F7: PREZZO TOTALE DEL SISTEMA CASCATA CON CALDAIE | G7: CALKOWITA CENA SYSTEMU KASKADOWEGO Z KOTŁAMI | H7: ИТОГОВАЯ ЦЕНА КАСКАДНОЙ СИСТЕМЫ С КОТЛАМИ | I7: TOTAALPRIJS VAN HET CASCADESYSTEEM MET VERWARMINGSKETELS | J7: CELKOVÁ CENA KASKÁDOVÉHO SYSTÉMU S KOTLI | K7: PRIX TOTAL DU SYSTEME CASCADE AVEC CHAUDIERES
A8: 6 | B8: PRIX TOTAL ACCESSOIRES | C8: GESAMTPREIS ZUBEHÖR | D8: TOTAL PRICE ACCESSORIES | E8: PRECIO TOTAL DE LOS ACCESORIOS | F8: PREZZO TOTALE ACCESSORI | G8: CAŁKOWITA CENA CZĘŚCI | H8: ИТОГОВАЯ ЦЕНА ДОПОЛНИТЕЛЬНОГО ОБОРУДОВАНИЯ | I8: TOTAALPRIJS ACCESSOIRES | J8: CELKOVÁ CENA PŘÍSLUŠENSTVÍ | K8: PRIX TOTAL ACCESSOIRES
A9: 7 | B9: Version | C9: Version | D9: Version | E9: Versión | F9: Versione | G9: Version | H9: Версия : | I9: Versie | J9: Verze | K9: Version
A10: 8 | B10: Identification de l'étude | C10: Bezeichnung der Analyse | D10: Identification of the study | E10: Identificación del estudio | F10: Identificazione dello studio | G10: Identyfikacja projektu | H10: Идентификация расчета | I10: Identificatie rapportage | J10: Popis studie | K10: Identification de l'étude
A11: 9 | B11: Référence | C11: Referenz | D11: Reference | E11: Referencia | F11: Articolo | G11: Oznaczenie | H11: Описание объекта | I11: Referentie | J11: Název akce | K11: Référence
A12: 10 | B12: Données | C12: Daten | D12: Data | E12: Datos | F12: Dati | G12: Dane | H12: Вводимые данные | I12: Gegevens | J12: Údaje | K12: Données
A13: 11 | B13: Puisance de l'installation (kW) | C13: Wärmeleistung der Installation (in kW) | D13: Output of the installation (kW) | E13: Potencia de la instalación (kW) | F13: Potenza dell’impianto (kW) | G13: Moc instalacji (kW) | H13: Мощность установки (кВт) | I13: Vermogen van de installatie (kW) | J13: Výkon instalace (kW) | K13: Puisance de l'installation (kW)
A14: 12 | B14: Intervalle autorisé (+/- … kW) | C14: Zulässiges Intervall (+/- … kW) | D14: Gap permitted (+/- … kW) | E14: Intervalo autorizado (+/- … kW) | F14: Intervallo autorizzato (+/- … kW) | G14: Dopuszczalny przedział (+/- … kW) | H14: Разрешенный диапазон (+/- ... кВт) | I14: Toegestane interval (+/- … kW) | J14: Povolený rozsah (+/- … kW) | K14: Intervalle autorisé (+/- … kW)
A15: 13 | B15: Nombre de chaudières | C15: Anzahl Heizkessel | D15: Number of boilers | E15: Número de calderas | F15: Numero di caldaie | G15: Liczba kotłów | H15: Количество котлов | I15: Aantal verwarmingsketels | J15: Počet kotlů | K15: Nombre de chaudières
A16: 14 | B16: Alignement de la cascade | C16: Anordnung der Kaskade | D16: Alignment of the cascade | E16: Alineación de la cascada | F16: Allineamento della cascata | G16: Wyrównanie kaskady | H16: Расположение в каскаде | I16: Uitlijning van de cascade | J16: Řazení kaskády | K16: Alignement de la cascade
A17: 15 | B17: Système cascade | C17: Kaskadensystem | D17: Cascade system | E17: Sistema de cascada | F17: Sistema cascata | G17: System kaskadowy | H17: Каскадная система | I17: Cascadesysteem | J17: Kaskádový systém | K17: Système cascade
A18: 16 | B18: Attention ! Lorsque vous modifiez une des sélections, il faut toujours revalider les suivantes ! | C18: Achtung! Wenn einer der Werte geändert wird, müssen die anderen Werte erneut bestätigt werden! | D18: NB! When you change one of the selections, you must always revalidate the next ones! | E18: Atención! si modifica alguna de las opciones seleccionadas, siempre hay que volver a validar las siguientes! | F18: Attenzione! Quando modificate una delle selezioni, bisogna sempre confermare quelle successive! | G18: Uwaga! Jeżeli zmieniasz jedną w wybranych wartości, należy zatwierdzić następne wartości! | H18: Внимание! При изменении выбора всегда изменять следующие значения! | I18: Let op! Wanneer u één van de selecties wijzigt, moet u altijd de volgende opnieuw valideren! | J18: Pozor! Pokud se změní jedna hodnota, musejí se ostatní potvrdit! | K18: Attention ! Lorsque vous modifiez une des sélections, il faut toujours revalider les suivantes !
A19: 17 | B19: Nb chaudières ! | C19: Anzahl Heizkessel! | D19: Number boilers! | E19: N.º calderas | F19: N° caldaie! | G19: Licz kotłów! | H19: Количество котлов | I19: Aant. verwarmingsketels! | J19: Počet kotlů! | K19: Nb chaudières !
A20: 18 | B20: Solution De Dietrich | C20: De Dietrich-Lösung | D20: De Dietrich Solution | E20: Solución De Dietrich | F20: Soluzione De Dietrich | G20: Rozwiązanie De Dietrich | H20: Решение De Dietrich | I20: Oplossing De Dietrich | J20: Řešení De Dietrich | K20: Solution De Dietrich
A21: 19 | B21: Solution De Dietrich (suite) | C21: De Dietrich-Lösung (Fortsetzung) | D21: De Dietrich Solution (contd.) | E21: Solución De Dietrich (cont.) | F21: Soluzione De Dietrich (segue) | G21: Rozwiązanie De Dietrich (ciąg dalszy) | H21: Решение De Dietrich (продолжение) | I21: Oplossing De Dietrich (vervolg) | J21: Řešení De Dietrich (pokračování) | K21: Solution De Dietrich (suite)
A22: 20 | B22: Désignation | C22: Bezeichnung | D22: Description | E22: Denominación | F22: Designazione | G22: Nazwa | H22: Наименование | I22: Benaming | J22: Název | K22: Désignation
A23: 21 | B23: Puissance (kW) | C23: Leistung (kW) | D23: Output (kW) | E23: Potencia (kW) | F23: Potenza (kW) | G23: Moc (kW) | H23: Мощность (кBт) | I23: Vermogen (kW) | J23: Výkon (kW) | K23: Puissance (kW)
A24: 22 | B24: Nombre de chaudières | C24: Anzahl Heizkessel | D24: Number of boilers | E24: Número de calderas | F24: Numero di caldaie | G24: Liczba kotłów | H24: Количество котлов | I24: Aantal verwarmingsketels | J24: Počet kotlů | K24: Nombre de chaudières
A25: 23 | B25: Type de chaudières | C25: Heizkesseltypen | D25: Type of boilers | E25: Tipo de calderas | F25: Tipo di caldaie | G25: Rodzaj kotłów | H25: Тип котлов | I25: Type verwarmingsketels | J25: Typy kotlů | K25: Type de chaudières
A26: 24 | B26: AMC 45 | C26: AMC 45 | D26: AMC 45 | E26: AMC 45 | F26: AMC 45 | G26: AMC 45 | H26: AMC 45 | I26: AMC 45 | J26: AMC 45 | K26: AMC 45
A27: 25 | B27: AMC 65 | C27: AMC 65 | D27: AMC 65 | E27: AMC 65 | F27: AMC 65 | G27: AMC 65 | H27: AMC 65 | I27: AMC 65 | J27: AMC 65 | K27: AMC 65
A28: 26 | B28: AMC 90 | C28: AMC 90 | D28: AMC 90 | E28: AMC 90 | F28: AMC 90 | G28: AMC 90 | H28: AMC 90 | I28: AMC 90 | J28: AMC 90 | K28: AMC 90
A29: 27 | B29: AMC 115 | C29: AMC 115 | D29: AMC 115 | E29: AMC 115 | F29: AMC 115 | G29: AMC 115 | H29: AMC 115 | I29: AMC 115 | J29: AMC 115 | K29: AMC 115
A30: 28 | B30: Prix système cascade seul | C30: Preis Kaskadensystem einzeln | D30: Price cascade system only | E30: Precio del sistema de cascada solo | F30: Prezzo del solo sistema cascata | G30: Cena pojedynczego systemu kaskadowego | H30: Цена только каскадной системы | I30: Prijs los cascadesysteem | J30: Cena kaskádového systému | K30: Prix système cascade seul
A31: 29 | B31: Prix système cascade avec chaudières | C31: Preis Kaskadensystem mit Heizkesseln | D31: Price cascade system with boilers | E31: Precio del sistema de cascada con calderas | F31: Prezzo sistema cascata con caldaie | G31: Cena systemu kaskadowego z kotłami | H31: Цена каскадной системы с котлами | I31: Prijs cascadesysteem met verwarmingsketels | J31: Cena kaskádového systému s kotli | K31: Prix système cascade avec chaudières
A32: 30 | B32: HT en € | C32: Netto in € | D32: Excl VAT in € | E32: Antes de impuestos en € | F32: Iva Esclusa in € | G32: Ceny netto wyrażone w euro | H32: €, с НДС | I32: exclusief B.T.W. in € | J32: Kč bez DPH | K32: HT en €
A33: 31 | B33: Solution sélectionnée | C33: Gewählte Lösung | D33: Solution selected | E33: Solución seleccionada | F33: Soluzione scelta | G33: Wybrane rozwiązanie | H33: Выбранное решение | I33: Geselecteerde oplossing | J33: Vybrané řešení | K33: Solution sélectionnée
A34: 32 | B34: Qtté | C34: Menge | D34: Qty | E34: Ctd. | F34: Q.tà | G34: Ilość | H34: Кол-во | I34: Aant | J34: Množství | K34: Qtté
A35: 33 | B35: Prix unitaire | C35: Preis pro Einheit | D35: Unit price | E35: Precio unitario | F35: Prezzo unitario | G35: Cena jednostkowa | H35: Цена за единицу | I35: Eenheidsprijs | J35: Cena za ks | K35: Prix unitaire
A36: 34 | B36: Prix total | C36: Gesamtpreis | D36: Total price | E36: Precio total | F36: Prezzo totale | G36: Cena całkowita | H36: Итоговая цена | I36: Totaalprijs | J36: Celková cena | K36: Prix total
A37: 35 | B37: Référence | C37: Art.-Nr. | D37: Reference | E37: Referencia | F37: Articolo | G37: Oznaczenie | H37: Позиция | I37: Referentie | J37: Obj. číslo | K37: Référence
A38: 36 | B38: Désignation | C38: Bezeichnung | D38: Description | E38: Denominación | F38: Designazione | G38: Nazwa | H38: Наименование | I38: Benaming | J38: Název | K38: Désignation
A39: 37 | B39: Système | C39: System | D39: System | E39: Sistema | F39: Sistema | G39: System | H39: Система | I39: Systeem | J39: Systém | K39: Système
A40: 38 | B40: Accessoires | C40: Zubehör | D40: Accessories | E40: Accesorios | F40: Accessori | G40: Narzędzia | H40: Доп. оборудование | I40: Accessoires | J40: Příslušenství | K40: Accessoires
A41: 39 | B41: Composition | C41: Aufbau | D41: Composition | E41: Composición | F41: Composizione | G41: Elementy | H41: Состав | I41: Samenstelling | J41: Složení | K41: Composition
A42: 40 | B42: du système cascade | C42: des Kaskadensystems | D42: of the cascade system | E42: del sistema de cascada | F42: del sistema cascata | G42: systemu kaskadowego | H42: каскадной системы | I42: van het cascadesysteem | J42: kaskádového systému | K42: du système cascade
A43: 41 | B43: mural "LW" | C43: Wand "LW" | D43: wall-hung "LW" | E43: mural "LW" | F43: murale "LW" | G43: ścienny „LW” | H43: настенное "LW" | I43: wand "LW" | J43: na stěnu "LW" | K43: mural "LW"
A44: 42 | B44: sol "LV" | C44: Boden "LV" | D44: floor-standing "LV" | E44: suelo "LV" | F44: pavimento "LV" | G44: podłogowy „LV” | H44: напольное "LV" | I44: vloer "LV" | J44: na podlahu "LV" | K44: sol "LV"
A45: 43 | B45: dos à dos "RG" | C45: Rücken an Rücken "RG" | D45: back to back "RG" | E45: espalda con espalda “RG” | F45: dorso a dorso "RG" | G45: przytwierdzony zewnętrzną stroną „RG” | H45: сдвоенное "RG" | I45: rug tegen rug "RG" | J45: zády k sobě "RG" | K45: dos à dos "RG"
A46: 44 | B46: * Pour installation en cascade sous pression | C46: * Für unter Druck stehende Kaskadensysteme | D46: * For pressurised installation in cascade | E46: * Para instalación en cascada a presión | F46: * Per installazione a cascata sotto pressione | G46: * W przypadku instalacji kaskadowej pod ciśnieniem | H46: * Для каскадной установки под давлением | I46: * Voor cascade-installatie onder druk | J46: *Pro instalaci kaskády pod tlakem | K46: * Pour installation en cascade sous pression
A47: 45 | B47: Code à rappeler lors de la commande. | C47: Kode zu errinern während der Bestellung. | D47: Code to be reminded during the order. | E47: Código que debe darse al efectuar el pedido | F47: Codice da precisare al momento dell'ordine | G47: Kod pamiętać przy zamawianiu. | H47: Повторить код во время заказа | I47: Code om te onthouden bij het bestellen. | J47: Kód pro připomenutí objednávky. | K47: Code à rappeler lors de la commande.
A48: 46 | B48: Marché | C48: Markt | D48: Market | E48: Mercado | F48: Mercato | H48: Рынок | J48: Trh | K48: Marché
A49: 47 | B49: Puissance (80/60°C) | C49: Leistung (80/60°C) | D49: Output (80/60°C) | E49: Potencia (80/60°C) | F49: Potenza (80/60°C) | G49: Moc (80/60°C) | H49: Мощность (80/60°C) | I49: Vermogen (80/60°C) | J49: Výkon (80/60°C) | K49: Puissance (80/60°C)
A50: 48 | B50: Support | C50: Halter | D50: Supports | E50: Soportes | F50: Supporto | G50: Wsporniki | H50: Опора | I50: Houders | J50: Držáky | K50: Support
A51: 49 | B51: _ | C51: _ | D51: _ | E51: _ | F51: _ | G51: _ | H51: _ | I51: _ | J51: _ | K51: _
A52: 50 | B52: Régulation | C52: Regelung | D52: Control system | E52: Regulación | F52: Regolazione | G52: Regulacja | H52: Панель управления | I52: Afregeling | J52: Regulace | K52: Régulation
A53: 51 | B53: Hydraulique | C53: Hydraulisch | D53: Hydraulic | E53: Hidráulica | F53: Idraulica | G53: Hydrauliczny | H53: Гидравлика | I53: Hydraulisch | J53: Hydraulická část | K53: Hydraulique
A54: 52 | B54: DESIGNATION | C54: BEZEICHNUNG | D54: DESCRIPTION | E54: DENOMINACIÓN | F54: DENOMINAZIONE | G54: BEZEICHNUNG | H54: ОБОЗНАЧЕНИЕ | I54: AANWIJZING | J54: NÁZEV | K54: DESIGNATION
A55: 53 | B55: COLIS | C55: KOLLI | D55: PACKAGE | E55: BULTO | F55: COLLO | G55: KOLLI | H55: Ед. поставки | I55: PERCEEL | J55: BALENÍ | K55: COLIS
A56: 54 | B56: PRIX | C56: PREIS | D56: PRICE | E56: PRECIO | F56: PREZZO | G56: PREIS | H56: ПРАЙС-ЛИСТ | I56: PRIJS | J56: CENA | K56: PRIX
A57: 55 | B57: Merci de spécifier le marché de destination de ce logiciel | C57: Bitte angeben fûr welchen Markt diese software bestimmt ist. | D57: Please specify the destination market of this software | E57: Gracias por especificar el mercado de destino de este software | F57: Specificare che mercato è destinario da questo software. | H57: Необохдимо выбрать целевой рынок для данного ПО | J57: Udejte prosím, pro který trh je software určen | K57: Merci de spécifier le marché de destination de ce logiciel
A58: 56 | B58: Vérifiez les données (tarif, calcul, …) | C58: Überprüfen Sie die Daten (Tarif, Berechnung, usw.) | D58: Check the data (tariff, calculation, etc.) | E58: Compruebe los datos (tarifa, cálculo, …) | F58: Controllare i dati (listino, calcolo,…) | G58: Sprawdź dane (ceny, obliczenie, …) | H58: Проверить данные (цены, расчет, …) | I58: Controleer de gegevens (tarief, berekening, …) | J58: Zkontrolujte údaje (cena, kalkulace atd.) | K58: Vérifiez les données (tarif, calcul, …)
A59: 57 | B59: H.T. en € | C59: ohne MwSt. In € | D59: EXCL VAT in € | E59: antes de impuestos en € | F59: IVA esclusa in Euro | G59: ceny netto wyrażone w euro | H59: €, с НДС | I59: excl. B.T.W. in € | J59: Kč bez DPH | K59: H.T. en €
A60: 58 | B60: Autres | C60: Andere | D60: Others | E60: Otros | F60: Altro | G60: Inne | K60: Autres
A61: 59 | B61: Références pour recherche d'accessoires
A62: 60 | B62: 7630016 | C62: 7630016 | D62: 7630016 | E62: 7630016 | F62: 7630016 | G62: 7630016 | H62: 7630016 | I62: 7630016 | J62: 7630016 | K62: =J62 -> 7630016
A63: 61 | B63: 7637223 | C63: 7637223 | D63: 7637223 | E63: 7637223 | F63: 7637223 | G63: 7637223 | H63: 7637223 | I63: 7637223 | J63: 7637223 | K63: =J63 -> 7637223
A64: 62 | B64: 90777 | C64: 110968 | D64: 110968 | E64: 110968 | F64: 110968 | G64: 110968 | H64: 110968 | I64: 110968 | J64: 110968 | K64: 110968
A65: 63 | B65: 90777 | C65: 110961 | D65: 110961 | E65: 110961 | F65: 110961 | G65: 110961 | H65: 110961 | I65: 110961 | J65: 110961 | K65: 110961
A66: 64 | B66: 7665725 | C66: 7614795 | D66: 7614795 | E66: 7614795 | F66: 7614795 | G66: 7614795 | H66: 7614795 | I66: 7614795 | J66: 7614795 | K66: 7614795
A67: 65 | B67: 90778 | C67: 110967 | D67: 110967 | E67: 110967 | F67: 110967 | G67: 110967 | H67: 110967 | I67: 110967 | J67: 110967 | K67: 110967
A68: 66 | B68: 90778 | C68: 110960 | D68: 110960 | E68: 110960 | F68: 110960 | G68: 110960 | H68: 110960 | I68: 110960 | J68: 110960 | K68: 110960
A69: 67 | B69: 7665728 | C69: 7611306 | D69: 7611306 | E69: 7611306 | F69: 7611306 | G69: 7611306 | H69: 7611306 | I69: 7611306 | J69: 7611306 | K69: 7611306
A70: 68 | B70: 90777 | C70: 110966 | D70: 110966 | E70: 110966 | F70: 110966 | G70: 110966 | H70: 110966 | I70: 110966 | J70: 110966 | K70: 110966
A71: 69 | B71: 90777 | C71: 110954 | D71: 110954 | E71: 110954 | F71: 110954 | G71: 110954 | H71: 110954 | I71: 110954 | J71: 110954 | K71: 110954
A72: 70 | B72: 114311 | C72: 114311 | D72: 114311 | E72: 114311 | F72: 114311 | G72: 114311 | H72: 114311 | I72: 114311 | J72: 114311 | K72: 114311
A73: 71 | B73: 111712 | C73: 111712 | D73: 111712 | E73: 111712 | F73: 111712 | G73: 111712 | H73: 111712 | I73: 111712 | J73: 111712 | K73: 111712
A74: 72 | B74: 111714 | C74: 111714 | D74: 111714 | E74: 111714 | F74: 111714 | G74: 111714 | H74: 111714 | I74: 111714 | J74: 111714 | K74: 111714
A75: 73 | B75: 7633244 | C75: 7633244 | D75: 7633244 | E75: 7633244 | F75: 7633244 | G75: 7633244 | H75: 7633244 | I75: 7633244 | J75: 7633244 | K75: 7633244
A76: 74 | B76: 111022 | C76: 111022 | D76: 111022 | E76: 111022 | F76: 111022 | G76: 111022 | H76: 111022 | I76: 111022 | J76: 111022 | K76: 111022
A77: 75 | B77: 7622699 | C77: 7622699 | D77: 7622699 | E77: 7622699 | F77: 7622699 | G77: 7622699 | H77: 7622699 | I77: 7622699 | J77: 7622699 | K77: 7622699
A78: 76 | B78: 7622701 | C78: 7622701 | D78: 7622701 | E78: 7622701 | F78: 7622701 | G78: 7622701 | H78: 7622701 | I78: 7622701 | J78: 7622701 | K78: 7622701
A79: 77 | C79: 111037 | D79: 111037 | E79: 111037 | F79: 111037 | G79: 111037 | H79: 111037 | I79: 111037 | J79: 111037 | K79: 111037
A80: 78 | B80: 7622700 | C80: 7622700 | D80: 7622700 | E80: 7622700 | F80: 7622700 | G80: 7622700 | H80: 7622700 | I80: 7622700 | J80: 7622700 | K80: 7622700
A81: 79 | B81: 7622702 | C81: 7622702 | D81: 7622702 | E81: 7622702 | F81: 7622702 | G81: 7622702 | H81: 7622702 | I81: 7622702 | J81: 7622702 | K81: 7622702
A82: 80 | B82: S101538 | C82: S101538 | D82: S101538 | E82: S101538 | F82: S101538 | G82: S101538 | H82: S101538 | I82: S101538 | J82: S101538 | K82: S101538
A83: 81 | B83: 7622704 | C83: 7622704 | D83: 7622704 | E83: 7622704 | F83: 7622704 | G83: 7622704 | H83: 7622704 | I83: 7622704 | J83: 7622704 | K83: 7622704
A84: 82 | B84: 7622705 | C84: 7622705 | D84: 7622705 | E84: 7622705 | F84: 7622705 | G84: 7622705 | H84: 7622705 | I84: 7622705 | J84: 7622705 | K84: 7622705
A85: 83 | C85: 111698 | D85: 111698 | E85: 111698 | F85: 111698 | G85: 111698 | H85: 111698 | I85: 111698 | J85: 111698 | K85: 111698
A86: 84 | C86: 111699 | D86: 111699 | E86: 111699 | F86: 111699 | G86: 111699 | H86: 111699 | I86: 111699 | J86: 111699 | K86: 111699
A87: 85 | B87: 111701 | C87: 111701 | D87: 111701 | E87: 111701 | F87: 111701 | G87: 111701 | H87: 111701 | I87: 111701 | J87: 111701 | K87: 111701
A88: 86 | B88: 111703 | C88: 111703 | D88: 111703 | E88: 111703 | F88: 111703 | G88: 111703 | H88: 111703 | I88: 111703 | J88: 111703 | K88: 111703
A89: 87 | B89: 120842 | C89: 120842 | D89: 120842 | E89: 120842 | F89: 120842 | G89: 120842 | H89: 120842 | I89: 120842 | J89: 120842 | K89: 120842
A90: 88 | B90: 7612942 | C90: 7612942 | D90: 7612942 | E90: 7612942 | F90: 7612942 | G90: 7612942 | H90: 7612942 | I90: 7612942 | J90: 7612942 | K90: 7612942
A91: 89 | B91: 120900 | C91: 120900 | D91: 120900 | E91: 120900 | F91: 120900 | G91: 120900 | H91: 120900 | I91: 120900 | J91: 120900 | K91: 120900
A92: 90 | B92: 7612941 | C92: 7612941 | D92: 7612941 | E92: 7612941 | F92: 7612941 | G92: 7612941 | H92: 7612941 | I92: 7612941 | J92: 7612941 | K92: 7612941
A93: 91 | B93: 120918 | C93: 120918 | D93: 120918 | E93: 120918 | F93: 120918 | G93: 120918 | H93: 120918 | I93: 120918 | J93: 120918 | K93: 120918
A94: 92 | B94: 7621566 | C94: 7621566 | D94: 7621566 | E94: 7621566 | F94: 7621566 | G94: 7621566 | H94: 7621566 | I94: 7621566 | J94: 7621566 | K94: 7621566
A95: 93 | B95: 111688 | C95: 111688 | D95: 111688 | E95: 111688 | F95: 111688 | G95: 111688 | H95: 111688 | I95: 111688 | J95: 111688 | K95: 111688
A96: 94 | B96: 7637077 | C96: 7637077 | D96: 7637077 | E96: 7637077 | F96: 7637077 | G96: 7637077 | H96: 7637077 | I96: 7637077 | J96: 7637077 | K96: 7637077
A97: 95 | B97: 111689 | C97: 111689 | D97: 111689 | E97: 111689 | F97: 111689 | G97: 111689 | H97: 111689 | I97: 111689 | J97: 111689 | K97: 111689
A98: 96 | B98: 7637088 | C98: 7637088 | D98: 7637088 | E98: 7637088 | F98: 7637088 | G98: 7637088 | H98: 7637088 | I98: 7637088 | J98: 7637088 | K98: 7637088
A99: 97 | B99: 111690 | C99: 111690 | D99: 111690 | E99: 111690 | F99: 111690 | G99: 111690 | H99: 111690 | I99: 111690 | J99: 111690 | K99: 111690
A100: 98
A101: 99 | B101: S101655 | C101: S101655 | D101: S101655 | E101: S101655 | F101: S101655 | G101: S101655 | H101: S101655 | I101: S101655 | J101: S101655 | K101: S101655
A102: 100 | B102: S101656 | C102: S101656 | D102: S101656 | E102: S101656 | F102: S101656 | G102: S101656 | H102: S101656 | I102: S101656 | J102: S101656 | K102: S101656
A103: 101 | B103: 111788 | C103: 111788 | D103: 111788 | E103: 111788 | F103: 111788 | G103: 111788 | H103: 111788 | I103: 111788 | J103: 111788 | K103: 111788
A104: 102 | B104: 111790 | C104: 111790 | D104: 111790 | E104: 111790 | F104: 111790 | G104: 111790 | H104: 111790 | I104: 111790 | J104: 111790 | K104: 111790
A105: 103 | C105: 111805 | D105: 111805 | E105: 111805 | F105: 111805 | G105: 111805 | H105: 111805 | I105: 111805 | J105: 111805 | K105: 111805
A106: 104 | C106: 111806 | D106: 111806 | E106: 111806 | F106: 111806 | G106: 111806 | H106: 111806 | I106: 111806 | J106: 111806 | K106: 111806
A107: 105 | B107: 111069 | C107: 111069 | D107: 111069 | E107: 111069 | F107: 111069 | G107: 111069 | H107: 111069 | I107: 111069 | J107: 111069 | K107: 111069
A108: 106 | B108: 7613401 | C108: 7613401 | D108: 7613401 | E108: 7613401 | F108: 7613401 | G108: 7613401 | H108: 7613401 | I108: 7613401 | J108: 7613401 | K108: 7613401
A109: 107 | B109: 122441 | C109: 122441 | D109: 122441 | E109: 122441 | F109: 122441 | G109: 122441 | H109: 122441 | I109: 122441 | J109: 122441 | K109: 122441
A110: 108 | B110: 7611804 | C110: 7611804 | D110: 7611804 | E110: 7611804 | F110: 7611804 | G110: 7611804 | H110: 7611804 | I110: 7611804 | J110: 7611804 | K110: 7611804
A111: 109 | C111: 123182 | D111: 123182 | E111: 123182 | F111: 123182 | G111: 123182 | H111: 123182 | I111: 123182 | J111: 123182 | K111: 123182
A112: 110 | B112: 7631858 | C112: 7631858 | D112: 7631858 | E112: 7631858 | F112: 7631858 | G112: 7631858 | H112: 7631858 | I112: 7631858 | J112: 7631858 | K112: 7631858
A113: 111 | B113: 111067 | C113: 111067 | D113: 111067 | E113: 111067 | F113: 111067 | G113: 111067 | H113: 111067 | I113: 111067 | J113: 111067 | K113: 111067
A114: 112 | B114: 7622201 | C114: 7622201 | D114: 7622201 | E114: 7622201 | F114: 7622201 | G114: 7622201 | H114: 7622201 | I114: 7622201 | J114: 7622201 | K114: 7622201
A115: 113 | B115: 115269 | C115: 115269 | D115: 115269 | E115: 115269 | F115: 115269 | G115: 115269 | H115: 115269 | I115: 115269 | J115: 115269 | K115: 115269
A116: 114 | B116: 111167 | C116: 111167 | D116: 111167 | E116: 111167 | F116: 111167 | G116: 111167 | H116: 111167 | I116: 111167 | J116: 111167 | K116: 111167
A117: 115 | B117: 111807 | C117: 111807 | D117: 111807 | E117: 111807 | F117: 111807 | G117: 111807 | H117: 111807 | I117: 111807 | J117: 111807 | K117: 111807
A118: 116 | B118: S53990 | C118: S53990 | D118: S53990 | E118: S53990 | F118: S53990 | G118: S53990 | H118: S53990 | I118: S53990 | J118: S53990 | K118: S53990
A119: 117 | B119: S62518 | C119: S62518 | D119: S62518 | E119: S62518 | F119: S62518 | G119: S62518 | H119: S62518 | I119: S62518 | J119: S62518 | K119: S62518
A120: 118 | B120: 112632 | C120: 112632 | D120: 112632 | E120: 112632 | F120: 112632 | G120: 112632 | H120: 112632 | I120: 112632 | J120: 112632 | K120: 112632
A121: 119 | B121: 112633 | C121: 112633 | D121: 112633 | E121: 112633 | F121: 112633 | G121: 112633 | H121: 112633 | I121: 112633 | J121: 112633 | K121: 112633
A122: 120 | B122: 112829 | C122: 112829 | D122: 112829 | E122: 112829 | F122: 112829 | G122: 112829 | H122: 112829 | I122: 112829 | J122: 112829 | K122: 112829
A123: 121 | B123: 7641015 | C123: 7641015 | D123: 7641015 | E123: 7641015 | F123: 7641015 | G123: 7641015 | H123: 7641015 | I123: 7641015 | J123: 7641015 | K123: 7641015
A124: 122 | B124: 113076 | C124: 113076 | D124: 113076 | E124: 113076 | F124: 113076 | G124: 113076 | H124: 113076 | I124: 113076 | J124: 113076 | K124: 113076
A125: 123 | B125: 7636634 | C125: 7636634 | D125: 7636634 | E125: 7636634 | F125: 7636634 | G125: 7636634 | H125: 7636634 | I125: 7636634 | J125: 7636634 | K125: 7636634
A126: 124 | B126: 113064 | C126: 113064 | D126: 113064 | E126: 113064 | F126: 113064 | G126: 113064 | H126: 113064 | I126: 113064 | J126: 113064 | K126: 113064
A127: 125 | B127: 54663 | C127: 54663 | D127: 54663 | E127: 54663 | F127: 54663 | G127: 54663 | H127: 54663 | I127: 54663 | J127: 54663 | K127: =J127 -> 54663
A128: 126 | B128: S101679 | C128: S101679 | D128: S101679 | E128: S101679 | F128: S101679 | G128: S101679 | H128: S101679 | I128: S101679 | J128: S101679 | K128: S101679
A129: 127 | B129: S101651 | C129: S101651 | D129: S101651 | E129: S101651 | F129: S101651 | G129: S101651 | H129: S101651 | I129: S101651 | J129: S101651 | K129: S101651
A130: 128 | B130: S101468 | C130: S101468 | D130: S101468 | E130: S101468 | F130: S101468 | G130: S101468 | H130: S101468 | I130: S101468 | J130: S101468 | K130: S101468
A131: 129 | B131: S100763 | C131: S100763 | D131: S100763 | E131: S100763 | F131: S100763 | G131: S100763 | H131: S100763 | I131: S100763 | J131: S100763 | K131: S100763
A132: 130 | B132: S100865 | C132: S100865 | D132: S100865 | E132: S100865 | F132: S100865 | G132: S100865 | H132: S100865 | I132: S100865 | J132: S100865 | K132: S100865
A133: 131 | B133: 7638518 | C133: 7638518 | D133: 7638518 | E133: 7638518 | F133: 7638518 | G133: 7638518 | H133: 7638518 | I133: 7638518 | J133: 7638518 | K133: 7638518
A134: 132 | B134: S100764 | C134: S100764 | D134: S100764 | E134: S100764 | F134: S100764 | G134: S100764 | H134: S100764 | I134: S100764 | J134: S100764 | K134: S100764
A135: 133 | K135: 0
A136: 134 | B136: Référence chaudière
A137: 135 | B137: Français | C137: Deutsch | D137: English | E137: Español | F137: Italiano | G137: Polsky | H137: Русский | I137: Nederlands | J137: Česky | K137: =K3 -> Belge
A138: 136
A139: 137 | B139: 7684462 | C139: 7684462 | D139: 7684462 | E139: 7684462 | F139: 7684462 | G139: 7684462 | H139: 7684462 | I139: 7684462 | J139: 7684462 | K139: =B139 -> 7684462
A140: 138 | B140: 7684586 | C140: 7684586 | D140: 7684586 | E140: 7684586 | F140: 7684586 | G140: 7684586 | H140: 7684586 | I140: 7684586 | J140: 7684586 | K140: 7684586
A141: 139 | B141: 7684587 | C141: 7684587 | D141: 7684587 | E141: 7684587 | F141: 7684587 | G141: 7684587 | H141: 7684587 | I141: 7684587 | J141: 7684587 | K141: 7684587
A142: 140 | B142: 7684588 | C142: 7684588 | D142: 7684588 | E142: 7684588 | F142: 7684588 | G142: 7684588 | H142: 7684588 | I142: 7684588 | J142: 7684588 | K142: 7684588
A143: 141 | B143: 7674140 | C143: 7674140 | D143: 7674140 | E143: 7674140 | F143: 7674140 | G143: 7674140 | H143: 7674140 | I143: 7674140 | J143: 7674140 | K143: 7674140
A144: 142 | B144: 7699475 | C144: 7699475 | D144: 7699475 | E144: 7699475 | F144: 7699475 | G144: 7699475 | H144: 7699475 | I144: 7699475 | J144: 7699475 | K144: 7699475
A145: 143 | B145: 7699476 | C145: 7699476 | D145: 7699476 | E145: 7699476 | F145: 7699476 | G145: 7699476 | H145: 7699476 | I145: 7699476 | J145: 7699476 | K145: 7699476
A146: 144 | B146: 7699477 | C146: 7699477 | D146: 7699477 | E146: 7699477 | F146: 7699477 | G146: 7699477 | H146: 7699477 | I146: 7699477 | J146: 7699477 | K146: 7699477
A147: 145 | B147: 7699478 | C147: 7699478 | D147: 7699478 | E147: 7699478 | F147: 7699478 | G147: 7699478 | H147: 7699478 | I147: 7699478 | J147: 7699478 | K147: 7699478
A148: 146 | B148: 7674142 | C148: 7674142 | D148: 7674142 | E148: 7674142 | F148: 7674142 | G148: 7674142 | H148: 7674142 | I148: 7674142 | J148: 7674142 | K148: 7674142
A149: 147
A150: 148
A151: 149 | B151: Le résultat ou le contenu sont donnés à titre indicatif. La responsabilité de De Dietrich ne peut en aucun cas être engagée sur le résultat ou sur toute autre utilisation. | C151: Das Ergebnis und die Inhalte sind Richtwerte. In keinem Fall haftet De Dietrich für die Ergebnisse oder für sonstige Verwendung. | D151: The result or the contents are given as an indication. In no event shall De Dietrich be liable for the results or for any other use. | E151: El resultado o el contenido se facilita a título indicativo. De Dietrich declina cualquier responsabilidad sobre la utilización de los resultados de este software. | F151: Il risultato e il contenuto ottenuti sono da considerarsi puramente indicativi. De Dietrich declina ogni responsabilità su eventuali errori generati dal sistema e su altri utilizzi non ottemperati dal sistema stesso. | G151: WYNIKI MAJĄ CHARAKTER PRZYKŁADOWY. DE DIETRICH NIE PONOSI ODPOWIEDZIALNOŚCI ZA WYNIKI, CZY TEŻ INNE ZASTOSOWANIA. | H151: The result or the contents are given as an indication. In no event shall De Dietrich be liable for the results or for any other use. | I151: The result or the contents are given as an indication. In no event shall De Dietrich be liable for the results or for any other use. | J151: Výsledek nebo obsah jsou uvedeny jako indikace. V žádném případě není společnost De Dietrich odpovědná za výsledky nebo za jiné použití. | K151: Le résultat ou le contenu sont donnés à titre indicatif. La responsabilité de De Dietrich ne peut en aucun cas être engagée sur le résultat ou sur toute autre utilisation.
A152: 150 | B152: Kit de base | C152: Basis-Kit | D152: Basic kit | E152: Kit básico | F152: Kit di base | G152: Podstawowy zestaw | H152: Базовый комплект | I152: Basisset | J152: Základní sestava | K152: Kit de base
A153: 151 | B153: Options | C153: Optionen | D153: Options | E153: Opciones | F153: Opzioni | G153: Opcje | H153: опции | I153: Opties | J153: Příslušenství | K153: Options
A154: 152 | B154: Quantité préconisée | C154: Empfohlene Menge | D154: Amount of recommended parts | E154: Cantidad recomendada | F154: Quantità scelta | G154: Zalecana ilość | H154: Рекомендуемое количество | I154: Aanbevolen hoeveelheid | J154: Množství doporučených součástí | K154: Quantité préconisée
A155: 153 | B155: Quantité choisie | C155: Gewällte Menge | D155: Amount of selected parts | E155: Cantidad elegida | F155: Quantità scelta | G155: Wybrana ilość | H155: Количество выбрано | I155: Gekozen hoeveelheid | J155: Množství vybraných částí | K155: Quantité choisie
A156: 154 | B156: Régulation | C156: Regulierung | D156: Control System | E156: Regulación | F156: Regolazione | G156: regulacja | H156: регулирование | I156: verordening | J156: Regulační systém | K156: Régulation
A157: 155 | B157: Fumisterie | C157: Abgassystem | D157: Flue gas system | E157: Patraña | F157: Condotti di fumo | G157: humbug | H157: надувать | I157: humbug | J157: Systém vzduch-spaliny | K157: Fumisterie
A158: 156 | B158: Quantité | C158: Menge | D158: Quantity | E158: Cantidad | F158: Quantità | G158: ilość | H158: количество | I158: hoeveelheid | J158: Množství | K158: Quantité
A159: 157 | B159: Français | C159: Deutsch | D159: English | E159: Español | F159: Italiano | G159: Polsky | H159: Русский | I159: Nederlands | J159: Česky | K159: Français
A160: 158 | B160: How to | H160: Как | K160: How to
A161: 159 | B161: COMMENT UTILISER L'OUTIL ? | C161: WIE BENUTZT MAN DAS TOOL? | D161: HOW TO USE THE TOOL ? | E161: ¿CÓMO UTILIZAR LA HERRAMIENTA? | F161: COME UTILIZZARE L’UTENSILE? | G161: HOW TO USE THE TOOL ? | H161: Как использовать утилиту? | I161: HOW TO USE THE TOOL ? | J161: JAK POUŽÍVAT TENTO NÁSTROJ? | K161: COMMENT UTILISER L'OUTIL ?
A162: 160 | B162: Copiez votre tarif dans l'onglet ''Price List'' | C162: Kopieren Sie Ihren Tarif in die Registerkarte „Price List“ | D162: Copy your Price List in the Excel sheet ''Price List" | E162: Copie su tarifa en la ficha «Price List» | F162: Copiare la tariffa nel campo ''Price List'' | G162: Copy your Price List in the Excel sheet ''Price List" | H162: Скопируйте Ваш прайс-лист на лист "'Price List'" | I162: Copy your Price List in the Excel sheet ''Price List" | J162: Zkopírujte Váš ceník do listu "Price List" v Excelu | K162: Copiez votre tarif dans l'onglet ''Price List''
A163: 161 | B163: L'ordre des colonnes doit être ABSOLUMENT respectée | C163: Die Reihenfolge der Spalten muss UNBEDINGT eingehalten werden | D163: The order (Column A = Reference ; Column B = Type ; Column C = Package ; Column D = Price) has to be respected. | E163: El orden de las columnas debe respetarse TOTALMENTE | F163: L’ordine delle colonne deve essere ASSOLUTAMENTE rispettato | G163: The order (Column A = Reference ; Column B = Type ; Column C = Package ; Column D = Price) has to be respected. | H163: Обязательно соблюдать порядок следования столбцов | I163: The order (Column A = Reference ; Column B = Type ; Column C = Package ; Column D = Price) has to be respected. | J163: Pořadí (sloupec A = objednací číslo; sloupec B = Typ; sloupec C = Balení; sloupec D = cena) je respektováno | K163: L'ordre des colonnes doit être ABSOLUMENT respectée
A164: 162 | B164: Le tarif inséré doit être identique que la langue sélectionné | C164: Der eingegebene Tarif muss mit der gewählten Sprache übereinstimmen | D164: The price list has to be the same as the selected language | E164: La tarifa insertada debe ser idéntica a la del idioma seleccionado | F164: La tariffa inserita deve essere identica rispetto alla lingua selezionata | G164: The price list has to be the same as the selected language | H164: Скопированный прайс-лист должен быть на том же языке, что и выбранный язык для утилиты. | I164: The price list has to be the same as the selected language | J164: Ceník musí souhlasit s vybraným jazykem | K164: Le tarif inséré doit être identique que la langue sélectionné
A165: 163 | B165: Ex : Si Langue = Anglais , alors le tarif doit être le tarif anglais | C165: Bsp.: Wenn Sprache = Englisch, dann muss der Tarif der englische Tarif sein | D165: Ex : If language = English , the price list has to be the english price list. | E165: P. ej.: Si Idioma = Inglés, entonces la tarifa debe ser la tarifa inglesa | F165: Es: Se la lingua è l’inglese la tariffa deve quella inglese | G165: Ex : If language = English , the price list has to be the english price list. | H165: Например, если выбранный язык английский, то и прайс-лист должен быть на английском. | I165: Ex : If language = English , the price list has to be the english price list. | J165: Př.: Jestliže jazyk = čeština, musí být použit český ceník | K165: Ex : Si Langue = Anglais , alors le tarif doit être le tarif anglais
A166: 164 | B166: Sélectionnez la langue appropriée | C166: Wählen Sie die entsprechende Sprache | D166: Select the language | E166: Seleccione el idioma adecuado | F166: Selezionare la lingua appropriata | G166: Select the language | H166: Выберите нужный язык | I166: Select the language | J166: Vyberte jazyk | K166: Sélectionnez la langue appropriée
A167: 165 | B167: Adaptez l'alignement de la cascade | C167: Passen Sie die Anordnung der Kaskade an | D167: Adapt the cascade alignment. | E167: Adapte la alineación de la cascada | F167: Adattare l’allineamento della cascata | G167: Adapt the cascade alignment. | H167: Выберите расположение котлов в каскаде | I167: Adapt the cascade alignment. | J167: Přizpůsobte typ kaskády | K167: Adaptez l'alignement de la cascade
A168: 166 | B168: Entrez le nombre de chaudières et la composition de la cascade | C168: Geben Sie die Anzahl der Kessel und die Aufbau der Kaskade ein | D168: Select the number of boilers and the cascade composition | E168: Especifique el número de calderas y la composición de la cascada | F168: Inserire il numero di caldaie e la composizione della cascata | G168: Select the number of boilers and the cascade composition | H168: Выберите количество котлов и состав каскада | I168: Select the number of boilers and the cascade composition | J168: Zvolte počet kotlů a sestava kaskády | K168: Entrez le nombre de chaudières et la composition de la cascade
A169: 167 | B169: Que signifie le nom de la cascade ? XX.YYYYkW.ABCDE | C169: Was bedeutet der Name der Kaskade? XX.YYYYYkW.ABCDE | D169: What means the cascade system's name? XX.YYYYkW.ABCDE | E169: ¿Qué significa el nombre de la cascada? XX.YYYYkW.ABCDE | F169: Cosa significa il nome della cascata ? X.YYYYkW.ABCDE | G169: What means the cascade system's name? XX.YYYYkW.ABCDE | H169: Что обозначает наименование каскада? XX.YYYYkW.ABCDE | I169: What means the cascade system's name? XX.YYYYkW.ABCDE | J169: Co znamená název kaskádového systému? XX.YYYYkW.ABCDE | K169: Que signifie le nom de la cascade ? XX.YYYYkW.ABCDE
A170: 168 | B170: Type d'alignement de la cascade | C170: Art der Anordnung der Kaskade | D170: Alignment of the cascade | E170: Tipo de alineación de la cascada | F170: Tipo di allineamento della cascata | G170: Alignment of the cascade | H170: Тип расположения каскада | I170: Alignment of the cascade | J170: Řazení kaskády | K170: Type d'alignement de la cascade
A171: 169 | B171: RG : Dos-à-dos | C171: RG: Rücken an Rücken | D171: RG : Back to back | E171: RG: Adosada | F171: RG: dorso a dorso | G171: RG : Back to back | H171: RG: Спина к спине | I171: RG : Back to back | J171: RG: Zády k sobě | K171: RG : Dos-à-dos
A172: 170 | B172: LW : Mural | C172: LW: Wand | D172: LW : Wall-hung | E172: LW: Mural | F172: LW: murale | G172: LW : Wall-hung | H172: LW: На стене | I172: LW : Wall-hung | J172: LW: Na stěnu | K172: LW : Mural
A173: 171 | B173: LV : Au sol | C173: LV: Boden | D173: LV : floor-standing | E173: LV: En el suelo | F173: LV: al suolo | G173: LV : floor-standing | H173: LV: На полу | I173: LV : floor-standing | J173: LV: Na podlahu | K173: LV : Au sol
A174: 172 | B174: Puissance de la cascade (80/60°C) | C174: Kaskadenleistung (80/60 °C) | D174: Output of the cascade system (80/60°C) | E174: Potencia de la cascada (80/60 °C) | F174: Potenza della cascata (80/60°C) | G174: Output of the cascade system (80/60°C) | H174: Мощность каскада, 80/60°C | I174: Output of the cascade system (80/60°C) | J174: Výkon kaskády (80/60°C) | K174: Puissance de la cascade (80/60°C)
A175: 173 | B175: Ex : 0356kW : cascade d'une puissance de 356 kW | C175: Bsp.: 0356 kW: Kaskade mit einer Leistung von 356 kW | D175: Ex : 0356kW : cascade's output = 356 kW | E175: P. ej.: 0356kW: cascada de una potencia de 356 kW | F175: Es: 0356kW : cascata di una potenza di 356 kW | G175: Ex : 0356kW : cascade's output = 356 kW | H175: Пример: 356 кВт - каскад мощностью 356 кВт | I175: Ex : 0356kW : cascade's output = 356 kW | J175: Př.: 0356kW: výkon kaskády = 356 kW | K175: Ex : 0356kW : cascade d'une puissance de 356 kW
A176: 174 | B176: Composition de la cascade | C176: Aufbau der Kaskade | D176: Cascade composition | E176: Composición de la cascada | F176: Composizione della cascata | G176: Cascade composition | H176: Состав каскада | I176: Cascade composition | J176: Sestava kaskády | K176: Composition de la cascade
A177: 175 | B177: A : Nombre de chaudière AMC 45 | C177: A: Anzahl der Kessel AMC 45 | D177: A : Number of boiler AMC 45 | E177: A: Número de caldera AMC 45 | F177: A: numero di caldaia AMC 45 | G177: A : Number of boiler AMC 45 | H177: A: Количество котлов AMC 45 | I177: A : Number of boiler AMC 45 | J177: A : Počet kotlů AMC 45 | K177: A : Nombre de chaudière AMC 45
A178: 176 | B178: B : Nombre de chaudière AMC 65 | C178: A: Anzahl der Kessel AMC 65 | D178: B : Number of boiler AMC 65 | E178: B: Número de caldera AMC 65 | F178: B: numero di caldaia AMC 65 | G178: B : Number of boiler AMC 65 | H178: B: Количество котлов AMC 65 | I178: B : Number of boiler AMC 65 | J178: B : Počet kotlů AMC 65 | K178: B : Nombre de chaudière AMC 65
A179: 177 | B179: C : Nombre de chaudière AMC 90 | C179: A: Anzahl der Kessel AMC 90 | D179: C : Number of boiler AMC 90 | E179: C: Número de caldera AMC 90 | F179: C: numero di caldaia AMC 90 | G179: C : Number of boiler AMC 90 | H179: C: Количество котлов AMC 90 | I179: C : Number of boiler AMC 90 | J179: C : Počet kotlů AMC 90 | K179: C : Nombre de chaudière AMC 90
A180: 178 | B180: D : Nombre de chaudière AMC 115 | C180: D: Anzahl der Kessel AMC 115 | D180: D : Number of boiler AMC 115 | E180: D: Número de caldera AMC 115 | F180: D: numero di caldaia AMC 115 | G180: D : Number of boiler AMC 115 | H180: D: Количество котлов AMC 115 | I180: D : Number of boiler AMC 115 | J180: D : Počet kotlů AMC 115 | K180: D : Nombre de chaudière AMC 115
A181: 179 | B181: E : Nombre de chaudière MCA 160 | C181: D: Anzahl der Kessel MCA 160 | D181: E : Number of boiler MCA 160 | E181: E: Número de caldera MCA 160 | F181: E: numero di caldaia MCA 160 | G181: E : Number of boiler MCA 160 | H181: E: Количество котлов MCA 160 | I181: E : Number of boiler MCA 160 | J181: E : Počet kotlů MCA 160 | K181: E : Nombre de chaudière MCA 160
A182: 180 | B182: Les résultats sont divisés en 2 parties distinctes | C182: Die Ergebnisse sind in 2 getrennte Teile gegliedert | D182: The results are given in 2 differents steps | E182: Los resultados se dividen en 2 partes diferentes | F182: I risultati si dividono in 2 parti distinte | G182: The results are given in 2 differents steps | H182: Результат поделён на 2 отдельные таблицы | I182: The results are given in 2 differents steps | J182: Výsledky jsou uvedeny ve dvou různých krocích | K182: Les résultats sont divisés en 2 parties distinctes
A183: 181 | B183: 1e tableau : Tableau représentant le kit cacade de base | C183: 1. Tabelle: Tabelle, die den Bausatz für die Basiskaskade darstellt | D183: 1st table : Indicates the composition of the basic cascade system | E183: 1.ª tabla: Tabla que representa el kit cascada básico | F183: 1° tabella: tabella che rappresenta il kit cascata di base | G183: 1st table : Indicates the composition of the basic cascade system | H183: 1-ая таблица: таблица с базовым комплектом для каскада | I183: 1st table : Indicates the composition of the basic cascade system | J183: 1. tabulka: Tabulka znázorňující základní sestavu kaskády | K183: 1e tableau : Tableau représentant le kit cacade de base
A184: 182 | B184: Ce tableau comprend les colis obligatoires lors de la commande d'un kit cascade | C184: Diese Tabelle enthält die obligatorischen Frachtstücke bei der Bestellung eines Kaskaden-Bausatzes | D184: All the necessary packages for the cascade system are indicated | E184: Esta tabla incluye los paquetes obligatorios cuando se realiza el pedido de un kit cascada | F184: Questa tabella comprende i colli obbligatori in fase di comando di un kit cascata | G184: All the necessary packages for the cascade system are indicated | H184: Эта таблица содержит обязательные элементы для заказа каскадной системы | I184: All the necessary packages for the cascade system are indicated | J184: Tato tabulka obsahuje povinná balení při objednávání kaskády | K184: Ce tableau comprend les colis obligatoires lors de la commande d'un kit cascade
A185: 183 | B185: Les quantités de ces colis ne sont pas modifiables | C185: Die Mengen dieser Frachtstücke können nicht verändert werden | D185: The quantities of these pakages can not be modified | E185: Las cantidades de estos paquetes no son modificables | F185: I quantità di questi colli non sono modificabili | G185: The quantities of these pakages can not be modified | H185: Количество этих элементов нельзя изменить | I185: The quantities of these pakages can not be modified | J185: Množství těchto balení není možné měnit | K185: Les quantités de ces colis ne sont pas modifiables
A186: 184 | B186: 2e tableau : Tableau représentant les options disponibles | C186: 2. Tabelle: Tabelle der erhältlichen Optionen | D186: 2nd table : Indicates the available options for the cascade system | E186: 2.ª tabla: Tabla que representa las opciones disponibles | F186: 2° tabella: tabella che rappresenta le opzioni disponibili | G186: 2nd table : Indicates the available options for the cascade system | H186: 2-ая таблица: таблица с дополнительным оборудованием | I186: 2nd table : Indicates the available options for the cascade system | J186: 2. tabulka: Tabulka zobrazující dostupné příslušenství | K186: 2e tableau : Tableau représentant les options disponibles
A187: 185 | B187: Ce tableau indique les options possibles et les quantités nécessaires | C187: Diese Tabelle zeigt die möglichen Optionen und die benötigten Mengen | D187: The table indicates the available options and the quantity | E187: Esta tabla indica las opciones posibles y las cantidades necesarias | F187: Questa tabella indica le opzioni possibili e le quantità necessarie | G187: The table indicates the available options and the quantity | H187: В этой таблице приведено дополнительное оборудование и их необходимое количество | I187: The table indicates the available options and the quantity | J187: Tato tabulka uvádí možné příslušenství a požadované množství | K187: Ce tableau indique les options possibles et les quantités nécessaires
A188: 186 | B188: L'utilisateur sélectionne le nombre d'options qu'il souhaite | C188: Der Benutzer wählt die Anzahl der Optionen, die er wünscht | D188: The user has to select the number of options | E188: El usuario selecciona el número de opciones que desea | F188: L’utilizzatore seleziona il numero di opzioni che desidera | G188: The user has to select the number of options | H188: Пользователь может выбрать нужное количество дополнительного оборудования | I188: The user has to select the number of options | J188: Uživatel vybírá počet příslušenství, které chce | K188: L'utilisateur sélectionne le nombre d'options qu'il souhaite
A189: 187 | B189: Il est possible d’ajouter n’importe quel accessoire à l’aide des cases en accès libre à la fin du devis (voir image ci-dessous). | C189: Am Ende des Angebots kann jedes beliebige Zubehör über die Freie Felder hinzugefügt werden (siehe Abbildung unten). | D189: It's possible to add any other accessory thanks to the free access cells. | E189: Se puede añadir cualquier accesorio que se desee mediante los Campos libres al final del presupuesto (ver imagen más abajo). | F189: È possibile aggiungere qualsiasi accessorio attraverso i Campi liberi alla fine del preventivo (vedere immagine di seguito). | G189: It's possible to add any other accessory thanks to the free-access cells. | H189: Можно добавить любое дополнительное оборудование при помощи раскрывающегося списка в конце сводной таблицы (см. рисунок ниже). | I189: It's possible to add any other accessory thanks to the free access cells. | J189: V rozbalovací nabídce můžete přidat jakékoliv příslušenství na konci nabídky (viz obrázek níže). | K189: Il est possible d’ajouter n’importe quel accessoire à l’aide des cases en accès libre à la fin du devis (voir image ci-dessous).
A190: 188 | B190: On sélectionne ensuite la quantité de l’option voulue. | C190: Anschließend wird die Menge für die gewünschte Option ausgewählt. | D190: Then the user has to select the quantity of the option | E190: A continuación, se selecciona la cantidad de la opción deseada. | F190: In seguito di seleziona la quantità dell’opzione desiderata. | G190: Then the user has to select the quantity of the option | H190: Затем можно выбрать количество для необходимого дополнительного оборудования | I190: Then the user has to select the quantity of the option | J190: Poté musí uživatel vybrat množství příslušenství | K190: On sélectionne ensuite la quantité de l’option voulue.
A191: 189 | B191: Les dernières lignes sont en accès libre pour ajouter par exemple une remarque / une remise /… | C191: Die letzten Zeilen sind frei beschreibbar, um zum Beispiel eine Bemerkung, einen Rabatt o. Ähnliches einzugeben | D191: The last cells are in free access. You can add some note, discount, … | E191: Las últimas líneas permiten un acceso libre para añadir, por ejemplo, una observación / un descuento /… | F191: Le prime righe sono ad accesso libero per aggiungere ad esempio una nota / una rimessa / ... | G191: The last cells are in free access. You can add some note, discount, … | H191: Последние строки предназначены для дополниткльной информации - примечание, скидки… | I191: The last cells are in free access. You can add some note, discount, … | J191: Poslední řádky mají volný přístup k přidání například poznámky / slevy / … | K191: Les dernières lignes sont en accès libre pour ajouter par exemple une remarque / une remise /…
A192: 190 | B192: Le bilan et la somme totale sont réalisés. | C192: Die Zusammenstellung und die Gesamtsumme werden erstellt. | D192: Finally, the results and the sum are indicated. | E192: Se efectuarán el saldo y la suma del total. | F192: Si ottengono così il bilancio e la somma totale. | G192: Finally, the results and the sum are indicated. | H192: Будет выведена итоговая сумма и список. | I192: Finally, the results and the sum are indicated. | J192: Nakonec jsou uvedeny výsledky a součet. | K192: Le bilan et la somme totale sont réalisés.
A193: 191 | K193: 0
A194: 192 | B194: Sélection référence | C194: Referenzauswahl | D194: Reference selection | E194: Selección de referencia | F194: Selezione di riferimento | G194: Wybór referencyjny | H194: Выбор ссылки | I194: Referentie selectie | J194: Referenční výběr | K194: Sélection référence
A195: 193 | B195: Champs libres | C195: Freie Felder | D195: Free fields | E195: Campos libres | F195: Campi liberi | G195: Darmowe pola | H195: Бесплатные поля | I195: Vrije velden | J195: Volné pole | K195: Champs libres
A196: 194
A197: 195
A198: 196
A199: 197
A200: 198
A201: 199
... 2 more rows

Sheet texte (hidden)
A1: 2 | B1: =HLOOKUP(texte!$C$75,Language!$B$3:$K$67,A1,FALSE) -> Определение и расчет каскадных систем
A2: 3 | B2: =HLOOKUP(texte!$C$75,Language!$B$3:$K$67,A2,FALSE) -> Для AMC 45, 65, 90, 115 и MCA 160
A3: 4 | B3: =HLOOKUP(texte!$C$75,Language!$B$3:$K$67,A3,FALSE) -> ИТОГОВАЯ ЦЕНА КАСКАДНОЙ СИСТЕМЫ
A4: 5 | B4: =HLOOKUP(texte!$C$75,Language!$B$3:$K$67,A4,FALSE) -> ИТОГОВАЯ ЦЕНА КАСКАДНОЙ СИСТЕМЫ С КОТЛАМИ
A5: 6 | B5: =HLOOKUP(texte!$C$75,Language!$B$3:$K$67,A5,FALSE) -> ИТОГОВАЯ ЦЕНА ДОПОЛНИТЕЛЬНОГО ОБОРУДОВАНИЯ
A6: 7 | B6: =CONCATENATE(HLOOKUP(texte!$C$75,Language!$B$3:$K$67,A6,FALSE)," 06/2020") -> Версия : 06/2020 | H6: Onglet HOW TO
A7: 8 | B7: =HLOOKUP(texte!$C$75,Language!$B$3:$K$67,A7,FALSE) -> Идентификация расчета
A8: 9 | B8: =HLOOKUP(texte!$C$75,Language!$B$3:$K$67,A8,FALSE) -> Описание объекта | G8: 158 | H8: =HLOOKUP(texte!$C$75,Language!$B$3:$K$200,G8,FALSE) -> Как
A9: 10 | B9: =HLOOKUP(texte!$C$75,Language!$B$3:$K$67,A9,FALSE) -> Вводимые данные | G9: 159 | H9: =HLOOKUP(texte!$C$75,Language!$B$3:$K$200,G9,FALSE) -> Как использовать утилиту?
A10: 11 | B10: =HLOOKUP(texte!$C$75,Language!$B$3:$K$67,A10,FALSE) -> Мощность установки (кВт) | G10: 160 | H10: =HLOOKUP(texte!$C$75,Language!$B$3:$K$200,G10,FALSE) -> Скопируйте Ваш прайс-лист на лист "'Price List'"
A11: 12 | B11: =HLOOKUP(texte!$C$75,Language!$B$3:$K$67,A11,FALSE) -> Разрешенный диапазон (+/- ... кВт) | G11: 161 | H11: =HLOOKUP(texte!$C$75,Language!$B$3:$K$200,G11,FALSE) -> Обязательно соблюдать порядок следования столбцов
A12: 13 | B12: =HLOOKUP(texte!$C$75,Language!$B$3:$K$67,A12,FALSE) -> Количество котлов | G12: 162 | H12: =HLOOKUP(texte!$C$75,Language!$B$3:$K$200,G12,FALSE) -> Скопированный прайс-лист должен быть на том же языке, что и выбранный язык для утилиты.
A13: 14 | B13: =HLOOKUP(texte!$C$75,Language!$B$3:$K$67,A13,FALSE) -> Расположение в каскаде | G13: 163 | H13: =HLOOKUP(texte!$C$75,Language!$B$3:$K$200,G13,FALSE) -> Например, если выбранный язык английский, то и прайс-лист должен быть на английском.
A14: 15 | B14: =HLOOKUP(texte!$C$75,Language!$B$3:$K$67,A14,FALSE) -> Каскадная система | G14: 164 | H14: =HLOOKUP(texte!$C$75,Language!$B$3:$K$200,G14,FALSE) -> Выберите нужный язык
A15: 16 | B15: =HLOOKUP(texte!$C$75,Language!$B$3:$K$67,A15,FALSE) -> Внимание! При изменении выбора всегда изменять следующие значения! | G15: 165 | H15: =HLOOKUP(texte!$C$75,Language!$B$3:$K$200,G15,FALSE) -> Выберите расположение котлов в каскаде
A16: 17 | B16: =HLOOKUP(texte!$C$75,Language!$B$3:$K$67,A16,FALSE) -> Количество котлов | G16: 166 | H16: =HLOOKUP(texte!$C$75,Language!$B$3:$K$200,G16,FALSE) -> Выберите количество котлов и состав каскада
A17: 18 | B17: =HLOOKUP(texte!$C$75,Language!$B$3:$K$67,A17,FALSE) -> Решение De Dietrich | G17: 167 | H17: =HLOOKUP(texte!$C$75,Language!$B$3:$K$200,G17,FALSE) -> Что обозначает наименование каскада? XX.YYYYkW.ABCDE
A18: 19 | B18: =HLOOKUP(texte!$C$75,Language!$B$3:$K$67,A18,FALSE) -> Решение De Dietrich (продолжение) | G18: 168 | H18: =HLOOKUP(texte!$C$75,Language!$B$3:$K$200,G18,FALSE) -> Тип расположения каскада
A19: 20 | B19: =HLOOKUP(texte!$C$75,Language!$B$3:$K$67,A19,FALSE) -> Наименование | G19: 169 | H19: =HLOOKUP(texte!$C$75,Language!$B$3:$K$200,G19,FALSE) -> RG: Спина к спине
A20: 21 | B20: =HLOOKUP(texte!$C$75,Language!$B$3:$K$67,A20,FALSE) -> Мощность (кBт) | G20: 170 | H20: =HLOOKUP(texte!$C$75,Language!$B$3:$K$200,G20,FALSE) -> LW: На стене
A21: 22 | B21: =HLOOKUP(texte!$C$75,Language!$B$3:$K$67,A21,FALSE) -> Количество котлов | G21: 171 | H21: =HLOOKUP(texte!$C$75,Language!$B$3:$K$200,G21,FALSE) -> LV: На полу
A22: 23 | B22: =HLOOKUP(texte!$C$75,Language!$B$3:$K$67,A22,FALSE) -> Тип котлов | G22: 172 | H22: =HLOOKUP(texte!$C$75,Language!$B$3:$K$200,G22,FALSE) -> Мощность каскада, 80/60°C
A23: 24 | B23: =HLOOKUP(texte!$C$75,Language!$B$3:$K$67,A23,FALSE) -> AMC 45 | G23: 173 | H23: =HLOOKUP(texte!$C$75,Language!$B$3:$K$200,G23,FALSE) -> Пример: 356 кВт - каскад мощностью 356 кВт
A24: 25 | B24: =HLOOKUP(texte!$C$75,Language!$B$3:$K$67,A24,FALSE) -> AMC 65 | G24: 174 | H24: =HLOOKUP(texte!$C$75,Language!$B$3:$K$200,G24,FALSE) -> Состав каскада
A25: 26 | B25: =HLOOKUP(texte!$C$75,Language!$B$3:$K$67,A25,FALSE) -> AMC 90 | G25: 175 | H25: =HLOOKUP(texte!$C$75,Language!$B$3:$K$200,G25,FALSE) -> A: Количество котлов AMC 45
A26: 27 | B26: =HLOOKUP(texte!$C$75,Language!$B$3:$K$67,A26,FALSE) -> AMC 115 | G26: 176 | H26: =HLOOKUP(texte!$C$75,Language!$B$3:$K$200,G26,FALSE) -> B: Количество котлов AMC 65
A27: 28 | B27: =HLOOKUP(texte!$C$75,Language!$B$3:$K$67,A27,FALSE) -> Цена только каскадной системы | G27: 177 | H27: =HLOOKUP(texte!$C$75,Language!$B$3:$K$200,G27,FALSE) -> C: Количество котлов AMC 90
A28: 29 | B28: =HLOOKUP(texte!$C$75,Language!$B$3:$K$67,A28,FALSE) -> Цена каскадной системы с котлами | G28: 178 | H28: =HLOOKUP(texte!$C$75,Language!$B$3:$K$200,G28,FALSE) -> D: Количество котлов AMC 115
A29: 30 | B29: =HLOOKUP(texte!$C$75,Language!$B$3:$K$67,A29,FALSE) -> €, с НДС | G29: 179 | H29: =HLOOKUP(texte!$C$75,Language!$B$3:$K$200,G29,FALSE) -> E: Количество котлов MCA 160
A30: 31 | B30: =HLOOKUP(texte!$C$75,Language!$B$3:$K$67,A30,FALSE) -> Выбранное решение | G30: 180 | H30: =HLOOKUP(texte!$C$75,Language!$B$3:$K$200,G30,FALSE) -> Результат поделён на 2 отдельные таблицы
A31: 32 | B31: =HLOOKUP(texte!$C$75,Language!$B$3:$K$67,A31,FALSE) -> Кол-во | G31: 181 | H31: =HLOOKUP(texte!$C$75,Language!$B$3:$K$200,G31,FALSE) -> 1-ая таблица: таблица с базовым комплектом для каскада
A32: 33 | B32: =HLOOKUP(texte!$C$75,Language!$B$3:$K$67,A32,FALSE) -> Цена за единицу | G32: 182 | H32: =HLOOKUP(texte!$C$75,Language!$B$3:$K$200,G32,FALSE) -> Эта таблица содержит обязательные элементы для заказа каскадной системы
A33: 34 | B33: =HLOOKUP(texte!$C$75,Language!$B$3:$K$67,A33,FALSE) -> Итоговая цена | G33: 183 | H33: =HLOOKUP(texte!$C$75,Language!$B$3:$K$200,G33,FALSE) -> Количество этих элементов нельзя изменить
A34: 35 | B34: =HLOOKUP(texte!$C$75,Language!$B$3:$K$67,A34,FALSE) -> Позиция | G34: 184 | H34: =HLOOKUP(texte!$C$75,Language!$B$3:$K$200,G34,FALSE) -> 2-ая таблица: таблица с дополнительным оборудованием
A35: 36 | B35: =HLOOKUP(texte!$C$75,Language!$B$3:$K$67,A35,FALSE) -> Наименование | G35: 185 | H35: =HLOOKUP(texte!$C$75,Language!$B$3:$K$200,G35,FALSE) -> В этой таблице приведено дополнительное оборудование и их необходимое количество
A36: 37 | B36: =HLOOKUP(texte!$C$75,Language!$B$3:$K$67,A36,FALSE) -> Система | G36: 186 | H36: =HLOOKUP(texte!$C$75,Language!$B$3:$K$200,G36,FALSE) -> Пользователь может выбрать нужное количество дополнительного оборудования
A37: 38 | B37: =HLOOKUP(texte!$C$75,Language!$B$3:$K$67,A37,FALSE) -> Доп. оборудование | G37: 187 | H37: =HLOOKUP(texte!$C$75,Language!$B$3:$K$200,G37,FALSE) -> Можно добавить любое дополнительное оборудование при помощи раскрывающегося списка в конце сводной таблицы (см. рисунок ниже).
A38: 39 | B38: =HLOOKUP(texte!$C$75,Language!$B$3:$K$67,A38,FALSE) -> Состав | G38: 188 | H38: =HLOOKUP(texte!$C$75,Language!$B$3:$K$200,G38,FALSE) -> Затем можно выбрать количество для необходимого дополнительного оборудования
A39: 40 | B39: =HLOOKUP(texte!$C$75,Language!$B$3:$K$67,A39,FALSE) -> каскадной системы | G39: 189 | H39: =HLOOKUP(texte!$C$75,Language!$B$3:$K$200,G39,FALSE) -> Последние строки предназначены для дополниткльной информации - примечание, скидки…
A40: 41 | B40: =HLOOKUP(texte!$C$75,Language!$B$3:$K$67,A40,FALSE) -> настенное "LW" | G40: 190 | H40: =HLOOKUP(texte!$C$75,Language!$B$3:$K$200,G40,FALSE) -> Будет выведена итоговая сумма и список.
A41: 42 | B41: =HLOOKUP(texte!$C$75,Language!$B$3:$K$67,A41,FALSE) -> напольное "LV"
A42: 43 | B42: =HLOOKUP(texte!$C$75,Language!$B$3:$K$67,A42,FALSE) -> сдвоенное "RG"
A43: 44 | B43: =HLOOKUP(texte!$C$75,Language!$B$3:$K$67,A43,FALSE) -> * Для каскадной установки под давлением
A44: 45 | B44: =HLOOKUP(texte!$C$75,Language!$B$3:$K$67,A44,FALSE) -> Повторить код во время заказа
A45: 46 | B45: =HLOOKUP(texte!$C$75,Language!$B$3:$K$67,A45,FALSE) -> Рынок
A46: 47 | B46: =HLOOKUP(texte!$C$75,Language!$B$3:$K$67,A46,FALSE) -> Мощность (80/60°C)
A47: 48 | B47: =HLOOKUP(texte!$C$75,Language!$B$3:$K$67,A47,FALSE) -> Опора
A48: 49 | B48: =HLOOKUP(texte!$C$75,Language!$B$3:$K$67,A48,FALSE) -> _
A49: 50 | B49: =HLOOKUP(texte!$C$75,Language!$B$3:$K$67,A49,FALSE) -> Панель управления
A50: 51 | B50: =HLOOKUP(texte!$C$75,Language!$B$3:$K$67,A50,FALSE) -> Гидравлика
A51: 52 | B51: =HLOOKUP(texte!$C$75,Language!$B$3:$K$67,A51,FALSE) -> ОБОЗНАЧЕНИЕ
A52: 53 | B52: =HLOOKUP(texte!$C$75,Language!$B$3:$K$67,A52,FALSE) -> Ед. поставки
A53: 54 | B53: =HLOOKUP(texte!$C$75,Language!$B$3:$K$67,A53,FALSE) -> ПРАЙС-ЛИСТ
A54: 55 | B54: =HLOOKUP(texte!$C$75,Language!$B$3:$K$67,A54,FALSE) -> Необохдимо выбрать целевой рынок для данного ПО
A55: 56 | B55: =HLOOKUP(texte!$C$75,Language!$B$3:$K$67,A55,FALSE) -> Проверить данные (цены, расчет, …)
A56: 57 | B56: =HLOOKUP(texte!$C$75,Language!$B$3:$K$67,A56,FALSE) -> €, с НДС
A57: 58 | B57: =HLOOKUP(texte!$C$75,Language!$B$3:$K$67,A57,FALSE) -> 0
A58: 149 | B58: =HLOOKUP(texte!$C$75,Language!$B$3:$K$647,A58,FALSE) -> The result or the contents are given as an indication. In no event shall De Dietrich be liable for the results or for any other use.
A59: 150 | B59: =HLOOKUP(texte!$C$75,Language!$B$3:$K$647,A59,FALSE) -> Базовый комплект
A60: 151 | B60: =HLOOKUP(texte!$C$75,Language!$B$3:$K$647,A60,FALSE) -> опции
A61: 152 | B61: =HLOOKUP(texte!$C$75,Language!$B$3:$K$647,A61,FALSE) -> Рекомендуемое количество
A62: 153 | B62: =HLOOKUP(texte!$C$75,Language!$B$3:$K$647,A62,FALSE) -> Количество выбрано
A63: 154 | B63: =HLOOKUP(texte!$C$75,Language!$B$3:$K$647,A63,FALSE) -> регулирование
A64: 155 | B64: =HLOOKUP(texte!$C$75,Language!$B$3:$K$647,A64,FALSE) -> надувать
A65: 156 | B65: =HLOOKUP(texte!$C$75,Language!$B$3:$K$647,A65,FALSE) -> количество
A66: 192 | B66: =HLOOKUP(texte!$C$75,Language!$B$3:$K$647,A66,FALSE) -> Выбор ссылки
A67: 193 | B67: =HLOOKUP(texte!$C$75,Language!$B$3:$K$647,A67,FALSE) -> Бесплатные поля
B72: Menus déroulants Langues + marchés
C73: Langues | F73: Marchés
B74: INDEX | C74: 7
C75: =INDEX(texte!$B$81:$B$90,C74,1) -> Русский | F75: Italy
F76: Other
B77: RECHERCHE TARIF | C77: =B51 -> ОБОЗНАЧЕНИЕ | F77: 3
C78: =B52 -> Ед. поставки | F78: =INDEX(F74:F76,F77) -> Other
C79: =B53 -> ПРАЙС-ЛИСТ
B81: Deutsch
B82: English
B83: Español
B84: Français
B85: Italiano
B86: Polsky
B87: Русский
B88: Nederlands
B89: Česky
B90: Belge
B92: Images
C98: =IF('Выбор котлов'!$E$22='Cascade AMC'!$F$10,1,IF('Выбор котлов'!$E$22='Cascade AMC'!$F$11,2,3)) -> 1
B99: 1
B100: 2
B101: 3

Sheet gamme DD chaud (hidden)
O1: 1 | P1: 2 | Q1: 3 | R1: 4 | S1: 5 | T1: 6 | U1: 7 | V1: 8 | W1: 9 | X1: 10 | Y1: 11 | Z1: 12 | AA1: 13 | AB1: 14 | AC1: 15 | AD1: 16 | AE1: 17 | AF1: 18 | AG1: 19 | AH1: 20 | AI1: 21 | AJ1: 22 | AK1: 23 | AL1: 24 | AM1: 25 | AN1: 26 | AO1: 27 | AP1: 28 | AQ1: 29 | AR1: 30 | AS1: 31 | AT1: 32 | AU1: 33 | AV1: 34 | AW1: 35 | AX1: 36 | AY1: 37 | AZ1: 38 | BA1: 39 | BB1: 40 | BC1: 41 | BD1: 42 | BE1: 43 | BG1: 45 | BH1: 46 | BI1: 47 | BJ1: 48 | BK1: 49 | BL1: 50 | BM1: 51 | BN1: 52 | BO1: 53 | BP1: 54 | BQ1: 55 | BR1: 56 | BS1: 57 | BT1: 58 | BU1: 59 | BV1: 60 | BW1: 61 | BX1: 62 | BY1: 63 | BZ1: 64 | CA1: 65 | CB1: 66 | CC1: 67 | CD1: 68 | CE1: 69 | CF1: 70 | CG1: 71 | CH1: 72 | CI1: 73 | CJ1: 74 | CK1: 75 | CL1: 76 | CM1: 77 | CN1: 78 | CO1: 79 | CP1: 80 | CQ1: 81 | CR1: 82 | CS1: 83
E2: verkoop omschrijving | F2: Quinta Pro 45 | G2: Quinta Pro 65 | H2: Quinta Pro 90 | I2: Quinta Pro 115 | J2: Quinta Ace 160 | S2: verkoop omschrijving | T2: Pompe pour MCA 90/115 | U2: Pompe pour MCA 160 | V2: Collecteur 2 chaudières DN 65 pour MCA 45/115 | W2: Collecteur 2 chaudières DN 100 pour MCA 45/115 | X2: Collecteur 2 chaudières DN 100 pour MCA 160 | Y2: Collecteur 3 chaudières DN 65 pour MCA 45/115 | Z2: Collecteur 3 chaudières DN 100 pour MCA 45/115 | AA2: Collecteur 3 chaudières DN 100 pour MCA 160 | AB2: Collecteur 4 chaudières DN 65 pour MCA 45/115 | AC2: Collecteur 4 chaudières DN 100 pour MCA 45/115 | AD2: Bouteille de découplage DN65 (jusqu'à 350 kW) | AE2: Bouteille de découplage DN65 (de 350 à 460 kW) | AF2: Bouteille de découplage DN100 (supérieur à 460 kW) | AG2: Adapateur DN65/DN100 pour collecteur DN65 | AH2: Kit de raccordement avant | AI2: Raccordement collecteur MCA 45/115 | AJ2: Raccordement collecteur MCA 160 | AK2: Kit de raccordement collecteur chaudière RG MCA 45/115 | AL2: Kit de raccordement collecteur chaudière RG MCA MIXTE 45/115 + 160 | AM2: Kit de raccordement collecteur chaudière RG MCA 160 | AN2: Raccordement chaudière RG MCA 45/115 | AP2: Raccordement chaudière RG MCA 160 | AQ2: Brides Pleines Gaz DN50 | AR2: Brides Pleines Gaz DN65 | AS2: Brides Pleines Eau DN65 | AT2: Brides Pleines Eau DN100 | AU2: Montant support L pour MCA 45/115 | AV2: Montant support L pour MCA 160 | AW2: Montant support I pour MCA 45/115 | AX2: Montant support I pour MCA 160 | AY2: Chassis de montage MCA 45/115 | AZ2: Chassis de montage MCA 160 combinée | BA2: Rail de montage mural 2 chaudières MCA 45/115 | BB2: Rail de montage mural 2 chaudières MCA 160 | BC2: Rail de montage mural 3 chaudières MCA 45/115 | BD2: Rail de montage mural 3 chaudières MCA 160 | BE2: Rail de montage mural 4 chaudières MCA 45/115 | BG2: Filtre Gaz DN50 | BH2: Filtre Gaz DN65 | BI2: Coudes DN65 | BJ2: Coudes DN100 | BK2: Rallonge pour filtre gaz DN50 | BL2: Rallonge pour filtre gaz DN65 | BM2: Isolation collecteur MCA 45/115 | BN2: Isolation collecteur MCA 160 | BO2: Isolation raccordement chaudière MCA 45/115 | BP2: Isolation raccordement chaudière MCA 160 | BQ2: Isolation Arrière pour MCA 45-115 | BR2: Plaque d'isolation arrière MCA 160 | BS2: Isolation bouteille de découplage > 350 kW | BT2: Isolation adaptateur DN65/DN100 | BU2: Isolation bouteille de découlage (jusqu'à 350 kW) | BV2: Isolation coudes 90° | BW2: Pieds réglables | BZ2: Jeu de contre-brides à souder DN65 | CA2: Jeu de contre-brides à souder DN100 | CM2: Jeu de contre brides à souder DN65 | CO2: Pompe pour MCA 45 / 65 | CQ2: Câble S-BUS S = 1,5 m | CR2: Câble Bus Diematic L = 12 m | CS2: Jeu de bouchons
E3: Puissance chaudière | F3: ='Cascade AMC'!$F$34 -> 40.8 | G3: ='Cascade AMC'!$F$35 -> 61.50 | H3: ='Cascade AMC'!$F$36 -> 84.20 | I3: ='Cascade AMC'!$F$37 -> 107.00 | J3: ='Cascade AMC'!$F$38 -> 152.10 | S3: bruto | T3: € 266.80 | U3: € 369.20 | V3: € 507.70 | W3: € 782.40 | X3: € 742.60 | Y3: € 695.50 | Z3: € 889.90 | AA3: € 917.00 | AB3: € 947.50 | AC3: € 1,223.20 | AD3: € 461.50 | AE3: € 584.30 | AF3: € 958.80 | AG3: € 191.80 | AH3: € 296.70 | AI3: € 415.50 | AJ3: € 420.00 | AK3: € 347.70 | AL3: € 495.50 | AM3: € 491.60 | AN3: € 342.60 | AO3: € 96.90 | AP3: € 101.00 | AQ3: € 58.10 | AR3: € 65.30 | AS3: € 88.80 | AT3: € 116.50 | AU3: € 72.90 | AV3: € 74.50 | AW3: € 42.80 | AX3: € 55.10 | AY3: € 46.60 | AZ3: € 92.20 | BA3: € 22.50 | BB3: € 30.20 | BC3: € 30.30 | BD3: € 38.70 | BE3: € 37.00 | BG3: € 282.50 | BH3: € 402.70 | BI3: € 352.90 | BJ3: € 516.40 | BK3: € 134.20 | BL3: € 148.30 | BM3: € 68.50 | BN3: € 56.10 | BO3: € 49.40 | BP3: € 45.90 | BQ3: € 26.00 | BR3: € 52.00 | BS3: € 149.60 | BT3: € 15.30 | BU3: € 60.40 | BV3: € 116.50 | BW3: € 7.07 | BX3: € 992.10 | BY3: € 338.10 | BZ3: € 88.10 | CA3: € 111.90 | CB3: € 18.40 | CC3: € 17.90 | CD3: € 61.70 | CE3: € 39.80 | CF3: € 152.10 | CG3: € 97.10 | CH3: € 222.70 | CI3: € 39.20 | CJ3: € 71.00 | CK3: € 106.90 | CL3: € 140.60 | CM3: € 85.60 | CN3: € 71.00 | CQ3: AD308 | CR3: AD134
E4: Bestelnr | F4: 7608430 | G4: 7608431 | H4: 90518 | I4: 90519 | J4: 7621759 | T4: 7608398 | U4: 7637223 | V4: 110968 | W4: 110961 | X4: 7614795 | Y4: 110967 | Z4: 110960 | AA4: 7611306 | AB4: 110966 | AC4: 110954 | AD4: 114311 | AE4: 111712 | AF4: 111714 | AG4: 7633244 | AH4: 111022 | AI4: 7622699 | AJ4: 7622701 | AK4: 111037 | AL4: 7622700 | AM4: 7622702 | AN4: S101538 | AO4: 7622704 | AP4: 7622705 | AQ4: 111698 | AR4: 111699 | AS4: 111701 | AT4: 111703 | AU4: 120842 | AV4: 7612942 | AW4: 120900 | AX4: 7612941 | AY4: 120918 | AZ4: 7621566 | BA4: 111688 | BB4: 7637077 | BC4: 111689 | BD4: 7637088 | BE4: 111690 | BG4: S101655 | BH4: S101656 | BI4: 111788 | BJ4: 111790 | BK4: 111805 | BL4: 111806 | BM4: 111069 | BN4: 7613401 | BO4: 122441 | BP4: 7611804 | BQ4: 123182 | BR4: 7631858 | BS4: 111067 | BT4: 7622201 | BU4: 115269 | BV4: 111167 | BW4: 111807 | BX4: S53990 | BY4: S62518 | BZ4: 112632 | CA4: 112633 | CB4: 112829 | CC4: 7641015 | CD4: 113076 | CE4: 7636634 | CF4: 113064 | CG4: 54663 | CH4: S101679 | CI4: S101651 | CJ4: S101468 | CK4: S100763 | CL4: S100865 | CM4: 7638518 | CN4: S100764 | CO4: 7608398 | CQ4: ='Cascade AMC'!N143 -> 7663618 | CR4: 88017851 | CS4: 111708
D5: volgnr | E5: aantal ketels | F5: QPro45 | G5: QPro65 | H5: QPro90 | I5: QPro115 | J5: QAce160 | K5: opstelling | L5: boileraansl. | M5: P (80/60) [kW] | N5: bestelcode | O5: Ligne | P5: aant. soorten | Q5: breedte | R5: DN-maat | U5: EH651 | V5: HC188 | W5: HC190 | X5: EH676 | Y5: HC187 | Z5: HC189 | AA5: EH677 | AB5: HC186 | AC5: HC191 | AD5: HC222 | AE5: HC200 | AF5: HC201 | AG5: EH654 | AH5: HC202 | AI5: EH655 | AJ5: EH656 | AK5: HC203 | AL5: EH657 | AM5: EH658 | AQ5: HC196 | AR5: HC197 | AS5: HC198 | AT5: HC199 | AU5: HC249 | AV5: EH662 | AW5: HC250 | AX5: EH663 | AY5: HC248 | AZ5: EH664 | BA5: HC192 | BB5: EH670 | BC5: HC193 | BD5: EH671 | BE5: HC194 | BG5: HC255 | BH5: HC256 | BI5: HC209 | BJ5: HC210 | BK5: HC211 | BL5: HC212 | BM5: HC213 | BN5: EH647 | BO5: HC252 | BP5: EH648 | BQ5: HC243 | BR5: EH649 | BS5: HC215 | BT5: EH650 | BU5: HC224 | BV5: HC216 | BW5: HC219 | BZ5: HC217 | CA5: HC218 | CM5: EH669 | CQ5: AD308 | CR5: AD134 | CS5: HC195
D6: 1 | E6: 8 | F6: 0 | G6: 0 | H6: 0 | I6: 0 | J6: 8 | K6: LW | L6: n | M6: =ROUND(SUMPRODUCT($F$3:$J$3,F6:J6),0) -> 1217 | N6: =IF(M6>=1000,CONCATENATE(K6,".",M6,"kW.",F6,G6,H6,I6,J6),CONCATENATE(K6,".0",M6,"kW.",F6,G6,H6,I6,J6)) -> LW.1217kW.00008 | O6: 1 | P6: 1 | Q6: 5689 | R6: DN100 | T6: =I6+H6 -> 0 | U6: =J6 -> 8 | V6: 0 | W6: 0 | X6: 1 | Y6: 0 | Z6: 0 | AA6: 2 | AB6: 0 | AC6: 0 | AD6: 0 | AE6: 0 | AF6: 1 | AG6: 0 | AH6: 0 | AI6: 0 | AJ6: 8 | AK6: 0 | AL6: 0 | AM6: 0 | AN6: 0 | AO6: 0 | AP6: 0 | AQ6: 0 | AR6: 1 | AS6: 0 | AT6: 1 | AU6: 0 | AV6: 0 | AW6: 0 | AX6: 0 | AY6: 0 | AZ6: 0 | BA6: 0 | BB6: 1 | BC6: 0 | BD6: 2 | BE6: 0 | BG6: 0 | BH6: 1 | BI6: 0 | BJ6: 1 | BK6: 0 | BL6: 1 | BM6: 0 | BN6: 8 | BO6: 0 | BP6: 8 | BQ6: =+BO6 -> 0 | BR6: 0 | BS6: 1 | BT6: 0 | BU6: 0 | BV6: 1 | BW6: 0 | BX6: 2 | BY6: 0 | BZ6: 0 | CA6: 1 | CB6: 0 | CC6: 0 | CD6: 0 | CE6: 0 | CF6: 1 | CG6: 0 | CH6: 0 | CI6: 0 | CJ6: 0 | CK6: 0 | CL6: 0 | CM6: 0 | CN6: 0 | CO6: =F6+G6 -> 0 | CP6: n | CQ6: =E6-1 -> 7 | CR6: 0 | CS6: =IF(K6<>"RG",E6,IF(OR(E6=4,E6=6,E6=8),0,1)) -> 8
D7: 2 | E7: 8 | F7: 0 | G7: 0 | H7: 0 | I7: 1 | J7: 7 | K7: LW | L7: n | M7: =ROUND(SUMPRODUCT($F$3:$J$3,F7:J7),0) -> 1172 | N7: =IF(M7>=1000,CONCATENATE(K7,".",M7,"kW.",F7,G7,H7,I7,J7),CONCATENATE(K7,".0",M7,"kW.",F7,G7,H7,I7,J7)) -> LW.1172kW.00017 | O7: 2 | P7: 2 | Q7: 5689 | R7: DN100 | T7: =I7+H7 -> 1 | U7: =J7 -> 7 | V7: 0 | W7: 0 | X7: 1 | Y7: 0 | Z7: 0 | AA7: 2 | AB7: 0 | AC7: 0 | AD7: 0 | AE7: 0 | AF7: 1 | AG7: 0 | AH7: 0 | AI7: 1 | AJ7: 7 | AK7: 0 | AL7: 0 | AM7: 0 | AN7: 0 | AO7: 0 | AP7: 0 | AQ7: 0 | AR7: 1 | AS7: 0 | AT7: 1 | AU7: 0 | AV7: 0 | AW7: 0 | AX7: 0 | AY7: 0 | AZ7: 0 | BA7: 0 | BB7: 2 | BC7: 0 | BD7: 1 | BE7: 0 | BG7: 0 | BH7: 1 | BI7: 0 | BJ7: 1 | BK7: 0 | BL7: 1 | BM7: 0 | BN7: 8 | BO7: 0 | BP7: 8 | BQ7: =+BO7 -> 0 | BR7: 0 | BS7: 1 | BT7: 0 | BU7: 0 | BV7: 1 | BW7: 0 | BX7: 2 | BY7: 0 | BZ7: 0 | CA7: 1 | CB7: 0 | CC7: 0 | CD7: 0 | CE7: 0 | CF7: 1 | CG7: 0 | CH7: 0 | CI7: 0 | CJ7: 0 | CK7: 1 | CL7: 0 | CM7: 0 | CN7: 0 | CO7: =F7+G7 -> 0 | CP7: n | CQ7: 7 | CR7: 0 | CS7: =IF(K7<>"RG",E7,IF(OR(E7=4,E7=6,E7=8),0,1)) -> 8
D8: 3 | E8: 8 | F8: 0 | G8: 0 | H8: 1 | I8: 0 | J8: 7 | K8: LW | L8: n | M8: 1149 | N8: LW.1149kW.00107 | O8: 3 | P8: 2 | Q8: 5689 | R8: DN100 | T8: 1 | U8: 7 | V8: 0 | W8: 0 | X8: 1 | Y8: 0 | Z8: 0 | AA8: 2 | AB8: 0 | AC8: 0 | AD8: 0 | AE8: 0 | AF8: 1 | AG8: 0 | AH8: 0 | AI8: 1 | AJ8: 7 | AK8: 0 | AL8: 0 | AM8: 0 | AN8: 0 | AO8: 0 | AP8: 0 | AQ8: 0 | AR8: 1 | AS8: 0 | AT8: 1 | AU8: 0 | AV8: 0 | AW8: 0 | AX8: 0 | AY8: 0 | AZ8: 0 | BA8: 0 | BB8: 2 | BC8: 0 | BD8: 1 | BE8: 0 | BG8: 0 | BH8: 1 | BI8: 0 | BJ8: 1 | BK8: 0 | BL8: 1 | BM8: 0 | BN8: 8 | BO8: 0 | BP8: 8 | BQ8: 0 | BR8: 0 | BS8: 1 | BT8: 0 | BU8: 0 | BV8: 1 | BW8: 0 | BX8: 2 | BY8: 0 | BZ8: 0 | CA8: 1 | CB8: 0 | CC8: 0 | CD8: 0 | CE8: 0 | CF8: 1 | CG8: 0 | CH8: 0 | CI8: 0 | CJ8: 0 | CK8: 1 | CL8: 0 | CM8: 0 | CN8: 0 | CO8: 0 | CP8: n | CQ8: 7 | CR8: 0 | CS8: 8
D9: 4 | E9: 8 | F9: 0 | G9: 1 | H9: 0 | I9: 0 | J9: 7 | K9: LW | L9: n | M9: 1126 | N9: LW.1126kW.01007 | O9: 4 | P9: 2 | Q9: 5689 | R9: DN100 | T9: 0 | U9: 7 | V9: 0 | W9: 0 | X9: 1 | Y9: 0 | Z9: 0 | AA9: 2 | AB9: 0 | AC9: 0 | AD9: 0 | AE9: 0 | AF9: 1 | AG9: 0 | AH9: 0 | AI9: 1 | AJ9: 7 | AK9: 0 | AL9: 0 | AM9: 0 | AN9: 0 | AO9: 0 | AP9: 0 | AQ9: 0 | AR9: 1 | AS9: 0 | AT9: 1 | AU9: 0 | AV9: 0 | AW9: 0 | AX9: 0 | AY9: 0 | AZ9: 0 | BA9: 0 | BB9: 2 | BC9: 0 | BD9: 1 | BE9: 0 | BG9: 0 | BH9: 1 | BI9: 0 | BJ9: 1 | BK9: 0 | BL9: 1 | BM9: 0 | BN9: 8 | BO9: 0 | BP9: 8 | BQ9: 0 | BR9: 0 | BS9: 1 | BT9: 0 | BU9: 0 | BV9: 1 | BW9: 0 | BX9: 2 | BY9: 0 | BZ9: 0 | CA9: 1 | CB9: 0 | CC9: 0 | CD9: 0 | CE9: 0 | CF9: 1 | CG9: 0 | CH9: 0 | CI9: 0 | CJ9: 0 | CK9: 1 | CL9: 0 | CM9: 0 | CN9: 0 | CO9: 1 | CP9: n | CQ9: 7 | CR9: 0 | CS9: 8
D10: 5 | E10: 8 | F10: 1 | G10: 0 | H10: 0 | I10: 0 | J10: 7 | K10: LW | L10: n | M10: 1106 | N10: LW.1106kW.10007 | O10: 5 | P10: 2 | Q10: 5689 | R10: DN100 | T10: 0 | U10: 7 | V10: 0 | W10: 0 | X10: 1 | Y10: 0 | Z10: 0 | AA10: 2 | AB10: 0 | AC10: 0 | AD10: 0 | AE10: 0 | AF10: 1 | AG10: 0 | AH10: 0 | AI10: 1 | AJ10: 7 | AK10: 0 | AL10: 0 | AM10: 0 | AN10: 0 | AO10: 0 | AP10: 0 | AQ10: 0 | AR10: 1 | AS10: 0 | AT10: 1 | AU10: 0 | AV10: 0 | AW10: 0 | AX10: 0 | AY10: 0 | AZ10: 0 | BA10: 0 | BB10: 2 | BC10: 0 | BD10: 1 | BE10: 0 | BG10: 0 | BH10: 1 | BI10: 0 | BJ10: 1 | BK10: 0 | BL10: 1 | BM10: 0 | BN10: 8 | BO10: 0 | BP10: 8 | BQ10: 0 | BR10: 0 | BS10: 1 | BT10: 0 | BU10: 0 | BV10: 1 | BW10: 0 | BX10: 2 | BY10: 0 | BZ10: 0 | CA10: 1 | CB10: 0 | CC10: 0 | CD10: 0 | CE10: 0 | CF10: 1 | CG10: 0 | CH10: 0 | CI10: 0 | CJ10: 0 | CK10: 1 | CL10: 0 | CM10: 0 | CN10: 0 | CO10: 1 | CP10: n | CQ10: 7 | CR10: 0 | CS10: 8
D11: 6 | E11: 8 | F11: 0 | G11: 0 | H11: 0 | I11: 2 | J11: 6 | K11: LW | L11: n | M11: 1127 | N11: LW.1127kW.00026 | O11: 6 | P11: 2 | Q11: 5689 | R11: DN100 | T11: 2 | U11: 6 | V11: 0 | W11: 0 | X11: 1 | Y11: 0 | Z11: 0 | AA11: 2 | AB11: 0 | AC11: 0 | AD11: 0 | AE11: 0 | AF11: 1 | AG11: 0 | AH11: 0 | AI11: 2 | AJ11: 6 | AK11: 0 | AL11: 0 | AM11: 0 | AN11: 0 | AO11: 0 | AP11: 0 | AQ11: 0 | AR11: 1 | AS11: 0 | AT11: 1 | AU11: 0 | AV11: 0 | AW11: 0 | AX11: 0 | AY11: 0 | AZ11: 0 | BA11: 1 | BB11: 0 | BC11: 0 | BD11: 2 | BE11: 0 | BG11: 0 | BH11: 1 | BI11: 0 | BJ11: 1 | BK11: 0 | BL11: 1 | BM11: 0 | BN11: 8 | BO11: 0 | BP11: 8 | BQ11: 0 | BR11: 0 | BS11: 1 | BT11: 0 | BU11: 0 | BV11: 1 | BW11: 0 | BX11: 2 | BY11: 0 | BZ11: 0 | CA11: 1 | CB11: 0 | CC11: 0 | CD11: 0 | CE11: 0 | CF11: 1 | CG11: 0 | CH11: 0 | CI11: 0 | CJ11: 0 | CK11: 2 | CL11: 0 | CM11: 0 | CN11: 0 | CO11: 0 | CP11: n | CQ11: 7 | CR11: 0 | CS11: 8
D12: 7 | E12: 8 | F12: 0 | G12: 0 | H12: 1 | I12: 1 | J12: 6 | K12: LW | L12: n | M12: 1104 | N12: LW.1104kW.00116 | O12: 7 | P12: 3 | Q12: 5689 | R12: DN100 | T12: 2 | U12: 6 | V12: 0 | W12: 0 | X12: 1 | Y12: 0 | Z12: 0 | AA12: 2 | AB12: 0 | AC12: 0 | AD12: 0 | AE12: 0 | AF12: 1 | AG12: 0 | AH12: 0 | AI12: 2 | AJ12: 6 | AK12: 0 | AL12: 0 | AM12: 0 | AN12: 0 | AO12: 0 | AP12: 0 | AQ12: 0 | AR12: 1 | AS12: 0 | AT12: 1 | AU12: 0 | AV12: 0 | AW12: 0 | AX12: 0 | AY12: 0 | AZ12: 0 | BA12: 1 | BB12: 0 | BC12: 0 | BD12: 2 | BE12: 0 | BG12: 0 | BH12: 1 | BI12: 0 | BJ12: 1 | BK12: 0 | BL12: 1 | BM12: 0 | BN12: 8 | BO12: 0 | BP12: 8 | BQ12: 0 | BR12: 0 | BS12: 1 | BT12: 0 | BU12: 0 | BV12: 1 | BW12: 0 | BX12: 2 | BY12: 0 | BZ12: 0 | CA12: 1 | CB12: 0 | CC12: 0 | CD12: 0 | CE12: 0 | CF12: 1 | CG12: 0 | CH12: 0 | CI12: 0 | CJ12: 0 | CK12: 2 | CL12: 0 | CM12: 0 | CN12: 0 | CO12: 0 | CP12: n | CQ12: 7 | CR12: 0 | CS12: 8
D13: 8 | E13: 8 | F13: 0 | G13: 1 | H13: 0 | I13: 1 | J13: 6 | K13: LW | L13: n | M13: 1081 | N13: LW.1081kW.01016 | O13: 8 | P13: 3 | Q13: 5689 | R13: DN100 | T13: 1 | U13: 6 | V13: 0 | W13: 0 | X13: 1 | Y13: 0 | Z13: 0 | AA13: 2 | AB13: 0 | AC13: 0 | AD13: 0 | AE13: 0 | AF13: 1 | AG13: 0 | AH13: 0 | AI13: 2 | AJ13: 6 | AK13: 0 | AL13: 0 | AM13: 0 | AN13: 0 | AO13: 0 | AP13: 0 | AQ13: 0 | AR13: 1 | AS13: 0 | AT13: 1 | AU13: 0 | AV13: 0 | AW13: 0 | AX13: 0 | AY13: 0 | AZ13: 0 | BA13: 1 | BB13: 0 | BC13: 0 | BD13: 2 | BE13: 0 | BG13: 0 | BH13: 1 | BI13: 0 | BJ13: 1 | BK13: 0 | BL13: 1 | BM13: 0 | BN13: 8 | BO13: 0 | BP13: 8 | BQ13: 0 | BR13: 0 | BS13: 1 | BT13: 0 | BU13: 0 | BV13: 1 | BW13: 0 | BX13: 2 | BY13: 0 | BZ13: 0 | CA13: 1 | CB13: 0 | CC13: 0 | CD13: 0 | CE13: 0 | CF13: 1 | CG13: 0 | CH13: 0 | CI13: 0 | CJ13: 0 | CK13: 2 | CL13: 0 | CM13: 0 | CN13: 0 | CO13: 1 | CP13: n | CQ13: 7 | CR13: 0 | CS13: 8
D14: 9 | E14: 8 | F14: 1 | G14: 0 | H14: 0 | I14: 1 | J14: 6 | K14: LW | L14: n | M14: 1060 | N14: LW.1060kW.10016 | O14: 9 | P14: 3 | Q14: 5689 | R14: DN100 | T14: 1 | U14: 6 | V14: 0 | W14: 0 | X14: 1 | Y14: 0 | Z14: 0 | AA14: 2 | AB14: 0 | AC14: 0 | AD14: 0 | AE14: 0 | AF14: 1 | AG14: 0 | AH14: 0 | AI14: 2 | AJ14: 6 | AK14: 0 | AL14: 0 | AM14: 0 | AN14: 0 | AO14: 0 | AP14: 0 | AQ14: 0 | AR14: 1 | AS14: 0 | AT14: 1 | AU14: 0 | AV14: 0 | AW14: 0 | AX14: 0 | AY14: 0 | AZ14: 0 | BA14: 1 | BB14: 0 | BC14: 0 | BD14: 2 | BE14: 0 | BG14: 0 | BH14: 1 | BI14: 0 | BJ14: 1 | BK14: 0 | BL14: 1 | BM14: 0 | BN14: 8 | BO14: 0 | BP14: 8 | BQ14: 0 | BR14: 0 | BS14: 1 | BT14: 0 | BU14: 0 | BV14: 1 | BW14: 0 | BX14: 2 | BY14: 0 | BZ14: 0 | CA14: 1 | CB14: 0 | CC14: 0 | CD14: 0 | CE14: 0 | CF14: 1 | CG14: 0 | CH14: 0 | CI14: 0 | CJ14: 0 | CK14: 2 | CL14: 0 | CM14: 0 | CN14: 0 | CO14: 1 | CP14: n | CQ14: 7 | CR14: 0 | CS14: 8
D15: 10 | E15: 8 | F15: 0 | G15: 0 | H15: 2 | I15: 0 | J15: 6 | K15: LW | L15: n | M15: 1081 | N15: LW.1081kW.00206 | O15: 10 | P15: 2 | Q15: 5689 | R15: DN100 | T15: 2 | U15: 6 | V15: 0 | W15: 0 | X15: 1 | Y15: 0 | Z15: 0 | AA15: 2 | AB15: 0 | AC15: 0 | AD15: 0 | AE15: 0 | AF15: 1 | AG15: 0 | AH15: 0 | AI15: 2 | AJ15: 6 | AK15: 0 | AL15: 0 | AM15: 0 | AN15: 0 | AO15: 0 | AP15: 0 | AQ15: 0 | AR15: 1 | AS15: 0 | AT15: 1 | AU15: 0 | AV15: 0 | AW15: 0 | AX15: 0 | AY15: 0 | AZ15: 0 | BA15: 1 | BB15: 0 | BC15: 0 | BD15: 2 | BE15: 0 | BG15: 0 | BH15: 1 | BI15: 0 | BJ15: 1 | BK15: 0 | BL15: 1 | BM15: 0 | BN15: 8 | BO15: 0 | BP15: 8 | BQ15: 0 | BR15: 0 | BS15: 1 | BT15: 0 | BU15: 0 | BV15: 1 | BW15: 0 | BX15: 2 | BY15: 0 | BZ15: 0 | CA15: 1 | CB15: 0 | CC15: 0 | CD15: 0 | CE15: 0 | CF15: 1 | CG15: 0 | CH15: 0 | CI15: 0 | CJ15: 0 | CK15: 2 | CL15: 0 | CM15: 0 | CN15: 0 | CO15: 0 | CP15: n | CQ15: 7 | CR15: 0 | CS15: 8
D16: 11 | E16: 8 | F16: 0 | G16: 1 | H16: 1 | I16: 0 | J16: 6 | K16: LW | L16: n | M16: 1058 | N16: LW.1058kW.01106 | O16: 11 | P16: 3 | Q16: 5689 | R16: DN100 | T16: 1 | U16: 6 | V16: 0 | W16: 0 | X16: 1 | Y16: 0 | Z16: 0 | AA16: 2 | AB16: 0 | AC16: 0 | AD16: 0 | AE16: 0 | AF16: 1 | AG16: 0 | AH16: 0 | AI16: 2 | AJ16: 6 | AK16: 0 | AL16: 0 | AM16: 0 | AN16: 0 | AO16: 0 | AP16: 0 | AQ16: 0 | AR16: 1 | AS16: 0 | AT16: 1 | AU16: 0 | AV16: 0 | AW16: 0 | AX16: 0 | AY16: 0 | AZ16: 0 | BA16: 1 | BB16: 0 | BC16: 0 | BD16: 2 | BE16: 0 | BG16: 0 | BH16: 1 | BI16: 0 | BJ16: 1 | BK16: 0 | BL16: 1 | BM16: 0 | BN16: 8 | BO16: 0 | BP16: 8 | BQ16: 0 | BR16: 0 | BS16: 1 | BT16: 0 | BU16: 0 | BV16: 1 | BW16: 0 | BX16: 2 | BY16: 0 | BZ16: 0 | CA16: 1 | CB16: 0 | CC16: 0 | CD16: 0 | CE16: 0 | CF16: 1 | CG16: 0 | CH16: 0 | CI16: 0 | CJ16: 0 | CK16: 2 | CL16: 0 | CM16: 0 | CN16: 0 | CO16: 1 | CP16: n | CQ16: 7 | CR16: 0 | CS16: 8
D17: 12 | E17: 8 | F17: 1 | G17: 0 | H17: 1 | I17: 0 | J17: 6 | K17: LW | L17: n | M17: 1038 | N17: LW.1038kW.10106 | O17: 12 | P17: 3 | Q17: 5689 | R17: DN100 | T17: 1 | U17: 6 | V17: 0 | W17: 0 | X17: 1 | Y17: 0 | Z17: 0 | AA17: 2 | AB17: 0 | AC17: 0 | AD17: 0 | AE17: 0 | AF17: 1 | AG17: 0 | AH17: 0 | AI17: 2 | AJ17: 6 | AK17: 0 | AL17: 0 | AM17: 0 | AN17: 0 | AO17: 0 | AP17: 0 | AQ17: 0 | AR17: 1 | AS17: 0 | AT17: 1 | AU17: 0 | AV17: 0 | AW17: 0 | AX17: 0 | AY17: 0 | AZ17: 0 | BA17: 1 | BB17: 0 | BC17: 0 | BD17: 2 | BE17: 0 | BG17: 0 | BH17: 1 | BI17: 0 | BJ17: 1 | BK17: 0 | BL17: 1 | BM17: 0 | BN17: 8 | BO17: 0 | BP17: 8 | BQ17: 0 | BR17: 0 | BS17: 1 | BT17: 0 | BU17: 0 | BV17: 1 | BW17: 0 | BX17: 2 | BY17: 0 | BZ17: 0 | CA17: 1 | CB17: 0 | CC17: 0 | CD17: 0 | CE17: 0 | CF17: 1 | CG17: 0 | CH17: 0 | CI17: 0 | CJ17: 0 | CK17: 2 | CL17: 0 | CM17: 0 | CN17: 0 | CO17: 1 | CP17: n | CQ17: 7 | CR17: 0 | CS17: 8
D18: 13 | E18: 8 | F18: 0 | G18: 2 | H18: 0 | I18: 0 | J18: 6 | K18: LW | L18: n | M18: 1036 | N18: LW.1036kW.02006 | O18: 13 | P18: 2 | Q18: 5689 | R18: DN100 | T18: 0 | U18: 6 | V18: 0 | W18: 0 | X18: 1 | Y18: 0 | Z18: 0 | AA18: 2 | AB18: 0 | AC18: 0 | AD18: 0 | AE18: 0 | AF18: 1 | AG18: 0 | AH18: 0 | AI18: 2 | AJ18: 6 | AK18: 0 | AL18: 0 | AM18: 0 | AN18: 0 | AO18: 0 | AP18: 0 | AQ18: 0 | AR18: 1 | AS18: 0 | AT18: 1 | AU18: 0 | AV18: 0 | AW18: 0 | AX18: 0 | AY18: 0 | AZ18: 0 | BA18: 1 | BB18: 0 | BC18: 0 | BD18: 2 | BE18: 0 | BG18: 0 | BH18: 1 | BI18: 0 | BJ18: 1 | BK18: 0 | BL18: 1 | BM18: 0 | BN18: 8 | BO18: 0 | BP18: 8 | BQ18: 0 | BR18: 0 | BS18: 1 | BT18: 0 | BU18: 0 | BV18: 1 | BW18: 0 | BX18: 2 | BY18: 0 | BZ18: 0 | CA18: 1 | CB18: 0 | CC18: 0 | CD18: 0 | CE18: 0 | CF18: 1 | CG18: 0 | CH18: 0 | CI18: 0 | CJ18: 0 | CK18: 2 | CL18: 0 | CM18: 0 | CN18: 0 | CO18: 2 | CP18: n | CQ18: 7 | CR18: 0 | CS18: 8
D19: 14 | E19: 8 | F19: 1 | G19: 1 | H19: 0 | I19: 0 | J19: 6 | K19: LW | L19: n | M19: 1015 | N19: LW.1015kW.11006 | O19: 14 | P19: 3 | Q19: 5689 | R19: DN100 | T19: 0 | U19: 6 | V19: 0 | W19: 0 | X19: 1 | Y19: 0 | Z19: 0 | AA19: 2 | AB19: 0 | AC19: 0 | AD19: 0 | AE19: 0 | AF19: 1 | AG19: 0 | AH19: 0 | AI19: 2 | AJ19: 6 | AK19: 0 | AL19: 0 | AM19: 0 | AN19: 0 | AO19: 0 | AP19: 0 | AQ19: 0 | AR19: 1 | AS19: 0 | AT19: 1 | AU19: 0 | AV19: 0 | AW19: 0 | AX19: 0 | AY19: 0 | AZ19: 0 | BA19: 1 | BB19: 0 | BC19: 0 | BD19: 2 | BE19: 0 | BG19: 0 | BH19: 1 | BI19: 0 | BJ19: 1 | BK19: 0 | BL19: 1 | BM19: 0 | BN19: 8 | BO19: 0 | BP19: 8 | BQ19: 0 | BR19: 0 | BS19: 1 | BT19: 0 | BU19: 0 | BV19: 1 | BW19: 0 | BX19: 2 | BY19: 0 | BZ19: 0 | CA19: 1 | CB19: 0 | CC19: 0 | CD19: 0 | CE19: 0 | CF19: 1 | CG19: 0 | CH19: 0 | CI19: 0 | CJ19: 0 | CK19: 2 | CL19: 0 | CM19: 0 | CN19: 0 | CO19: 2 | CP19: n | CQ19: 7 | CR19: 0 | CS19: 8
D20: 15 | E20: 8 | F20: 2 | G20: 0 | H20: 0 | I20: 0 | J20: 6 | K20: LW | L20: n | M20: 994 | N20: LW.0994kW.20006 | O20: 15 | P20: 2 | Q20: 5689 | R20: DN100 | T20: 0 | U20: 6 | V20: 0 | W20: 0 | X20: 1 | Y20: 0 | Z20: 0 | AA20: 2 | AB20: 0 | AC20: 0 | AD20: 0 | AE20: 0 | AF20: 1 | AG20: 0 | AH20: 0 | AI20: 2 | AJ20: 6 | AK20: 0 | AL20: 0 | AM20: 0 | AN20: 0 | AO20: 0 | AP20: 0 | AQ20: 0 | AR20: 1 | AS20: 0 | AT20: 1 | AU20: 0 | AV20: 0 | AW20: 0 | AX20: 0 | AY20: 0 | AZ20: 0 | BA20: 1 | BB20: 0 | BC20: 0 | BD20: 2 | BE20: 0 | BG20: 0 | BH20: 1 | BI20: 0 | BJ20: 1 | BK20: 0 | BL20: 1 | BM20: 0 | BN20: 8 | BO20: 0 | BP20: 8 | BQ20: 0 | BR20: 0 | BS20: 1 | BT20: 0 | BU20: 0 | BV20: 1 | BW20: 0 | BX20: 2 | BY20: 0 | BZ20: 0 | CA20: 1 | CB20: 0 | CC20: 0 | CD20: 0 | CE20: 0 | CF20: 1 | CG20: 0 | CH20: 0 | CI20: 0 | CJ20: 0 | CK20: 2 | CL20: 0 | CM20: 0 | CN20: 0 | CO20: 2 | CP20: n | CQ20: 7 | CR20: 0 | CS20: 8
D21: 16 | E21: 8 | F21: 0 | G21: 0 | H21: 0 | I21: 3 | J21: 5 | K21: LW | L21: n | M21: 1082 | N21: LW.1082kW.00035 | O21: 16 | P21: 2 | Q21: 5689 | R21: DN100 | T21: 3 | U21: 5 | V21: 0 | W21: 0 | X21: 1 | Y21: 0 | Z21: 0 | AA21: 2 | AB21: 0 | AC21: 0 | AD21: 0 | AE21: 0 | AF21: 1 | AG21: 0 | AH21: 0 | AI21: 3 | AJ21: 5 | AK21: 0 | AL21: 0 | AM21: 0 | AN21: 0 | AO21: 0 | AP21: 0 | AQ21: 0 | AR21: 1 | AS21: 0 | AT21: 1 | AU21: 0 | AV21: 0 | AW21: 0 | AX21: 0 | AY21: 0 | AZ21: 0 | BA21: 0 | BB21: 1 | BC21: 1 | BD21: 1 | BE21: 0 | BG21: 0 | BH21: 1 | BI21: 0 | BJ21: 1 | BK21: 0 | BL21: 1 | BM21: 0 | BN21: 8 | BO21: 0 | BP21: 8 | BQ21: 0 | BR21: 0 | BS21: 1 | BT21: 0 | BU21: 0 | BV21: 1 | BW21: 0 | BX21: 2 | BY21: 0 | BZ21: 0 | CA21: 1 | CB21: 0 | CC21: 0 | CD21: 0 | CE21: 0 | CF21: 1 | CG21: 0 | CH21: 0 | CI21: 0 | CJ21: 0 | CK21: 3 | CL21: 0 | CM21: 0 | CN21: 0 | CO21: 0 | CP21: n | CQ21: 7 | CR21: 0 | CS21: 8
D22: 17 | E22: 8 | F22: 0 | G22: 0 | H22: 1 | I22: 2 | J22: 5 | K22: LW | L22: n | M22: 1059 | N22: LW.1059kW.00125 | O22: 17 | P22: 3 | Q22: 5689 | R22: DN100 | T22: 3 | U22: 5 | V22: 0 | W22: 0 | X22: 1 | Y22: 0 | Z22: 0 | AA22: 2 | AB22: 0 | AC22: 0 | AD22: 0 | AE22: 0 | AF22: 1 | AG22: 0 | AH22: 0 | AI22: 3 | AJ22: 5 | AK22: 0 | AL22: 0 | AM22: 0 | AN22: 0 | AO22: 0 | AP22: 0 | AQ22: 0 | AR22: 1 | AS22: 0 | AT22: 1 | AU22: 0 | AV22: 0 | AW22: 0 | AX22: 0 | AY22: 0 | AZ22: 0 | BA22: 0 | BB22: 1 | BC22: 1 | BD22: 1 | BE22: 0 | BG22: 0 | BH22: 1 | BI22: 0 | BJ22: 1 | BK22: 0 | BL22: 1 | BM22: 0 | BN22: 8 | BO22: 0 | BP22: 8 | BQ22: 0 | BR22: 0 | BS22: 1 | BT22: 0 | BU22: 0 | BV22: 1 | BW22: 0 | BX22: 2 | BY22: 0 | BZ22: 0 | CA22: 1 | CB22: 0 | CC22: 0 | CD22: 0 | CE22: 0 | CF22: 1 | CG22: 0 | CH22: 0 | CI22: 0 | CJ22: 0 | CK22: 3 | CL22: 0 | CM22: 0 | CN22: 0 | CO22: 0 | CP22: n | CQ22: 7 | CR22: 0 | CS22: 8
D23: 18 | E23: 8 | F23: 0 | G23: 1 | H23: 0 | I23: 2 | J23: 5 | K23: LW | L23: n | M23: 1036 | N23: LW.1036kW.01025 | O23: 18 | P23: 3 | Q23: 5689 | R23: DN100 | T23: 2 | U23: 5 | V23: 0 | W23: 0 | X23: 1 | Y23: 0 | Z23: 0 | AA23: 2 | AB23: 0 | AC23: 0 | AD23: 0 | AE23: 0 | AF23: 1 | AG23: 0 | AH23: 0 | AI23: 3 | AJ23: 5 | AK23: 0 | AL23: 0 | AM23: 0 | AN23: 0 | AO23: 0 | AP23: 0 | AQ23: 0 | AR23: 1 | AS23: 0 | AT23: 1 | AU23: 0 | AV23: 0 | AW23: 0 | AX23: 0 | AY23: 0 | AZ23: 0 | BA23: 0 | BB23: 1 | BC23: 1 | BD23: 1 | BE23: 0 | BG23: 0 | BH23: 1 | BI23: 0 | BJ23: 1 | BK23: 0 | BL23: 1 | BM23: 0 | BN23: 8 | BO23: 0 | BP23: 8 | BQ23: 0 | BR23: 0 | BS23: 1 | BT23: 0 | BU23: 0 | BV23: 1 | BW23: 0 | BX23: 2 | BY23: 0 | BZ23: 0 | CA23: 1 | CB23: 0 | CC23: 0 | CD23: 0 | CE23: 0 | CF23: 1 | CG23: 0 | CH23: 0 | CI23: 0 | CJ23: 0 | CK23: 3 | CL23: 0 | CM23: 0 | CN23: 0 | CO23: 1 | CP23: n | CQ23: 7 | CR23: 0 | CS23: 8
D24: 19 | E24: 8 | F24: 1 | G24: 0 | H24: 0 | I24: 2 | J24: 5 | K24: LW | L24: n | M24: 1015 | N24: LW.1015kW.10025 | O24: 19 | P24: 3 | Q24: 5689 | R24: DN100 | T24: 2 | U24: 5 | V24: 0 | W24: 0 | X24: 1 | Y24: 0 | Z24: 0 | AA24: 2 | AB24: 0 | AC24: 0 | AD24: 0 | AE24: 0 | AF24: 1 | AG24: 0 | AH24: 0 | AI24: 3 | AJ24: 5 | AK24: 0 | AL24: 0 | AM24: 0 | AN24: 0 | AO24: 0 | AP24: 0 | AQ24: 0 | AR24: 1 | AS24: 0 | AT24: 1 | AU24: 0 | AV24: 0 | AW24: 0 | AX24: 0 | AY24: 0 | AZ24: 0 | BA24: 0 | BB24: 1 | BC24: 1 | BD24: 1 | BE24: 0 | BG24: 0 | BH24: 1 | BI24: 0 | BJ24: 1 | BK24: 0 | BL24: 1 | BM24: 0 | BN24: 8 | BO24: 0 | BP24: 8 | BQ24: 0 | BR24: 0 | BS24: 1 | BT24: 0 | BU24: 0 | BV24: 1 | BW24: 0 | BX24: 2 | BY24: 0 | BZ24: 0 | CA24: 1 | CB24: 0 | CC24: 0 | CD24: 0 | CE24: 0 | CF24: 1 | CG24: 0 | CH24: 0 | CI24: 0 | CJ24: 0 | CK24: 3 | CL24: 0 | CM24: 0 | CN24: 0 | CO24: 1 | CP24: n | CQ24: 7 | CR24: 0 | CS24: 8
D25: 20 | E25: 8 | F25: 0 | G25: 0 | H25: 2 | I25: 1 | J25: 5 | K25: LW | L25: n | M25: 1036 | N25: LW.1036kW.00215 | O25: 20 | P25: 3 | Q25: 5689 | R25: DN100 | T25: 3 | U25: 5 | V25: 0 | W25: 0 | X25: 1 | Y25: 0 | Z25: 0 | AA25: 2 | AB25: 0 | AC25: 0 | AD25: 0 | AE25: 0 | AF25: 1 | AG25: 0 | AH25: 0 | AI25: 3 | AJ25: 5 | AK25: 0 | AL25: 0 | AM25: 0 | AN25: 0 | AO25: 0 | AP25: 0 | AQ25: 0 | AR25: 1 | AS25: 0 | AT25: 1 | AU25: 0 | AV25: 0 | AW25: 0 | AX25: 0 | AY25: 0 | AZ25: 0 | BA25: 0 | BB25: 1 | BC25: 1 | BD25: 1 | BE25: 0 | BG25: 0 | BH25: 1 | BI25: 0 | BJ25: 1 | BK25: 0 | BL25: 1 | BM25: 0 | BN25: 8 | BO25: 0 | BP25: 8 | BQ25: 0 | BR25: 0 | BS25: 1 | BT25: 0 | BU25: 0 | BV25: 1 | BW25: 0 | BX25: 2 | BY25: 0 | BZ25: 0 | CA25: 1 | CB25: 0 | CC25: 0 | CD25: 0 | CE25: 0 | CF25: 1 | CG25: 0 | CH25: 0 | CI25: 0 | CJ25: 0 | CK25: 3 | CL25: 0 | CM25: 0 | CN25: 0 | CO25: 0 | CP25: n | CQ25: 7 | CR25: 0 | CS25: 8
D26: 21 | E26: 8 | F26: 0 | G26: 1 | H26: 1 | I26: 1 | J26: 5 | K26: LW | L26: n | M26: 1013 | N26: LW.1013kW.01115 | O26: 21 | P26: 4 | Q26: 5689 | R26: DN100 | T26: 2 | U26: 5 | V26: 0 | W26: 0 | X26: 1 | Y26: 0 | Z26: 0 | AA26: 2 | AB26: 0 | AC26: 0 | AD26: 0 | AE26: 0 | AF26: 1 | AG26: 0 | AH26: 0 | AI26: 3 | AJ26: 5 | AK26: 0 | AL26: 0 | AM26: 0 | AN26: 0 | AO26: 0 | AP26: 0 | AQ26: 0 | AR26: 1 | AS26: 0 | AT26: 1 | AU26: 0 | AV26: 0 | AW26: 0 | AX26: 0 | AY26: 0 | AZ26: 0 | BA26: 0 | BB26: 1 | BC26: 1 | BD26: 1 | BE26: 0 | BG26: 0 | BH26: 1 | BI26: 0 | BJ26: 1 | BK26: 0 | BL26: 1 | BM26: 0 | BN26: 8 | BO26: 0 | BP26: 8 | BQ26: 0 | BR26: 0 | BS26: 1 | BT26: 0 | BU26: 0 | BV26: 1 | BW26: 0 | BX26: 2 | BY26: 0 | BZ26: 0 | CA26: 1 | CB26: 0 | CC26: 0 | CD26: 0 | CE26: 0 | CF26: 1 | CG26: 0 | CH26: 0 | CI26: 0 | CJ26: 0 | CK26: 3 | CL26: 0 | CM26: 0 | CN26: 0 | CO26: 1 | CP26: n | CQ26: 7 | CR26: 0 | CS26: 8
D27: 22 | E27: 8 | F27: 1 | G27: 0 | H27: 1 | I27: 1 | J27: 5 | K27: LW | L27: n | M27: 993 | N27: LW.0993kW.10115 | O27: 22 | P27: 4 | Q27: 5689 | R27: DN100 | T27: 2 | U27: 5 | V27: 0 | W27: 0 | X27: 1 | Y27: 0 | Z27: 0 | AA27: 2 | AB27: 0 | AC27: 0 | AD27: 0 | AE27: 0 | AF27: 1 | AG27: 0 | AH27: 0 | AI27: 3 | AJ27: 5 | AK27: 0 | AL27: 0 | AM27: 0 | AN27: 0 | AO27: 0 | AP27: 0 | AQ27: 0 | AR27: 1 | AS27: 0 | AT27: 1 | AU27: 0 | AV27: 0 | AW27: 0 | AX27: 0 | AY27: 0 | AZ27: 0 | BA27: 0 | BB27: 1 | BC27: 1 | BD27: 1 | BE27: 0 | BG27: 0 | BH27: 1 | BI27: 0 | BJ27: 1 | BK27: 0 | BL27: 1 | BM27: 0 | BN27: 8 | BO27: 0 | BP27: 8 | BQ27: 0 | BR27: 0 | BS27: 1 | BT27: 0 | BU27: 0 | BV27: 1 | BW27: 0 | BX27: 2 | BY27: 0 | BZ27: 0 | CA27: 1 | CB27: 0 | CC27: 0 | CD27: 0 | CE27: 0 | CF27: 1 | CG27: 0 | CH27: 0 | CI27: 0 | CJ27: 0 | CK27: 3 | CL27: 0 | CM27: 0 | CN27: 0 | CO27: 1 | CP27: n | CQ27: 7 | CR27: 0 | CS27: 8
D28: 23 | E28: 8 | F28: 0 | G28: 2 | H28: 0 | I28: 1 | J28: 5 | K28: LW | L28: n | M28: 991 | N28: LW.0991kW.02015 | O28: 23 | P28: 3 | Q28: 5689 | R28: DN100 | T28: 1 | U28: 5 | V28: 0 | W28: 0 | X28: 1 | Y28: 0 | Z28: 0 | AA28: 2 | AB28: 0 | AC28: 0 | AD28: 0 | AE28: 0 | AF28: 1 | AG28: 0 | AH28: 0 | AI28: 3 | AJ28: 5 | AK28: 0 | AL28: 0 | AM28: 0 | AN28: 0 | AO28: 0 | AP28: 0 | AQ28: 0 | AR28: 1 | AS28: 0 | AT28: 1 | AU28: 0 | AV28: 0 | AW28: 0 | AX28: 0 | AY28: 0 | AZ28: 0 | BA28: 0 | BB28: 1 | BC28: 1 | BD28: 1 | BE28: 0 | BG28: 0 | BH28: 1 | BI28: 0 | BJ28: 1 | BK28: 0 | BL28: 1 | BM28: 0 | BN28: 8 | BO28: 0 | BP28: 8 | BQ28: 0 | BR28: 0 | BS28: 1 | BT28: 0 | BU28: 0 | BV28: 1 | BW28: 0 | BX28: 2 | BY28: 0 | BZ28: 0 | CA28: 1 | CB28: 0 | CC28: 0 | CD28: 0 | CE28: 0 | CF28: 1 | CG28: 0 | CH28: 0 | CI28: 0 | CJ28: 0 | CK28: 3 | CL28: 0 | CM28: 0 | CN28: 0 | CO28: 2 | CP28: n | CQ28: 7 | CR28: 0 | CS28: 8
D29: 24 | E29: 8 | F29: 1 | G29: 1 | H29: 0 | I29: 1 | J29: 5 | K29: LW | L29: n | M29: 970 | N29: LW.0970kW.11015 | O29: 24 | P29: 4 | Q29: 5689 | R29: DN100 | T29: 1 | U29: 5 | V29: 0 | W29: 0 | X29: 1 | Y29: 0 | Z29: 0 | AA29: 2 | AB29: 0 | AC29: 0 | AD29: 0 | AE29: 0 | AF29: 1 | AG29: 0 | AH29: 0 | AI29: 3 | AJ29: 5 | AK29: 0 | AL29: 0 | AM29: 0 | AN29: 0 | AO29: 0 | AP29: 0 | AQ29: 0 | AR29: 1 | AS29: 0 | AT29: 1 | AU29: 0 | AV29: 0 | AW29: 0 | AX29: 0 | AY29: 0 | AZ29: 0 | BA29: 0 | BB29: 1 | BC29: 1 | BD29: 1 | BE29: 0 | BG29: 0 | BH29: 1 | BI29: 0 | BJ29: 1 | BK29: 0 | BL29: 1 | BM29: 0 | BN29: 8 | BO29: 0 | BP29: 8 | BQ29: 0 | BR29: 0 | BS29: 1 | BT29: 0 | BU29: 0 | BV29: 1 | BW29: 0 | BX29: 2 | BY29: 0 | BZ29: 0 | CA29: 1 | CB29: 0 | CC29: 0 | CD29: 0 | CE29: 0 | CF29: 1 | CG29: 0 | CH29: 0 | CI29: 0 | CJ29: 0 | CK29: 3 | CL29: 0 | CM29: 0 | CN29: 0 | CO29: 2 | CP29: n | CQ29: 7 | CR29: 0 | CS29: 8
D30: 25 | E30: 8 | F30: 2 | G30: 0 | H30: 0 | I30: 1 | J30: 5 | K30: LW | L30: n | M30: 949 | N30: LW.0949kW.20015 | O30: 25 | P30: 3 | Q30: 5689 | R30: DN100 | T30: 1 | U30: 5 | V30: 0 | W30: 0 | X30: 1 | Y30: 0 | Z30: 0 | AA30: 2 | AB30: 0 | AC30: 0 | AD30: 0 | AE30: 0 | AF30: 1 | AG30: 0 | AH30: 0 | AI30: 3 | AJ30: 5 | AK30: 0 | AL30: 0 | AM30: 0 | AN30: 0 | AO30: 0 | AP30: 0 | AQ30: 0 | AR30: 1 | AS30: 0 | AT30: 1 | AU30: 0 | AV30: 0 | AW30: 0 | AX30: 0 | AY30: 0 | AZ30: 0 | BA30: 0 | BB30: 1 | BC30: 1 | BD30: 1 | BE30: 0 | BG30: 0 | BH30: 1 | BI30: 0 | BJ30: 1 | BK30: 0 | BL30: 1 | BM30: 0 | BN30: 8 | BO30: 0 | BP30: 8 | BQ30: 0 | BR30: 0 | BS30: 1 | BT30: 0 | BU30: 0 | BV30: 1 | BW30: 0 | BX30: 2 | BY30: 0 | BZ30: 0 | CA30: 1 | CB30: 0 | CC30: 0 | CD30: 0 | CE30: 0 | CF30: 1 | CG30: 0 | CH30: 0 | CI30: 0 | CJ30: 0 | CK30: 3 | CL30: 0 | CM30: 0 | CN30: 0 | CO30: 2 | CP30: n | CQ30: 7 | CR30: 0 | CS30: 8
D31: 26 | E31: 8 | F31: 0 | G31: 0 | H31: 3 | I31: 0 | J31: 5 | K31: LW | L31: n | M31: 1013 | N31: LW.1013kW.00305 | O31: 26 | P31: 2 | Q31: 5689 | R31: DN100 | T31: 3 | U31: 5 | V31: 0 | W31: 0 | X31: 1 | Y31: 0 | Z31: 0 | AA31: 2 | AB31: 0 | AC31: 0 | AD31: 0 | AE31: 0 | AF31: 1 | AG31: 0 | AH31: 0 | AI31: 3 | AJ31: 5 | AK31: 0 | AL31: 0 | AM31: 0 | AN31: 0 | AO31: 0 | AP31: 0 | AQ31: 0 | AR31: 1 | AS31: 0 | AT31: 1 | AU31: 0 | AV31: 0 | AW31: 0 | AX31: 0 | AY31: 0 | AZ31: 0 | BA31: 0 | BB31: 1 | BC31: 1 | BD31: 1 | BE31: 0 | BG31: 0 | BH31: 1 | BI31: 0 | BJ31: 1 | BK31: 0 | BL31: 1 | BM31: 0 | BN31: 8 | BO31: 0 | BP31: 8 | BQ31: 0 | BR31: 0 | BS31: 1 | BT31: 0 | BU31: 0 | BV31: 1 | BW31: 0 | BX31: 2 | BY31: 0 | BZ31: 0 | CA31: 1 | CB31: 0 | CC31: 0 | CD31: 0 | CE31: 0 | CF31: 1 | CG31: 0 | CH31: 0 | CI31: 0 | CJ31: 0 | CK31: 3 | CL31: 0 | CM31: 0 | CN31: 0 | CO31: 0 | CP31: n | CQ31: 7 | CR31: 0 | CS31: 8
D32: 27 | E32: 8 | F32: 0 | G32: 1 | H32: 2 | I32: 0 | J32: 5 | K32: LW | L32: n | M32: 990 | N32: LW.0990kW.01205 | O32: 27 | P32: 3 | Q32: 5689 | R32: DN100 | T32: 2 | U32: 5 | V32: 0 | W32: 0 | X32: 1 | Y32: 0 | Z32: 0 | AA32: 2 | AB32: 0 | AC32: 0 | AD32: 0 | AE32: 0 | AF32: 1 | AG32: 0 | AH32: 0 | AI32: 3 | AJ32: 5 | AK32: 0 | AL32: 0 | AM32: 0 | AN32: 0 | AO32: 0 | AP32: 0 | AQ32: 0 | AR32: 1 | AS32: 0 | AT32: 1 | AU32: 0 | AV32: 0 | AW32: 0 | AX32: 0 | AY32: 0 | AZ32: 0 | BA32: 0 | BB32: 1 | BC32: 1 | BD32: 1 | BE32: 0 | BG32: 0 | BH32: 1 | BI32: 0 | BJ32: 1 | BK32: 0 | BL32: 1 | BM32: 0 | BN32: 8 | BO32: 0 | BP32: 8 | BQ32: 0 | BR32: 0 | BS32: 1 | BT32: 0 | BU32: 0 | BV32: 1 | BW32: 0 | BX32: 2 | BY32: 0 | BZ32: 0 | CA32: 1 | CB32: 0 | CC32: 0 | CD32: 0 | CE32: 0 | CF32: 1 | CG32: 0 | CH32: 0 | CI32: 0 | CJ32: 0 | CK32: 3 | CL32: 0 | CM32: 0 | CN32: 0 | CO32: 1 | CP32: n | CQ32: 7 | CR32: 0 | CS32: 8
D33: 28 | E33: 8 | F33: 1 | G33: 0 | H33: 2 | I33: 0 | J33: 5 | K33: LW | L33: n | M33: 970 | N33: LW.0970kW.10205 | O33: 28 | P33: 3 | Q33: 5689 | R33: DN100 | T33: 2 | U33: 5 | V33: 0 | W33: 0 | X33: 1 | Y33: 0 | Z33: 0 | AA33: 2 | AB33: 0 | AC33: 0 | AD33: 0 | AE33: 0 | AF33: 1 | AG33: 0 | AH33: 0 | AI33: 3 | AJ33: 5 | AK33: 0 | AL33: 0 | AM33: 0 | AN33: 0 | AO33: 0 | AP33: 0 | AQ33: 0 | AR33: 1 | AS33: 0 | AT33: 1 | AU33: 0 | AV33: 0 | AW33: 0 | AX33: 0 | AY33: 0 | AZ33: 0 | BA33: 0 | BB33: 1 | BC33: 1 | BD33: 1 | BE33: 0 | BG33: 0 | BH33: 1 | BI33: 0 | BJ33: 1 | BK33: 0 | BL33: 1 | BM33: 0 | BN33: 8 | BO33: 0 | BP33: 8 | BQ33: 0 | BR33: 0 | BS33: 1 | BT33: 0 | BU33: 0 | BV33: 1 | BW33: 0 | BX33: 2 | BY33: 0 | BZ33: 0 | CA33: 1 | CB33: 0 | CC33: 0 | CD33: 0 | CE33: 0 | CF33: 1 | CG33: 0 | CH33: 0 | CI33: 0 | CJ33: 0 | CK33: 3 | CL33: 0 | CM33: 0 | CN33: 0 | CO33: 1 | CP33: n | CQ33: 7 | CR33: 0 | CS33: 8
D34: 29 | E34: 8 | F34: 0 | G34: 2 | H34: 1 | I34: 0 | J34: 5 | K34: LW | L34: n | M34: 968 | N34: LW.0968kW.02105 | O34: 29 | P34: 3 | Q34: 5689 | R34: DN100 | T34: 1 | U34: 5 | V34: 0 | W34: 0 | X34: 1 | Y34: 0 | Z34: 0 | AA34: 2 | AB34: 0 | AC34: 0 | AD34: 0 | AE34: 0 | AF34: 1 | AG34: 0 | AH34: 0 | AI34: 3 | AJ34: 5 | AK34: 0 | AL34: 0 | AM34: 0 | AN34: 0 | AO34: 0 | AP34: 0 | AQ34: 0 | AR34: 1 | AS34: 0 | AT34: 1 | AU34: 0 | AV34: 0 | AW34: 0 | AX34: 0 | AY34: 0 | AZ34: 0 | BA34: 0 | BB34: 1 | BC34: 1 | BD34: 1 | BE34: 0 | BG34: 0 | BH34: 1 | BI34: 0 | BJ34: 1 | BK34: 0 | BL34: 1 | BM34: 0 | BN34: 8 | BO34: 0 | BP34: 8 | BQ34: 0 | BR34: 0 | BS34: 1 | BT34: 0 | BU34: 0 | BV34: 1 | BW34: 0 | BX34: 2 | BY34: 0 | BZ34: 0 | CA34: 1 | CB34: 0 | CC34: 0 | CD34: 0 | CE34: 0 | CF34: 1 | CG34: 0 | CH34: 0 | CI34: 0 | CJ34: 0 | CK34: 3 | CL34: 0 | CM34: 0 | CN34: 0 | CO34: 2 | CP34: n | CQ34: 7 | CR34: 0 | CS34: 8
D35: 30 | E35: 8 | F35: 1 | G35: 1 | H35: 1 | I35: 0 | J35: 5 | K35: LW | L35: n | M35: 947 | N35: LW.0947kW.11105 | O35: 30 | P35: 4 | Q35: 5689 | R35: DN100 | T35: 1 | U35: 5 | V35: 0 | W35: 0 | X35: 1 | Y35: 0 | Z35: 0 | AA35: 2 | AB35: 0 | AC35: 0 | AD35: 0 | AE35: 0 | AF35: 1 | AG35: 0 | AH35: 0 | AI35: 3 | AJ35: 5 | AK35: 0 | AL35: 0 | AM35: 0 | AN35: 0 | AO35: 0 | AP35: 0 | AQ35: 0 | AR35: 1 | AS35: 0 | AT35: 1 | AU35: 0 | AV35: 0 | AW35: 0 | AX35: 0 | AY35: 0 | AZ35: 0 | BA35: 0 | BB35: 1 | BC35: 1 | BD35: 1 | BE35: 0 | BG35: 0 | BH35: 1 | BI35: 0 | BJ35: 1 | BK35: 0 | BL35: 1 | BM35: 0 | BN35: 8 | BO35: 0 | BP35: 8 | BQ35: 0 | BR35: 0 | BS35: 1 | BT35: 0 | BU35: 0 | BV35: 1 | BW35: 0 | BX35: 2 | BY35: 0 | BZ35: 0 | CA35: 1 | CB35: 0 | CC35: 0 | CD35: 0 | CE35: 0 | CF35: 1 | CG35: 0 | CH35: 0 | CI35: 0 | CJ35: 0 | CK35: 3 | CL35: 0 | CM35: 0 | CN35: 0 | CO35: 2 | CP35: n | CQ35: 7 | CR35: 0 | CS35: 8
D36: 31 | E36: 8 | F36: 2 | G36: 0 | H36: 1 | I36: 0 | J36: 5 | K36: LW | L36: n | M36: 926 | N36: LW.0926kW.20105 | O36: 31 | P36: 3 | Q36: 5689 | R36: DN100 | T36: 1 | U36: 5 | V36: 0 | W36: 0 | X36: 1 | Y36: 0 | Z36: 0 | AA36: 2 | AB36: 0 | AC36: 0 | AD36: 0 | AE36: 0 | AF36: 1 | AG36: 0 | AH36: 0 | AI36: 3 | AJ36: 5 | AK36: 0 | AL36: 0 | AM36: 0 | AN36: 0 | AO36: 0 | AP36: 0 | AQ36: 0 | AR36: 1 | AS36: 0 | AT36: 1 | AU36: 0 | AV36: 0 | AW36: 0 | AX36: 0 | AY36: 0 | AZ36: 0 | BA36: 0 | BB36: 1 | BC36: 1 | BD36: 1 | BE36: 0 | BG36: 0 | BH36: 1 | BI36: 0 | BJ36: 1 | BK36: 0 | BL36: 1 | BM36: 0 | BN36: 8 | BO36: 0 | BP36: 8 | BQ36: 0 | BR36: 0 | BS36: 1 | BT36: 0 | BU36: 0 | BV36: 1 | BW36: 0 | BX36: 2 | BY36: 0 | BZ36: 0 | CA36: 1 | CB36: 0 | CC36: 0 | CD36: 0 | CE36: 0 | CF36: 1 | CG36: 0 | CH36: 0 | CI36: 0 | CJ36: 0 | CK36: 3 | CL36: 0 | CM36: 0 | CN36: 0 | CO36: 2 | CP36: n | CQ36: 7 | CR36: 0 | CS36: 8
D37: 32 | E37: 8 | F37: 0 | G37: 3 | H37: 0 | I37: 0 | J37: 5 | K37: LW | L37: n | M37: 945 | N37: LW.0945kW.03005 | O37: 32 | P37: 2 | Q37: 5689 | R37: DN100 | T37: 0 | U37: 5 | V37: 0 | W37: 0 | X37: 1 | Y37: 0 | Z37: 0 | AA37: 2 | AB37: 0 | AC37: 0 | AD37: 0 | AE37: 0 | AF37: 1 | AG37: 0 | AH37: 0 | AI37: 3 | AJ37: 5 | AK37: 0 | AL37: 0 | AM37: 0 | AN37: 0 | AO37: 0 | AP37: 0 | AQ37: 0 | AR37: 1 | AS37: 0 | AT37: 1 | AU37: 0 | AV37: 0 | AW37: 0 | AX37: 0 | AY37: 0 | AZ37: 0 | BA37: 0 | BB37: 1 | BC37: 1 | BD37: 1 | BE37: 0 | BG37: 0 | BH37: 1 | BI37: 0 | BJ37: 1 | BK37: 0 | BL37: 1 | BM37: 0 | BN37: 8 | BO37: 0 | BP37: 8 | BQ37: 0 | BR37: 0 | BS37: 1 | BT37: 0 | BU37: 0 | BV37: 1 | BW37: 0 | BX37: 2 | BY37: 0 | BZ37: 0 | CA37: 1 | CB37: 0 | CC37: 0 | CD37: 0 | CE37: 0 | CF37: 1 | CG37: 0 | CH37: 0 | CI37: 0 | CJ37: 0 | CK37: 3 | CL37: 0 | CM37: 0 | CN37: 0 | CO37: 3 | CP37: n | CQ37: 7 | CR37: 0 | CS37: 8
D38: 33 | E38: 8 | F38: 1 | G38: 2 | H38: 0 | I38: 0 | J38: 5 | K38: LW | L38: n | M38: 924 | N38: LW.0924kW.12005 | O38: 33 | P38: 3 | Q38: 5689 | R38: DN100 | T38: 0 | U38: 5 | V38: 0 | W38: 0 | X38: 1 | Y38: 0 | Z38: 0 | AA38: 2 | AB38: 0 | AC38: 0 | AD38: 0 | AE38: 0 | AF38: 1 | AG38: 0 | AH38: 0 | AI38: 3 | AJ38: 5 | AK38: 0 | AL38: 0 | AM38: 0 | AN38: 0 | AO38: 0 | AP38: 0 | AQ38: 0 | AR38: 1 | AS38: 0 | AT38: 1 | AU38: 0 | AV38: 0 | AW38: 0 | AX38: 0 | AY38: 0 | AZ38: 0 | BA38: 0 | BB38: 1 | BC38: 1 | BD38: 1 | BE38: 0 | BG38: 0 | BH38: 1 | BI38: 0 | BJ38: 1 | BK38: 0 | BL38: 1 | BM38: 0 | BN38: 8 | BO38: 0 | BP38: 8 | BQ38: 0 | BR38: 0 | BS38: 1 | BT38: 0 | BU38: 0 | BV38: 1 | BW38: 0 | BX38: 2 | BY38: 0 | BZ38: 0 | CA38: 1 | CB38: 0 | CC38: 0 | CD38: 0 | CE38: 0 | CF38: 1 | CG38: 0 | CH38: 0 | CI38: 0 | CJ38: 0 | CK38: 3 | CL38: 0 | CM38: 0 | CN38: 0 | CO38: 3 | CP38: n | CQ38: 7 | CR38: 0 | CS38: 8
D39: 34 | E39: 8 | F39: 2 | G39: 1 | H39: 0 | I39: 0 | J39: 5 | K39: LW | L39: n | M39: 904 | N39: LW.0904kW.21005 | O39: 34 | P39: 3 | Q39: 5689 | R39: DN100 | T39: 0 | U39: 5 | V39: 0 | W39: 0 | X39: 1 | Y39: 0 | Z39: 0 | AA39: 2 | AB39: 0 | AC39: 0 | AD39: 0 | AE39: 0 | AF39: 1 | AG39: 0 | AH39: 0 | AI39: 3 | AJ39: 5 | AK39: 0 | AL39: 0 | AM39: 0 | AN39: 0 | AO39: 0 | AP39: 0 | AQ39: 0 | AR39: 1 | AS39: 0 | AT39: 1 | AU39: 0 | AV39: 0 | AW39: 0 | AX39: 0 | AY39: 0 | AZ39: 0 | BA39: 0 | BB39: 1 | BC39: 1 | BD39: 1 | BE39: 0 | BG39: 0 | BH39: 1 | BI39: 0 | BJ39: 1 | BK39: 0 | BL39: 1 | BM39: 0 | BN39: 8 | BO39: 0 | BP39: 8 | BQ39: 0 | BR39: 0 | BS39: 1 | BT39: 0 | BU39: 0 | BV39: 1 | BW39: 0 | BX39: 2 | BY39: 0 | BZ39: 0 | CA39: 1 | CB39: 0 | CC39: 0 | CD39: 0 | CE39: 0 | CF39: 1 | CG39: 0 | CH39: 0 | CI39: 0 | CJ39: 0 | CK39: 3 | CL39: 0 | CM39: 0 | CN39: 0 | CO39: 3 | CP39: n | CQ39: 7 | CR39: 0 | CS39: 8
D40: 35 | E40: 8 | F40: 3 | G40: 0 | H40: 0 | I40: 0 | J40: 5 | K40: LW | L40: n | M40: 883 | N40: LW.0883kW.30005 | O40: 35 | P40: 2 | Q40: 5689 | R40: DN100 | T40: 0 | U40: 5 | V40: 0 | W40: 0 | X40: 1 | Y40: 0 | Z40: 0 | AA40: 2 | AB40: 0 | AC40: 0 | AD40: 0 | AE40: 0 | AF40: 1 | AG40: 0 | AH40: 0 | AI40: 3 | AJ40: 5 | AK40: 0 | AL40: 0 | AM40: 0 | AN40: 0 | AO40: 0 | AP40: 0 | AQ40: 0 | AR40: 1 | AS40: 0 | AT40: 1 | AU40: 0 | AV40: 0 | AW40: 0 | AX40: 0 | AY40: 0 | AZ40: 0 | BA40: 0 | BB40: 1 | BC40: 1 | BD40: 1 | BE40: 0 | BG40: 0 | BH40: 1 | BI40: 0 | BJ40: 1 | BK40: 0 | BL40: 1 | BM40: 0 | BN40: 8 | BO40: 0 | BP40: 8 | BQ40: 0 | BR40: 0 | BS40: 1 | BT40: 0 | BU40: 0 | BV40: 1 | BW40: 0 | BX40: 2 | BY40: 0 | BZ40: 0 | CA40: 1 | CB40: 0 | CC40: 0 | CD40: 0 | CE40: 0 | CF40: 1 | CG40: 0 | CH40: 0 | CI40: 0 | CJ40: 0 | CK40: 3 | CL40: 0 | CM40: 0 | CN40: 0 | CO40: 3 | CP40: n | CQ40: 7 | CR40: 0 | CS40: 8
D41: 36 | E41: 8 | F41: 0 | G41: 0 | H41: 0 | I41: 4 | J41: 4 | K41: LW | L41: n | M41: 1036 | N41: LW.1036kW.00044 | O41: 36 | P41: 2 | Q41: 5689 | R41: DN100 | T41: 4 | U41: 4 | V41: 0 | W41: 0 | X41: 1 | Y41: 0 | Z41: 0 | AA41: 2 | AB41: 0 | AC41: 0 | AD41: 0 | AE41: 0 | AF41: 1 | AG41: 0 | AH41: 0 | AI41: 4 | AJ41: 4 | AK41: 0 | AL41: 0 | AM41: 0 | AN41: 0 | AO41: 0 | AP41: 0 | AQ41: 0 | AR41: 1 | AS41: 0 | AT41: 1 | AU41: 0 | AV41: 0 | AW41: 0 | AX41: 0 | AY41: 0 | AZ41: 0 | BA41: 0 | BB41: 2 | BC41: 0 | BD41: 0 | BE41: 1 | BG41: 0 | BH41: 1 | BI41: 0 | BJ41: 1 | BK41: 0 | BL41: 1 | BM41: 0 | BN41: 8 | BO41: 0 | BP41: 8 | BQ41: 0 | BR41: 0 | BS41: 1 | BT41: 0 | BU41: 0 | BV41: 1 | BW41: 0 | BX41: 2 | BY41: 0 | BZ41: 0 | CA41: 1 | CB41: 0 | CC41: 0 | CD41: 0 | CE41: 0 | CF41: 1 | CG41: 0 | CH41: 0 | CI41: 0 | CJ41: 0 | CK41: 4 | CL41: 0 | CM41: 0 | CN41: 0 | CO41: 0 | CP41: n | CQ41: 7 | CR41: 0 | CS41: 8
D42: 37 | E42: 8 | F42: 0 | G42: 0 | H42: 1 | I42: 3 | J42: 4 | K42: LW | L42: n | M42: 1014 | N42: LW.1014kW.00134 | O42: 37 | P42: 3 | Q42: 5689 | R42: DN100 | T42: 4 | U42: 4 | V42: 0 | W42: 0 | X42: 1 | Y42: 0 | Z42: 0 | AA42: 2 | AB42: 0 | AC42: 0 | AD42: 0 | AE42: 0 | AF42: 1 | AG42: 0 | AH42: 0 | AI42: 4 | AJ42: 4 | AK42: 0 | AL42: 0 | AM42: 0 | AN42: 0 | AO42: 0 | AP42: 0 | AQ42: 0 | AR42: 1 | AS42: 0 | AT42: 1 | AU42: 0 | AV42: 0 | AW42: 0 | AX42: 0 | AY42: 0 | AZ42: 0 | BA42: 0 | BB42: 2 | BC42: 0 | BD42: 0 | BE42: 1 | BG42: 0 | BH42: 1 | BI42: 0 | BJ42: 1 | BK42: 0 | BL42: 1 | BM42: 0 | BN42: 8 | BO42: 0 | BP42: 8 | BQ42: 0 | BR42: 0 | BS42: 1 | BT42: 0 | BU42: 0 | BV42: 1 | BW42: 0 | BX42: 2 | BY42: 0 | BZ42: 0 | CA42: 1 | CB42: 0 | CC42: 0 | CD42: 0 | CE42: 0 | CF42: 1 | CG42: 0 | CH42: 0 | CI42: 0 | CJ42: 0 | CK42: 4 | CL42: 0 | CM42: 0 | CN42: 0 | CO42: 0 | CP42: n | CQ42: 7 | CR42: 0 | CS42: 8
D43: 38 | E43: 8 | F43: 0 | G43: 1 | H43: 0 | I43: 3 | J43: 4 | K43: LW | L43: n | M43: 991 | N43: LW.0991kW.01034 | O43: 38 | P43: 3 | Q43: 5689 | R43: DN100 | T43: 3 | U43: 4 | V43: 0 | W43: 0 | X43: 1 | Y43: 0 | Z43: 0 | AA43: 2 | AB43: 0 | AC43: 0 | AD43: 0 | AE43: 0 | AF43: 1 | AG43: 0 | AH43: 0 | AI43: 4 | AJ43: 4 | AK43: 0 | AL43: 0 | AM43: 0 | AN43: 0 | AO43: 0 | AP43: 0 | AQ43: 0 | AR43: 1 | AS43: 0 | AT43: 1 | AU43: 0 | AV43: 0 | AW43: 0 | AX43: 0 | AY43: 0 | AZ43: 0 | BA43: 0 | BB43: 2 | BC43: 0 | BD43: 0 | BE43: 1 | BG43: 0 | BH43: 1 | BI43: 0 | BJ43: 1 | BK43: 0 | BL43: 1 | BM43: 0 | BN43: 8 | BO43: 0 | BP43: 8 | BQ43: 0 | BR43: 0 | BS43: 1 | BT43: 0 | BU43: 0 | BV43: 1 | BW43: 0 | BX43: 2 | BY43: 0 | BZ43: 0 | CA43: 1 | CB43: 0 | CC43: 0 | CD43: 0 | CE43: 0 | CF43: 1 | CG43: 0 | CH43: 0 | CI43: 0 | CJ43: 0 | CK43: 4 | CL43: 0 | CM43: 0 | CN43: 0 | CO43: 1 | CP43: n | CQ43: 7 | CR43: 0 | CS43: 8
D44: 39 | E44: 8 | F44: 1 | G44: 0 | H44: 0 | I44: 3 | J44: 4 | K44: LW | L44: n | M44: 970 | N44: LW.0970kW.10034 | O44: 39 | P44: 3 | Q44: 5689 | R44: DN100 | T44: 3 | U44: 4 | V44: 0 | W44: 0 | X44: 1 | Y44: 0 | Z44: 0 | AA44: 2 | AB44: 0 | AC44: 0 | AD44: 0 | AE44: 0 | AF44: 1 | AG44: 0 | AH44: 0 | AI44: 4 | AJ44: 4 | AK44: 0 | AL44: 0 | AM44: 0 | AN44: 0 | AO44: 0 | AP44: 0 | AQ44: 0 | AR44: 1 | AS44: 0 | AT44: 1 | AU44: 0 | AV44: 0 | AW44: 0 | AX44: 0 | AY44: 0 | AZ44: 0 | BA44: 0 | BB44: 2 | BC44: 0 | BD44: 0 | BE44: 1 | BG44: 0 | BH44: 1 | BI44: 0 | BJ44: 1 | BK44: 0 | BL44: 1 | BM44: 0 | BN44: 8 | BO44: 0 | BP44: 8 | BQ44: 0 | BR44: 0 | BS44: 1 | BT44: 0 | BU44: 0 | BV44: 1 | BW44: 0 | BX44: 2 | BY44: 0 | BZ44: 0 | CA44: 1 | CB44: 0 | CC44: 0 | CD44: 0 | CE44: 0 | CF44: 1 | CG44: 0 | CH44: 0 | CI44: 0 | CJ44: 0 | CK44: 4 | CL44: 0 | CM44: 0 | CN44: 0 | CO44: 1 | CP44: n | CQ44: 7 | CR44: 0 | CS44: 8
D45: 40 | E45: 8 | F45: 0 | G45: 0 | H45: 2 | I45: 2 | J45: 4 | K45: LW | L45: n | M45: 991 | N45: LW.0991kW.00224 | O45: 40 | P45: 3 | Q45: 5689 | R45: DN100 | T45: 4 | U45: 4 | V45: 0 | W45: 0 | X45: 1 | Y45: 0 | Z45: 0 | AA45: 2 | AB45: 0 | AC45: 0 | AD45: 0 | AE45: 0 | AF45: 1 | AG45: 0 | AH45: 0 | AI45: 4 | AJ45: 4 | AK45: 0 | AL45: 0 | AM45: 0 | AN45: 0 | AO45: 0 | AP45: 0 | AQ45: 0 | AR45: 1 | AS45: 0 | AT45: 1 | AU45: 0 | AV45: 0 | AW45: 0 | AX45: 0 | AY45: 0 | AZ45: 0 | BA45: 0 | BB45: 2 | BC45: 0 | BD45: 0 | BE45: 1 | BG45: 0 | BH45: 1 | BI45: 0 | BJ45: 1 | BK45: 0 | BL45: 1 | BM45: 0 | BN45: 8 | BO45: 0 | BP45: 8 | BQ45: 0 | BR45: 0 | BS45: 1 | BT45: 0 | BU45: 0 | BV45: 1 | BW45: 0 | BX45: 2 | BY45: 0 | BZ45: 0 | CA45: 1 | CB45: 0 | CC45: 0 | CD45: 0 | CE45: 0 | CF45: 1 | CG45: 0 | CH45: 0 | CI45: 0 | CJ45: 0 | CK45: 4 | CL45: 0 | CM45: 0 | CN45: 0 | CO45: 0 | CP45: n | CQ45: 7 | CR45: 0 | CS45: 8
D46: 41 | E46: 8 | F46: 0 | G46: 1 | H46: 1 | I46: 2 | J46: 4 | K46: LW | L46: n | M46: 968 | N46: LW.0968kW.01124 | O46: 41 | P46: 4 | Q46: 5689 | R46: DN100 | T46: 3 | U46: 4 | V46: 0 | W46: 0 | X46: 1 | Y46: 0 | Z46: 0 | AA46: 2 | AB46: 0 | AC46: 0 | AD46: 0 | AE46: 0 | AF46: 1 | AG46: 0 | AH46: 0 | AI46: 4 | AJ46: 4 | AK46: 0 | AL46: 0 | AM46: 0 | AN46: 0 | AO46: 0 | AP46: 0 | AQ46: 0 | AR46: 1 | AS46: 0 | AT46: 1 | AU46: 0 | AV46: 0 | AW46: 0 | AX46: 0 | AY46: 0 | AZ46: 0 | BA46: 0 | BB46: 2 | BC46: 0 | BD46: 0 | BE46: 1 | BG46: 0 | BH46: 1 | BI46: 0 | BJ46: 1 | BK46: 0 | BL46: 1 | BM46: 0 | BN46: 8 | BO46: 0 | BP46: 8 | BQ46: 0 | BR46: 0 | BS46: 1 | BT46: 0 | BU46: 0 | BV46: 1 | BW46: 0 | BX46: 2 | BY46: 0 | BZ46: 0 | CA46: 1 | CB46: 0 | CC46: 0 | CD46: 0 | CE46: 0 | CF46: 1 | CG46: 0 | CH46: 0 | CI46: 0 | CJ46: 0 | CK46: 4 | CL46: 0 | CM46: 0 | CN46: 0 | CO46: 1 | CP46: n | CQ46: 7 | CR46: 0 | CS46: 8
D47: 42 | E47: 8 | F47: 1 | G47: 0 | H47: 1 | I47: 2 | J47: 4 | K47: LW | L47: n | M47: 947 | N47: LW.0947kW.10124 | O47: 42 | P47: 4 | Q47: 5689 | R47: DN100 | T47: 3 | U47: 4 | V47: 0 | W47: 0 | X47: 1 | Y47: 0 | Z47: 0 | AA47: 2 | AB47: 0 | AC47: 0 | AD47: 0 | AE47: 0 | AF47: 1 | AG47: 0 | AH47: 0 | AI47: 4 | AJ47: 4 | AK47: 0 | AL47: 0 | AM47: 0 | AN47: 0 | AO47: 0 | AP47: 0 | AQ47: 0 | AR47: 1 | AS47: 0 | AT47: 1 | AU47: 0 | AV47: 0 | AW47: 0 | AX47: 0 | AY47: 0 | AZ47: 0 | BA47: 0 | BB47: 2 | BC47: 0 | BD47: 0 | BE47: 1 | BG47: 0 | BH47: 1 | BI47: 0 | BJ47: 1 | BK47: 0 | BL47: 1 | BM47: 0 | BN47: 8 | BO47: 0 | BP47: 8 | BQ47: 0 | BR47: 0 | BS47: 1 | BT47: 0 | BU47: 0 | BV47: 1 | BW47: 0 | BX47: 2 | BY47: 0 | BZ47: 0 | CA47: 1 | CB47: 0 | CC47: 0 | CD47: 0 | CE47: 0 | CF47: 1 | CG47: 0 | CH47: 0 | CI47: 0 | CJ47: 0 | CK47: 4 | CL47: 0 | CM47: 0 | CN47: 0 | CO47: 1 | CP47: n | CQ47: 7 | CR47: 0 | CS47: 8
D48: 43 | E48: 8 | F48: 0 | G48: 2 | H48: 0 | I48: 2 | J48: 4 | K48: LW | L48: n | M48: 945 | N48: LW.0945kW.02024 | O48: 43 | P48: 3 | Q48: 5689 | R48: DN100 | T48: 2 | U48: 4 | V48: 0 | W48: 0 | X48: 1 | Y48: 0 | Z48: 0 | AA48: 2 | AB48: 0 | AC48: 0 | AD48: 0 | AE48: 0 | AF48: 1 | AG48: 0 | AH48: 0 | AI48: 4 | AJ48: 4 | AK48: 0 | AL48: 0 | AM48: 0 | AN48: 0 | AO48: 0 | AP48: 0 | AQ48: 0 | AR48: 1 | AS48: 0 | AT48: 1 | AU48: 0 | AV48: 0 | AW48: 0 | AX48: 0 | AY48: 0 | AZ48: 0 | BA48: 0 | BB48: 2 | BC48: 0 | BD48: 0 | BE48: 1 | BG48: 0 | BH48: 1 | BI48: 0 | BJ48: 1 | BK48: 0 | BL48: 1 | BM48: 0 | BN48: 8 | BO48: 0 | BP48: 8 | BQ48: 0 | BR48: 0 | BS48: 1 | BT48: 0 | BU48: 0 | BV48: 1 | BW48: 0 | BX48: 2 | BY48: 0 | BZ48: 0 | CA48: 1 | CB48: 0 | CC48: 0 | CD48: 0 | CE48: 0 | CF48: 1 | CG48: 0 | CH48: 0 | CI48: 0 | CJ48: 0 | CK48: 4 | CL48: 0 | CM48: 0 | CN48: 0 | CO48: 2 | CP48: n | CQ48: 7 | CR48: 0 | CS48: 8
D49: 44 | E49: 8 | F49: 1 | G49: 1 | H49: 0 | I49: 2 | J49: 4 | K49: LW | L49: n | M49: 925 | N49: LW.0925kW.11024 | O49: 44 | P49: 4 | Q49: 5689 | R49: DN100 | T49: 2 | U49: 4 | V49: 0 | W49: 0 | X49: 1 | Y49: 0 | Z49: 0 | AA49: 2 | AB49: 0 | AC49: 0 | AD49: 0 | AE49: 0 | AF49: 1 | AG49: 0 | AH49: 0 | AI49: 4 | AJ49: 4 | AK49: 0 | AL49: 0 | AM49: 0 | AN49: 0 | AO49: 0 | AP49: 0 | AQ49: 0 | AR49: 1 | AS49: 0 | AT49: 1 | AU49: 0 | AV49: 0 | AW49: 0 | AX49: 0 | AY49: 0 | AZ49: 0 | BA49: 0 | BB49: 2 | BC49: 0 | BD49: 0 | BE49: 1 | BG49: 0 | BH49: 1 | BI49: 0 | BJ49: 1 | BK49: 0 | BL49: 1 | BM49: 0 | BN49: 8 | BO49: 0 | BP49: 8 | BQ49: 0 | BR49: 0 | BS49: 1 | BT49: 0 | BU49: 0 | BV49: 1 | BW49: 0 | BX49: 2 | BY49: 0 | BZ49: 0 | CA49: 1 | CB49: 0 | CC49: 0 | CD49: 0 | CE49: 0 | CF49: 1 | CG49: 0 | CH49: 0 | CI49: 0 | CJ49: 0 | CK49: 4 | CL49: 0 | CM49: 0 | CN49: 0 | CO49: 2 | CP49: n | CQ49: 7 | CR49: 0 | CS49: 8
D50: 45 | E50: 8 | F50: 2 | G50: 0 | H50: 0 | I50: 2 | J50: 4 | K50: LW | L50: n | M50: 904 | N50: LW.0904kW.20024 | O50: 45 | P50: 3 | Q50: 5689 | R50: DN100 | T50: 2 | U50: 4 | V50: 0 | W50: 0 | X50: 1 | Y50: 0 | Z50: 0 | AA50: 2 | AB50: 0 | AC50: 0 | AD50: 0 | AE50: 0 | AF50: 1 | AG50: 0 | AH50: 0 | AI50: 4 | AJ50: 4 | AK50: 0 | AL50: 0 | AM50: 0 | AN50: 0 | AO50: 0 | AP50: 0 | AQ50: 0 | AR50: 1 | AS50: 0 | AT50: 1 | AU50: 0 | AV50: 0 | AW50: 0 | AX50: 0 | AY50: 0 | AZ50: 0 | BA50: 0 | BB50: 2 | BC50: 0 | BD50: 0 | BE50: 1 | BG50: 0 | BH50: 1 | BI50: 0 | BJ50: 1 | BK50: 0 | BL50: 1 | BM50: 0 | BN50: 8 | BO50: 0 | BP50: 8 | BQ50: 0 | BR50: 0 | BS50: 1 | BT50: 0 | BU50: 0 | BV50: 1 | BW50: 0 | BX50: 2 | BY50: 0 | BZ50: 0 | CA50: 1 | CB50: 0 | CC50: 0 | CD50: 0 | CE50: 0 | CF50: 1 | CG50: 0 | CH50: 0 | CI50: 0 | CJ50: 0 | CK50: 4 | CL50: 0 | CM50: 0 | CN50: 0 | CO50: 2 | CP50: n | CQ50: 7 | CR50: 0 | CS50: 8
D51: 46 | E51: 8 | F51: 0 | G51: 0 | H51: 3 | I51: 1 | J51: 4 | K51: LW | L51: n | M51: 968 | N51: LW.0968kW.00314 | O51: 46 | P51: 3 | Q51: 5689 | R51: DN100 | T51: 4 | U51: 4 | V51: 0 | W51: 0 | X51: 1 | Y51: 0 | Z51: 0 | AA51: 2 | AB51: 0 | AC51: 0 | AD51: 0 | AE51: 0 | AF51: 1 | AG51: 0 | AH51: 0 | AI51: 4 | AJ51: 4 | AK51: 0 | AL51: 0 | AM51: 0 | AN51: 0 | AO51: 0 | AP51: 0 | AQ51: 0 | AR51: 1 | AS51: 0 | AT51: 1 | AU51: 0 | AV51: 0 | AW51: 0 | AX51: 0 | AY51: 0 | AZ51: 0 | BA51: 0 | BB51: 2 | BC51: 0 | BD51: 0 | BE51: 1 | BG51: 0 | BH51: 1 | BI51: 0 | BJ51: 1 | BK51: 0 | BL51: 1 | BM51: 0 | BN51: 8 | BO51: 0 | BP51: 8 | BQ51: 0 | BR51: 0 | BS51: 1 | BT51: 0 | BU51: 0 | BV51: 1 | BW51: 0 | BX51: 2 | BY51: 0 | BZ51: 0 | CA51: 1 | CB51: 0 | CC51: 0 | CD51: 0 | CE51: 0 | CF51: 1 | CG51: 0 | CH51: 0 | CI51: 0 | CJ51: 0 | CK51: 4 | CL51: 0 | CM51: 0 | CN51: 0 | CO51: 0 | CP51: n | CQ51: 7 | CR51: 0 | CS51: 8
D52: 47 | E52: 8 | F52: 0 | G52: 1 | H52: 2 | I52: 1 | J52: 4 | K52: LW | L52: n | M52: 945 | N52: LW.0945kW.01214 | O52: 47 | P52: 4 | Q52: 5689 | R52: DN100 | T52: 3 | U52: 4 | V52: 0 | W52: 0 | X52: 1 | Y52: 0 | Z52: 0 | AA52: 2 | AB52: 0 | AC52: 0 | AD52: 0 | AE52: 0 | AF52: 1 | AG52: 0 | AH52: 0 | AI52: 4 | AJ52: 4 | AK52: 0 | AL52: 0 | AM52: 0 | AN52: 0 | AO52: 0 | AP52: 0 | AQ52: 0 | AR52: 1 | AS52: 0 | AT52: 1 | AU52: 0 | AV52: 0 | AW52: 0 | AX52: 0 | AY52: 0 | AZ52: 0 | BA52: 0 | BB52: 2 | BC52: 0 | BD52: 0 | BE52: 1 | BG52: 0 | BH52: 1 | BI52: 0 | BJ52: 1 | BK52: 0 | BL52: 1 | BM52: 0 | BN52: 8 | BO52: 0 | BP52: 8 | BQ52: 0 | BR52: 0 | BS52: 1 | BT52: 0 | BU52: 0 | BV52: 1 | BW52: 0 | BX52: 2 | BY52: 0 | BZ52: 0 | CA52: 1 | CB52: 0 | CC52: 0 | CD52: 0 | CE52: 0 | CF52: 1 | CG52: 0 | CH52: 0 | CI52: 0 | CJ52: 0 | CK52: 4 | CL52: 0 | CM52: 0 | CN52: 0 | CO52: 1 | CP52: n | CQ52: 7 | CR52: 0 | CS52: 8
D53: 48 | E53: 8 | F53: 1 | G53: 0 | H53: 2 | I53: 1 | J53: 4 | K53: LW | L53: n | M53: 925 | N53: LW.0925kW.10214 | O53: 48 | P53: 4 | Q53: 5689 | R53: DN100 | T53: 3 | U53: 4 | V53: 0 | W53: 0 | X53: 1 | Y53: 0 | Z53: 0 | AA53: 2 | AB53: 0 | AC53: 0 | AD53: 0 | AE53: 0 | AF53: 1 | AG53: 0 | AH53: 0 | AI53: 4 | AJ53: 4 | AK53: 0 | AL53: 0 | AM53: 0 | AN53: 0 | AO53: 0 | AP53: 0 | AQ53: 0 | AR53: 1 | AS53: 0 | AT53: 1 | AU53: 0 | AV53: 0 | AW53: 0 | AX53: 0 | AY53: 0 | AZ53: 0 | BA53: 0 | BB53: 2 | BC53: 0 | BD53: 0 | BE53: 1 | BG53: 0 | BH53: 1 | BI53: 0 | BJ53: 1 | BK53: 0 | BL53: 1 | BM53: 0 | BN53: 8 | BO53: 0 | BP53: 8 | BQ53: 0 | BR53: 0 | BS53: 1 | BT53: 0 | BU53: 0 | BV53: 1 | BW53: 0 | BX53: 2 | BY53: 0 | BZ53: 0 | CA53: 1 | CB53: 0 | CC53: 0 | CD53: 0 | CE53: 0 | CF53: 1 | CG53: 0 | CH53: 0 | CI53: 0 | CJ53: 0 | CK53: 4 | CL53: 0 | CM53: 0 | CN53: 0 | CO53: 1 | CP53: n | CQ53: 7 | CR53: 0 | CS53: 8
D54: 49 | E54: 8 | F54: 0 | G54: 2 | H54: 1 | I54: 1 | J54: 4 | K54: LW | L54: n | M54: 923 | N54: LW.0923kW.02114 | O54: 49 | P54: 4 | Q54: 5689 | R54: DN100 | T54: 2 | U54: 4 | V54: 0 | W54: 0 | X54: 1 | Y54: 0 | Z54: 0 | AA54: 2 | AB54: 0 | AC54: 0 | AD54: 0 | AE54: 0 | AF54: 1 | AG54: 0 | AH54: 0 | AI54: 4 | AJ54: 4 | AK54: 0 | AL54: 0 | AM54: 0 | AN54: 0 | AO54: 0 | AP54: 0 | AQ54: 0 | AR54: 1 | AS54: 0 | AT54: 1 | AU54: 0 | AV54: 0 | AW54: 0 | AX54: 0 | AY54: 0 | AZ54: 0 | BA54: 0 | BB54: 2 | BC54: 0 | BD54: 0 | BE54: 1 | BG54: 0 | BH54: 1 | BI54: 0 | BJ54: 1 | BK54: 0 | BL54: 1 | BM54: 0 | BN54: 8 | BO54: 0 | BP54: 8 | BQ54: 0 | BR54: 0 | BS54: 1 | BT54: 0 | BU54: 0 | BV54: 1 | BW54: 0 | BX54: 2 | BY54: 0 | BZ54: 0 | CA54: 1 | CB54: 0 | CC54: 0 | CD54: 0 | CE54: 0 | CF54: 1 | CG54: 0 | CH54: 0 | CI54: 0 | CJ54: 0 | CK54: 4 | CL54: 0 | CM54: 0 | CN54: 0 | CO54: 2 | CP54: n | CQ54: 7 | CR54: 0 | CS54: 8
D55: 50 | E55: 8 | F55: 1 | G55: 1 | H55: 1 | I55: 1 | J55: 4 | K55: LW | L55: n | M55: 902 | N55: LW.0902kW.11114 | O55: 50 | P55: 5 | Q55: 5689 | R55: DN100 | T55: 2 | U55: 4 | V55: 0 | W55: 0 | X55: 1 | Y55: 0 | Z55: 0 | AA55: 2 | AB55: 0 | AC55: 0 | AD55: 0 | AE55: 0 | AF55: 1 | AG55: 0 | AH55: 0 | AI55: 4 | AJ55: 4 | AK55: 0 | AL55: 0 | AM55: 0 | AN55: 0 | AO55: 0 | AP55: 0 | AQ55: 0 | AR55: 1 | AS55: 0 | AT55: 1 | AU55: 0 | AV55: 0 | AW55: 0 | AX55: 0 | AY55: 0 | AZ55: 0 | BA55: 0 | BB55: 2 | BC55: 0 | BD55: 0 | BE55: 1 | BG55: 0 | BH55: 1 | BI55: 0 | BJ55: 1 | BK55: 0 | BL55: 1 | BM55: 0 | BN55: 8 | BO55: 0 | BP55: 8 | BQ55: 0 | BR55: 0 | BS55: 1 | BT55: 0 | BU55: 0 | BV55: 1 | BW55: 0 | BX55: 2 | BY55: 0 | BZ55: 0 | CA55: 1 | CB55: 0 | CC55: 0 | CD55: 0 | CE55: 0 | CF55: 1 | CG55: 0 | CH55: 0 | CI55: 0 | CJ55: 0 | CK55: 4 | CL55: 0 | CM55: 0 | CN55: 0 | CO55: 2 | CP55: n | CQ55: 7 | CR55: 0 | CS55: 8
D56: 51 | E56: 8 | F56: 2 | G56: 0 | H56: 1 | I56: 1 | J56: 4 | K56: LW | L56: n | M56: 881 | N56: LW.0881kW.20114 | O56: 51 | P56: 4 | Q56: 5689 | R56: DN100 | T56: 2 | U56: 4 | V56: 0 | W56: 0 | X56: 1 | Y56: 0 | Z56: 0 | AA56: 2 | AB56: 0 | AC56: 0 | AD56: 0 | AE56: 0 | AF56: 1 | AG56: 0 | AH56: 0 | AI56: 4 | AJ56: 4 | AK56: 0 | AL56: 0 | AM56: 0 | AN56: 0 | AO56: 0 | AP56: 0 | AQ56: 0 | AR56: 1 | AS56: 0 | AT56: 1 | AU56: 0 | AV56: 0 | AW56: 0 | AX56: 0 | AY56: 0 | AZ56: 0 | BA56: 0 | BB56: 2 | BC56: 0 | BD56: 0 | BE56: 1 | BG56: 0 | BH56: 1 | BI56: 0 | BJ56: 1 | BK56: 0 | BL56: 1 | BM56: 0 | BN56: 8 | BO56: 0 | BP56: 8 | BQ56: 0 | BR56: 0 | BS56: 1 | BT56: 0 | BU56: 0 | BV56: 1 | BW56: 0 | BX56: 2 | BY56: 0 | BZ56: 0 | CA56: 1 | CB56: 0 | CC56: 0 | CD56: 0 | CE56: 0 | CF56: 1 | CG56: 0 | CH56: 0 | CI56: 0 | CJ56: 0 | CK56: 4 | CL56: 0 | CM56: 0 | CN56: 0 | CO56: 2 | CP56: n | CQ56: 7 | CR56: 0 | CS56: 8
D57: 52 | E57: 8 | F57: 0 | G57: 3 | H57: 0 | I57: 1 | J57: 4 | K57: LW | L57: n | M57: 900 | N57: LW.0900kW.03014 | O57: 52 | P57: 3 | Q57: 5689 | R57: DN100 | T57: 1 | U57: 4 | V57: 0 | W57: 0 | X57: 1 | Y57: 0 | Z57: 0 | AA57: 2 | AB57: 0 | AC57: 0 | AD57: 0 | AE57: 0 | AF57: 1 | AG57: 0 | AH57: 0 | AI57: 4 | AJ57: 4 | AK57: 0 | AL57: 0 | AM57: 0 | AN57: 0 | AO57: 0 | AP57: 0 | AQ57: 0 | AR57: 1 | AS57: 0 | AT57: 1 | AU57: 0 | AV57: 0 | AW57: 0 | AX57: 0 | AY57: 0 | AZ57: 0 | BA57: 0 | BB57: 2 | BC57: 0 | BD57: 0 | BE57: 1 | BG57: 0 | BH57: 1 | BI57: 0 | BJ57: 1 | BK57: 0 | BL57: 1 | BM57: 0 | BN57: 8 | BO57: 0 | BP57: 8 | BQ57: 0 | BR57: 0 | BS57: 1 | BT57: 0 | BU57: 0 | BV57: 1 | BW57: 0 | BX57: 2 | BY57: 0 | BZ57: 0 | CA57: 1 | CB57: 0 | CC57: 0 | CD57: 0 | CE57: 0 | CF57: 1 | CG57: 0 | CH57: 0 | CI57: 0 | CJ57: 0 | CK57: 4 | CL57: 0 | CM57: 0 | CN57: 0 | CO57: 3 | CP57: n | CQ57: 7 | CR57: 0 | CS57: 8
D58: 53 | E58: 8 | F58: 1 | G58: 2 | H58: 0 | I58: 1 | J58: 4 | K58: LW | L58: n | M58: 879 | N58: LW.0879kW.12014 | O58: 53 | P58: 4 | Q58: 5689 | R58: DN100 | T58: 1 | U58: 4 | V58: 0 | W58: 0 | X58: 1 | Y58: 0 | Z58: 0 | AA58: 2 | AB58: 0 | AC58: 0 | AD58: 0 | AE58: 0 | AF58: 1 | AG58: 0 | AH58: 0 | AI58: 4 | AJ58: 4 | AK58: 0 | AL58: 0 | AM58: 0 | AN58: 0 | AO58: 0 | AP58: 0 | AQ58: 0 | AR58: 1 | AS58: 0 | AT58: 1 | AU58: 0 | AV58: 0 | AW58: 0 | AX58: 0 | AY58: 0 | AZ58: 0 | BA58: 0 | BB58: 2 | BC58: 0 | BD58: 0 | BE58: 1 | BG58: 0 | BH58: 1 | BI58: 0 | BJ58: 1 | BK58: 0 | BL58: 1 | BM58: 0 | BN58: 8 | BO58: 0 | BP58: 8 | BQ58: 0 | BR58: 0 | BS58: 1 | BT58: 0 | BU58: 0 | BV58: 1 | BW58: 0 | BX58: 2 | BY58: 0 | BZ58: 0 | CA58: 1 | CB58: 0 | CC58: 0 | CD58: 0 | CE58: 0 | CF58: 1 | CG58: 0 | CH58: 0 | CI58: 0 | CJ58: 0 | CK58: 4 | CL58: 0 | CM58: 0 | CN58: 0 | CO58: 3 | CP58: n | CQ58: 7 | CR58: 0 | CS58: 8
D59: 54 | E59: 8 | F59: 2 | G59: 1 | H59: 0 | I59: 1 | J59: 4 | K59: LW | L59: n | M59: 859 | N59: LW.0859kW.21014 | O59: 54 | P59: 4 | Q59: 5689 | R59: DN100 | T59: 1 | U59: 4 | V59: 0 | W59: 0 | X59: 1 | Y59: 0 | Z59: 0 | AA59: 2 | AB59: 0 | AC59: 0 | AD59: 0 | AE59: 0 | AF59: 1 | AG59: 0 | AH59: 0 | AI59: 4 | AJ59: 4 | AK59: 0 | AL59: 0 | AM59: 0 | AN59: 0 | AO59: 0 | AP59: 0 | AQ59: 0 | AR59: 1 | AS59: 0 | AT59: 1 | AU59: 0 | AV59: 0 | AW59: 0 | AX59: 0 | AY59: 0 | AZ59: 0 | BA59: 0 | BB59: 2 | BC59: 0 | BD59: 0 | BE59: 1 | BG59: 0 | BH59: 1 | BI59: 0 | BJ59: 1 | BK59: 0 | BL59: 1 | BM59: 0 | BN59: 8 | BO59: 0 | BP59: 8 | BQ59: 0 | BR59: 0 | BS59: 1 | BT59: 0 | BU59: 0 | BV59: 1 | BW59: 0 | BX59: 2 | BY59: 0 | BZ59: 0 | CA59: 1 | CB59: 0 | CC59: 0 | CD59: 0 | CE59: 0 | CF59: 1 | CG59: 0 | CH59: 0 | CI59: 0 | CJ59: 0 | CK59: 4 | CL59: 0 | CM59: 0 | CN59: 0 | CO59: 3 | CP59: n | CQ59: 7 | CR59: 0 | CS59: 8
D60: 55 | E60: 8 | F60: 3 | G60: 0 | H60: 0 | I60: 1 | J60: 4 | K60: LW | L60: n | M60: 838 | N60: LW.0838kW.30014 | O60: 55 | P60: 3 | Q60: 5689 | R60: DN100 | T60: 1 | U60: 4 | V60: 0 | W60: 0 | X60: 1 | Y60: 0 | Z60: 0 | AA60: 2 | AB60: 0 | AC60: 0 | AD60: 0 | AE60: 0 | AF60: 1 | AG60: 0 | AH60: 0 | AI60: 4 | AJ60: 4 | AK60: 0 | AL60: 0 | AM60: 0 | AN60: 0 | AO60: 0 | AP60: 0 | AQ60: 0 | AR60: 1 | AS60: 0 | AT60: 1 | AU60: 0 | AV60: 0 | AW60: 0 | AX60: 0 | AY60: 0 | AZ60: 0 | BA60: 0 | BB60: 2 | BC60: 0 | BD60: 0 | BE60: 1 | BG60: 0 | BH60: 1 | BI60: 0 | BJ60: 1 | BK60: 0 | BL60: 1 | BM60: 0 | BN60: 8 | BO60: 0 | BP60: 8 | BQ60: 0 | BR60: 0 | BS60: 1 | BT60: 0 | BU60: 0 | BV60: 1 | BW60: 0 | BX60: 2 | BY60: 0 | BZ60: 0 | CA60: 1 | CB60: 0 | CC60: 0 | CD60: 0 | CE60: 0 | CF60: 1 | CG60: 0 | CH60: 0 | CI60: 0 | CJ60: 0 | CK60: 4 | CL60: 0 | CM60: 0 | CN60: 0 | CO60: 3 | CP60: n | CQ60: 7 | CR60: 0 | CS60: 8
D61: 56 | E61: 8 | F61: 0 | G61: 0 | H61: 4 | I61: 0 | J61: 4 | K61: LW | L61: n | M61: 945 | N61: LW.0945kW.00404 | O61: 56 | P61: 2 | Q61: 5689 | R61: DN100 | T61: 4 | U61: 4 | V61: 0 | W61: 0 | X61: 1 | Y61: 0 | Z61: 0 | AA61: 2 | AB61: 0 | AC61: 0 | AD61: 0 | AE61: 0 | AF61: 1 | AG61: 0 | AH61: 0 | AI61: 4 | AJ61: 4 | AK61: 0 | AL61: 0 | AM61: 0 | AN61: 0 | AO61: 0 | AP61: 0 | AQ61: 0 | AR61: 1 | AS61: 0 | AT61: 1 | AU61: 0 | AV61: 0 | AW61: 0 | AX61: 0 | AY61: 0 | AZ61: 0 | BA61: 0 | BB61: 2 | BC61: 0 | BD61: 0 | BE61: 1 | BG61: 0 | BH61: 1 | BI61: 0 | BJ61: 1 | BK61: 0 | BL61: 1 | BM61: 0 | BN61: 8 | BO61: 0 | BP61: 8 | BQ61: 0 | BR61: 0 | BS61: 1 | BT61: 0 | BU61: 0 | BV61: 1 | BW61: 0 | BX61: 2 | BY61: 0 | BZ61: 0 | CA61: 1 | CB61: 0 | CC61: 0 | CD61: 0 | CE61: 0 | CF61: 1 | CG61: 0 | CH61: 0 | CI61: 0 | CJ61: 0 | CK61: 4 | CL61: 0 | CM61: 0 | CN61: 0 | CO61: 0 | CP61: n | CQ61: 7 | CR61: 0 | CS61: 8
D62: 57 | E62: 8 | F62: 0 | G62: 1 | H62: 3 | I62: 0 | J62: 4 | K62: LW | L62: n | M62: 923 | N62: LW.0923kW.01304 | O62: 57 | P62: 3 | Q62: 5689 | R62: DN100 | T62: 3 | U62: 4 | V62: 0 | W62: 0 | X62: 1 | Y62: 0 | Z62: 0 | AA62: 2 | AB62: 0 | AC62: 0 | AD62: 0 | AE62: 0 | AF62: 1 | AG62: 0 | AH62: 0 | AI62: 4 | AJ62: 4 | AK62: 0 | AL62: 0 | AM62: 0 | AN62: 0 | AO62: 0 | AP62: 0 | AQ62: 0 | AR62: 1 | AS62: 0 | AT62: 1 | AU62: 0 | AV62: 0 | AW62: 0 | AX62: 0 | AY62: 0 | AZ62: 0 | BA62: 0 | BB62: 2 | BC62: 0 | BD62: 0 | BE62: 1 | BG62: 0 | BH62: 1 | BI62: 0 | BJ62: 1 | BK62: 0 | BL62: 1 | BM62: 0 | BN62: 8 | BO62: 0 | BP62: 8 | BQ62: 0 | BR62: 0 | BS62: 1 | BT62: 0 | BU62: 0 | BV62: 1 | BW62: 0 | BX62: 2 | BY62: 0 | BZ62: 0 | CA62: 1 | CB62: 0 | CC62: 0 | CD62: 0 | CE62: 0 | CF62: 1 | CG62: 0 | CH62: 0 | CI62: 0 | CJ62: 0 | CK62: 4 | CL62: 0 | CM62: 0 | CN62: 0 | CO62: 1 | CP62: n | CQ62: 7 | CR62: 0 | CS62: 8
D63: 58 | E63: 8 | F63: 1 | G63: 0 | H63: 3 | I63: 0 | J63: 4 | K63: LW | L63: n | M63: 902 | N63: LW.0902kW.10304 | O63: 58 | P63: 3 | Q63: 5689 | R63: DN100 | T63: 3 | U63: 4 | V63: 0 | W63: 0 | X63: 1 | Y63: 0 | Z63: 0 | AA63: 2 | AB63: 0 | AC63: 0 | AD63: 0 | AE63: 0 | AF63: 1 | AG63: 0 | AH63: 0 | AI63: 4 | AJ63: 4 | AK63: 0 | AL63: 0 | AM63: 0 | AN63: 0 | AO63: 0 | AP63: 0 | AQ63: 0 | AR63: 1 | AS63: 0 | AT63: 1 | AU63: 0 | AV63: 0 | AW63: 0 | AX63: 0 | AY63: 0 | AZ63: 0 | BA63: 0 | BB63: 2 | BC63: 0 | BD63: 0 | BE63: 1 | BG63: 0 | BH63: 1 | BI63: 0 | BJ63: 1 | BK63: 0 | BL63: 1 | BM63: 0 | BN63: 8 | BO63: 0 | BP63: 8 | BQ63: 0 | BR63: 0 | BS63: 1 | BT63: 0 | BU63: 0 | BV63: 1 | BW63: 0 | BX63: 2 | BY63: 0 | BZ63: 0 | CA63: 1 | CB63: 0 | CC63: 0 | CD63: 0 | CE63: 0 | CF63: 1 | CG63: 0 | CH63: 0 | CI63: 0 | CJ63: 0 | CK63: 4 | CL63: 0 | CM63: 0 | CN63: 0 | CO63: 1 | CP63: n | CQ63: 7 | CR63: 0 | CS63: 8
D64: 59 | E64: 8 | F64: 0 | G64: 2 | H64: 2 | I64: 0 | J64: 4 | K64: LW | L64: n | M64: 900 | N64: LW.0900kW.02204 | O64: 59 | P64: 3 | Q64: 5689 | R64: DN100 | T64: 2 | U64: 4 | V64: 0 | W64: 0 | X64: 1 | Y64: 0 | Z64: 0 | AA64: 2 | AB64: 0 | AC64: 0 | AD64: 0 | AE64: 0 | AF64: 1 | AG64: 0 | AH64: 0 | AI64: 4 | AJ64: 4 | AK64: 0 | AL64: 0 | AM64: 0 | AN64: 0 | AO64: 0 | AP64: 0 | AQ64: 0 | AR64: 1 | AS64: 0 | AT64: 1 | AU64: 0 | AV64: 0 | AW64: 0 | AX64: 0 | AY64: 0 | AZ64: 0 | BA64: 0 | BB64: 2 | BC64: 0 | BD64: 0 | BE64: 1 | BG64: 0 | BH64: 1 | BI64: 0 | BJ64: 1 | BK64: 0 | BL64: 1 | BM64: 0 | BN64: 8 | BO64: 0 | BP64: 8 | BQ64: 0 | BR64: 0 | BS64: 1 | BT64: 0 | BU64: 0 | BV64: 1 | BW64: 0 | BX64: 2 | BY64: 0 | BZ64: 0 | CA64: 1 | CB64: 0 | CC64: 0 | CD64: 0 | CE64: 0 | CF64: 1 | CG64: 0 | CH64: 0 | CI64: 0 | CJ64: 0 | CK64: 4 | CL64: 0 | CM64: 0 | CN64: 0 | CO64: 2 | CP64: n | CQ64: 7 | CR64: 0 | CS64: 8
D65: 60 | E65: 8 | F65: 1 | G65: 1 | H65: 2 | I65: 0 | J65: 4 | K65: LW | L65: n | M65: 879 | N65: LW.0879kW.11204 | O65: 60 | P65: 4 | Q65: 5689 | R65: DN100 | T65: 2 | U65: 4 | V65: 0 | W65: 0 | X65: 1 | Y65: 0 | Z65: 0 | AA65: 2 | AB65: 0 | AC65: 0 | AD65: 0 | AE65: 0 | AF65: 1 | AG65: 0 | AH65: 0 | AI65: 4 | AJ65: 4 | AK65: 0 | AL65: 0 | AM65: 0 | AN65: 0 | AO65: 0 | AP65: 0 | AQ65: 0 | AR65: 1 | AS65: 0 | AT65: 1 | AU65: 0 | AV65: 0 | AW65: 0 | AX65: 0 | AY65: 0 | AZ65: 0 | BA65: 0 | BB65: 2 | BC65: 0 | BD65: 0 | BE65: 1 | BG65: 0 | BH65: 1 | BI65: 0 | BJ65: 1 | BK65: 0 | BL65: 1 | BM65: 0 | BN65: 8 | BO65: 0 | BP65: 8 | BQ65: 0 | BR65: 0 | BS65: 1 | BT65: 0 | BU65: 0 | BV65: 1 | BW65: 0 | BX65: 2 | BY65: 0 | BZ65: 0 | CA65: 1 | CB65: 0 | CC65: 0 | CD65: 0 | CE65: 0 | CF65: 1 | CG65: 0 | CH65: 0 | CI65: 0 | CJ65: 0 | CK65: 4 | CL65: 0 | CM65: 0 | CN65: 0 | CO65: 2 | CP65: n | CQ65: 7 | CR65: 0 | CS65: 8
D66: 61 | E66: 8 | F66: 2 | G66: 0 | H66: 2 | I66: 0 | J66: 4 | K66: LW | L66: n | M66: 858 | N66: LW.0858kW.20204 | O66: 61 | P66: 3 | Q66: 5689 | R66: DN100 | T66: 2 | U66: 4 | V66: 0 | W66: 0 | X66: 1 | Y66: 0 | Z66: 0 | AA66: 2 | AB66: 0 | AC66: 0 | AD66: 0 | AE66: 0 | AF66: 1 | AG66: 0 | AH66: 0 | AI66: 4 | AJ66: 4 | AK66: 0 | AL66: 0 | AM66: 0 | AN66: 0 | AO66: 0 | AP66: 0 | AQ66: 0 | AR66: 1 | AS66: 0 | AT66: 1 | AU66: 0 | AV66: 0 | AW66: 0 | AX66: 0 | AY66: 0 | AZ66: 0 | BA66: 0 | BB66: 2 | BC66: 0 | BD66: 0 | BE66: 1 | BG66: 0 | BH66: 1 | BI66: 0 | BJ66: 1 | BK66: 0 | BL66: 1 | BM66: 0 | BN66: 8 | BO66: 0 | BP66: 8 | BQ66: 0 | BR66: 0 | BS66: 1 | BT66: 0 | BU66: 0 | BV66: 1 | BW66: 0 | BX66: 2 | BY66: 0 | BZ66: 0 | CA66: 1 | CB66: 0 | CC66: 0 | CD66: 0 | CE66: 0 | CF66: 1 | CG66: 0 | CH66: 0 | CI66: 0 | CJ66: 0 | CK66: 4 | CL66: 0 | CM66: 0 | CN66: 0 | CO66: 2 | CP66: n | CQ66: 7 | CR66: 0 | CS66: 8
D67: 62 | E67: 8 | F67: 0 | G67: 3 | H67: 1 | I67: 0 | J67: 4 | K67: LW | L67: n | M67: 877 | N67: LW.0877kW.03104 | O67: 62 | P67: 3 | Q67: 5689 | R67: DN100 | T67: 1 | U67: 4 | V67: 0 | W67: 0 | X67: 1 | Y67: 0 | Z67: 0 | AA67: 2 | AB67: 0 | AC67: 0 | AD67: 0 | AE67: 0 | AF67: 1 | AG67: 0 | AH67: 0 | AI67: 4 | AJ67: 4 | AK67: 0 | AL67: 0 | AM67: 0 | AN67: 0 | AO67: 0 | AP67: 0 | AQ67: 0 | AR67: 1 | AS67: 0 | AT67: 1 | AU67: 0 | AV67: 0 | AW67: 0 | AX67: 0 | AY67: 0 | AZ67: 0 | BA67: 0 | BB67: 2 | BC67: 0 | BD67: 0 | BE67: 1 | BG67: 0 | BH67: 1 | BI67: 0 | BJ67: 1 | BK67: 0 | BL67: 1 | BM67: 0 | BN67: 8 | BO67: 0 | BP67: 8 | BQ67: 0 | BR67: 0 | BS67: 1 | BT67: 0 | BU67: 0 | BV67: 1 | BW67: 0 | BX67: 2 | BY67: 0 | BZ67: 0 | CA67: 1 | CB67: 0 | CC67: 0 | CD67: 0 | CE67: 0 | CF67: 1 | CG67: 0 | CH67: 0 | CI67: 0 | CJ67: 0 | CK67: 4 | CL67: 0 | CM67: 0 | CN67: 0 | CO67: 3 | CP67: n | CQ67: 7 | CR67: 0 | CS67: 8
D68: 63 | E68: 8 | F68: 1 | G68: 2 | H68: 1 | I68: 0 | J68: 4 | K68: LW | L68: n | M68: 856 | N68: LW.0856kW.12104 | O68: 63 | P68: 4 | Q68: 5689 | R68: DN100 | T68: 1 | U68: 4 | V68: 0 | W68: 0 | X68: 1 | Y68: 0 | Z68: 0 | AA68: 2 | AB68: 0 | AC68: 0 | AD68: 0 | AE68: 0 | AF68: 1 | AG68: 0 | AH68: 0 | AI68: 4 | AJ68: 4 | AK68: 0 | AL68: 0 | AM68: 0 | AN68: 0 | AO68: 0 | AP68: 0 | AQ68: 0 | AR68: 1 | AS68: 0 | AT68: 1 | AU68: 0 | AV68: 0 | AW68: 0 | AX68: 0 | AY68: 0 | AZ68: 0 | BA68: 0 | BB68: 2 | BC68: 0 | BD68: 0 | BE68: 1 | BG68: 0 | BH68: 1 | BI68: 0 | BJ68: 1 | BK68: 0 | BL68: 1 | BM68: 0 | BN68: 8 | BO68: 0 | BP68: 8 | BQ68: 0 | BR68: 0 | BS68: 1 | BT68: 0 | BU68: 0 | BV68: 1 | BW68: 0 | BX68: 2 | BY68: 0 | BZ68: 0 | CA68: 1 | CB68: 0 | CC68: 0 | CD68: 0 | CE68: 0 | CF68: 1 | CG68: 0 | CH68: 0 | CI68: 0 | CJ68: 0 | CK68: 4 | CL68: 0 | CM68: 0 | CN68: 0 | CO68: 3 | CP68: n | CQ68: 7 | CR68: 0 | CS68: 8
D69: 64 | E69: 8 | F69: 2 | G69: 1 | H69: 1 | I69: 0 | J69: 4 | K69: LW | L69: n | M69: 836 | N69: LW.0836kW.21104 | O69: 64 | P69: 4 | Q69: 5689 | R69: DN100 | T69: 1 | U69: 4 | V69: 0 | W69: 0 | X69: 1 | Y69: 0 | Z69: 0 | AA69: 2 | AB69: 0 | AC69: 0 | AD69: 0 | AE69: 0 | AF69: 1 | AG69: 0 | AH69: 0 | AI69: 4 | AJ69: 4 | AK69: 0 | AL69: 0 | AM69: 0 | AN69: 0 | AO69: 0 | AP69: 0 | AQ69: 0 | AR69: 1 | AS69: 0 | AT69: 1 | AU69: 0 | AV69: 0 | AW69: 0 | AX69: 0 | AY69: 0 | AZ69: 0 | BA69: 0 | BB69: 2 | BC69: 0 | BD69: 0 | BE69: 1 | BG69: 0 | BH69: 1 | BI69: 0 | BJ69: 1 | BK69: 0 | BL69: 1 | BM69: 0 | BN69: 8 | BO69: 0 | BP69: 8 | BQ69: 0 | BR69: 0 | BS69: 1 | BT69: 0 | BU69: 0 | BV69: 1 | BW69: 0 | BX69: 2 | BY69: 0 | BZ69: 0 | CA69: 1 | CB69: 0 | CC69: 0 | CD69: 0 | CE69: 0 | CF69: 1 | CG69: 0 | CH69: 0 | CI69: 0 | CJ69: 0 | CK69: 4 | CL69: 0 | CM69: 0 | CN69: 0 | CO69: 3 | CP69: n | CQ69: 7 | CR69: 0 | CS69: 8
D70: 65 | E70: 8 | F70: 3 | G70: 0 | H70: 1 | I70: 0 | J70: 4 | K70: LW | L70: n | M70: 815 | N70: LW.0815kW.30104 | O70: 65 | P70: 3 | Q70: 5689 | R70: DN100 | T70: 1 | U70: 4 | V70: 0 | W70: 0 | X70: 1 | Y70: 0 | Z70: 0 | AA70: 2 | AB70: 0 | AC70: 0 | AD70: 0 | AE70: 0 | AF70: 1 | AG70: 0 | AH70: 0 | AI70: 4 | AJ70: 4 | AK70: 0 | AL70: 0 | AM70: 0 | AN70: 0 | AO70: 0 | AP70: 0 | AQ70: 0 | AR70: 1 | AS70: 0 | AT70: 1 | AU70: 0 | AV70: 0 | AW70: 0 | AX70: 0 | AY70: 0 | AZ70: 0 | BA70: 0 | BB70: 2 | BC70: 0 | BD70: 0 | BE70: 1 | BG70: 0 | BH70: 1 | BI70: 0 | BJ70: 1 | BK70: 0 | BL70: 1 | BM70: 0 | BN70: 8 | BO70: 0 | BP70: 8 | BQ70: 0 | BR70: 0 | BS70: 1 | BT70: 0 | BU70: 0 | BV70: 1 | BW70: 0 | BX70: 2 | BY70: 0 | BZ70: 0 | CA70: 1 | CB70: 0 | CC70: 0 | CD70: 0 | CE70: 0 | CF70: 1 | CG70: 0 | CH70: 0 | CI70: 0 | CJ70: 0 | CK70: 4 | CL70: 0 | CM70: 0 | CN70: 0 | CO70: 3 | CP70: n | CQ70: =E70-1 -> 7 | CR70: 0 | CS70: 8
D71: 66 | E71: 8 | F71: 0 | G71: 4 | H71: 0 | I71: 0 | J71: 4 | K71: LW | L71: n | M71: =ROUND(SUMPRODUCT($F$3:$J$3,F71:J71),0) -> 854 | N71: =IF(M71>=1000,CONCATENATE(K71,".",M71,"kW.",F71,G71,H71,I71,J71),CONCATENATE(K71,".0",M71,"kW.",F71,G71,H71,I71,J71)) -> LW.0854kW.04004 | O71: 66 | P71: 2 | Q71: 5689 | R71: DN100 | T71: =I71+H71 -> 0 | U71: =J71 -> 4 | V71: 0 | W71: 0 | X71: 1 | Y71: 0 | Z71: 0 | AA71: 2 | AB71: 0 | AC71: 0 | AD71: 0 | AE71: 0 | AF71: 1 | AG71: 0 | AH71: 0 | AI71: 4 | AJ71: 4 | AK71: 0 | AL71: 0 | AM71: 0 | AN71: 0 | AO71: 0 | AP71: 0 | AQ71: 0 | AR71: 1 | AS71: 0 | AT71: 1 | AU71: 0 | AV71: 0 | AW71: 0 | AX71: 0 | AY71: 0 | AZ71: 0 | BA71: 0 | BB71: 2 | BC71: 0 | BD71: 0 | BE71: 1 | BG71: 0 | BH71: 1 | BI71: 0 | BJ71: 1 | BK71: 0 | BL71: 1 | BM71: 0 | BN71: 8 | BO71: 0 | BP71: 8 | BQ71: =+BO71 -> 0 | BR71: 0 | BS71: 1 | BT71: 0 | BU71: 0 | BV71: 1 | BW71: 0 | BX71: 2 | BY71: 0 | BZ71: 0 | CA71: 1 | CB71: 0 | CC71: 0 | CD71: 0 | CE71: 0 | CF71: 1 | CG71: 0 | CH71: 0 | CI71: 0 | CJ71: 0 | CK71: 4 | CL71: 0 | CM71: 0 | CN71: 0 | CO71: =F71+G71 -> 4 | CP71: n | CQ71: 7 | CR71: 0 | CS71: =IF(K71<>"RG",E71,IF(OR(E71=4,E71=6,E71=8),0,1)) -> 8
D72: 67 | E72: 8 | F72: 1 | G72: 3 | H72: 0 | I72: 0 | J72: 4 | K72: LW | L72: n | M72: 834 | N72: LW.0834kW.13004 | O72: 67 | P72: 3 | Q72: 5689 | R72: DN100 | T72: 0 | U72: 4 | V72: 0 | W72: 0 | X72: 1 | Y72: 0 | Z72: 0 | AA72: 2 | AB72: 0 | AC72: 0 | AD72: 0 | AE72: 0 | AF72: 1 | AG72: 0 | AH72: 0 | AI72: 4 | AJ72: 4 | AK72: 0 | AL72: 0 | AM72: 0 | AN72: 0 | AO72: 0 | AP72: 0 | AQ72: 0 | AR72: 1 | AS72: 0 | AT72: 1 | AU72: 0 | AV72: 0 | AW72: 0 | AX72: 0 | AY72: 0 | AZ72: 0 | BA72: 0 | BB72: 2 | BC72: 0 | BD72: 0 | BE72: 1 | BG72: 0 | BH72: 1 | BI72: 0 | BJ72: 1 | BK72: 0 | BL72: 1 | BM72: 0 | BN72: 8 | BO72: 0 | BP72: 8 | BQ72: 0 | BR72: 0 | BS72: 1 | BT72: 0 | BU72: 0 | BV72: 1 | BW72: 0 | BX72: 2 | BY72: 0 | BZ72: 0 | CA72: 1 | CB72: 0 | CC72: 0 | CD72: 0 | CE72: 0 | CF72: 1 | CG72: 0 | CH72: 0 | CI72: 0 | CJ72: 0 | CK72: 4 | CL72: 0 | CM72: 0 | CN72: 0 | CO72: 4 | CP72: n | CQ72: 7 | CR72: 0 | CS72: 8
D73: 68 | E73: 8 | F73: 2 | G73: 2 | H73: 0 | I73: 0 | J73: 4 | K73: LW | L73: n | M73: 813 | N73: LW.0813kW.22004 | O73: 68 | P73: 3 | Q73: 5689 | R73: DN100 | T73: 0 | U73: 4 | V73: 0 | W73: 0 | X73: 1 | Y73: 0 | Z73: 0 | AA73: 2 | AB73: 0 | AC73: 0 | AD73: 0 | AE73: 0 | AF73: 1 | AG73: 0 | AH73: 0 | AI73: 4 | AJ73: 4 | AK73: 0 | AL73: 0 | AM73: 0 | AN73: 0 | AO73: 0 | AP73: 0 | AQ73: 0 | AR73: 1 | AS73: 0 | AT73: 1 | AU73: 0 | AV73: 0 | AW73: 0 | AX73: 0 | AY73: 0 | AZ73: 0 | BA73: 0 | BB73: 2 | BC73: 0 | BD73: 0 | BE73: 1 | BG73: 0 | BH73: 1 | BI73: 0 | BJ73: 1 | BK73: 0 | BL73: 1 | BM73: 0 | BN73: 8 | BO73: 0 | BP73: 8 | BQ73: 0 | BR73: 0 | BS73: 1 | BT73: 0 | BU73: 0 | BV73: 1 | BW73: 0 | BX73: 2 | BY73: 0 | BZ73: 0 | CA73: 1 | CB73: 0 | CC73: 0 | CD73: 0 | CE73: 0 | CF73: 1 | CG73: 0 | CH73: 0 | CI73: 0 | CJ73: 0 | CK73: 4 | CL73: 0 | CM73: 0 | CN73: 0 | CO73: 4 | CP73: n | CQ73: 7 | CR73: 0 | CS73: 8
D74: 69 | E74: 8 | F74: 3 | G74: 1 | H74: 0 | I74: 0 | J74: 4 | K74: LW | L74: n | M74: 792 | N74: LW.0792kW.31004 | O74: 69 | P74: 3 | Q74: 5689 | R74: DN100 | T74: 0 | U74: 4 | V74: 0 | W74: 0 | X74: 1 | Y74: 0 | Z74: 0 | AA74: 2 | AB74: 0 | AC74: 0 | AD74: 0 | AE74: 0 | AF74: 1 | AG74: 0 | AH74: 0 | AI74: 4 | AJ74: 4 | AK74: 0 | AL74: 0 | AM74: 0 | AN74: 0 | AO74: 0 | AP74: 0 | AQ74: 0 | AR74: 1 | AS74: 0 | AT74: 1 | AU74: 0 | AV74: 0 | AW74: 0 | AX74: 0 | AY74: 0 | AZ74: 0 | BA74: 0 | BB74: 2 | BC74: 0 | BD74: 0 | BE74: 1 | BG74: 0 | BH74: 1 | BI74: 0 | BJ74: 1 | BK74: 0 | BL74: 1 | BM74: 0 | BN74: 8 | BO74: 0 | BP74: 8 | BQ74: 0 | BR74: 0 | BS74: 1 | BT74: 0 | BU74: 0 | BV74: 1 | BW74: 0 | BX74: 2 | BY74: 0 | BZ74: 0 | CA74: 1 | CB74: 0 | CC74: 0 | CD74: 0 | CE74: 0 | CF74: 1 | CG74: 0 | CH74: 0 | CI74: 0 | CJ74: 0 | CK74: 4 | CL74: 0 | CM74: 0 | CN74: 0 | CO74: 4 | CP74: n | CQ74: 7 | CR74: 0 | CS74: 8
D75: 70 | E75: 8 | F75: 4 | G75: 0 | H75: 0 | I75: 0 | J75: 4 | K75: LW | L75: n | M75: 772 | N75: LW.0772kW.40004 | O75: 70 | P75: 2 | Q75: 5689 | R75: DN100 | T75: 0 | U75: 4 | V75: 0 | W75: 0 | X75: 1 | Y75: 0 | Z75: 0 | AA75: 2 | AB75: 0 | AC75: 0 | AD75: 0 | AE75: 0 | AF75: 1 | AG75: 0 | AH75: 0 | AI75: 4 | AJ75: 4 | AK75: 0 | AL75: 0 | AM75: 0 | AN75: 0 | AO75: 0 | AP75: 0 | AQ75: 0 | AR75: 1 | AS75: 0 | AT75: 1 | AU75: 0 | AV75: 0 | AW75: 0 | AX75: 0 | AY75: 0 | AZ75: 0 | BA75: 0 | BB75: 2 | BC75: 0 | BD75: 0 | BE75: 1 | BG75: 0 | BH75: 1 | BI75: 0 | BJ75: 1 | BK75: 0 | BL75: 1 | BM75: 0 | BN75: 8 | BO75: 0 | BP75: 8 | BQ75: 0 | BR75: 0 | BS75: 1 | BT75: 0 | BU75: 0 | BV75: 1 | BW75: 0 | BX75: 2 | BY75: 0 | BZ75: 0 | CA75: 1 | CB75: 0 | CC75: 0 | CD75: 0 | CE75: 0 | CF75: 1 | CG75: 0 | CH75: 0 | CI75: 0 | CJ75: 0 | CK75: 4 | CL75: 0 | CM75: 0 | CN75: 0 | CO75: 4 | CP75: n | CQ75: 7 | CR75: 0 | CS75: 8
D76: 71 | E76: 8 | F76: 0 | G76: 0 | H76: 0 | I76: 5 | J76: 3 | K76: LW | L76: n | M76: 991 | N76: LW.0991kW.00053 | O76: 71 | P76: 2 | Q76: 5689 | R76: DN100 | T76: 5 | U76: 3 | V76: 0 | W76: 0 | X76: 1 | Y76: 0 | Z76: 0 | AA76: 2 | AB76: 0 | AC76: 0 | AD76: 0 | AE76: 0 | AF76: 1 | AG76: 0 | AH76: 0 | AI76: 5 | AJ76: 3 | AK76: 0 | AL76: 0 | AM76: 0 | AN76: 0 | AO76: 0 | AP76: 0 | AQ76: 0 | AR76: 1 | AS76: 0 | AT76: 1 | AU76: 0 | AV76: 0 | AW76: 0 | AX76: 0 | AY76: 0 | AZ76: 0 | BA76: 1 | BB76: 0 | BC76: 1 | BD76: 1 | BE76: 0 | BG76: 0 | BH76: 1 | BI76: 0 | BJ76: 1 | BK76: 0 | BL76: 1 | BM76: 0 | BN76: 8 | BO76: 0 | BP76: 8 | BQ76: 0 | BR76: 0 | BS76: 1 | BT76: 0 | BU76: 0 | BV76: 1 | BW76: 0 | BX76: 2 | BY76: 0 | BZ76: 0 | CA76: 1 | CB76: 0 | CC76: 0 | CD76: 0 | CE76: 0 | CF76: 1 | CG76: 0 | CH76: 0 | CI76: 0 | CJ76: 0 | CK76: 5 | CL76: 0 | CM76: 0 | CN76: 0 | CO76: 0 | CP76: n | CQ76: 7 | CR76: 0 | CS76: 8
D77: 72 | E77: 8 | F77: 0 | G77: 0 | H77: 1 | I77: 4 | J77: 3 | K77: LW | L77: n | M77: 969 | N77: LW.0969kW.00143 | O77: 72 | P77: 3 | Q77: 5689 | R77: DN100 | T77: 5 | U77: 3 | V77: 0 | W77: 0 | X77: 1 | Y77: 0 | Z77: 0 | AA77: 2 | AB77: 0 | AC77: 0 | AD77: 0 | AE77: 0 | AF77: 1 | AG77: 0 | AH77: 0 | AI77: 5 | AJ77: 3 | AK77: 0 | AL77: 0 | AM77: 0 | AN77: 0 | AO77: 0 | AP77: 0 | AQ77: 0 | AR77: 1 | AS77: 0 | AT77: 1 | AU77: 0 | AV77: 0 | AW77: 0 | AX77: 0 | AY77: 0 | AZ77: 0 | BA77: 1 | BB77: 0 | BC77: 1 | BD77: 1 | BE77: 0 | BG77: 0 | BH77: 1 | BI77: 0 | BJ77: 1 | BK77: 0 | BL77: 1 | BM77: 0 | BN77: 8 | BO77: 0 | BP77: 8 | BQ77: 0 | BR77: 0 | BS77: 1 | BT77: 0 | BU77: 0 | BV77: 1 | BW77: 0 | BX77: 2 | BY77: 0 | BZ77: 0 | CA77: 1 | CB77: 0 | CC77: 0 | CD77: 0 | CE77: 0 | CF77: 1 | CG77: 0 | CH77: 0 | CI77: 0 | CJ77: 0 | CK77: 5 | CL77: 0 | CM77: 0 | CN77: 0 | CO77: 0 | CP77: n | CQ77: 7 | CR77: 0 | CS77: 8
D78: 73 | E78: 8 | F78: 0 | G78: 1 | H78: 0 | I78: 4 | J78: 3 | K78: LW | L78: n | M78: 946 | N78: LW.0946kW.01043 | O78: 73 | P78: 3 | Q78: 5689 | R78: DN100 | T78: 4 | U78: 3 | V78: 0 | W78: 0 | X78: 1 | Y78: 0 | Z78: 0 | AA78: 2 | AB78: 0 | AC78: 0 | AD78: 0 | AE78: 0 | AF78: 1 | AG78: 0 | AH78: 0 | AI78: 5 | AJ78: 3 | AK78: 0 | AL78: 0 | AM78: 0 | AN78: 0 | AO78: 0 | AP78: 0 | AQ78: 0 | AR78: 1 | AS78: 0 | AT78: 1 | AU78: 0 | AV78: 0 | AW78: 0 | AX78: 0 | AY78: 0 | AZ78: 0 | BA78: 1 | BB78: 0 | BC78: 1 | BD78: 1 | BE78: 0 | BG78: 0 | BH78: 1 | BI78: 0 | BJ78: 1 | BK78: 0 | BL78: 1 | BM78: 0 | BN78: 8 | BO78: 0 | BP78: 8 | BQ78: 0 | BR78: 0 | BS78: 1 | BT78: 0 | BU78: 0 | BV78: 1 | BW78: 0 | BX78: 2 | BY78: 0 | BZ78: 0 | CA78: 1 | CB78: 0 | CC78: 0 | CD78: 0 | CE78: 0 | CF78: 1 | CG78: 0 | CH78: 0 | CI78: 0 | CJ78: 0 | CK78: 5 | CL78: 0 | CM78: 0 | CN78: 0 | CO78: 1 | CP78: n | CQ78: 7 | CR78: 0 | CS78: 8
D79: 74 | E79: 8 | F79: 1 | G79: 0 | H79: 0 | I79: 4 | J79: 3 | K79: LW | L79: n | M79: 925 | N79: LW.0925kW.10043 | O79: 74 | P79: 3 | Q79: 5689 | R79: DN100 | T79: 4 | U79: 3 | V79: 0 | W79: 0 | X79: 1 | Y79: 0 | Z79: 0 | AA79: 2 | AB79: 0 | AC79: 0 | AD79: 0 | AE79: 0 | AF79: 1 | AG79: 0 | AH79: 0 | AI79: 5 | AJ79: 3 | AK79: 0 | AL79: 0 | AM79: 0 | AN79: 0 | AO79: 0 | AP79: 0 | AQ79: 0 | AR79: 1 | AS79: 0 | AT79: 1 | AU79: 0 | AV79: 0 | AW79: 0 | AX79: 0 | AY79: 0 | AZ79: 0 | BA79: 1 | BB79: 0 | BC79: 1 | BD79: 1 | BE79: 0 | BG79: 0 | BH79: 1 | BI79: 0 | BJ79: 1 | BK79: 0 | BL79: 1 | BM79: 0 | BN79: 8 | BO79: 0 | BP79: 8 | BQ79: 0 | BR79: 0 | BS79: 1 | BT79: 0 | BU79: 0 | BV79: 1 | BW79: 0 | BX79: 2 | BY79: 0 | BZ79: 0 | CA79: 1 | CB79: 0 | CC79: 0 | CD79: 0 | CE79: 0 | CF79: 1 | CG79: 0 | CH79: 0 | CI79: 0 | CJ79: 0 | CK79: 5 | CL79: 0 | CM79: 0 | CN79: 0 | CO79: 1 | CP79: n | CQ79: 7 | CR79: 0 | CS79: 8
D80: 75 | E80: 8 | F80: 0 | G80: 0 | H80: 2 | I80: 3 | J80: 3 | K80: LW | L80: n | M80: 946 | N80: LW.0946kW.00233 | O80: 75 | P80: 3 | Q80: 5689 | R80: DN100 | T80: 5 | U80: 3 | V80: 0 | W80: 0 | X80: 1 | Y80: 0 | Z80: 0 | AA80: 2 | AB80: 0 | AC80: 0 | AD80: 0 | AE80: 0 | AF80: 1 | AG80: 0 | AH80: 0 | AI80: 5 | AJ80: 3 | AK80: 0 | AL80: 0 | AM80: 0 | AN80: 0 | AO80: 0 | AP80: 0 | AQ80: 0 | AR80: 1 | AS80: 0 | AT80: 1 | AU80: 0 | AV80: 0 | AW80: 0 | AX80: 0 | AY80: 0 | AZ80: 0 | BA80: 1 | BB80: 0 | BC80: 1 | BD80: 1 | BE80: 0 | BG80: 0 | BH80: 1 | BI80: 0 | BJ80: 1 | BK80: 0 | BL80: 1 | BM80: 0 | BN80: 8 | BO80: 0 | BP80: 8 | BQ80: 0 | BR80: 0 | BS80: 1 | BT80: 0 | BU80: 0 | BV80: 1 | BW80: 0 | BX80: 2 | BY80: 0 | BZ80: 0 | CA80: 1 | CB80: 0 | CC80: 0 | CD80: 0 | CE80: 0 | CF80: 1 | CG80: 0 | CH80: 0 | CI80: 0 | CJ80: 0 | CK80: 5 | CL80: 0 | CM80: 0 | CN80: 0 | CO80: 0 | CP80: n | CQ80: 7 | CR80: 0 | CS80: 8
D81: 76 | E81: 8 | F81: 0 | G81: 1 | H81: 1 | I81: 3 | J81: 3 | K81: LW | L81: n | M81: 923 | N81: LW.0923kW.01133 | O81: 76 | P81: 4 | Q81: 5689 | R81: DN100 | T81: 4 | U81: 3 | V81: 0 | W81: 0 | X81: 1 | Y81: 0 | Z81: 0 | AA81: 2 | AB81: 0 | AC81: 0 | AD81: 0 | AE81: 0 | AF81: 1 | AG81: 0 | AH81: 0 | AI81: 5 | AJ81: 3 | AK81: 0 | AL81: 0 | AM81: 0 | AN81: 0 | AO81: 0 | AP81: 0 | AQ81: 0 | AR81: 1 | AS81: 0 | AT81: 1 | AU81: 0 | AV81: 0 | AW81: 0 | AX81: 0 | AY81: 0 | AZ81: 0 | BA81: 1 | BB81: 0 | BC81: 1 | BD81: 1 | BE81: 0 | BG81: 0 | BH81: 1 | BI81: 0 | BJ81: 1 | BK81: 0 | BL81: 1 | BM81: 0 | BN81: 8 | BO81: 0 | BP81: 8 | BQ81: 0 | BR81: 0 | BS81: 1 | BT81: 0 | BU81: 0 | BV81: 1 | BW81: 0 | BX81: 2 | BY81: 0 | BZ81: 0 | CA81: 1 | CB81: 0 | CC81: 0 | CD81: 0 | CE81: 0 | CF81: 1 | CG81: 0 | CH81: 0 | CI81: 0 | CJ81: 0 | CK81: 5 | CL81: 0 | CM81: 0 | CN81: 0 | CO81: 1 | CP81: n | CQ81: 7 | CR81: 0 | CS81: 8
D82: 77 | E82: 8 | F82: 1 | G82: 0 | H82: 1 | I82: 3 | J82: 3 | K82: LW | L82: n | M82: 902 | N82: LW.0902kW.10133 | O82: 77 | P82: 4 | Q82: 5689 | R82: DN100 | T82: 4 | U82: 3 | V82: 0 | W82: 0 | X82: 1 | Y82: 0 | Z82: 0 | AA82: 2 | AB82: 0 | AC82: 0 | AD82: 0 | AE82: 0 | AF82: 1 | AG82: 0 | AH82: 0 | AI82: 5 | AJ82: 3 | AK82: 0 | AL82: 0 | AM82: 0 | AN82: 0 | AO82: 0 | AP82: 0 | AQ82: 0 | AR82: 1 | AS82: 0 | AT82: 1 | AU82: 0 | AV82: 0 | AW82: 0 | AX82: 0 | AY82: 0 | AZ82: 0 | BA82: 1 | BB82: 0 | BC82: 1 | BD82: 1 | BE82: 0 | BG82: 0 | BH82: 1 | BI82: 0 | BJ82: 1 | BK82: 0 | BL82: 1 | BM82: 0 | BN82: 8 | BO82: 0 | BP82: 8 | BQ82: 0 | BR82: 0 | BS82: 1 | BT82: 0 | BU82: 0 | BV82: 1 | BW82: 0 | BX82: 2 | BY82: 0 | BZ82: 0 | CA82: 1 | CB82: 0 | CC82: 0 | CD82: 0 | CE82: 0 | CF82: 1 | CG82: 0 | CH82: 0 | CI82: 0 | CJ82: 0 | CK82: 5 | CL82: 0 | CM82: 0 | CN82: 0 | CO82: 1 | CP82: n | CQ82: 7 | CR82: 0 | CS82: 8
D83: 78 | E83: 8 | F83: 0 | G83: 2 | H83: 0 | I83: 3 | J83: 3 | K83: LW | L83: n | M83: 900 | N83: LW.0900kW.02033 | O83: 78 | P83: 3 | Q83: 5689 | R83: DN100 | T83: 3 | U83: 3 | V83: 0 | W83: 0 | X83: 1 | Y83: 0 | Z83: 0 | AA83: 2 | AB83: 0 | AC83: 0 | AD83: 0 | AE83: 0 | AF83: 1 | AG83: 0 | AH83: 0 | AI83: 5 | AJ83: 3 | AK83: 0 | AL83: 0 | AM83: 0 | AN83: 0 | AO83: 0 | AP83: 0 | AQ83: 0 | AR83: 1 | AS83: 0 | AT83: 1 | AU83: 0 | AV83: 0 | AW83: 0 | AX83: 0 | AY83: 0 | AZ83: 0 | BA83: 1 | BB83: 0 | BC83: 1 | BD83: 1 | BE83: 0 | BG83: 0 | BH83: 1 | BI83: 0 | BJ83: 1 | BK83: 0 | BL83: 1 | BM83: 0 | BN83: 8 | BO83: 0 | BP83: 8 | BQ83: 0 | BR83: 0 | BS83: 1 | BT83: 0 | BU83: 0 | BV83: 1 | BW83: 0 | BX83: 2 | BY83: 0 | BZ83: 0 | CA83: 1 | CB83: 0 | CC83: 0 | CD83: 0 | CE83: 0 | CF83: 1 | CG83: 0 | CH83: 0 | CI83: 0 | CJ83: 0 | CK83: 5 | CL83: 0 | CM83: 0 | CN83: 0 | CO83: 2 | CP83: n | CQ83: 7 | CR83: 0 | CS83: 8
D84: 79 | E84: 8 | F84: 1 | G84: 1 | H84: 0 | I84: 3 | J84: 3 | K84: LW | L84: n | M84: 880 | N84: LW.0880kW.11033 | O84: 79 | P84: 4 | Q84: 5689 | R84: DN100 | T84: 3 | U84: 3 | V84: 0 | W84: 0 | X84: 1 | Y84: 0 | Z84: 0 | AA84: 2 | AB84: 0 | AC84: 0 | AD84: 0 | AE84: 0 | AF84: 1 | AG84: 0 | AH84: 0 | AI84: 5 | AJ84: 3 | AK84: 0 | AL84: 0 | AM84: 0 | AN84: 0 | AO84: 0 | AP84: 0 | AQ84: 0 | AR84: 1 | AS84: 0 | AT84: 1 | AU84: 0 | AV84: 0 | AW84: 0 | AX84: 0 | AY84: 0 | AZ84: 0 | BA84: 1 | BB84: 0 | BC84: 1 | BD84: 1 | BE84: 0 | BG84: 0 | BH84: 1 | BI84: 0 | BJ84: 1 | BK84: 0 | BL84: 1 | BM84: 0 | BN84: 8 | BO84: 0 | BP84: 8 | BQ84: 0 | BR84: 0 | BS84: 1 | BT84: 0 | BU84: 0 | BV84: 1 | BW84: 0 | BX84: 2 | BY84: 0 | BZ84: 0 | CA84: 1 | CB84: 0 | CC84: 0 | CD84: 0 | CE84: 0 | CF84: 1 | CG84: 0 | CH84: 0 | CI84: 0 | CJ84: 0 | CK84: 5 | CL84: 0 | CM84: 0 | CN84: 0 | CO84: 2 | CP84: n | CQ84: 7 | CR84: 0 | CS84: 8
D85: 80 | E85: 8 | F85: 2 | G85: 0 | H85: 0 | I85: 3 | J85: 3 | K85: LW | L85: n | M85: 859 | N85: LW.0859kW.20033 | O85: 80 | P85: 3 | Q85: 5689 | R85: DN100 | T85: 3 | U85: 3 | V85: 0 | W85: 0 | X85: 1 | Y85: 0 | Z85: 0 | AA85: 2 | AB85: 0 | AC85: 0 | AD85: 0 | AE85: 0 | AF85: 1 | AG85: 0 | AH85: 0 | AI85: 5 | AJ85: 3 | AK85: 0 | AL85: 0 | AM85: 0 | AN85: 0 | AO85: 0 | AP85: 0 | AQ85: 0 | AR85: 1 | AS85: 0 | AT85: 1 | AU85: 0 | AV85: 0 | AW85: 0 | AX85: 0 | AY85: 0 | AZ85: 0 | BA85: 1 | BB85: 0 | BC85: 1 | BD85: 1 | BE85: 0 | BG85: 0 | BH85: 1 | BI85: 0 | BJ85: 1 | BK85: 0 | BL85: 1 | BM85: 0 | BN85: 8 | BO85: 0 | BP85: 8 | BQ85: 0 | BR85: 0 | BS85: 1 | BT85: 0 | BU85: 0 | BV85: 1 | BW85: 0 | BX85: 2 | BY85: 0 | BZ85: 0 | CA85: 1 | CB85: 0 | CC85: 0 | CD85: 0 | CE85: 0 | CF85: 1 | CG85: 0 | CH85: 0 | CI85: 0 | CJ85: 0 | CK85: 5 | CL85: 0 | CM85: 0 | CN85: 0 | CO85: 2 | CP85: n | CQ85: 7 | CR85: 0 | CS85: 8
D86: 81 | E86: 8 | F86: 0 | G86: 0 | H86: 3 | I86: 2 | J86: 3 | K86: LW | L86: n | M86: 923 | N86: LW.0923kW.00323 | O86: 81 | P86: 3 | Q86: 5689 | R86: DN100 | T86: 5 | U86: 3 | V86: 0 | W86: 0 | X86: 1 | Y86: 0 | Z86: 0 | AA86: 2 | AB86: 0 | AC86: 0 | AD86: 0 | AE86: 0 | AF86: 1 | AG86: 0 | AH86: 0 | AI86: 5 | AJ86: 3 | AK86: 0 | AL86: 0 | AM86: 0 | AN86: 0 | AO86: 0 | AP86: 0 | AQ86: 0 | AR86: 1 | AS86: 0 | AT86: 1 | AU86: 0 | AV86: 0 | AW86: 0 | AX86: 0 | AY86: 0 | AZ86: 0 | BA86: 1 | BB86: 0 | BC86: 1 | BD86: 1 | BE86: 0 | BG86: 0 | BH86: 1 | BI86: 0 | BJ86: 1 | BK86: 0 | BL86: 1 | BM86: 0 | BN86: 8 | BO86: 0 | BP86: 8 | BQ86: 0 | BR86: 0 | BS86: 1 | BT86: 0 | BU86: 0 | BV86: 1 | BW86: 0 | BX86: 2 | BY86: 0 | BZ86: 0 | CA86: 1 | CB86: 0 | CC86: 0 | CD86: 0 | CE86: 0 | CF86: 1 | CG86: 0 | CH86: 0 | CI86: 0 | CJ86: 0 | CK86: 5 | CL86: 0 | CM86: 0 | CN86: 0 | CO86: 0 | CP86: n | CQ86: 7 | CR86: 0 | CS86: 8
D87: 82 | E87: 8 | F87: 0 | G87: 1 | H87: 2 | I87: 2 | J87: 3 | K87: LW | L87: n | M87: 900 | N87: LW.0900kW.01223 | O87: 82 | P87: 4 | Q87: 5689 | R87: DN100 | T87: 4 | U87: 3 | V87: 0 | W87: 0 | X87: 1 | Y87: 0 | Z87: 0 | AA87: 2 | AB87: 0 | AC87: 0 | AD87: 0 | AE87: 0 | AF87: 1 | AG87: 0 | AH87: 0 | AI87: 5 | AJ87: 3 | AK87: 0 | AL87: 0 | AM87: 0 | AN87: 0 | AO87: 0 | AP87: 0 | AQ87: 0 | AR87: 1 | AS87: 0 | AT87: 1 | AU87: 0 | AV87: 0 | AW87: 0 | AX87: 0 | AY87: 0 | AZ87: 0 | BA87: 1 | BB87: 0 | BC87: 1 | BD87: 1 | BE87: 0 | BG87: 0 | BH87: 1 | BI87: 0 | BJ87: 1 | BK87: 0 | BL87: 1 | BM87: 0 | BN87: 8 | BO87: 0 | BP87: 8 | BQ87: 0 | BR87: 0 | BS87: 1 | BT87: 0 | BU87: 0 | BV87: 1 | BW87: 0 | BX87: 2 | BY87: 0 | BZ87: 0 | CA87: 1 | CB87: 0 | CC87: 0 | CD87: 0 | CE87: 0 | CF87: 1 | CG87: 0 | CH87: 0 | CI87: 0 | CJ87: 0 | CK87: 5 | CL87: 0 | CM87: 0 | CN87: 0 | CO87: 1 | CP87: n | CQ87: 7 | CR87: 0 | CS87: 8
D88: 83 | E88: 8 | F88: 1 | G88: 0 | H88: 2 | I88: 2 | J88: 3 | K88: LW | L88: n | M88: 880 | N88: LW.0880kW.10223 | O88: 83 | P88: 4 | Q88: 5689 | R88: DN100 | T88: 4 | U88: 3 | V88: 0 | W88: 0 | X88: 1 | Y88: 0 | Z88: 0 | AA88: 2 | AB88: 0 | AC88: 0 | AD88: 0 | AE88: 0 | AF88: 1 | AG88: 0 | AH88: 0 | AI88: 5 | AJ88: 3 | AK88: 0 | AL88: 0 | AM88: 0 | AN88: 0 | AO88: 0 | AP88: 0 | AQ88: 0 | AR88: 1 | AS88: 0 | AT88: 1 | AU88: 0 | AV88: 0 | AW88: 0 | AX88: 0 | AY88: 0 | AZ88: 0 | BA88: 1 | BB88: 0 | BC88: 1 | BD88: 1 | BE88: 0 | BG88: 0 | BH88: 1 | BI88: 0 | BJ88: 1 | BK88: 0 | BL88: 1 | BM88: 0 | BN88: 8 | BO88: 0 | BP88: 8 | BQ88: 0 | BR88: 0 | BS88: 1 | BT88: 0 | BU88: 0 | BV88: 1 | BW88: 0 | BX88: 2 | BY88: 0 | BZ88: 0 | CA88: 1 | CB88: 0 | CC88: 0 | CD88: 0 | CE88: 0 | CF88: 1 | CG88: 0 | CH88: 0 | CI88: 0 | CJ88: 0 | CK88: 5 | CL88: 0 | CM88: 0 | CN88: 0 | CO88: 1 | CP88: n | CQ88: 7 | CR88: 0 | CS88: 8
D89: 84 | E89: 8 | F89: 0 | G89: 2 | H89: 1 | I89: 2 | J89: 3 | K89: LW | L89: n | M89: 878 | N89: LW.0878kW.02123 | O89: 84 | P89: 4 | Q89: 5689 | R89: DN100 | T89: 3 | U89: 3 | V89: 0 | W89: 0 | X89: 1 | Y89: 0 | Z89: 0 | AA89: 2 | AB89: 0 | AC89: 0 | AD89: 0 | AE89: 0 | AF89: 1 | AG89: 0 | AH89: 0 | AI89: 5 | AJ89: 3 | AK89: 0 | AL89: 0 | AM89: 0 | AN89: 0 | AO89: 0 | AP89: 0 | AQ89: 0 | AR89: 1 | AS89: 0 | AT89: 1 | AU89: 0 | AV89: 0 | AW89: 0 | AX89: 0 | AY89: 0 | AZ89: 0 | BA89: 1 | BB89: 0 | BC89: 1 | BD89: 1 | BE89: 0 | BG89: 0 | BH89: 1 | BI89: 0 | BJ89: 1 | BK89: 0 | BL89: 1 | BM89: 0 | BN89: 8 | BO89: 0 | BP89: 8 | BQ89: 0 | BR89: 0 | BS89: 1 | BT89: 0 | BU89: 0 | BV89: 1 | BW89: 0 | BX89: 2 | BY89: 0 | BZ89: 0 | CA89: 1 | CB89: 0 | CC89: 0 | CD89: 0 | CE89: 0 | CF89: 1 | CG89: 0 | CH89: 0 | CI89: 0 | CJ89: 0 | CK89: 5 | CL89: 0 | CM89: 0 | CN89: 0 | CO89: 2 | CP89: n | CQ89: 7 | CR89: 0 | CS89: 8
D90: 85 | E90: 8 | F90: 1 | G90: 1 | H90: 1 | I90: 2 | J90: 3 | K90: LW | L90: n | M90: 857 | N90: LW.0857kW.11123 | O90: 85 | P90: 5 | Q90: 5689 | R90: DN100 | T90: 3 | U90: 3 | V90: 0 | W90: 0 | X90: 1 | Y90: 0 | Z90: 0 | AA90: 2 | AB90: 0 | AC90: 0 | AD90: 0 | AE90: 0 | AF90: 1 | AG90: 0 | AH90: 0 | AI90: 5 | AJ90: 3 | AK90: 0 | AL90: 0 | AM90: 0 | AN90: 0 | AO90: 0 | AP90: 0 | AQ90: 0 | AR90: 1 | AS90: 0 | AT90: 1 | AU90: 0 | AV90: 0 | AW90: 0 | AX90: 0 | AY90: 0 | AZ90: 0 | BA90: 1 | BB90: 0 | BC90: 1 | BD90: 1 | BE90: 0 | BG90: 0 | BH90: 1 | BI90: 0 | BJ90: 1 | BK90: 0 | BL90: 1 | BM90: 0 | BN90: 8 | BO90: 0 | BP90: 8 | BQ90: 0 | BR90: 0 | BS90: 1 | BT90: 0 | BU90: 0 | BV90: 1 | BW90: 0 | BX90: 2 | BY90: 0 | BZ90: 0 | CA90: 1 | CB90: 0 | CC90: 0 | CD90: 0 | CE90: 0 | CF90: 1 | CG90: 0 | CH90: 0 | CI90: 0 | CJ90: 0 | CK90: 5 | CL90: 0 | CM90: 0 | CN90: 0 | CO90: 2 | CP90: n | CQ90: 7 | CR90: 0 | CS90: 8
D91: 86 | E91: 8 | F91: 2 | G91: 0 | H91: 1 | I91: 2 | J91: 3 | K91: LW | L91: n | M91: 836 | N91: LW.0836kW.20123 | O91: 86 | P91: 4 | Q91: 5689 | R91: DN100 | T91: 3 | U91: 3 | V91: 0 | W91: 0 | X91: 1 | Y91: 0 | Z91: 0 | AA91: 2 | AB91: 0 | AC91: 0 | AD91: 0 | AE91: 0 | AF91: 1 | AG91: 0 | AH91: 0 | AI91: 5 | AJ91: 3 | AK91: 0 | AL91: 0 | AM91: 0 | AN91: 0 | AO91: 0 | AP91: 0 | AQ91: 0 | AR91: 1 | AS91: 0 | AT91: 1 | AU91: 0 | AV91: 0 | AW91: 0 | AX91: 0 | AY91: 0 | AZ91: 0 | BA91: 1 | BB91: 0 | BC91: 1 | BD91: 1 | BE91: 0 | BG91: 0 | BH91: 1 | BI91: 0 | BJ91: 1 | BK91: 0 | BL91: 1 | BM91: 0 | BN91: 8 | BO91: 0 | BP91: 8 | BQ91: 0 | BR91: 0 | BS91: 1 | BT91: 0 | BU91: 0 | BV91: 1 | BW91: 0 | BX91: 2 | BY91: 0 | BZ91: 0 | CA91: 1 | CB91: 0 | CC91: 0 | CD91: 0 | CE91: 0 | CF91: 1 | CG91: 0 | CH91: 0 | CI91: 0 | CJ91: 0 | CK91: 5 | CL91: 0 | CM91: 0 | CN91: 0 | CO91: 2 | CP91: n | CQ91: 7 | CR91: 0 | CS91: 8
D92: 87 | E92: 8 | F92: 0 | G92: 3 | H92: 0 | I92: 2 | J92: 3 | K92: LW | L92: n | M92: 855 | N92: LW.0855kW.03023 | O92: 87 | P92: 3 | Q92: 5689 | R92: DN100 | T92: 2 | U92: 3 | V92: 0 | W92: 0 | X92: 1 | Y92: 0 | Z92: 0 | AA92: 2 | AB92: 0 | AC92: 0 | AD92: 0 | AE92: 0 | AF92: 1 | AG92: 0 | AH92: 0 | AI92: 5 | AJ92: 3 | AK92: 0 | AL92: 0 | AM92: 0 | AN92: 0 | AO92: 0 | AP92: 0 | AQ92: 0 | AR92: 1 | AS92: 0 | AT92: 1 | AU92: 0 | AV92: 0 | AW92: 0 | AX92: 0 | AY92: 0 | AZ92: 0 | BA92: 1 | BB92: 0 | BC92: 1 | BD92: 1 | BE92: 0 | BG92: 0 | BH92: 1 | BI92: 0 | BJ92: 1 | BK92: 0 | BL92: 1 | BM92: 0 | BN92: 8 | BO92: 0 | BP92: 8 | BQ92: 0 | BR92: 0 | BS92: 1 | BT92: 0 | BU92: 0 | BV92: 1 | BW92: 0 | BX92: 2 | BY92: 0 | BZ92: 0 | CA92: 1 | CB92: 0 | CC92: 0 | CD92: 0 | CE92: 0 | CF92: 1 | CG92: 0 | CH92: 0 | CI92: 0 | CJ92: 0 | CK92: 5 | CL92: 0 | CM92: 0 | CN92: 0 | CO92: 3 | CP92: n | CQ92: 7 | CR92: 0 | CS92: 8
D93: 88 | E93: 8 | F93: 1 | G93: 2 | H93: 0 | I93: 2 | J93: 3 | K93: LW | L93: n | M93: 834 | N93: LW.0834kW.12023 | O93: 88 | P93: 4 | Q93: 5689 | R93: DN100 | T93: 2 | U93: 3 | V93: 0 | W93: 0 | X93: 1 | Y93: 0 | Z93: 0 | AA93: 2 | AB93: 0 | AC93: 0 | AD93: 0 | AE93: 0 | AF93: 1 | AG93: 0 | AH93: 0 | AI93: 5 | AJ93: 3 | AK93: 0 | AL93: 0 | AM93: 0 | AN93: 0 | AO93: 0 | AP93: 0 | AQ93: 0 | AR93: 1 | AS93: 0 | AT93: 1 | AU93: 0 | AV93: 0 | AW93: 0 | AX93: 0 | AY93: 0 | AZ93: 0 | BA93: 1 | BB93: 0 | BC93: 1 | BD93: 1 | BE93: 0 | BG93: 0 | BH93: 1 | BI93: 0 | BJ93: 1 | BK93: 0 | BL93: 1 | BM93: 0 | BN93: 8 | BO93: 0 | BP93: 8 | BQ93: 0 | BR93: 0 | BS93: 1 | BT93: 0 | BU93: 0 | BV93: 1 | BW93: 0 | BX93: 2 | BY93: 0 | BZ93: 0 | CA93: 1 | CB93: 0 | CC93: 0 | CD93: 0 | CE93: 0 | CF93: 1 | CG93: 0 | CH93: 0 | CI93: 0 | CJ93: 0 | CK93: 5 | CL93: 0 | CM93: 0 | CN93: 0 | CO93: 3 | CP93: n | CQ93: 7 | CR93: 0 | CS93: 8
D94: 89 | E94: 8 | F94: 2 | G94: 1 | H94: 0 | I94: 2 | J94: 3 | K94: LW | L94: n | M94: 813 | N94: LW.0813kW.21023 | O94: 89 | P94: 4 | Q94: 5689 | R94: DN100 | T94: 2 | U94: 3 | V94: 0 | W94: 0 | X94: 1 | Y94: 0 | Z94: 0 | AA94: 2 | AB94: 0 | AC94: 0 | AD94: 0 | AE94: 0 | AF94: 1 | AG94: 0 | AH94: 0 | AI94: 5 | AJ94: 3 | AK94: 0 | AL94: 0 | AM94: 0 | AN94: 0 | AO94: 0 | AP94: 0 | AQ94: 0 | AR94: 1 | AS94: 0 | AT94: 1 | AU94: 0 | AV94: 0 | AW94: 0 | AX94: 0 | AY94: 0 | AZ94: 0 | BA94: 1 | BB94: 0 | BC94: 1 | BD94: 1 | BE94: 0 | BG94: 0 | BH94: 1 | BI94: 0 | BJ94: 1 | BK94: 0 | BL94: 1 | BM94: 0 | BN94: 8 | BO94: 0 | BP94: 8 | BQ94: 0 | BR94: 0 | BS94: 1 | BT94: 0 | BU94: 0 | BV94: 1 | BW94: 0 | BX94: 2 | BY94: 0 | BZ94: 0 | CA94: 1 | CB94: 0 | CC94: 0 | CD94: 0 | CE94: 0 | CF94: 1 | CG94: 0 | CH94: 0 | CI94: 0 | CJ94: 0 | CK94: 5 | CL94: 0 | CM94: 0 | CN94: 0 | CO94: 3 | CP94: n | CQ94: 7 | CR94: 0 | CS94: 8
D95: 90 | E95: 8 | F95: 3 | G95: 0 | H95: 0 | I95: 2 | J95: 3 | K95: LW | L95: n | M95: 793 | N95: LW.0793kW.30023 | O95: 90 | P95: 3 | Q95: 5689 | R95: DN100 | T95: 2 | U95: 3 | V95: 0 | W95: 0 | X95: 1 | Y95: 0 | Z95: 0 | AA95: 2 | AB95: 0 | AC95: 0 | AD95: 0 | AE95: 0 | AF95: 1 | AG95: 0 | AH95: 0 | AI95: 5 | AJ95: 3 | AK95: 0 | AL95: 0 | AM95: 0 | AN95: 0 | AO95: 0 | AP95: 0 | AQ95: 0 | AR95: 1 | AS95: 0 | AT95: 1 | AU95: 0 | AV95: 0 | AW95: 0 | AX95: 0 | AY95: 0 | AZ95: 0 | BA95: 1 | BB95: 0 | BC95: 1 | BD95: 1 | BE95: 0 | BG95: 0 | BH95: 1 | BI95: 0 | BJ95: 1 | BK95: 0 | BL95: 1 | BM95: 0 | BN95: 8 | BO95: 0 | BP95: 8 | BQ95: 0 | BR95: 0 | BS95: 1 | BT95: 0 | BU95: 0 | BV95: 1 | BW95: 0 | BX95: 2 | BY95: 0 | BZ95: 0 | CA95: 1 | CB95: 0 | CC95: 0 | CD95: 0 | CE95: 0 | CF95: 1 | CG95: 0 | CH95: 0 | CI95: 0 | CJ95: 0 | CK95: 5 | CL95: 0 | CM95: 0 | CN95: 0 | CO95: 3 | CP95: n | CQ95: 7 | CR95: 0 | CS95: 8
D96: 91 | E96: 8 | F96: 0 | G96: 0 | H96: 4 | I96: 1 | J96: 3 | K96: LW | L96: n | M96: 900 | N96: LW.0900kW.00413 | O96: 91 | P96: 3 | Q96: 5689 | R96: DN100 | T96: 5 | U96: 3 | V96: 0 | W96: 0 | X96: 1 | Y96: 0 | Z96: 0 | AA96: 2 | AB96: 0 | AC96: 0 | AD96: 0 | AE96: 0 | AF96: 1 | AG96: 0 | AH96: 0 | AI96: 5 | AJ96: 3 | AK96: 0 | AL96: 0 | AM96: 0 | AN96: 0 | AO96: 0 | AP96: 0 | AQ96: 0 | AR96: 1 | AS96: 0 | AT96: 1 | AU96: 0 | AV96: 0 | AW96: 0 | AX96: 0 | AY96: 0 | AZ96: 0 | BA96: 1 | BB96: 0 | BC96: 1 | BD96: 1 | BE96: 0 | BG96: 0 | BH96: 1 | BI96: 0 | BJ96: 1 | BK96: 0 | BL96: 1 | BM96: 0 | BN96: 8 | BO96: 0 | BP96: 8 | BQ96: 0 | BR96: 0 | BS96: 1 | BT96: 0 | BU96: 0 | BV96: 1 | BW96: 0 | BX96: 2 | BY96: 0 | BZ96: 0 | CA96: 1 | CB96: 0 | CC96: 0 | CD96: 0 | CE96: 0 | CF96: 1 | CG96: 0 | CH96: 0 | CI96: 0 | CJ96: 0 | CK96: 5 | CL96: 0 | CM96: 0 | CN96: 0 | CO96: 0 | CP96: n | CQ96: 7 | CR96: 0 | CS96: 8
D97: 92 | E97: 8 | F97: 0 | G97: 1 | H97: 3 | I97: 1 | J97: 3 | K97: LW | L97: n | M97: 877 | N97: LW.0877kW.01313 | O97: 92 | P97: 4 | Q97: 5689 | R97: DN100 | T97: 4 | U97: 3 | V97: 0 | W97: 0 | X97: 1 | Y97: 0 | Z97: 0 | AA97: 2 | AB97: 0 | AC97: 0 | AD97: 0 | AE97: 0 | AF97: 1 | AG97: 0 | AH97: 0 | AI97: 5 | AJ97: 3 | AK97: 0 | AL97: 0 | AM97: 0 | AN97: 0 | AO97: 0 | AP97: 0 | AQ97: 0 | AR97: 1 | AS97: 0 | AT97: 1 | AU97: 0 | AV97: 0 | AW97: 0 | AX97: 0 | AY97: 0 | AZ97: 0 | BA97: 1 | BB97: 0 | BC97: 1 | BD97: 1 | BE97: 0 | BG97: 0 | BH97: 1 | BI97: 0 | BJ97: 1 | BK97: 0 | BL97: 1 | BM97: 0 | BN97: 8 | BO97: 0 | BP97: 8 | BQ97: 0 | BR97: 0 | BS97: 1 | BT97: 0 | BU97: 0 | BV97: 1 | BW97: 0 | BX97: 2 | BY97: 0 | BZ97: 0 | CA97: 1 | CB97: 0 | CC97: 0 | CD97: 0 | CE97: 0 | CF97: 1 | CG97: 0 | CH97: 0 | CI97: 0 | CJ97: 0 | CK97: 5 | CL97: 0 | CM97: 0 | CN97: 0 | CO97: 1 | CP97: n | CQ97: 7 | CR97: 0 | CS97: 8
D98: 93 | E98: 8 | F98: 1 | G98: 0 | H98: 3 | I98: 1 | J98: 3 | K98: LW | L98: n | M98: 857 | N98: LW.0857kW.10313 | O98: 93 | P98: 4 | Q98: 5689 | R98: DN100 | T98: 4 | U98: 3 | V98: 0 | W98: 0 | X98: 1 | Y98: 0 | Z98: 0 | AA98: 2 | AB98: 0 | AC98: 0 | AD98: 0 | AE98: 0 | AF98: 1 | AG98: 0 | AH98: 0 | AI98: 5 | AJ98: 3 | AK98: 0 | AL98: 0 | AM98: 0 | AN98: 0 | AO98: 0 | AP98: 0 | AQ98: 0 | AR98: 1 | AS98: 0 | AT98: 1 | AU98: 0 | AV98: 0 | AW98: 0 | AX98: 0 | AY98: 0 | AZ98: 0 | BA98: 1 | BB98: 0 | BC98: 1 | BD98: 1 | BE98: 0 | BG98: 0 | BH98: 1 | BI98: 0 | BJ98: 1 | BK98: 0 | BL98: 1 | BM98: 0 | BN98: 8 | BO98: 0 | BP98: 8 | BQ98: 0 | BR98: 0 | BS98: 1 | BT98: 0 | BU98: 0 | BV98: 1 | BW98: 0 | BX98: 2 | BY98: 0 | BZ98: 0 | CA98: 1 | CB98: 0 | CC98: 0 | CD98: 0 | CE98: 0 | CF98: 1 | CG98: 0 | CH98: 0 | CI98: 0 | CJ98: 0 | CK98: 5 | CL98: 0 | CM98: 0 | CN98: 0 | CO98: 1 | CP98: n | CQ98: 7 | CR98: 0 | CS98: 8
D99: 94 | E99: 8 | F99: 0 | G99: 2 | H99: 2 | I99: 1 | J99: 3 | K99: LW | L99: n | M99: 855 | N99: LW.0855kW.02213 | O99: 94 | P99: 4 | Q99: 5689 | R99: DN100 | T99: 3 | U99: 3 | V99: 0 | W99: 0 | X99: 1 | Y99: 0 | Z99: 0 | AA99: 2 | AB99: 0 | AC99: 0 | AD99: 0 | AE99: 0 | AF99: 1 | AG99: 0 | AH99: 0 | AI99: 5 | AJ99: 3 | AK99: 0 | AL99: 0 | AM99: 0 | AN99: 0 | AO99: 0 | AP99: 0 | AQ99: 0 | AR99: 1 | AS99: 0 | AT99: 1 | AU99: 0 | AV99: 0 | AW99: 0 | AX99: 0 | AY99: 0 | AZ99: 0 | BA99: 1 | BB99: 0 | BC99: 1 | BD99: 1 | BE99: 0 | BG99: 0 | BH99: 1 | BI99: 0 | BJ99: 1 | BK99: 0 | BL99: 1 | BM99: 0 | BN99: 8 | BO99: 0 | BP99: 8 | BQ99: 0 | BR99: 0 | BS99: 1 | BT99: 0 | BU99: 0 | BV99: 1 | BW99: 0 | BX99: 2 | BY99: 0 | BZ99: 0 | CA99: 1 | CB99: 0 | CC99: 0 | CD99: 0 | CE99: 0 | CF99: 1 | CG99: 0 | CH99: 0 | CI99: 0 | CJ99: 0 | CK99: 5 | CL99: 0 | CM99: 0 | CN99: 0 | CO99: 2 | CP99: n | CQ99: 7 | CR99: 0 | CS99: 8
D100: 95 | E100: 8 | F100: 1 | G100: 1 | H100: 2 | I100: 1 | J100: 3 | K100: LW | L100: n | M100: 834 | N100: LW.0834kW.11213 | O100: 95 | P100: 5 | Q100: 5689 | R100: DN100 | T100: 3 | U100: 3 | V100: 0 | W100: 0 | X100: 1 | Y100: 0 | Z100: 0 | AA100: 2 | AB100: 0 | AC100: 0 | AD100: 0 | AE100: 0 | AF100: 1 | AG100: 0 | AH100: 0 | AI100: 5 | AJ100: 3 | AK100: 0 | AL100: 0 | AM100: 0 | AN100: 0 | AO100: 0 | AP100: 0 | AQ100: 0 | AR100: 1 | AS100: 0 | AT100: 1 | AU100: 0 | AV100: 0 | AW100: 0 | AX100: 0 | AY100: 0 | AZ100: 0 | BA100: 1 | BB100: 0 | BC100: 1 | BD100: 1 | BE100: 0 | BG100: 0 | BH100: 1 | BI100: 0 | BJ100: 1 | BK100: 0 | BL100: 1 | BM100: 0 | BN100: 8 | BO100: 0 | BP100: 8 | BQ100: 0 | BR100: 0 | BS100: 1 | BT100: 0 | BU100: 0 | BV100: 1 | BW100: 0 | BX100: 2 | BY100: 0 | BZ100: 0 | CA100: 1 | CB100: 0 | CC100: 0 | CD100: 0 | CE100: 0 | CF100: 1 | CG100: 0 | CH100: 0 | CI100: 0 | CJ100: 0 | CK100: 5 | CL100: 0 | CM100: 0 | CN100: 0 | CO100: 2 | CP100: n | CQ100: 7 | CR100: 0 | CS100: 8
D101: 96 | E101: 8 | F101: 2 | G101: 0 | H101: 2 | I101: 1 | J101: 3 | K101: LW | L101: n | M101: 813 | N101: LW.0813kW.20213 | O101: 96 | P101: 4 | Q101: 5689 | R101: DN100 | T101: 3 | U101: 3 | V101: 0 | W101: 0 | X101: 1 | Y101: 0 | Z101: 0 | AA101: 2 | AB101: 0 | AC101: 0 | AD101: 0 | AE101: 0 | AF101: 1 | AG101: 0 | AH101: 0 | AI101: 5 | AJ101: 3 | AK101: 0 | AL101: 0 | AM101: 0 | AN101: 0 | AO101: 0 | AP101: 0 | AQ101: 0 | AR101: 1 | AS101: 0 | AT101: 1 | AU101: 0 | AV101: 0 | AW101: 0 | AX101: 0 | AY101: 0 | AZ101: 0 | BA101: 1 | BB101: 0 | BC101: 1 | BD101: 1 | BE101: 0 | BG101: 0 | BH101: 1 | BI101: 0 | BJ101: 1 | BK101: 0 | BL101: 1 | BM101: 0 | BN101: 8 | BO101: 0 | BP101: 8 | BQ101: 0 | BR101: 0 | BS101: 1 | BT101: 0 | BU101: 0 | BV101: 1 | BW101: 0 | BX101: 2 | BY101: 0 | BZ101: 0 | CA101: 1 | CB101: 0 | CC101: 0 | CD101: 0 | CE101: 0 | CF101: 1 | CG101: 0 | CH101: 0 | CI101: 0 | CJ101: 0 | CK101: 5 | CL101: 0 | CM101: 0 | CN101: 0 | CO101: 2 | CP101: n | CQ101: 7 | CR101: 0 | CS101: 8
D102: 97 | E102: 8 | F102: 0 | G102: 3 | H102: 1 | I102: 1 | J102: 3 | K102: LW | L102: n | M102: 832 | N102: LW.0832kW.03113 | O102: 97 | P102: 4 | Q102: 5689 | R102: DN100 | T102: 2 | U102: 3 | V102: 0 | W102: 0 | X102: 1 | Y102: 0 | Z102: 0 | AA102: 2 | AB102: 0 | AC102: 0 | AD102: 0 | AE102: 0 | AF102: 1 | AG102: 0 | AH102: 0 | AI102: 5 | AJ102: 3 | AK102: 0 | AL102: 0 | AM102: 0 | AN102: 0 | AO102: 0 | AP102: 0 | AQ102: 0 | AR102: 1 | AS102: 0 | AT102: 1 | AU102: 0 | AV102: 0 | AW102: 0 | AX102: 0 | AY102: 0 | AZ102: 0 | BA102: 1 | BB102: 0 | BC102: 1 | BD102: 1 | BE102: 0 | BG102: 0 | BH102: 1 | BI102: 0 | BJ102: 1 | BK102: 0 | BL102: 1 | BM102: 0 | BN102: 8 | BO102: 0 | BP102: 8 | BQ102: 0 | BR102: 0 | BS102: 1 | BT102: 0 | BU102: 0 | BV102: 1 | BW102: 0 | BX102: 2 | BY102: 0 | BZ102: 0 | CA102: 1 | CB102: 0 | CC102: 0 | CD102: 0 | CE102: 0 | CF102: 1 | CG102: 0 | CH102: 0 | CI102: 0 | CJ102: 0 | CK102: 5 | CL102: 0 | CM102: 0 | CN102: 0 | CO102: 3 | CP102: n | CQ102: 7 | CR102: 0 | CS102: 8
D103: 98 | E103: 8 | F103: 1 | G103: 2 | H103: 1 | I103: 1 | J103: 3 | K103: LW | L103: n | M103: 811 | N103: LW.0811kW.12113 | O103: 98 | P103: 5 | Q103: 5689 | R103: DN100 | T103: 2 | U103: 3 | V103: 0 | W103: 0 | X103: 1 | Y103: 0 | Z103: 0 | AA103: 2 | AB103: 0 | AC103: 0 | AD103: 0 | AE103: 0 | AF103: 1 | AG103: 0 | AH103: 0 | AI103: 5 | AJ103: 3 | AK103: 0 | AL103: 0 | AM103: 0 | AN103: 0 | AO103: 0 | AP103: 0 | AQ103: 0 | AR103: 1 | AS103: 0 | AT103: 1 | AU103: 0 | AV103: 0 | AW103: 0 | AX103: 0 | AY103: 0 | AZ103: 0 | BA103: 1 | BB103: 0 | BC103: 1 | BD103: 1 | BE103: 0 | BG103: 0 | BH103: 1 | BI103: 0 | BJ103: 1 | BK103: 0 | BL103: 1 | BM103: 0 | BN103: 8 | BO103: 0 | BP103: 8 | BQ103: 0 | BR103: 0 | BS103: 1 | BT103: 0 | BU103: 0 | BV103: 1 | BW103: 0 | BX103: 2 | BY103: 0 | BZ103: 0 | CA103: 1 | CB103: 0 | CC103: 0 | CD103: 0 | CE103: 0 | CF103: 1 | CG103: 0 | CH103: 0 | CI103: 0 | CJ103: 0 | CK103: 5 | CL103: 0 | CM103: 0 | CN103: 0 | CO103: 3 | CP103: n | CQ103: 7 | CR103: 0 | CS103: 8
D104: 99 | E104: 8 | F104: 2 | G104: 1 | H104: 1 | I104: 1 | J104: 3 | K104: LW | L104: n | M104: 791 | N104: LW.0791kW.21113 | O104: 99 | P104: 5 | Q104: 5689 | R104: DN100 | T104: 2 | U104: 3 | V104: 0 | W104: 0 | X104: 1 | Y104: 0 | Z104: 0 | AA104: 2 | AB104: 0 | AC104: 0 | AD104: 0 | AE104: 0 | AF104: 1 | AG104: 0 | AH104: 0 | AI104: 5 | AJ104: 3 | AK104: 0 | AL104: 0 | AM104: 0 | AN104: 0 | AO104: 0 | AP104: 0 | AQ104: 0 | AR104: 1 | AS104: 0 | AT104: 1 | AU104: 0 | AV104: 0 | AW104: 0 | AX104: 0 | AY104: 0 | AZ104: 0 | BA104: 1 | BB104: 0 | BC104: 1 | BD104: 1 | BE104: 0 | BG104: 0 | BH104: 1 | BI104: 0 | BJ104: 1 | BK104: 0 | BL104: 1 | BM104: 0 | BN104: 8 | BO104: 0 | BP104: 8 | BQ104: 0 | BR104: 0 | BS104: 1 | BT104: 0 | BU104: 0 | BV104: 1 | BW104: 0 | BX104: 2 | BY104: 0 | BZ104: 0 | CA104: 1 | CB104: 0 | CC104: 0 | CD104: 0 | CE104: 0 | CF104: 1 | CG104: 0 | CH104: 0 | CI104: 0 | CJ104: 0 | CK104: 5 | CL104: 0 | CM104: 0 | CN104: 0 | CO104: 3 | CP104: n | CQ104: 7 | CR104: 0 | CS104: 8
D105: 100 | E105: 8 | F105: 3 | G105: 0 | H105: 1 | I105: 1 | J105: 3 | K105: LW | L105: n | M105: 770 | N105: LW.0770kW.30113 | O105: 100 | P105: 4 | Q105: 5689 | R105: DN100 | T105: 2 | U105: 3 | V105: 0 | W105: 0 | X105: 1 | Y105: 0 | Z105: 0 | AA105: 2 | AB105: 0 | AC105: 0 | AD105: 0 | AE105: 0 | AF105: 1 | AG105: 0 | AH105: 0 | AI105: 5 | AJ105: 3 | AK105: 0 | AL105: 0 | AM105: 0 | AN105: 0 | AO105: 0 | AP105: 0 | AQ105: 0 | AR105: 1 | AS105: 0 | AT105: 1 | AU105: 0 | AV105: 0 | AW105: 0 | AX105: 0 | AY105: 0 | AZ105: 0 | BA105: 1 | BB105: 0 | BC105: 1 | BD105: 1 | BE105: 0 | BG105: 0 | BH105: 1 | BI105: 0 | BJ105: 1 | BK105: 0 | BL105: 1 | BM105: 0 | BN105: 8 | BO105: 0 | BP105: 8 | BQ105: 0 | BR105: 0 | BS105: 1 | BT105: 0 | BU105: 0 | BV105: 1 | BW105: 0 | BX105: 2 | BY105: 0 | BZ105: 0 | CA105: 1 | CB105: 0 | CC105: 0 | CD105: 0 | CE105: 0 | CF105: 1 | CG105: 0 | CH105: 0 | CI105: 0 | CJ105: 0 | CK105: 5 | CL105: 0 | CM105: 0 | CN105: 0 | CO105: 3 | CP105: n | CQ105: 7 | CR105: 0 | CS105: 8
D106: 101 | E106: 8 | F106: 0 | G106: 4 | H106: 0 | I106: 1 | J106: 3 | K106: LW | L106: n | M106: 809 | N106: LW.0809kW.04013 | O106: 101 | P106: 3 | Q106: 5689 | R106: DN100 | T106: 1 | U106: 3 | V106: 0 | W106: 0 | X106: 1 | Y106: 0 | Z106: 0 | AA106: 2 | AB106: 0 | AC106: 0 | AD106: 0 | AE106: 0 | AF106: 1 | AG106: 0 | AH106: 0 | AI106: 5 | AJ106: 3 | AK106: 0 | AL106: 0 | AM106: 0 | AN106: 0 | AO106: 0 | AP106: 0 | AQ106: 0 | AR106: 1 | AS106: 0 | AT106: 1 | AU106: 0 | AV106: 0 | AW106: 0 | AX106: 0 | AY106: 0 | AZ106: 0 | BA106: 1 | BB106: 0 | BC106: 1 | BD106: 1 | BE106: 0 | BG106: 0 | BH106: 1 | BI106: 0 | BJ106: 1 | BK106: 0 | BL106: 1 | BM106: 0 | BN106: 8 | BO106: 0 | BP106: 8 | BQ106: 0 | BR106: 0 | BS106: 1 | BT106: 0 | BU106: 0 | BV106: 1 | BW106: 0 | BX106: 2 | BY106: 0 | BZ106: 0 | CA106: 1 | CB106: 0 | CC106: 0 | CD106: 0 | CE106: 0 | CF106: 1 | CG106: 0 | CH106: 0 | CI106: 0 | CJ106: 0 | CK106: 5 | CL106: 0 | CM106: 0 | CN106: 0 | CO106: 4 | CP106: n | CQ106: 7 | CR106: 0 | CS106: 8
D107: 102 | E107: 8 | F107: 1 | G107: 3 | H107: 0 | I107: 1 | J107: 3 | K107: LW | L107: n | M107: 789 | N107: LW.0789kW.13013 | O107: 102 | P107: 4 | Q107: 5689 | R107: DN100 | T107: 1 | U107: 3 | V107: 0 | W107: 0 | X107: 1 | Y107: 0 | Z107: 0 | AA107: 2 | AB107: 0 | AC107: 0 | AD107: 0 | AE107: 0 | AF107: 1 | AG107: 0 | AH107: 0 | AI107: 5 | AJ107: 3 | AK107: 0 | AL107: 0 | AM107: 0 | AN107: 0 | AO107: 0 | AP107: 0 | AQ107: 0 | AR107: 1 | AS107: 0 | AT107: 1 | AU107: 0 | AV107: 0 | AW107: 0 | AX107: 0 | AY107: 0 | AZ107: 0 | BA107: 1 | BB107: 0 | BC107: 1 | BD107: 1 | BE107: 0 | BG107: 0 | BH107: 1 | BI107: 0 | BJ107: 1 | BK107: 0 | BL107: 1 | BM107: 0 | BN107: 8 | BO107: 0 | BP107: 8 | BQ107: 0 | BR107: 0 | BS107: 1 | BT107: 0 | BU107: 0 | BV107: 1 | BW107: 0 | BX107: 2 | BY107: 0 | BZ107: 0 | CA107: 1 | CB107: 0 | CC107: 0 | CD107: 0 | CE107: 0 | CF107: 1 | CG107: 0 | CH107: 0 | CI107: 0 | CJ107: 0 | CK107: 5 | CL107: 0 | CM107: 0 | CN107: 0 | CO107: 4 | CP107: n | CQ107: 7 | CR107: 0 | CS107: 8
D108: 103 | E108: 8 | F108: 2 | G108: 2 | H108: 0 | I108: 1 | J108: 3 | K108: LW | L108: n | M108: 768 | N108: LW.0768kW.22013 | O108: 103 | P108: 4 | Q108: 5689 | R108: DN100 | T108: 1 | U108: 3 | V108: 0 | W108: 0 | X108: 1 | Y108: 0 | Z108: 0 | AA108: 2 | AB108: 0 | AC108: 0 | AD108: 0 | AE108: 0 | AF108: 1 | AG108: 0 | AH108: 0 | AI108: 5 | AJ108: 3 | AK108: 0 | AL108: 0 | AM108: 0 | AN108: 0 | AO108: 0 | AP108: 0 | AQ108: 0 | AR108: 1 | AS108: 0 | AT108: 1 | AU108: 0 | AV108: 0 | AW108: 0 | AX108: 0 | AY108: 0 | AZ108: 0 | BA108: 1 | BB108: 0 | BC108: 1 | BD108: 1 | BE108: 0 | BG108: 0 | BH108: 1 | BI108: 0 | BJ108: 1 | BK108: 0 | BL108: 1 | BM108: 0 | BN108: 8 | BO108: 0 | BP108: 8 | BQ108: 0 | BR108: 0 | BS108: 1 | BT108: 0 | BU108: 0 | BV108: 1 | BW108: 0 | BX108: 2 | BY108: 0 | BZ108: 0 | CA108: 1 | CB108: 0 | CC108: 0 | CD108: 0 | CE108: 0 | CF108: 1 | CG108: 0 | CH108: 0 | CI108: 0 | CJ108: 0 | CK108: 5 | CL108: 0 | CM108: 0 | CN108: 0 | CO108: 4 | CP108: n | CQ108: 7 | CR108: 0 | CS108: 8
D109: 104 | E109: 8 | F109: 3 | G109: 1 | H109: 0 | I109: 1 | J109: 3 | K109: LW | L109: n | M109: 747 | N109: LW.0747kW.31013 | O109: 104 | P109: 4 | Q109: 5689 | R109: DN100 | T109: 1 | U109: 3 | V109: 0 | W109: 0 | X109: 1 | Y109: 0 | Z109: 0 | AA109: 2 | AB109: 0 | AC109: 0 | AD109: 0 | AE109: 0 | AF109: 1 | AG109: 0 | AH109: 0 | AI109: 5 | AJ109: 3 | AK109: 0 | AL109: 0 | AM109: 0 | AN109: 0 | AO109: 0 | AP109: 0 | AQ109: 0 | AR109: 1 | AS109: 0 | AT109: 1 | AU109: 0 | AV109: 0 | AW109: 0 | AX109: 0 | AY109: 0 | AZ109: 0 | BA109: 1 | BB109: 0 | BC109: 1 | BD109: 1 | BE109: 0 | BG109: 0 | BH109: 1 | BI109: 0 | BJ109: 1 | BK109: 0 | BL109: 1 | BM109: 0 | BN109: 8 | BO109: 0 | BP109: 8 | BQ109: 0 | BR109: 0 | BS109: 1 | BT109: 0 | BU109: 0 | BV109: 1 | BW109: 0 | BX109: 2 | BY109: 0 | BZ109: 0 | CA109: 1 | CB109: 0 | CC109: 0 | CD109: 0 | CE109: 0 | CF109: 1 | CG109: 0 | CH109: 0 | CI109: 0 | CJ109: 0 | CK109: 5 | CL109: 0 | CM109: 0 | CN109: 0 | CO109: 4 | CP109: n | CQ109: 7 | CR109: 0 | CS109: 8
D110: 105 | E110: 8 | F110: 4 | G110: 0 | H110: 0 | I110: 1 | J110: 3 | K110: LW | L110: n | M110: 727 | N110: LW.0727kW.40013 | O110: 105 | P110: 3 | Q110: 5689 | R110: DN100 | T110: 1 | U110: 3 | V110: 0 | W110: 0 | X110: 1 | Y110: 0 | Z110: 0 | AA110: 2 | AB110: 0 | AC110: 0 | AD110: 0 | AE110: 0 | AF110: 1 | AG110: 0 | AH110: 0 | AI110: 5 | AJ110: 3 | AK110: 0 | AL110: 0 | AM110: 0 | AN110: 0 | AO110: 0 | AP110: 0 | AQ110: 0 | AR110: 1 | AS110: 0 | AT110: 1 | AU110: 0 | AV110: 0 | AW110: 0 | AX110: 0 | AY110: 0 | AZ110: 0 | BA110: 1 | BB110: 0 | BC110: 1 | BD110: 1 | BE110: 0 | BG110: 0 | BH110: 1 | BI110: 0 | BJ110: 1 | BK110: 0 | BL110: 1 | BM110: 0 | BN110: 8 | BO110: 0 | BP110: 8 | BQ110: 0 | BR110: 0 | BS110: 1 | BT110: 0 | BU110: 0 | BV110: 1 | BW110: 0 | BX110: 2 | BY110: 0 | BZ110: 0 | CA110: 1 | CB110: 0 | CC110: 0 | CD110: 0 | CE110: 0 | CF110: 1 | CG110: 0 | CH110: 0 | CI110: 0 | CJ110: 0 | CK110: 5 | CL110: 0 | CM110: 0 | CN110: 0 | CO110: 4 | CP110: n | CQ110: 7 | CR110: 0 | CS110: 8
D111: 106 | E111: 8 | F111: 0 | G111: 0 | H111: 5 | I111: 0 | J111: 3 | K111: LW | L111: n | M111: 877 | N111: LW.0877kW.00503 | O111: 106 | P111: 2 | Q111: 5689 | R111: DN100 | T111: 5 | U111: 3 | V111: 0 | W111: 0 | X111: 1 | Y111: 0 | Z111: 0 | AA111: 2 | AB111: 0 | AC111: 0 | AD111: 0 | AE111: 0 | AF111: 1 | AG111: 0 | AH111: 0 | AI111: 5 | AJ111: 3 | AK111: 0 | AL111: 0 | AM111: 0 | AN111: 0 | AO111: 0 | AP111: 0 | AQ111: 0 | AR111: 1 | AS111: 0 | AT111: 1 | AU111: 0 | AV111: 0 | AW111: 0 | AX111: 0 | AY111: 0 | AZ111: 0 | BA111: 1 | BB111: 0 | BC111: 1 | BD111: 1 | BE111: 0 | BG111: 0 | BH111: 1 | BI111: 0 | BJ111: 1 | BK111: 0 | BL111: 1 | BM111: 0 | BN111: 8 | BO111: 0 | BP111: 8 | BQ111: 0 | BR111: 0 | BS111: 1 | BT111: 0 | BU111: 0 | BV111: 1 | BW111: 0 | BX111: 2 | BY111: 0 | BZ111: 0 | CA111: 1 | CB111: 0 | CC111: 0 | CD111: 0 | CE111: 0 | CF111: 1 | CG111: 0 | CH111: 0 | CI111: 0 | CJ111: 0 | CK111: 5 | CL111: 0 | CM111: 0 | CN111: 0 | CO111: 0 | CP111: n | CQ111: 7 | CR111: 0 | CS111: 8
D112: 107 | E112: 8 | F112: 0 | G112: 1 | H112: 4 | I112: 0 | J112: 3 | K112: LW | L112: n | M112: 855 | N112: LW.0855kW.01403 | O112: 107 | P112: 3 | Q112: 5689 | R112: DN100 | T112: 4 | U112: 3 | V112: 0 | W112: 0 | X112: 1 | Y112: 0 | Z112: 0 | AA112: 2 | AB112: 0 | AC112: 0 | AD112: 0 | AE112: 0 | AF112: 1 | AG112: 0 | AH112: 0 | AI112: 5 | AJ112: 3 | AK112: 0 | AL112: 0 | AM112: 0 | AN112: 0 | AO112: 0 | AP112: 0 | AQ112: 0 | AR112: 1 | AS112: 0 | AT112: 1 | AU112: 0 | AV112: 0 | AW112: 0 | AX112: 0 | AY112: 0 | AZ112: 0 | BA112: 1 | BB112: 0 | BC112: 1 | BD112: 1 | BE112: 0 | BG112: 0 | BH112: 1 | BI112: 0 | BJ112: 1 | BK112: 0 | BL112: 1 | BM112: 0 | BN112: 8 | BO112: 0 | BP112: 8 | BQ112: 0 | BR112: 0 | BS112: 1 | BT112: 0 | BU112: 0 | BV112: 1 | BW112: 0 | BX112: 2 | BY112: 0 | BZ112: 0 | CA112: 1 | CB112: 0 | CC112: 0 | CD112: 0 | CE112: 0 | CF112: 1 | CG112: 0 | CH112: 0 | CI112: 0 | CJ112: 0 | CK112: 5 | CL112: 0 | CM112: 0 | CN112: 0 | CO112: 1 | CP112: n | CQ112: 7 | CR112: 0 | CS112: 8
D113: 108 | E113: 8 | F113: 1 | G113: 0 | H113: 4 | I113: 0 | J113: 3 | K113: LW | L113: n | M113: 834 | N113: LW.0834kW.10403 | O113: 108 | P113: 3 | Q113: 5689 | R113: DN100 | T113: 4 | U113: 3 | V113: 0 | W113: 0 | X113: 1 | Y113: 0 | Z113: 0 | AA113: 2 | AB113: 0 | AC113: 0 | AD113: 0 | AE113: 0 | AF113: 1 | AG113: 0 | AH113: 0 | AI113: 5 | AJ113: 3 | AK113: 0 | AL113: 0 | AM113: 0 | AN113: 0 | AO113: 0 | AP113: 0 | AQ113: 0 | AR113: 1 | AS113: 0 | AT113: 1 | AU113: 0 | AV113: 0 | AW113: 0 | AX113: 0 | AY113: 0 | AZ113: 0 | BA113: 1 | BB113: 0 | BC113: 1 | BD113: 1 | BE113: 0 | BG113: 0 | BH113: 1 | BI113: 0 | BJ113: 1 | BK113: 0 | BL113: 1 | BM113: 0 | BN113: 8 | BO113: 0 | BP113: 8 | BQ113: 0 | BR113: 0 | BS113: 1 | BT113: 0 | BU113: 0 | BV113: 1 | BW113: 0 | BX113: 2 | BY113: 0 | BZ113: 0 | CA113: 1 | CB113: 0 | CC113: 0 | CD113: 0 | CE113: 0 | CF113: 1 | CG113: 0 | CH113: 0 | CI113: 0 | CJ113: 0 | CK113: 5 | CL113: 0 | CM113: 0 | CN113: 0 | CO113: 1 | CP113: n | CQ113: 7 | CR113: 0 | CS113: 8
D114: 109 | E114: 8 | F114: 0 | G114: 2 | H114: 3 | I114: 0 | J114: 3 | K114: LW | L114: n | M114: 832 | N114: LW.0832kW.02303 | O114: 109 | P114: 3 | Q114: 5689 | R114: DN100 | T114: 3 | U114: 3 | V114: 0 | W114: 0 | X114: 1 | Y114: 0 | Z114: 0 | AA114: 2 | AB114: 0 | AC114: 0 | AD114: 0 | AE114: 0 | AF114: 1 | AG114: 0 | AH114: 0 | AI114: 5 | AJ114: 3 | AK114: 0 | AL114: 0 | AM114: 0 | AN114: 0 | AO114: 0 | AP114: 0 | AQ114: 0 | AR114: 1 | AS114: 0 | AT114: 1 | AU114: 0 | AV114: 0 | AW114: 0 | AX114: 0 | AY114: 0 | AZ114: 0 | BA114: 1 | BB114: 0 | BC114: 1 | BD114: 1 | BE114: 0 | BG114: 0 | BH114: 1 | BI114: 0 | BJ114: 1 | BK114: 0 | BL114: 1 | BM114: 0 | BN114: 8 | BO114: 0 | BP114: 8 | BQ114: 0 | BR114: 0 | BS114: 1 | BT114: 0 | BU114: 0 | BV114: 1 | BW114: 0 | BX114: 2 | BY114: 0 | BZ114: 0 | CA114: 1 | CB114: 0 | CC114: 0 | CD114: 0 | CE114: 0 | CF114: 1 | CG114: 0 | CH114: 0 | CI114: 0 | CJ114: 0 | CK114: 5 | CL114: 0 | CM114: 0 | CN114: 0 | CO114: 2 | CP114: n | CQ114: 7 | CR114: 0 | CS114: 8
D115: 110 | E115: 8 | F115: 1 | G115: 1 | H115: 3 | I115: 0 | J115: 3 | K115: LW | L115: n | M115: 811 | N115: LW.0811kW.11303 | O115: 110 | P115: 4 | Q115: 5689 | R115: DN100 | T115: 3 | U115: 3 | V115: 0 | W115: 0 | X115: 1 | Y115: 0 | Z115: 0 | AA115: 2 | AB115: 0 | AC115: 0 | AD115: 0 | AE115: 0 | AF115: 1 | AG115: 0 | AH115: 0 | AI115: 5 | AJ115: 3 | AK115: 0 | AL115: 0 | AM115: 0 | AN115: 0 | AO115: 0 | AP115: 0 | AQ115: 0 | AR115: 1 | AS115: 0 | AT115: 1 | AU115: 0 | AV115: 0 | AW115: 0 | AX115: 0 | AY115: 0 | AZ115: 0 | BA115: 1 | BB115: 0 | BC115: 1 | BD115: 1 | BE115: 0 | BG115: 0 | BH115: 1 | BI115: 0 | BJ115: 1 | BK115: 0 | BL115: 1 | BM115: 0 | BN115: 8 | BO115: 0 | BP115: 8 | BQ115: 0 | BR115: 0 | BS115: 1 | BT115: 0 | BU115: 0 | BV115: 1 | BW115: 0 | BX115: 2 | BY115: 0 | BZ115: 0 | CA115: 1 | CB115: 0 | CC115: 0 | CD115: 0 | CE115: 0 | CF115: 1 | CG115: 0 | CH115: 0 | CI115: 0 | CJ115: 0 | CK115: 5 | CL115: 0 | CM115: 0 | CN115: 0 | CO115: 2 | CP115: n | CQ115: 7 | CR115: 0 | CS115: 8
D116: 111 | E116: 8 | F116: 2 | G116: 0 | H116: 3 | I116: 0 | J116: 3 | K116: LW | L116: n | M116: 791 | N116: LW.0791kW.20303 | O116: 111 | P116: 3 | Q116: 5689 | R116: DN100 | T116: 3 | U116: 3 | V116: 0 | W116: 0 | X116: 1 | Y116: 0 | Z116: 0 | AA116: 2 | AB116: 0 | AC116: 0 | AD116: 0 | AE116: 0 | AF116: 1 | AG116: 0 | AH116: 0 | AI116: 5 | AJ116: 3 | AK116: 0 | AL116: 0 | AM116: 0 | AN116: 0 | AO116: 0 | AP116: 0 | AQ116: 0 | AR116: 1 | AS116: 0 | AT116: 1 | AU116: 0 | AV116: 0 | AW116: 0 | AX116: 0 | AY116: 0 | AZ116: 0 | BA116: 1 | BB116: 0 | BC116: 1 | BD116: 1 | BE116: 0 | BG116: 0 | BH116: 1 | BI116: 0 | BJ116: 1 | BK116: 0 | BL116: 1 | BM116: 0 | BN116: 8 | BO116: 0 | BP116: 8 | BQ116: 0 | BR116: 0 | BS116: 1 | BT116: 0 | BU116: 0 | BV116: 1 | BW116: 0 | BX116: 2 | BY116: 0 | BZ116: 0 | CA116: 1 | CB116: 0 | CC116: 0 | CD116: 0 | CE116: 0 | CF116: 1 | CG116: 0 | CH116: 0 | CI116: 0 | CJ116: 0 | CK116: 5 | CL116: 0 | CM116: 0 | CN116: 0 | CO116: 2 | CP116: n | CQ116: 7 | CR116: 0 | CS116: 8
D117: 112 | E117: 8 | F117: 0 | G117: 3 | H117: 2 | I117: 0 | J117: 3 | K117: LW | L117: n | M117: 809 | N117: LW.0809kW.03203 | O117: 112 | P117: 3 | Q117: 5689 | R117: DN100 | T117: 2 | U117: 3 | V117: 0 | W117: 0 | X117: 1 | Y117: 0 | Z117: 0 | AA117: 2 | AB117: 0 | AC117: 0 | AD117: 0 | AE117: 0 | AF117: 1 | AG117: 0 | AH117: 0 | AI117: 5 | AJ117: 3 | AK117: 0 | AL117: 0 | AM117: 0 | AN117: 0 | AO117: 0 | AP117: 0 | AQ117: 0 | AR117: 1 | AS117: 0 | AT117: 1 | AU117: 0 | AV117: 0 | AW117: 0 | AX117: 0 | AY117: 0 | AZ117: 0 | BA117: 1 | BB117: 0 | BC117: 1 | BD117: 1 | BE117: 0 | BG117: 0 | BH117: 1 | BI117: 0 | BJ117: 1 | BK117: 0 | BL117: 1 | BM117: 0 | BN117: 8 | BO117: 0 | BP117: 8 | BQ117: 0 | BR117: 0 | BS117: 1 | BT117: 0 | BU117: 0 | BV117: 1 | BW117: 0 | BX117: 2 | BY117: 0 | BZ117: 0 | CA117: 1 | CB117: 0 | CC117: 0 | CD117: 0 | CE117: 0 | CF117: 1 | CG117: 0 | CH117: 0 | CI117: 0 | CJ117: 0 | CK117: 5 | CL117: 0 | CM117: 0 | CN117: 0 | CO117: 3 | CP117: n | CQ117: 7 | CR117: 0 | CS117: 8
D118: 113 | E118: 8 | F118: 1 | G118: 2 | H118: 2 | I118: 0 | J118: 3 | K118: LW | L118: n | M118: 789 | N118: LW.0789kW.12203 | O118: 113 | P118: 4 | Q118: 5689 | R118: DN100 | T118: 2 | U118: 3 | V118: 0 | W118: 0 | X118: 1 | Y118: 0 | Z118: 0 | AA118: 2 | AB118: 0 | AC118: 0 | AD118: 0 | AE118: 0 | AF118: 1 | AG118: 0 | AH118: 0 | AI118: 5 | AJ118: 3 | AK118: 0 | AL118: 0 | AM118: 0 | AN118: 0 | AO118: 0 | AP118: 0 | AQ118: 0 | AR118: 1 | AS118: 0 | AT118: 1 | AU118: 0 | AV118: 0 | AW118: 0 | AX118: 0 | AY118: 0 | AZ118: 0 | BA118: 1 | BB118: 0 | BC118: 1 | BD118: 1 | BE118: 0 | BG118: 0 | BH118: 1 | BI118: 0 | BJ118: 1 | BK118: 0 | BL118: 1 | BM118: 0 | BN118: 8 | BO118: 0 | BP118: 8 | BQ118: 0 | BR118: 0 | BS118: 1 | BT118: 0 | BU118: 0 | BV118: 1 | BW118: 0 | BX118: 2 | BY118: 0 | BZ118: 0 | CA118: 1 | CB118: 0 | CC118: 0 | CD118: 0 | CE118: 0 | CF118: 1 | CG118: 0 | CH118: 0 | CI118: 0 | CJ118: 0 | CK118: 5 | CL118: 0 | CM118: 0 | CN118: 0 | CO118: 3 | CP118: n | CQ118: 7 | CR118: 0 | CS118: 8
D119: 114 | E119: 8 | F119: 2 | G119: 1 | H119: 2 | I119: 0 | J119: 3 | K119: LW | L119: n | M119: 768 | N119: LW.0768kW.21203 | O119: 114 | P119: 4 | Q119: 5689 | R119: DN100 | T119: 2 | U119: 3 | V119: 0 | W119: 0 | X119: 1 | Y119: 0 | Z119: 0 | AA119: 2 | AB119: 0 | AC119: 0 | AD119: 0 | AE119: 0 | AF119: 1 | AG119: 0 | AH119: 0 | AI119: 5 | AJ119: 3 | AK119: 0 | AL119: 0 | AM119: 0 | AN119: 0 | AO119: 0 | AP119: 0 | AQ119: 0 | AR119: 1 | AS119: 0 | AT119: 1 | AU119: 0 | AV119: 0 | AW119: 0 | AX119: 0 | AY119: 0 | AZ119: 0 | BA119: 1 | BB119: 0 | BC119: 1 | BD119: 1 | BE119: 0 | BG119: 0 | BH119: 1 | BI119: 0 | BJ119: 1 | BK119: 0 | BL119: 1 | BM119: 0 | BN119: 8 | BO119: 0 | BP119: 8 | BQ119: 0 | BR119: 0 | BS119: 1 | BT119: 0 | BU119: 0 | BV119: 1 | BW119: 0 | BX119: 2 | BY119: 0 | BZ119: 0 | CA119: 1 | CB119: 0 | CC119: 0 | CD119: 0 | CE119: 0 | CF119: 1 | CG119: 0 | CH119: 0 | CI119: 0 | CJ119: 0 | CK119: 5 | CL119: 0 | CM119: 0 | CN119: 0 | CO119: 3 | CP119: n | CQ119: 7 | CR119: 0 | CS119: 8
D120: 115 | E120: 8 | F120: 3 | G120: 0 | H120: 2 | I120: 0 | J120: 3 | K120: LW | L120: n | M120: 747 | N120: LW.0747kW.30203 | O120: 115 | P120: 3 | Q120: 5689 | R120: DN100 | T120: 2 | U120: 3 | V120: 0 | W120: 0 | X120: 1 | Y120: 0 | Z120: 0 | AA120: 2 | AB120: 0 | AC120: 0 | AD120: 0 | AE120: 0 | AF120: 1 | AG120: 0 | AH120: 0 | AI120: 5 | AJ120: 3 | AK120: 0 | AL120: 0 | AM120: 0 | AN120: 0 | AO120: 0 | AP120: 0 | AQ120: 0 | AR120: 1 | AS120: 0 | AT120: 1 | AU120: 0 | AV120: 0 | AW120: 0 | AX120: 0 | AY120: 0 | AZ120: 0 | BA120: 1 | BB120: 0 | BC120: 1 | BD120: 1 | BE120: 0 | BG120: 0 | BH120: 1 | BI120: 0 | BJ120: 1 | BK120: 0 | BL120: 1 | BM120: 0 | BN120: 8 | BO120: 0 | BP120: 8 | BQ120: 0 | BR120: 0 | BS120: 1 | BT120: 0 | BU120: 0 | BV120: 1 | BW120: 0 | BX120: 2 | BY120: 0 | BZ120: 0 | CA120: 1 | CB120: 0 | CC120: 0 | CD120: 0 | CE120: 0 | CF120: 1 | CG120: 0 | CH120: 0 | CI120: 0 | CJ120: 0 | CK120: 5 | CL120: 0 | CM120: 0 | CN120: 0 | CO120: 3 | CP120: n | CQ120: 7 | CR120: 0 | CS120: 8
D121: 116 | E121: 8 | F121: 0 | G121: 4 | H121: 1 | I121: 0 | J121: 3 | K121: LW | L121: n | M121: 787 | N121: LW.0787kW.04103 | O121: 116 | P121: 3 | Q121: 5689 | R121: DN100 | T121: 1 | U121: 3 | V121: 0 | W121: 0 | X121: 1 | Y121: 0 | Z121: 0 | AA121: 2 | AB121: 0 | AC121: 0 | AD121: 0 | AE121: 0 | AF121: 1 | AG121: 0 | AH121: 0 | AI121: 5 | AJ121: 3 | AK121: 0 | AL121: 0 | AM121: 0 | AN121: 0 | AO121: 0 | AP121: 0 | AQ121: 0 | AR121: 1 | AS121: 0 | AT121: 1 | AU121: 0 | AV121: 0 | AW121: 0 | AX121: 0 | AY121: 0 | AZ121: 0 | BA121: 1 | BB121: 0 | BC121: 1 | BD121: 1 | BE121: 0 | BG121: 0 | BH121: 1 | BI121: 0 | BJ121: 1 | BK121: 0 | BL121: 1 | BM121: 0 | BN121: 8 | BO121: 0 | BP121: 8 | BQ121: 0 | BR121: 0 | BS121: 1 | BT121: 0 | BU121: 0 | BV121: 1 | BW121: 0 | BX121: 2 | BY121: 0 | BZ121: 0 | CA121: 1 | CB121: 0 | CC121: 0 | CD121: 0 | CE121: 0 | CF121: 1 | CG121: 0 | CH121: 0 | CI121: 0 | CJ121: 0 | CK121: 5 | CL121: 0 | CM121: 0 | CN121: 0 | CO121: 4 | CP121: n | CQ121: 7 | CR121: 0 | CS121: 8
D122: 117 | E122: 8 | F122: 1 | G122: 3 | H122: 1 | I122: 0 | J122: 3 | K122: LW | L122: n | M122: 766 | N122: LW.0766kW.13103 | O122: 117 | P122: 4 | Q122: 5689 | R122: DN100 | T122: 1 | U122: 3 | V122: 0 | W122: 0 | X122: 1 | Y122: 0 | Z122: 0 | AA122: 2 | AB122: 0 | AC122: 0 | AD122: 0 | AE122: 0 | AF122: 1 | AG122: 0 | AH122: 0 | AI122: 5 | AJ122: 3 | AK122: 0 | AL122: 0 | AM122: 0 | AN122: 0 | AO122: 0 | AP122: 0 | AQ122: 0 | AR122: 1 | AS122: 0 | AT122: 1 | AU122: 0 | AV122: 0 | AW122: 0 | AX122: 0 | AY122: 0 | AZ122: 0 | BA122: 1 | BB122: 0 | BC122: 1 | BD122: 1 | BE122: 0 | BG122: 0 | BH122: 1 | BI122: 0 | BJ122: 1 | BK122: 0 | BL122: 1 | BM122: 0 | BN122: 8 | BO122: 0 | BP122: 8 | BQ122: 0 | BR122: 0 | BS122: 1 | BT122: 0 | BU122: 0 | BV122: 1 | BW122: 0 | BX122: 2 | BY122: 0 | BZ122: 0 | CA122: 1 | CB122: 0 | CC122: 0 | CD122: 0 | CE122: 0 | CF122: 1 | CG122: 0 | CH122: 0 | CI122: 0 | CJ122: 0 | CK122: 5 | CL122: 0 | CM122: 0 | CN122: 0 | CO122: 4 | CP122: n | CQ122: 7 | CR122: 0 | CS122: 8
D123: 118 | E123: 8 | F123: 2 | G123: 2 | H123: 1 | I123: 0 | J123: 3 | K123: LW | L123: n | M123: 745 | N123: LW.0745kW.22103 | O123: 118 | P123: 4 | Q123: 5689 | R123: DN100 | T123: 1 | U123: 3 | V123: 0 | W123: 0 | X123: 1 | Y123: 0 | Z123: 0 | AA123: 2 | AB123: 0 | AC123: 0 | AD123: 0 | AE123: 0 | AF123: 1 | AG123: 0 | AH123: 0 | AI123: 5 | AJ123: 3 | AK123: 0 | AL123: 0 | AM123: 0 | AN123: 0 | AO123: 0 | AP123: 0 | AQ123: 0 | AR123: 1 | AS123: 0 | AT123: 1 | AU123: 0 | AV123: 0 | AW123: 0 | AX123: 0 | AY123: 0 | AZ123: 0 | BA123: 1 | BB123: 0 | BC123: 1 | BD123: 1 | BE123: 0 | BG123: 0 | BH123: 1 | BI123: 0 | BJ123: 1 | BK123: 0 | BL123: 1 | BM123: 0 | BN123: 8 | BO123: 0 | BP123: 8 | BQ123: 0 | BR123: 0 | BS123: 1 | BT123: 0 | BU123: 0 | BV123: 1 | BW123: 0 | BX123: 2 | BY123: 0 | BZ123: 0 | CA123: 1 | CB123: 0 | CC123: 0 | CD123: 0 | CE123: 0 | CF123: 1 | CG123: 0 | CH123: 0 | CI123: 0 | CJ123: 0 | CK123: 5 | CL123: 0 | CM123: 0 | CN123: 0 | CO123: 4 | CP123: n | CQ123: 7 | CR123: 0 | CS123: 8
D124: 119 | E124: 8 | F124: 3 | G124: 1 | H124: 1 | I124: 0 | J124: 3 | K124: LW | L124: n | M124: 724 | N124: LW.0724kW.31103 | O124: 119 | P124: 4 | Q124: 5689 | R124: DN100 | T124: 1 | U124: 3 | V124: 0 | W124: 0 | X124: 1 | Y124: 0 | Z124: 0 | AA124: 2 | AB124: 0 | AC124: 0 | AD124: 0 | AE124: 0 | AF124: 1 | AG124: 0 | AH124: 0 | AI124: 5 | AJ124: 3 | AK124: 0 | AL124: 0 | AM124: 0 | AN124: 0 | AO124: 0 | AP124: 0 | AQ124: 0 | AR124: 1 | AS124: 0 | AT124: 1 | AU124: 0 | AV124: 0 | AW124: 0 | AX124: 0 | AY124: 0 | AZ124: 0 | BA124: 1 | BB124: 0 | BC124: 1 | BD124: 1 | BE124: 0 | BG124: 0 | BH124: 1 | BI124: 0 | BJ124: 1 | BK124: 0 | BL124: 1 | BM124: 0 | BN124: 8 | BO124: 0 | BP124: 8 | BQ124: 0 | BR124: 0 | BS124: 1 | BT124: 0 | BU124: 0 | BV124: 1 | BW124: 0 | BX124: 2 | BY124: 0 | BZ124: 0 | CA124: 1 | CB124: 0 | CC124: 0 | CD124: 0 | CE124: 0 | CF124: 1 | CG124: 0 | CH124: 0 | CI124: 0 | CJ124: 0 | CK124: 5 | CL124: 0 | CM124: 0 | CN124: 0 | CO124: 4 | CP124: n | CQ124: 7 | CR124: 0 | CS124: 8
D125: 120 | E125: 8 | F125: 4 | G125: 0 | H125: 1 | I125: 0 | J125: 3 | K125: LW | L125: n | M125: 704 | N125: LW.0704kW.40103 | O125: 120 | P125: 3 | Q125: 5689 | R125: DN100 | T125: 1 | U125: 3 | V125: 0 | W125: 0 | X125: 1 | Y125: 0 | Z125: 0 | AA125: 2 | AB125: 0 | AC125: 0 | AD125: 0 | AE125: 0 | AF125: 1 | AG125: 0 | AH125: 0 | AI125: 5 | AJ125: 3 | AK125: 0 | AL125: 0 | AM125: 0 | AN125: 0 | AO125: 0 | AP125: 0 | AQ125: 0 | AR125: 1 | AS125: 0 | AT125: 1 | AU125: 0 | AV125: 0 | AW125: 0 | AX125: 0 | AY125: 0 | AZ125: 0 | BA125: 1 | BB125: 0 | BC125: 1 | BD125: 1 | BE125: 0 | BG125: 0 | BH125: 1 | BI125: 0 | BJ125: 1 | BK125: 0 | BL125: 1 | BM125: 0 | BN125: 8 | BO125: 0 | BP125: 8 | BQ125: 0 | BR125: 0 | BS125: 1 | BT125: 0 | BU125: 0 | BV125: 1 | BW125: 0 | BX125: 2 | BY125: 0 | BZ125: 0 | CA125: 1 | CB125: 0 | CC125: 0 | CD125: 0 | CE125: 0 | CF125: 1 | CG125: 0 | CH125: 0 | CI125: 0 | CJ125: 0 | CK125: 5 | CL125: 0 | CM125: 0 | CN125: 0 | CO125: 4 | CP125: n | CQ125: 7 | CR125: 0 | CS125: 8
D126: 121 | E126: 8 | F126: 0 | G126: 5 | H126: 0 | I126: 0 | J126: 3 | K126: LW | L126: n | M126: 764 | N126: LW.0764kW.05003 | O126: 121 | P126: 2 | Q126: 5689 | R126: DN100 | T126: 0 | U126: 3 | V126: 0 | W126: 0 | X126: 1 | Y126: 0 | Z126: 0 | AA126: 2 | AB126: 0 | AC126: 0 | AD126: 0 | AE126: 0 | AF126: 1 | AG126: 0 | AH126: 0 | AI126: 5 | AJ126: 3 | AK126: 0 | AL126: 0 | AM126: 0 | AN126: 0 | AO126: 0 | AP126: 0 | AQ126: 0 | AR126: 1 | AS126: 0 | AT126: 1 | AU126: 0 | AV126: 0 | AW126: 0 | AX126: 0 | AY126: 0 | AZ126: 0 | BA126: 1 | BB126: 0 | BC126: 1 | BD126: 1 | BE126: 0 | BG126: 0 | BH126: 1 | BI126: 0 | BJ126: 1 | BK126: 0 | BL126: 1 | BM126: 0 | BN126: 8 | BO126: 0 | BP126: 8 | BQ126: 0 | BR126: 0 | BS126: 1 | BT126: 0 | BU126: 0 | BV126: 1 | BW126: 0 | BX126: 2 | BY126: 0 | BZ126: 0 | CA126: 1 | CB126: 0 | CC126: 0 | CD126: 0 | CE126: 0 | CF126: 1 | CG126: 0 | CH126: 0 | CI126: 0 | CJ126: 0 | CK126: 5 | CL126: 0 | CM126: 0 | CN126: 0 | CO126: 5 | CP126: n | CQ126: 7 | CR126: 0 | CS126: 8
D127: 122 | E127: 8 | F127: 1 | G127: 4 | H127: 0 | I127: 0 | J127: 3 | K127: LW | L127: n | M127: 743 | N127: LW.0743kW.14003 | O127: 122 | P127: 3 | Q127: 5689 | R127: DN100 | T127: 0 | U127: 3 | V127: 0 | W127: 0 | X127: 1 | Y127: 0 | Z127: 0 | AA127: 2 | AB127: 0 | AC127: 0 | AD127: 0 | AE127: 0 | AF127: 1 | AG127: 0 | AH127: 0 | AI127: 5 | AJ127: 3 | AK127: 0 | AL127: 0 | AM127: 0 | AN127: 0 | AO127: 0 | AP127: 0 | AQ127: 0 | AR127: 1 | AS127: 0 | AT127: 1 | AU127: 0 | AV127: 0 | AW127: 0 | AX127: 0 | AY127: 0 | AZ127: 0 | BA127: 1 | BB127: 0 | BC127: 1 | BD127: 1 | BE127: 0 | BG127: 0 | BH127: 1 | BI127: 0 | BJ127: 1 | BK127: 0 | BL127: 1 | BM127: 0 | BN127: 8 | BO127: 0 | BP127: 8 | BQ127: 0 | BR127: 0 | BS127: 1 | BT127: 0 | BU127: 0 | BV127: 1 | BW127: 0 | BX127: 2 | BY127: 0 | BZ127: 0 | CA127: 1 | CB127: 0 | CC127: 0 | CD127: 0 | CE127: 0 | CF127: 1 | CG127: 0 | CH127: 0 | CI127: 0 | CJ127: 0 | CK127: 5 | CL127: 0 | CM127: 0 | CN127: 0 | CO127: 5 | CP127: n | CQ127: 7 | CR127: 0 | CS127: 8
D128: 123 | E128: 8 | F128: 2 | G128: 3 | H128: 0 | I128: 0 | J128: 3 | K128: LW | L128: n | M128: 722 | N128: LW.0722kW.23003 | O128: 123 | P128: 3 | Q128: 5689 | R128: DN100 | T128: 0 | U128: 3 | V128: 0 | W128: 0 | X128: 1 | Y128: 0 | Z128: 0 | AA128: 2 | AB128: 0 | AC128: 0 | AD128: 0 | AE128: 0 | AF128: 1 | AG128: 0 | AH128: 0 | AI128: 5 | AJ128: 3 | AK128: 0 | AL128: 0 | AM128: 0 | AN128: 0 | AO128: 0 | AP128: 0 | AQ128: 0 | AR128: 1 | AS128: 0 | AT128: 1 | AU128: 0 | AV128: 0 | AW128: 0 | AX128: 0 | AY128: 0 | AZ128: 0 | BA128: 1 | BB128: 0 | BC128: 1 | BD128: 1 | BE128: 0 | BG128: 0 | BH128: 1 | BI128: 0 | BJ128: 1 | BK128: 0 | BL128: 1 | BM128: 0 | BN128: 8 | BO128: 0 | BP128: 8 | BQ128: 0 | BR128: 0 | BS128: 1 | BT128: 0 | BU128: 0 | BV128: 1 | BW128: 0 | BX128: 2 | BY128: 0 | BZ128: 0 | CA128: 1 | CB128: 0 | CC128: 0 | CD128: 0 | CE128: 0 | CF128: 1 | CG128: 0 | CH128: 0 | CI128: 0 | CJ128: 0 | CK128: 5 | CL128: 0 | CM128: 0 | CN128: 0 | CO128: 5 | CP128: n | CQ128: 7 | CR128: 0 | CS128: 8
D129: 124 | E129: 8 | F129: 3 | G129: 2 | H129: 0 | I129: 0 | J129: 3 | K129: LW | L129: n | M129: 702 | N129: LW.0702kW.32003 | O129: 124 | P129: 3 | Q129: 5689 | R129: DN100 | T129: 0 | U129: 3 | V129: 0 | W129: 0 | X129: 1 | Y129: 0 | Z129: 0 | AA129: 2 | AB129: 0 | AC129: 0 | AD129: 0 | AE129: 0 | AF129: 1 | AG129: 0 | AH129: 0 | AI129: 5 | AJ129: 3 | AK129: 0 | AL129: 0 | AM129: 0 | AN129: 0 | AO129: 0 | AP129: 0 | AQ129: 0 | AR129: 1 | AS129: 0 | AT129: 1 | AU129: 0 | AV129: 0 | AW129: 0 | AX129: 0 | AY129: 0 | AZ129: 0 | BA129: 1 | BB129: 0 | BC129: 1 | BD129: 1 | BE129: 0 | BG129: 0 | BH129: 1 | BI129: 0 | BJ129: 1 | BK129: 0 | BL129: 1 | BM129: 0 | BN129: 8 | BO129: 0 | BP129: 8 | BQ129: 0 | BR129: 0 | BS129: 1 | BT129: 0 | BU129: 0 | BV129: 1 | BW129: 0 | BX129: 2 | BY129: 0 | BZ129: 0 | CA129: 1 | CB129: 0 | CC129: 0 | CD129: 0 | CE129: 0 | CF129: 1 | CG129: 0 | CH129: 0 | CI129: 0 | CJ129: 0 | CK129: 5 | CL129: 0 | CM129: 0 | CN129: 0 | CO129: 5 | CP129: n | CQ129: 7 | CR129: 0 | CS129: 8
D130: 125 | E130: 8 | F130: 4 | G130: 1 | H130: 0 | I130: 0 | J130: 3 | K130: LW | L130: n | M130: 681 | N130: LW.0681kW.41003 | O130: 125 | P130: 3 | Q130: 5689 | R130: DN100 | T130: 0 | U130: 3 | V130: 0 | W130: 0 | X130: 1 | Y130: 0 | Z130: 0 | AA130: 2 | AB130: 0 | AC130: 0 | AD130: 0 | AE130: 0 | AF130: 1 | AG130: 0 | AH130: 0 | AI130: 5 | AJ130: 3 | AK130: 0 | AL130: 0 | AM130: 0 | AN130: 0 | AO130: 0 | AP130: 0 | AQ130: 0 | AR130: 1 | AS130: 0 | AT130: 1 | AU130: 0 | AV130: 0 | AW130: 0 | AX130: 0 | AY130: 0 | AZ130: 0 | BA130: 1 | BB130: 0 | BC130: 1 | BD130: 1 | BE130: 0 | BG130: 0 | BH130: 1 | BI130: 0 | BJ130: 1 | BK130: 0 | BL130: 1 | BM130: 0 | BN130: 8 | BO130: 0 | BP130: 8 | BQ130: 0 | BR130: 0 | BS130: 1 | BT130: 0 | BU130: 0 | BV130: 1 | BW130: 0 | BX130: 2 | BY130: 0 | BZ130: 0 | CA130: 1 | CB130: 0 | CC130: 0 | CD130: 0 | CE130: 0 | CF130: 1 | CG130: 0 | CH130: 0 | CI130: 0 | CJ130: 0 | CK130: 5 | CL130: 0 | CM130: 0 | CN130: 0 | CO130: 5 | CP130: n | CQ130: 7 | CR130: 0 | CS130: 8
D131: 126 | E131: 8 | F131: 5 | G131: 0 | H131: 0 | I131: 0 | J131: 3 | K131: LW | L131: n | M131: 660 | N131: LW.0660kW.50003 | O131: 126 | P131: 2 | Q131: 5689 | R131: DN100 | T131: 0 | U131: 3 | V131: 0 | W131: 0 | X131: 1 | Y131: 0 | Z131: 0 | AA131: 2 | AB131: 0 | AC131: 0 | AD131: 0 | AE131: 0 | AF131: 1 | AG131: 0 | AH131: 0 | AI131: 5 | AJ131: 3 | AK131: 0 | AL131: 0 | AM131: 0 | AN131: 0 | AO131: 0 | AP131: 0 | AQ131: 0 | AR131: 1 | AS131: 0 | AT131: 1 | AU131: 0 | AV131: 0 | AW131: 0 | AX131: 0 | AY131: 0 | AZ131: 0 | BA131: 1 | BB131: 0 | BC131: 1 | BD131: 1 | BE131: 0 | BG131: 0 | BH131: 1 | BI131: 0 | BJ131: 1 | BK131: 0 | BL131: 1 | BM131: 0 | BN131: 8 | BO131: 0 | BP131: 8 | BQ131: 0 | BR131: 0 | BS131: 1 | BT131: 0 | BU131: 0 | BV131: 1 | BW131: 0 | BX131: 2 | BY131: 0 | BZ131: 0 | CA131: 1 | CB131: 0 | CC131: 0 | CD131: 0 | CE131: 0 | CF131: 1 | CG131: 0 | CH131: 0 | CI131: 0 | CJ131: 0 | CK131: 5 | CL131: 0 | CM131: 0 | CN131: 0 | CO131: 5 | CP131: n | CQ131: 7 | CR131: 0 | CS131: 8
D132: 127 | E132: 8 | F132: 0 | G132: 0 | H132: 0 | I132: 6 | J132: 2 | K132: LW | L132: n | M132: 946 | N132: LW.0946kW.00062 | O132: 127 | P132: 2 | Q132: 5689 | R132: DN100 | T132: 6 | U132: 2 | V132: 0 | W132: 0 | X132: 1 | Y132: 0 | Z132: 0 | AA132: 2 | AB132: 0 | AC132: 0 | AD132: 0 | AE132: 0 | AF132: 1 | AG132: 0 | AH132: 0 | AI132: 6 | AJ132: 2 | AK132: 0 | AL132: 0 | AM132: 0 | AN132: 0 | AO132: 0 | AP132: 0 | AQ132: 0 | AR132: 1 | AS132: 0 | AT132: 1 | AU132: 0 | AV132: 0 | AW132: 0 | AX132: 0 | AY132: 0 | AZ132: 0 | BA132: 0 | BB132: 1 | BC132: 2 | BD132: 0 | BE132: 0 | BG132: 0 | BH132: 1 | BI132: 0 | BJ132: 1 | BK132: 0 | BL132: 1 | BM132: 0 | BN132: 8 | BO132: 0 | BP132: 8 | BQ132: 0 | BR132: 0 | BS132: 1 | BT132: 0 | BU132: 0 | BV132: 1 | BW132: 0 | BX132: 2 | BY132: 0 | BZ132: 0 | CA132: 1 | CB132: 0 | CC132: 0 | CD132: 0 | CE132: 0 | CF132: 1 | CG132: 0 | CH132: 0 | CI132: 0 | CJ132: 0 | CK132: 6 | CL132: 0 | CM132: 0 | CN132: 0 | CO132: 0 | CP132: n | CQ132: 7 | CR132: 0 | CS132: 8
D133: 128 | E133: 8 | F133: 0 | G133: 0 | H133: 1 | I133: 5 | J133: 2 | K133: LW | L133: n | M133: 923 | N133: LW.0923kW.00152 | O133: 128 | P133: 3 | Q133: 5689 | R133: DN100 | T133: 6 | U133: 2 | V133: 0 | W133: 0 | X133: 1 | Y133: 0 | Z133: 0 | AA133: 2 | AB133: 0 | AC133: 0 | AD133: 0 | AE133: 0 | AF133: 1 | AG133: 0 | AH133: 0 | AI133: 6 | AJ133: 2 | AK133: 0 | AL133: 0 | AM133: 0 | AN133: 0 | AO133: 0 | AP133: 0 | AQ133: 0 | AR133: 1 | AS133: 0 | AT133: 1 | AU133: 0 | AV133: 0 | AW133: 0 | AX133: 0 | AY133: 0 | AZ133: 0 | BA133: 0 | BB133: 1 | BC133: 2 | BD133: 0 | BE133: 0 | BG133: 0 | BH133: 1 | BI133: 0 | BJ133: 1 | BK133: 0 | BL133: 1 | BM133: 0 | BN133: 8 | BO133: 0 | BP133: 8 | BQ133: 0 | BR133: 0 | BS133: 1 | BT133: 0 | BU133: 0 | BV133: 1 | BW133: 0 | BX133: 2 | BY133: 0 | BZ133: 0 | CA133: 1 | CB133: 0 | CC133: 0 | CD133: 0 | CE133: 0 | CF133: 1 | CG133: 0 | CH133: 0 | CI133: 0 | CJ133: 0 | CK133: 6 | CL133: 0 | CM133: 0 | CN133: 0 | CO133: 0 | CP133: n | CQ133: 7 | CR133: 0 | CS133: 8
D134: 129 | E134: 8 | F134: 0 | G134: 1 | H134: 0 | I134: 5 | J134: 2 | K134: LW | L134: n | M134: 901 | N134: LW.0901kW.01052 | O134: 129 | P134: 3 | Q134: 5689 | R134: DN100 | T134: 5 | U134: 2 | V134: 0 | W134: 0 | X134: 1 | Y134: 0 | Z134: 0 | AA134: 2 | AB134: 0 | AC134: 0 | AD134: 0 | AE134: 0 | AF134: 1 | AG134: 0 | AH134: 0 | AI134: 6 | AJ134: 2 | AK134: 0 | AL134: 0 | AM134: 0 | AN134: 0 | AO134: 0 | AP134: 0 | AQ134: 0 | AR134: 1 | AS134: 0 | AT134: 1 | AU134: 0 | AV134: 0 | AW134: 0 | AX134: 0 | AY134: 0 | AZ134: 0 | BA134: 0 | BB134: 1 | BC134: 2 | BD134: 0 | BE134: 0 | BG134: 0 | BH134: 1 | BI134: 0 | BJ134: 1 | BK134: 0 | BL134: 1 | BM134: 0 | BN134: 8 | BO134: 0 | BP134: 8 | BQ134: 0 | BR134: 0 | BS134: 1 | BT134: 0 | BU134: 0 | BV134: 1 | BW134: 0 | BX134: 2 | BY134: 0 | BZ134: 0 | CA134: 1 | CB134: 0 | CC134: 0 | CD134: 0 | CE134: 0 | CF134: 1 | CG134: 0 | CH134: 0 | CI134: 0 | CJ134: 0 | CK134: 6 | CL134: 0 | CM134: 0 | CN134: 0 | CO134: 1 | CP134: n | CQ134: =E134-1 -> 7 | CR134: 0 | CS134: 8
D135: 130 | E135: 8 | F135: 1 | G135: 0 | H135: 0 | I135: 5 | J135: 2 | K135: LW | L135: n | M135: =ROUND(SUMPRODUCT($F$3:$J$3,F135:J135),0) -> 880 | N135: =IF(M135>=1000,CONCATENATE(K135,".",M135,"kW.",F135,G135,H135,I135,J135),CONCATENATE(K135,".0",M135,"kW.",F135,G135,H135,I135,J135)) -> LW.0880kW.10052 | O135: 130 | P135: 3 | Q135: 5689 | R135: DN100 | T135: =I135+H135 -> 5 | U135: =J135 -> 2 | V135: 0 | W135: 0 | X135: 1 | Y135: 0 | Z135: 0 | AA135: 2 | AB135: 0 | AC135: 0 | AD135: 0 | AE135: 0 | AF135: 1 | AG135: 0 | AH135: 0 | AI135: 6 | AJ135: 2 | AK135: 0 | AL135: 0 | AM135: 0 | AN135: 0 | AO135: 0 | AP135: 0 | AQ135: 0 | AR135: 1 | AS135: 0 | AT135: 1 | AU135: 0 | AV135: 0 | AW135: 0 | AX135: 0 | AY135: 0 | AZ135: 0 | BA135: 0 | BB135: 1 | BC135: 2 | BD135: 0 | BE135: 0 | BG135: 0 | BH135: 1 | BI135: 0 | BJ135: 1 | BK135: 0 | BL135: 1 | BM135: 0 | BN135: 8 | BO135: 0 | BP135: 8 | BQ135: =+BO135 -> 0 | BR135: 0 | BS135: 1 | BT135: 0 | BU135: 0 | BV135: 1 | BW135: 0 | BX135: 2 | BY135: 0 | BZ135: 0 | CA135: 1 | CB135: 0 | CC135: 0 | CD135: 0 | CE135: 0 | CF135: 1 | CG135: 0 | CH135: 0 | CI135: 0 | CJ135: 0 | CK135: 6 | CL135: 0 | CM135: 0 | CN135: 0 | CO135: =F135+G135 -> 1 | CP135: n | CQ135: 7 | CR135: 0 | CS135: =IF(K135<>"RG",E135,IF(OR(E135=4,E135=6,E135=8),0,1)) -> 8
D136: 131 | E136: 8 | F136: 0 | G136: 0 | H136: 2 | I136: 4 | J136: 2 | K136: LW | L136: n | M136: 901 | N136: LW.0901kW.00242 | O136: 131 | P136: 3 | Q136: 5689 | R136: DN100 | T136: 6 | U136: 2 | V136: 0 | W136: 0 | X136: 1 | Y136: 0 | Z136: 0 | AA136: 2 | AB136: 0 | AC136: 0 | AD136: 0 | AE136: 0 | AF136: 1 | AG136: 0 | AH136: 0 | AI136: 6 | AJ136: 2 | AK136: 0 | AL136: 0 | AM136: 0 | AN136: 0 | AO136: 0 | AP136: 0 | AQ136: 0 | AR136: 1 | AS136: 0 | AT136: 1 | AU136: 0 | AV136: 0 | AW136: 0 | AX136: 0 | AY136: 0 | AZ136: 0 | BA136: 0 | BB136: 1 | BC136: 2 | BD136: 0 | BE136: 0 | BG136: 0 | BH136: 1 | BI136: 0 | BJ136: 1 | BK136: 0 | BL136: 1 | BM136: 0 | BN136: 8 | BO136: 0 | BP136: 8 | BQ136: 0 | BR136: 0 | BS136: 1 | BT136: 0 | BU136: 0 | BV136: 1 | BW136: 0 | BX136: 2 | BY136: 0 | BZ136: 0 | CA136: 1 | CB136: 0 | CC136: 0 | CD136: 0 | CE136: 0 | CF136: 1 | CG136: 0 | CH136: 0 | CI136: 0 | CJ136: 0 | CK136: 6 | CL136: 0 | CM136: 0 | CN136: 0 | CO136: 0 | CP136: n | CQ136: 7 | CR136: 0 | CS136: 8
D137: 132 | E137: 8 | F137: 0 | G137: 1 | H137: 1 | I137: 4 | J137: 2 | K137: LW | L137: n | M137: 878 | N137: LW.0878kW.01142 | O137: 132 | P137: 4 | Q137: 5689 | R137: DN100 | T137: 5 | U137: 2 | V137: 0 | W137: 0 | X137: 1 | Y137: 0 | Z137: 0 | AA137: 2 | AB137: 0 | AC137: 0 | AD137: 0 | AE137: 0 | AF137: 1 | AG137: 0 | AH137: 0 | AI137: 6 | AJ137: 2 | AK137: 0 | AL137: 0 | AM137: 0 | AN137: 0 | AO137: 0 | AP137: 0 | AQ137: 0 | AR137: 1 | AS137: 0 | AT137: 1 | AU137: 0 | AV137: 0 | AW137: 0 | AX137: 0 | AY137: 0 | AZ137: 0 | BA137: 0 | BB137: 1 | BC137: 2 | BD137: 0 | BE137: 0 | BG137: 0 | BH137: 1 | BI137: 0 | BJ137: 1 | BK137: 0 | BL137: 1 | BM137: 0 | BN137: 8 | BO137: 0 | BP137: 8 | BQ137: 0 | BR137: 0 | BS137: 1 | BT137: 0 | BU137: 0 | BV137: 1 | BW137: 0 | BX137: 2 | BY137: 0 | BZ137: 0 | CA137: 1 | CB137: 0 | CC137: 0 | CD137: 0 | CE137: 0 | CF137: 1 | CG137: 0 | CH137: 0 | CI137: 0 | CJ137: 0 | CK137: 6 | CL137: 0 | CM137: 0 | CN137: 0 | CO137: 1 | CP137: n | CQ137: 7 | CR137: 0 | CS137: 8
D138: 133 | E138: 8 | F138: 1 | G138: 0 | H138: 1 | I138: 4 | J138: 2 | K138: LW | L138: n | M138: 857 | N138: LW.0857kW.10142 | O138: 133 | P138: 4 | Q138: 5689 | R138: DN100 | T138: 5 | U138: 2 | V138: 0 | W138: 0 | X138: 1 | Y138: 0 | Z138: 0 | AA138: 2 | AB138: 0 | AC138: 0 | AD138: 0 | AE138: 0 | AF138: 1 | AG138: 0 | AH138: 0 | AI138: 6 | AJ138: 2 | AK138: 0 | AL138: 0 | AM138: 0 | AN138: 0 | AO138: 0 | AP138: 0 | AQ138: 0 | AR138: 1 | AS138: 0 | AT138: 1 | AU138: 0 | AV138: 0 | AW138: 0 | AX138: 0 | AY138: 0 | AZ138: 0 | BA138: 0 | BB138: 1 | BC138: 2 | BD138: 0 | BE138: 0 | BG138: 0 | BH138: 1 | BI138: 0 | BJ138: 1 | BK138: 0 | BL138: 1 | BM138: 0 | BN138: 8 | BO138: 0 | BP138: 8 | BQ138: 0 | BR138: 0 | BS138: 1 | BT138: 0 | BU138: 0 | BV138: 1 | BW138: 0 | BX138: 2 | BY138: 0 | BZ138: 0 | CA138: 1 | CB138: 0 | CC138: 0 | CD138: 0 | CE138: 0 | CF138: 1 | CG138: 0 | CH138: 0 | CI138: 0 | CJ138: 0 | CK138: 6 | CL138: 0 | CM138: 0 | CN138: 0 | CO138: 1 | CP138: n | CQ138: 7 | CR138: 0 | CS138: 8
D139: 134 | E139: 8 | F139: 0 | G139: 2 | H139: 0 | I139: 4 | J139: 2 | K139: LW | L139: n | M139: 855 | N139: LW.0855kW.02042 | O139: 134 | P139: 3 | Q139: 5689 | R139: DN100 | T139: 4 | U139: 2 | V139: 0 | W139: 0 | X139: 1 | Y139: 0 | Z139: 0 | AA139: 2 | AB139: 0 | AC139: 0 | AD139: 0 | AE139: 0 | AF139: 1 | AG139: 0 | AH139: 0 | AI139: 6 | AJ139: 2 | AK139: 0 | AL139: 0 | AM139: 0 | AN139: 0 | AO139: 0 | AP139: 0 | AQ139: 0 | AR139: 1 | AS139: 0 | AT139: 1 | AU139: 0 | AV139: 0 | AW139: 0 | AX139: 0 | AY139: 0 | AZ139: 0 | BA139: 0 | BB139: 1 | BC139: 2 | BD139: 0 | BE139: 0 | BG139: 0 | BH139: 1 | BI139: 0 | BJ139: 1 | BK139: 0 | BL139: 1 | BM139: 0 | BN139: 8 | BO139: 0 | BP139: 8 | BQ139: 0 | BR139: 0 | BS139: 1 | BT139: 0 | BU139: 0 | BV139: 1 | BW139: 0 | BX139: 2 | BY139: 0 | BZ139: 0 | CA139: 1 | CB139: 0 | CC139: 0 | CD139: 0 | CE139: 0 | CF139: 1 | CG139: 0 | CH139: 0 | CI139: 0 | CJ139: 0 | CK139: 6 | CL139: 0 | CM139: 0 | CN139: 0 | CO139: 2 | CP139: n | CQ139: 7 | CR139: 0 | CS139: 8
D140: 135 | E140: 8 | F140: 1 | G140: 1 | H140: 0 | I140: 4 | J140: 2 | K140: LW | L140: n | M140: 835 | N140: LW.0835kW.11042 | O140: 135 | P140: 4 | Q140: 5689 | R140: DN100 | T140: 4 | U140: 2 | V140: 0 | W140: 0 | X140: 1 | Y140: 0 | Z140: 0 | AA140: 2 | AB140: 0 | AC140: 0 | AD140: 0 | AE140: 0 | AF140: 1 | AG140: 0 | AH140: 0 | AI140: 6 | AJ140: 2 | AK140: 0 | AL140: 0 | AM140: 0 | AN140: 0 | AO140: 0 | AP140: 0 | AQ140: 0 | AR140: 1 | AS140: 0 | AT140: 1 | AU140: 0 | AV140: 0 | AW140: 0 | AX140: 0 | AY140: 0 | AZ140: 0 | BA140: 0 | BB140: 1 | BC140: 2 | BD140: 0 | BE140: 0 | BG140: 0 | BH140: 1 | BI140: 0 | BJ140: 1 | BK140: 0 | BL140: 1 | BM140: 0 | BN140: 8 | BO140: 0 | BP140: 8 | BQ140: 0 | BR140: 0 | BS140: 1 | BT140: 0 | BU140: 0 | BV140: 1 | BW140: 0 | BX140: 2 | BY140: 0 | BZ140: 0 | CA140: 1 | CB140: 0 | CC140: 0 | CD140: 0 | CE140: 0 | CF140: 1 | CG140: 0 | CH140: 0 | CI140: 0 | CJ140: 0 | CK140: 6 | CL140: 0 | CM140: 0 | CN140: 0 | CO140: 2 | CP140: n | CQ140: 7 | CR140: 0 | CS140: 8
D141: 136 | E141: 8 | F141: 2 | G141: 0 | H141: 0 | I141: 4 | J141: 2 | K141: LW | L141: n | M141: 814 | N141: LW.0814kW.20042 | O141: 136 | P141: 3 | Q141: 5689 | R141: DN100 | T141: 4 | U141: 2 | V141: 0 | W141: 0 | X141: 1 | Y141: 0 | Z141: 0 | AA141: 2 | AB141: 0 | AC141: 0 | AD141: 0 | AE141: 0 | AF141: 1 | AG141: 0 | AH141: 0 | AI141: 6 | AJ141: 2 | AK141: 0 | AL141: 0 | AM141: 0 | AN141: 0 | AO141: 0 | AP141: 0 | AQ141: 0 | AR141: 1 | AS141: 0 | AT141: 1 | AU141: 0 | AV141: 0 | AW141: 0 | AX141: 0 | AY141: 0 | AZ141: 0 | BA141: 0 | BB141: 1 | BC141: 2 | BD141: 0 | BE141: 0 | BG141: 0 | BH141: 1 | BI141: 0 | BJ141: 1 | BK141: 0 | BL141: 1 | BM141: 0 | BN141: 8 | BO141: 0 | BP141: 8 | BQ141: 0 | BR141: 0 | BS141: 1 | BT141: 0 | BU141: 0 | BV141: 1 | BW141: 0 | BX141: 2 | BY141: 0 | BZ141: 0 | CA141: 1 | CB141: 0 | CC141: 0 | CD141: 0 | CE141: 0 | CF141: 1 | CG141: 0 | CH141: 0 | CI141: 0 | CJ141: 0 | CK141: 6 | CL141: 0 | CM141: 0 | CN141: 0 | CO141: 2 | CP141: n | CQ141: 7 | CR141: 0 | CS141: 8
D142: 137 | E142: 8 | F142: 0 | G142: 0 | H142: 3 | I142: 3 | J142: 2 | K142: LW | L142: n | M142: 878 | N142: LW.0878kW.00332 | O142: 137 | P142: 3 | Q142: 5689 | R142: DN100 | T142: 6 | U142: 2 | V142: 0 | W142: 0 | X142: 1 | Y142: 0 | Z142: 0 | AA142: 2 | AB142: 0 | AC142: 0 | AD142: 0 | AE142: 0 | AF142: 1 | AG142: 0 | AH142: 0 | AI142: 6 | AJ142: 2 | AK142: 0 | AL142: 0 | AM142: 0 | AN142: 0 | AO142: 0 | AP142: 0 | AQ142: 0 | AR142: 1 | AS142: 0 | AT142: 1 | AU142: 0 | AV142: 0 | AW142: 0 | AX142: 0 | AY142: 0 | AZ142: 0 | BA142: 0 | BB142: 1 | BC142: 2 | BD142: 0 | BE142: 0 | BG142: 0 | BH142: 1 | BI142: 0 | BJ142: 1 | BK142: 0 | BL142: 1 | BM142: 0 | BN142: 8 | BO142: 0 | BP142: 8 | BQ142: 0 | BR142: 0 | BS142: 1 | BT142: 0 | BU142: 0 | BV142: 1 | BW142: 0 | BX142: 2 | BY142: 0 | BZ142: 0 | CA142: 1 | CB142: 0 | CC142: 0 | CD142: 0 | CE142: 0 | CF142: 1 | CG142: 0 | CH142: 0 | CI142: 0 | CJ142: 0 | CK142: 6 | CL142: 0 | CM142: 0 | CN142: 0 | CO142: 0 | CP142: n | CQ142: 7 | CR142: 0 | CS142: 8
D143: 138 | E143: 8 | F143: 0 | G143: 1 | H143: 2 | I143: 3 | J143: 2 | K143: LW | L143: n | M143: 855 | N143: LW.0855kW.01232 | O143: 138 | P143: 4 | Q143: 5689 | R143: DN100 | T143: 5 | U143: 2 | V143: 0 | W143: 0 | X143: 1 | Y143: 0 | Z143: 0 | AA143: 2 | AB143: 0 | AC143: 0 | AD143: 0 | AE143: 0 | AF143: 1 | AG143: 0 | AH143: 0 | AI143: 6 | AJ143: 2 | AK143: 0 | AL143: 0 | AM143: 0 | AN143: 0 | AO143: 0 | AP143: 0 | AQ143: 0 | AR143: 1 | AS143: 0 | AT143: 1 | AU143: 0 | AV143: 0 | AW143: 0 | AX143: 0 | AY143: 0 | AZ143: 0 | BA143: 0 | BB143: 1 | BC143: 2 | BD143: 0 | BE143: 0 | BG143: 0 | BH143: 1 | BI143: 0 | BJ143: 1 | BK143: 0 | BL143: 1 | BM143: 0 | BN143: 8 | BO143: 0 | BP143: 8 | BQ143: 0 | BR143: 0 | BS143: 1 | BT143: 0 | BU143: 0 | BV143: 1 | BW143: 0 | BX143: 2 | BY143: 0 | BZ143: 0 | CA143: 1 | CB143: 0 | CC143: 0 | CD143: 0 | CE143: 0 | CF143: 1 | CG143: 0 | CH143: 0 | CI143: 0 | CJ143: 0 | CK143: 6 | CL143: 0 | CM143: 0 | CN143: 0 | CO143: 1 | CP143: n | CQ143: 7 | CR143: 0 | CS143: 8
D144: 139 | E144: 8 | F144: 1 | G144: 0 | H144: 2 | I144: 3 | J144: 2 | K144: LW | L144: n | M144: 834 | N144: LW.0834kW.10232 | O144: 139 | P144: 4 | Q144: 5689 | R144: DN100 | T144: 5 | U144: 2 | V144: 0 | W144: 0 | X144: 1 | Y144: 0 | Z144: 0 | AA144: 2 | AB144: 0 | AC144: 0 | AD144: 0 | AE144: 0 | AF144: 1 | AG144: 0 | AH144: 0 | AI144: 6 | AJ144: 2 | AK144: 0 | AL144: 0 | AM144: 0 | AN144: 0 | AO144: 0 | AP144: 0 | AQ144: 0 | AR144: 1 | AS144: 0 | AT144: 1 | AU144: 0 | AV144: 0 | AW144: 0 | AX144: 0 | AY144: 0 | AZ144: 0 | BA144: 0 | BB144: 1 | BC144: 2 | BD144: 0 | BE144: 0 | BG144: 0 | BH144: 1 | BI144: 0 | BJ144: 1 | BK144: 0 | BL144: 1 | BM144: 0 | BN144: 8 | BO144: 0 | BP144: 8 | BQ144: 0 | BR144: 0 | BS144: 1 | BT144: 0 | BU144: 0 | BV144: 1 | BW144: 0 | BX144: 2 | BY144: 0 | BZ144: 0 | CA144: 1 | CB144: 0 | CC144: 0 | CD144: 0 | CE144: 0 | CF144: 1 | CG144: 0 | CH144: 0 | CI144: 0 | CJ144: 0 | CK144: 6 | CL144: 0 | CM144: 0 | CN144: 0 | CO144: 1 | CP144: n | CQ144: 7 | CR144: 0 | CS144: 8
D145: 140 | E145: 8 | F145: 0 | G145: 2 | H145: 1 | I145: 3 | J145: 2 | K145: LW | L145: n | M145: 832 | N145: LW.0832kW.02132 | O145: 140 | P145: 4 | Q145: 5689 | R145: DN100 | T145: 4 | U145: 2 | V145: 0 | W145: 0 | X145: 1 | Y145: 0 | Z145: 0 | AA145: 2 | AB145: 0 | AC145: 0 | AD145: 0 | AE145: 0 | AF145: 1 | AG145: 0 | AH145: 0 | AI145: 6 | AJ145: 2 | AK145: 0 | AL145: 0 | AM145: 0 | AN145: 0 | AO145: 0 | AP145: 0 | AQ145: 0 | AR145: 1 | AS145: 0 | AT145: 1 | AU145: 0 | AV145: 0 | AW145: 0 | AX145: 0 | AY145: 0 | AZ145: 0 | BA145: 0 | BB145: 1 | BC145: 2 | BD145: 0 | BE145: 0 | BG145: 0 | BH145: 1 | BI145: 0 | BJ145: 1 | BK145: 0 | BL145: 1 | BM145: 0 | BN145: 8 | BO145: 0 | BP145: 8 | BQ145: 0 | BR145: 0 | BS145: 1 | BT145: 0 | BU145: 0 | BV145: 1 | BW145: 0 | BX145: 2 | BY145: 0 | BZ145: 0 | CA145: 1 | CB145: 0 | CC145: 0 | CD145: 0 | CE145: 0 | CF145: 1 | CG145: 0 | CH145: 0 | CI145: 0 | CJ145: 0 | CK145: 6 | CL145: 0 | CM145: 0 | CN145: 0 | CO145: 2 | CP145: n | CQ145: 7 | CR145: 0 | CS145: 8
D146: 141 | E146: 8 | F146: 1 | G146: 1 | H146: 1 | I146: 3 | J146: 2 | K146: LW | L146: n | M146: 812 | N146: LW.0812kW.11132 | O146: 141 | P146: 5 | Q146: 5689 | R146: DN100 | T146: 4 | U146: 2 | V146: 0 | W146: 0 | X146: 1 | Y146: 0 | Z146: 0 | AA146: 2 | AB146: 0 | AC146: 0 | AD146: 0 | AE146: 0 | AF146: 1 | AG146: 0 | AH146: 0 | AI146: 6 | AJ146: 2 | AK146: 0 | AL146: 0 | AM146: 0 | AN146: 0 | AO146: 0 | AP146: 0 | AQ146: 0 | AR146: 1 | AS146: 0 | AT146: 1 | AU146: 0 | AV146: 0 | AW146: 0 | AX146: 0 | AY146: 0 | AZ146: 0 | BA146: 0 | BB146: 1 | BC146: 2 | BD146: 0 | BE146: 0 | BG146: 0 | BH146: 1 | BI146: 0 | BJ146: 1 | BK146: 0 | BL146: 1 | BM146: 0 | BN146: 8 | BO146: 0 | BP146: 8 | BQ146: 0 | BR146: 0 | BS146: 1 | BT146: 0 | BU146: 0 | BV146: 1 | BW146: 0 | BX146: 2 | BY146: 0 | BZ146: 0 | CA146: 1 | CB146: 0 | CC146: 0 | CD146: 0 | CE146: 0 | CF146: 1 | CG146: 0 | CH146: 0 | CI146: 0 | CJ146: 0 | CK146: 6 | CL146: 0 | CM146: 0 | CN146: 0 | CO146: 2 | CP146: n | CQ146: 7 | CR146: 0 | CS146: 8
D147: 142 | E147: 8 | F147: 2 | G147: 0 | H147: 1 | I147: 3 | J147: 2 | K147: LW | L147: n | M147: 791 | N147: LW.0791kW.20132 | O147: 142 | P147: 4 | Q147: 5689 | R147: DN100 | T147: 4 | U147: 2 | V147: 0 | W147: 0 | X147: 1 | Y147: 0 | Z147: 0 | AA147: 2 | AB147: 0 | AC147: 0 | AD147: 0 | AE147: 0 | AF147: 1 | AG147: 0 | AH147: 0 | AI147: 6 | AJ147: 2 | AK147: 0 | AL147: 0 | AM147: 0 | AN147: 0 | AO147: 0 | AP147: 0 | AQ147: 0 | AR147: 1 | AS147: 0 | AT147: 1 | AU147: 0 | AV147: 0 | AW147: 0 | AX147: 0 | AY147: 0 | AZ147: 0 | BA147: 0 | BB147: 1 | BC147: 2 | BD147: 0 | BE147: 0 | BG147: 0 | BH147: 1 | BI147: 0 | BJ147: 1 | BK147: 0 | BL147: 1 | BM147: 0 | BN147: 8 | BO147: 0 | BP147: 8 | BQ147: 0 | BR147: 0 | BS147: 1 | BT147: 0 | BU147: 0 | BV147: 1 | BW147: 0 | BX147: 2 | BY147: 0 | BZ147: 0 | CA147: 1 | CB147: 0 | CC147: 0 | CD147: 0 | CE147: 0 | CF147: 1 | CG147: 0 | CH147: 0 | CI147: 0 | CJ147: 0 | CK147: 6 | CL147: 0 | CM147: 0 | CN147: 0 | CO147: 2 | CP147: n | CQ147: 7 | CR147: 0 | CS147: 8
D148: 143 | E148: 8 | F148: 0 | G148: 3 | H148: 0 | I148: 3 | J148: 2 | K148: LW | L148: n | M148: 810 | N148: LW.0810kW.03032 | O148: 143 | P148: 3 | Q148: 5689 | R148: DN100 | T148: 3 | U148: 2 | V148: 0 | W148: 0 | X148: 1 | Y148: 0 | Z148: 0 | AA148: 2 | AB148: 0 | AC148: 0 | AD148: 0 | AE148: 0 | AF148: 1 | AG148: 0 | AH148: 0 | AI148: 6 | AJ148: 2 | AK148: 0 | AL148: 0 | AM148: 0 | AN148: 0 | AO148: 0 | AP148: 0 | AQ148: 0 | AR148: 1 | AS148: 0 | AT148: 1 | AU148: 0 | AV148: 0 | AW148: 0 | AX148: 0 | AY148: 0 | AZ148: 0 | BA148: 0 | BB148: 1 | BC148: 2 | BD148: 0 | BE148: 0 | BG148: 0 | BH148: 1 | BI148: 0 | BJ148: 1 | BK148: 0 | BL148: 1 | BM148: 0 | BN148: 8 | BO148: 0 | BP148: 8 | BQ148: 0 | BR148: 0 | BS148: 1 | BT148: 0 | BU148: 0 | BV148: 1 | BW148: 0 | BX148: 2 | BY148: 0 | BZ148: 0 | CA148: 1 | CB148: 0 | CC148: 0 | CD148: 0 | CE148: 0 | CF148: 1 | CG148: 0 | CH148: 0 | CI148: 0 | CJ148: 0 | CK148: 6 | CL148: 0 | CM148: 0 | CN148: 0 | CO148: 3 | CP148: n | CQ148: 7 | CR148: 0 | CS148: 8
D149: 144 | E149: 8 | F149: 1 | G149: 2 | H149: 0 | I149: 3 | J149: 2 | K149: LW | L149: n | M149: 789 | N149: LW.0789kW.12032 | O149: 144 | P149: 4 | Q149: 5689 | R149: DN100 | T149: 3 | U149: 2 | V149: 0 | W149: 0 | X149: 1 | Y149: 0 | Z149: 0 | AA149: 2 | AB149: 0 | AC149: 0 | AD149: 0 | AE149: 0 | AF149: 1 | AG149: 0 | AH149: 0 | AI149: 6 | AJ149: 2 | AK149: 0 | AL149: 0 | AM149: 0 | AN149: 0 | AO149: 0 | AP149: 0 | AQ149: 0 | AR149: 1 | AS149: 0 | AT149: 1 | AU149: 0 | AV149: 0 | AW149: 0 | AX149: 0 | AY149: 0 | AZ149: 0 | BA149: 0 | BB149: 1 | BC149: 2 | BD149: 0 | BE149: 0 | BG149: 0 | BH149: 1 | BI149: 0 | BJ149: 1 | BK149: 0 | BL149: 1 | BM149: 0 | BN149: 8 | BO149: 0 | BP149: 8 | BQ149: 0 | BR149: 0 | BS149: 1 | BT149: 0 | BU149: 0 | BV149: 1 | BW149: 0 | BX149: 2 | BY149: 0 | BZ149: 0 | CA149: 1 | CB149: 0 | CC149: 0 | CD149: 0 | CE149: 0 | CF149: 1 | CG149: 0 | CH149: 0 | CI149: 0 | CJ149: 0 | CK149: 6 | CL149: 0 | CM149: 0 | CN149: 0 | CO149: 3 | CP149: n | CQ149: 7 | CR149: 0 | CS149: 8
D150: 145 | E150: 8 | F150: 2 | G150: 1 | H150: 0 | I150: 3 | J150: 2 | K150: LW | L150: n | M150: 768 | N150: LW.0768kW.21032 | O150: 145 | P150: 4 | Q150: 5689 | R150: DN100 | T150: 3 | U150: 2 | V150: 0 | W150: 0 | X150: 1 | Y150: 0 | Z150: 0 | AA150: 2 | AB150: 0 | AC150: 0 | AD150: 0 | AE150: 0 | AF150: 1 | AG150: 0 | AH150: 0 | AI150: 6 | AJ150: 2 | AK150: 0 | AL150: 0 | AM150: 0 | AN150: 0 | AO150: 0 | AP150: 0 | AQ150: 0 | AR150: 1 | AS150: 0 | AT150: 1 | AU150: 0 | AV150: 0 | AW150: 0 | AX150: 0 | AY150: 0 | AZ150: 0 | BA150: 0 | BB150: 1 | BC150: 2 | BD150: 0 | BE150: 0 | BG150: 0 | BH150: 1 | BI150: 0 | BJ150: 1 | BK150: 0 | BL150: 1 | BM150: 0 | BN150: 8 | BO150: 0 | BP150: 8 | BQ150: 0 | BR150: 0 | BS150: 1 | BT150: 0 | BU150: 0 | BV150: 1 | BW150: 0 | BX150: 2 | BY150: 0 | BZ150: 0 | CA150: 1 | CB150: 0 | CC150: 0 | CD150: 0 | CE150: 0 | CF150: 1 | CG150: 0 | CH150: 0 | CI150: 0 | CJ150: 0 | CK150: 6 | CL150: 0 | CM150: 0 | CN150: 0 | CO150: 3 | CP150: n | CQ150: 7 | CR150: 0 | CS150: 8
D151: 146 | E151: 8 | F151: 3 | G151: 0 | H151: 0 | I151: 3 | J151: 2 | K151: LW | L151: n | M151: 748 | N151: LW.0748kW.30032 | O151: 146 | P151: 3 | Q151: 5689 | R151: DN100 | T151: 3 | U151: 2 | V151: 0 | W151: 0 | X151: 1 | Y151: 0 | Z151: 0 | AA151: 2 | AB151: 0 | AC151: 0 | AD151: 0 | AE151: 0 | AF151: 1 | AG151: 0 | AH151: 0 | AI151: 6 | AJ151: 2 | AK151: 0 | AL151: 0 | AM151: 0 | AN151: 0 | AO151: 0 | AP151: 0 | AQ151: 0 | AR151: 1 | AS151: 0 | AT151: 1 | AU151: 0 | AV151: 0 | AW151: 0 | AX151: 0 | AY151: 0 | AZ151: 0 | BA151: 0 | BB151: 1 | BC151: 2 | BD151: 0 | BE151: 0 | BG151: 0 | BH151: 1 | BI151: 0 | BJ151: 1 | BK151: 0 | BL151: 1 | BM151: 0 | BN151: 8 | BO151: 0 | BP151: 8 | BQ151: 0 | BR151: 0 | BS151: 1 | BT151: 0 | BU151: 0 | BV151: 1 | BW151: 0 | BX151: 2 | BY151: 0 | BZ151: 0 | CA151: 1 | CB151: 0 | CC151: 0 | CD151: 0 | CE151: 0 | CF151: 1 | CG151: 0 | CH151: 0 | CI151: 0 | CJ151: 0 | CK151: 6 | CL151: 0 | CM151: 0 | CN151: 0 | CO151: 3 | CP151: n | CQ151: 7 | CR151: 0 | CS151: 8
D152: 147 | E152: 8 | F152: 0 | G152: 0 | H152: 4 | I152: 2 | J152: 2 | K152: LW | L152: n | M152: 855 | N152: LW.0855kW.00422 | O152: 147 | P152: 3 | Q152: 5689 | R152: DN100 | T152: 6 | U152: 2 | V152: 0 | W152: 0 | X152: 1 | Y152: 0 | Z152: 0 | AA152: 2 | AB152: 0 | AC152: 0 | AD152: 0 | AE152: 0 | AF152: 1 | AG152: 0 | AH152: 0 | AI152: 6 | AJ152: 2 | AK152: 0 | AL152: 0 | AM152: 0 | AN152: 0 | AO152: 0 | AP152: 0 | AQ152: 0 | AR152: 1 | AS152: 0 | AT152: 1 | AU152: 0 | AV152: 0 | AW152: 0 | AX152: 0 | AY152: 0 | AZ152: 0 | BA152: 0 | BB152: 1 | BC152: 2 | BD152: 0 | BE152: 0 | BG152: 0 | BH152: 1 | BI152: 0 | BJ152: 1 | BK152: 0 | BL152: 1 | BM152: 0 | BN152: 8 | BO152: 0 | BP152: 8 | BQ152: 0 | BR152: 0 | BS152: 1 | BT152: 0 | BU152: 0 | BV152: 1 | BW152: 0 | BX152: 2 | BY152: 0 | BZ152: 0 | CA152: 1 | CB152: 0 | CC152: 0 | CD152: 0 | CE152: 0 | CF152: 1 | CG152: 0 | CH152: 0 | CI152: 0 | CJ152: 0 | CK152: 6 | CL152: 0 | CM152: 0 | CN152: 0 | CO152: 0 | CP152: n | CQ152: 7 | CR152: 0 | CS152: 8
D153: 148 | E153: 8 | F153: 0 | G153: 1 | H153: 3 | I153: 2 | J153: 2 | K153: LW | L153: n | M153: 832 | N153: LW.0832kW.01322 | O153: 148 | P153: 4 | Q153: 5689 | R153: DN100 | T153: 5 | U153: 2 | V153: 0 | W153: 0 | X153: 1 | Y153: 0 | Z153: 0 | AA153: 2 | AB153: 0 | AC153: 0 | AD153: 0 | AE153: 0 | AF153: 1 | AG153: 0 | AH153: 0 | AI153: 6 | AJ153: 2 | AK153: 0 | AL153: 0 | AM153: 0 | AN153: 0 | AO153: 0 | AP153: 0 | AQ153: 0 | AR153: 1 | AS153: 0 | AT153: 1 | AU153: 0 | AV153: 0 | AW153: 0 | AX153: 0 | AY153: 0 | AZ153: 0 | BA153: 0 | BB153: 1 | BC153: 2 | BD153: 0 | BE153: 0 | BG153: 0 | BH153: 1 | BI153: 0 | BJ153: 1 | BK153: 0 | BL153: 1 | BM153: 0 | BN153: 8 | BO153: 0 | BP153: 8 | BQ153: 0 | BR153: 0 | BS153: 1 | BT153: 0 | BU153: 0 | BV153: 1 | BW153: 0 | BX153: 2 | BY153: 0 | BZ153: 0 | CA153: 1 | CB153: 0 | CC153: 0 | CD153: 0 | CE153: 0 | CF153: 1 | CG153: 0 | CH153: 0 | CI153: 0 | CJ153: 0 | CK153: 6 | CL153: 0 | CM153: 0 | CN153: 0 | CO153: 1 | CP153: n | CQ153: 7 | CR153: 0 | CS153: 8
D154: 149 | E154: 8 | F154: 1 | G154: 0 | H154: 3 | I154: 2 | J154: 2 | K154: LW | L154: n | M154: 812 | N154: LW.0812kW.10322 | O154: 149 | P154: 4 | Q154: 5689 | R154: DN100 | T154: 5 | U154: 2 | V154: 0 | W154: 0 | X154: 1 | Y154: 0 | Z154: 0 | AA154: 2 | AB154: 0 | AC154: 0 | AD154: 0 | AE154: 0 | AF154: 1 | AG154: 0 | AH154: 0 | AI154: 6 | AJ154: 2 | AK154: 0 | AL154: 0 | AM154: 0 | AN154: 0 | AO154: 0 | AP154: 0 | AQ154: 0 | AR154: 1 | AS154: 0 | AT154: 1 | AU154: 0 | AV154: 0 | AW154: 0 | AX154: 0 | AY154: 0 | AZ154: 0 | BA154: 0 | BB154: 1 | BC154: 2 | BD154: 0 | BE154: 0 | BG154: 0 | BH154: 1 | BI154: 0 | BJ154: 1 | BK154: 0 | BL154: 1 | BM154: 0 | BN154: 8 | BO154: 0 | BP154: 8 | BQ154: 0 | BR154: 0 | BS154: 1 | BT154: 0 | BU154: 0 | BV154: 1 | BW154: 0 | BX154: 2 | BY154: 0 | BZ154: 0 | CA154: 1 | CB154: 0 | CC154: 0 | CD154: 0 | CE154: 0 | CF154: 1 | CG154: 0 | CH154: 0 | CI154: 0 | CJ154: 0 | CK154: 6 | CL154: 0 | CM154: 0 | CN154: 0 | CO154: 1 | CP154: n | CQ154: 7 | CR154: 0 | CS154: 8
D155: 150 | E155: 8 | F155: 0 | G155: 2 | H155: 2 | I155: 2 | J155: 2 | K155: LW | L155: n | M155: 810 | N155: LW.0810kW.02222 | O155: 150 | P155: 4 | Q155: 5689 | R155: DN100 | T155: 4 | U155: 2 | V155: 0 | W155: 0 | X155: 1 | Y155: 0 | Z155: 0 | AA155: 2 | AB155: 0 | AC155: 0 | AD155: 0 | AE155: 0 | AF155: 1 | AG155: 0 | AH155: 0 | AI155: 6 | AJ155: 2 | AK155: 0 | AL155: 0 | AM155: 0 | AN155: 0 | AO155: 0 | AP155: 0 | AQ155: 0 | AR155: 1 | AS155: 0 | AT155: 1 | AU155: 0 | AV155: 0 | AW155: 0 | AX155: 0 | AY155: 0 | AZ155: 0 | BA155: 0 | BB155: 1 | BC155: 2 | BD155: 0 | BE155: 0 | BG155: 0 | BH155: 1 | BI155: 0 | BJ155: 1 | BK155: 0 | BL155: 1 | BM155: 0 | BN155: 8 | BO155: 0 | BP155: 8 | BQ155: 0 | BR155: 0 | BS155: 1 | BT155: 0 | BU155: 0 | BV155: 1 | BW155: 0 | BX155: 2 | BY155: 0 | BZ155: 0 | CA155: 1 | CB155: 0 | CC155: 0 | CD155: 0 | CE155: 0 | CF155: 1 | CG155: 0 | CH155: 0 | CI155: 0 | CJ155: 0 | CK155: 6 | CL155: 0 | CM155: 0 | CN155: 0 | CO155: 2 | CP155: n | CQ155: 7 | CR155: 0 | CS155: 8
D156: 151 | E156: 8 | F156: 1 | G156: 1 | H156: 2 | I156: 2 | J156: 2 | K156: LW | L156: n | M156: 789 | N156: LW.0789kW.11222 | O156: 151 | P156: 5 | Q156: 5689 | R156: DN100 | T156: 4 | U156: 2 | V156: 0 | W156: 0 | X156: 1 | Y156: 0 | Z156: 0 | AA156: 2 | AB156: 0 | AC156: 0 | AD156: 0 | AE156: 0 | AF156: 1 | AG156: 0 | AH156: 0 | AI156: 6 | AJ156: 2 | AK156: 0 | AL156: 0 | AM156: 0 | AN156: 0 | AO156: 0 | AP156: 0 | AQ156: 0 | AR156: 1 | AS156: 0 | AT156: 1 | AU156: 0 | AV156: 0 | AW156: 0 | AX156: 0 | AY156: 0 | AZ156: 0 | BA156: 0 | BB156: 1 | BC156: 2 | BD156: 0 | BE156: 0 | BG156: 0 | BH156: 1 | BI156: 0 | BJ156: 1 | BK156: 0 | BL156: 1 | BM156: 0 | BN156: 8 | BO156: 0 | BP156: 8 | BQ156: 0 | BR156: 0 | BS156: 1 | BT156: 0 | BU156: 0 | BV156: 1 | BW156: 0 | BX156: 2 | BY156: 0 | BZ156: 0 | CA156: 1 | CB156: 0 | CC156: 0 | CD156: 0 | CE156: 0 | CF156: 1 | CG156: 0 | CH156: 0 | CI156: 0 | CJ156: 0 | CK156: 6 | CL156: 0 | CM156: 0 | CN156: 0 | CO156: 2 | CP156: n | CQ156: 7 | CR156: 0 | CS156: 8
D157: 152 | E157: 8 | F157: 2 | G157: 0 | H157: 2 | I157: 2 | J157: 2 | K157: LW | L157: n | M157: 768 | N157: LW.0768kW.20222 | O157: 152 | P157: 4 | Q157: 5689 | R157: DN100 | T157: 4 | U157: 2 | V157: 0 | W157: 0 | X157: 1 | Y157: 0 | Z157: 0 | AA157: 2 | AB157: 0 | AC157: 0 | AD157: 0 | AE157: 0 | AF157: 1 | AG157: 0 | AH157: 0 | AI157: 6 | AJ157: 2 | AK157: 0 | AL157: 0 | AM157: 0 | AN157: 0 | AO157: 0 | AP157: 0 | AQ157: 0 | AR157: 1 | AS157: 0 | AT157: 1 | AU157: 0 | AV157: 0 | AW157: 0 | AX157: 0 | AY157: 0 | AZ157: 0 | BA157: 0 | BB157: 1 | BC157: 2 | BD157: 0 | BE157: 0 | BG157: 0 | BH157: 1 | BI157: 0 | BJ157: 1 | BK157: 0 | BL157: 1 | BM157: 0 | BN157: 8 | BO157: 0 | BP157: 8 | BQ157: 0 | BR157: 0 | BS157: 1 | BT157: 0 | BU157: 0 | BV157: 1 | BW157: 0 | BX157: 2 | BY157: 0 | BZ157: 0 | CA157: 1 | CB157: 0 | CC157: 0 | CD157: 0 | CE157: 0 | CF157: 1 | CG157: 0 | CH157: 0 | CI157: 0 | CJ157: 0 | CK157: 6 | CL157: 0 | CM157: 0 | CN157: 0 | CO157: 2 | CP157: n | CQ157: 7 | CR157: 0 | CS157: 8
D158: 153 | E158: 8 | F158: 0 | G158: 3 | H158: 1 | I158: 2 | J158: 2 | K158: LW | L158: n | M158: 787 | N158: LW.0787kW.03122 | O158: 153 | P158: 4 | Q158: 5689 | R158: DN100 | T158: 3 | U158: 2 | V158: 0 | W158: 0 | X158: 1 | Y158: 0 | Z158: 0 | AA158: 2 | AB158: 0 | AC158: 0 | AD158: 0 | AE158: 0 | AF158: 1 | AG158: 0 | AH158: 0 | AI158: 6 | AJ158: 2 | AK158: 0 | AL158: 0 | AM158: 0 | AN158: 0 | AO158: 0 | AP158: 0 | AQ158: 0 | AR158: 1 | AS158: 0 | AT158: 1 | AU158: 0 | AV158: 0 | AW158: 0 | AX158: 0 | AY158: 0 | AZ158: 0 | BA158: 0 | BB158: 1 | BC158: 2 | BD158: 0 | BE158: 0 | BG158: 0 | BH158: 1 | BI158: 0 | BJ158: 1 | BK158: 0 | BL158: 1 | BM158: 0 | BN158: 8 | BO158: 0 | BP158: 8 | BQ158: 0 | BR158: 0 | BS158: 1 | BT158: 0 | BU158: 0 | BV158: 1 | BW158: 0 | BX158: 2 | BY158: 0 | BZ158: 0 | CA158: 1 | CB158: 0 | CC158: 0 | CD158: 0 | CE158: 0 | CF158: 1 | CG158: 0 | CH158: 0 | CI158: 0 | CJ158: 0 | CK158: 6 | CL158: 0 | CM158: 0 | CN158: 0 | CO158: 3 | CP158: n | CQ158: 7 | CR158: 0 | CS158: 8
D159: 154 | E159: 8 | F159: 1 | G159: 2 | H159: 1 | I159: 2 | J159: 2 | K159: LW | L159: n | M159: 766 | N159: LW.0766kW.12122 | O159: 154 | P159: 5 | Q159: 5689 | R159: DN100 | T159: 3 | U159: 2 | V159: 0 | W159: 0 | X159: 1 | Y159: 0 | Z159: 0 | AA159: 2 | AB159: 0 | AC159: 0 | AD159: 0 | AE159: 0 | AF159: 1 | AG159: 0 | AH159: 0 | AI159: 6 | AJ159: 2 | AK159: 0 | AL159: 0 | AM159: 0 | AN159: 0 | AO159: 0 | AP159: 0 | AQ159: 0 | AR159: 1 | AS159: 0 | AT159: 1 | AU159: 0 | AV159: 0 | AW159: 0 | AX159: 0 | AY159: 0 | AZ159: 0 | BA159: 0 | BB159: 1 | BC159: 2 | BD159: 0 | BE159: 0 | BG159: 0 | BH159: 1 | BI159: 0 | BJ159: 1 | BK159: 0 | BL159: 1 | BM159: 0 | BN159: 8 | BO159: 0 | BP159: 8 | BQ159: 0 | BR159: 0 | BS159: 1 | BT159: 0 | BU159: 0 | BV159: 1 | BW159: 0 | BX159: 2 | BY159: 0 | BZ159: 0 | CA159: 1 | CB159: 0 | CC159: 0 | CD159: 0 | CE159: 0 | CF159: 1 | CG159: 0 | CH159: 0 | CI159: 0 | CJ159: 0 | CK159: 6 | CL159: 0 | CM159: 0 | CN159: 0 | CO159: 3 | CP159: n | CQ159: 7 | CR159: 0 | CS159: 8
D160: 155 | E160: 8 | F160: 2 | G160: 1 | H160: 1 | I160: 2 | J160: 2 | K160: LW | L160: n | M160: 746 | N160: LW.0746kW.21122 | O160: 155 | P160: 5 | Q160: 5689 | R160: DN100 | T160: 3 | U160: 2 | V160: 0 | W160: 0 | X160: 1 | Y160: 0 | Z160: 0 | AA160: 2 | AB160: 0 | AC160: 0 | AD160: 0 | AE160: 0 | AF160: 1 | AG160: 0 | AH160: 0 | AI160: 6 | AJ160: 2 | AK160: 0 | AL160: 0 | AM160: 0 | AN160: 0 | AO160: 0 | AP160: 0 | AQ160: 0 | AR160: 1 | AS160: 0 | AT160: 1 | AU160: 0 | AV160: 0 | AW160: 0 | AX160: 0 | AY160: 0 | AZ160: 0 | BA160: 0 | BB160: 1 | BC160: 2 | BD160: 0 | BE160: 0 | BG160: 0 | BH160: 1 | BI160: 0 | BJ160: 1 | BK160: 0 | BL160: 1 | BM160: 0 | BN160: 8 | BO160: 0 | BP160: 8 | BQ160: 0 | BR160: 0 | BS160: 1 | BT160: 0 | BU160: 0 | BV160: 1 | BW160: 0 | BX160: 2 | BY160: 0 | BZ160: 0 | CA160: 1 | CB160: 0 | CC160: 0 | CD160: 0 | CE160: 0 | CF160: 1 | CG160: 0 | CH160: 0 | CI160: 0 | CJ160: 0 | CK160: 6 | CL160: 0 | CM160: 0 | CN160: 0 | CO160: 3 | CP160: n | CQ160: 7 | CR160: 0 | CS160: 8
D161: 156 | E161: 8 | F161: 3 | G161: 0 | H161: 1 | I161: 2 | J161: 2 | K161: LW | L161: n | M161: 725 | N161: LW.0725kW.30122 | O161: 156 | P161: 4 | Q161: 5689 | R161: DN100 | T161: 3 | U161: 2 | V161: 0 | W161: 0 | X161: 1 | Y161: 0 | Z161: 0 | AA161: 2 | AB161: 0 | AC161: 0 | AD161: 0 | AE161: 0 | AF161: 1 | AG161: 0 | AH161: 0 | AI161: 6 | AJ161: 2 | AK161: 0 | AL161: 0 | AM161: 0 | AN161: 0 | AO161: 0 | AP161: 0 | AQ161: 0 | AR161: 1 | AS161: 0 | AT161: 1 | AU161: 0 | AV161: 0 | AW161: 0 | AX161: 0 | AY161: 0 | AZ161: 0 | BA161: 0 | BB161: 1 | BC161: 2 | BD161: 0 | BE161: 0 | BG161: 0 | BH161: 1 | BI161: 0 | BJ161: 1 | BK161: 0 | BL161: 1 | BM161: 0 | BN161: 8 | BO161: 0 | BP161: 8 | BQ161: 0 | BR161: 0 | BS161: 1 | BT161: 0 | BU161: 0 | BV161: 1 | BW161: 0 | BX161: 2 | BY161: 0 | BZ161: 0 | CA161: 1 | CB161: 0 | CC161: 0 | CD161: 0 | CE161: 0 | CF161: 1 | CG161: 0 | CH161: 0 | CI161: 0 | CJ161: 0 | CK161: 6 | CL161: 0 | CM161: 0 | CN161: 0 | CO161: 3 | CP161: n | CQ161: 7 | CR161: 0 | CS161: 8
D162: 157 | E162: 8 | F162: 0 | G162: 4 | H162: 0 | I162: 2 | J162: 2 | K162: LW | L162: n | M162: 764 | N162: LW.0764kW.04022 | O162: 157 | P162: 3 | Q162: 5689 | R162: DN100 | T162: 2 | U162: 2 | V162: 0 | W162: 0 | X162: 1 | Y162: 0 | Z162: 0 | AA162: 2 | AB162: 0 | AC162: 0 | AD162: 0 | AE162: 0 | AF162: 1 | AG162: 0 | AH162: 0 | AI162: 6 | AJ162: 2 | AK162: 0 | AL162: 0 | AM162: 0 | AN162: 0 | AO162: 0 | AP162: 0 | AQ162: 0 | AR162: 1 | AS162: 0 | AT162: 1 | AU162: 0 | AV162: 0 | AW162: 0 | AX162: 0 | AY162: 0 | AZ162: 0 | BA162: 0 | BB162: 1 | BC162: 2 | BD162: 0 | BE162: 0 | BG162: 0 | BH162: 1 | BI162: 0 | BJ162: 1 | BK162: 0 | BL162: 1 | BM162: 0 | BN162: 8 | BO162: 0 | BP162: 8 | BQ162: 0 | BR162: 0 | BS162: 1 | BT162: 0 | BU162: 0 | BV162: 1 | BW162: 0 | BX162: 2 | BY162: 0 | BZ162: 0 | CA162: 1 | CB162: 0 | CC162: 0 | CD162: 0 | CE162: 0 | CF162: 1 | CG162: 0 | CH162: 0 | CI162: 0 | CJ162: 0 | CK162: 6 | CL162: 0 | CM162: 0 | CN162: 0 | CO162: 4 | CP162: n | CQ162: 7 | CR162: 0 | CS162: 8
D163: 158 | E163: 8 | F163: 1 | G163: 3 | H163: 0 | I163: 2 | J163: 2 | K163: LW | L163: n | M163: 744 | N163: LW.0744kW.13022 | O163: 158 | P163: 4 | Q163: 5689 | R163: DN100 | T163: 2 | U163: 2 | V163: 0 | W163: 0 | X163: 1 | Y163: 0 | Z163: 0 | AA163: 2 | AB163: 0 | AC163: 0 | AD163: 0 | AE163: 0 | AF163: 1 | AG163: 0 | AH163: 0 | AI163: 6 | AJ163: 2 | AK163: 0 | AL163: 0 | AM163: 0 | AN163: 0 | AO163: 0 | AP163: 0 | AQ163: 0 | AR163: 1 | AS163: 0 | AT163: 1 | AU163: 0 | AV163: 0 | AW163: 0 | AX163: 0 | AY163: 0 | AZ163: 0 | BA163: 0 | BB163: 1 | BC163: 2 | BD163: 0 | BE163: 0 | BG163: 0 | BH163: 1 | BI163: 0 | BJ163: 1 | BK163: 0 | BL163: 1 | BM163: 0 | BN163: 8 | BO163: 0 | BP163: 8 | BQ163: 0 | BR163: 0 | BS163: 1 | BT163: 0 | BU163: 0 | BV163: 1 | BW163: 0 | BX163: 2 | BY163: 0 | BZ163: 0 | CA163: 1 | CB163: 0 | CC163: 0 | CD163: 0 | CE163: 0 | CF163: 1 | CG163: 0 | CH163: 0 | CI163: 0 | CJ163: 0 | CK163: 6 | CL163: 0 | CM163: 0 | CN163: 0 | CO163: 4 | CP163: n | CQ163: 7 | CR163: 0 | CS163: 8
D164: 159 | E164: 8 | F164: 2 | G164: 2 | H164: 0 | I164: 2 | J164: 2 | K164: LW | L164: n | M164: 723 | N164: LW.0723kW.22022 | O164: 159 | P164: 4 | Q164: 5689 | R164: DN100 | T164: 2 | U164: 2 | V164: 0 | W164: 0 | X164: 1 | Y164: 0 | Z164: 0 | AA164: 2 | AB164: 0 | AC164: 0 | AD164: 0 | AE164: 0 | AF164: 1 | AG164: 0 | AH164: 0 | AI164: 6 | AJ164: 2 | AK164: 0 | AL164: 0 | AM164: 0 | AN164: 0 | AO164: 0 | AP164: 0 | AQ164: 0 | AR164: 1 | AS164: 0 | AT164: 1 | AU164: 0 | AV164: 0 | AW164: 0 | AX164: 0 | AY164: 0 | AZ164: 0 | BA164: 0 | BB164: 1 | BC164: 2 | BD164: 0 | BE164: 0 | BG164: 0 | BH164: 1 | BI164: 0 | BJ164: 1 | BK164: 0 | BL164: 1 | BM164: 0 | BN164: 8 | BO164: 0 | BP164: 8 | BQ164: 0 | BR164: 0 | BS164: 1 | BT164: 0 | BU164: 0 | BV164: 1 | BW164: 0 | BX164: 2 | BY164: 0 | BZ164: 0 | CA164: 1 | CB164: 0 | CC164: 0 | CD164: 0 | CE164: 0 | CF164: 1 | CG164: 0 | CH164: 0 | CI164: 0 | CJ164: 0 | CK164: 6 | CL164: 0 | CM164: 0 | CN164: 0 | CO164: 4 | CP164: n | CQ164: 7 | CR164: 0 | CS164: 8
D165: 160 | E165: 8 | F165: 3 | G165: 1 | H165: 0 | I165: 2 | J165: 2 | K165: LW | L165: n | M165: 702 | N165: LW.0702kW.31022 | O165: 160 | P165: 4 | Q165: 5689 | R165: DN100 | T165: 2 | U165: 2 | V165: 0 | W165: 0 | X165: 1 | Y165: 0 | Z165: 0 | AA165: 2 | AB165: 0 | AC165: 0 | AD165: 0 | AE165: 0 | AF165: 1 | AG165: 0 | AH165: 0 | AI165: 6 | AJ165: 2 | AK165: 0 | AL165: 0 | AM165: 0 | AN165: 0 | AO165: 0 | AP165: 0 | AQ165: 0 | AR165: 1 | AS165: 0 | AT165: 1 | AU165: 0 | AV165: 0 | AW165: 0 | AX165: 0 | AY165: 0 | AZ165: 0 | BA165: 0 | BB165: 1 | BC165: 2 | BD165: 0 | BE165: 0 | BG165: 0 | BH165: 1 | BI165: 0 | BJ165: 1 | BK165: 0 | BL165: 1 | BM165: 0 | BN165: 8 | BO165: 0 | BP165: 8 | BQ165: 0 | BR165: 0 | BS165: 1 | BT165: 0 | BU165: 0 | BV165: 1 | BW165: 0 | BX165: 2 | BY165: 0 | BZ165: 0 | CA165: 1 | CB165: 0 | CC165: 0 | CD165: 0 | CE165: 0 | CF165: 1 | CG165: 0 | CH165: 0 | CI165: 0 | CJ165: 0 | CK165: 6 | CL165: 0 | CM165: 0 | CN165: 0 | CO165: 4 | CP165: n | CQ165: 7 | CR165: 0 | CS165: 8
D166: 161 | E166: 8 | F166: 4 | G166: 0 | H166: 0 | I166: 2 | J166: 2 | K166: LW | L166: n | M166: 681 | N166: LW.0681kW.40022 | O166: 161 | P166: 3 | Q166: 5689 | R166: DN100 | T166: 2 | U166: 2 | V166: 0 | W166: 0 | X166: 1 | Y166: 0 | Z166: 0 | AA166: 2 | AB166: 0 | AC166: 0 | AD166: 0 | AE166: 0 | AF166: 1 | AG166: 0 | AH166: 0 | AI166: 6 | AJ166: 2 | AK166: 0 | AL166: 0 | AM166: 0 | AN166: 0 | AO166: 0 | AP166: 0 | AQ166: 0 | AR166: 1 | AS166: 0 | AT166: 1 | AU166: 0 | AV166: 0 | AW166: 0 | AX166: 0 | AY166: 0 | AZ166: 0 | BA166: 0 | BB166: 1 | BC166: 2 | BD166: 0 | BE166: 0 | BG166: 0 | BH166: 1 | BI166: 0 | BJ166: 1 | BK166: 0 | BL166: 1 | BM166: 0 | BN166: 8 | BO166: 0 | BP166: 8 | BQ166: 0 | BR166: 0 | BS166: 1 | BT166: 0 | BU166: 0 | BV166: 1 | BW166: 0 | BX166: 2 | BY166: 0 | BZ166: 0 | CA166: 1 | CB166: 0 | CC166: 0 | CD166: 0 | CE166: 0 | CF166: 1 | CG166: 0 | CH166: 0 | CI166: 0 | CJ166: 0 | CK166: 6 | CL166: 0 | CM166: 0 | CN166: 0 | CO166: 4 | CP166: n | CQ166: 7 | CR166: 0 | CS166: 8
D167: 162 | E167: 8 | F167: 0 | G167: 0 | H167: 5 | I167: 1 | J167: 2 | K167: LW | L167: n | M167: 832 | N167: LW.0832kW.00512 | O167: 162 | P167: 3 | Q167: 5689 | R167: DN100 | T167: 6 | U167: 2 | V167: 0 | W167: 0 | X167: 1 | Y167: 0 | Z167: 0 | AA167: 2 | AB167: 0 | AC167: 0 | AD167: 0 | AE167: 0 | AF167: 1 | AG167: 0 | AH167: 0 | AI167: 6 | AJ167: 2 | AK167: 0 | AL167: 0 | AM167: 0 | AN167: 0 | AO167: 0 | AP167: 0 | AQ167: 0 | AR167: 1 | AS167: 0 | AT167: 1 | AU167: 0 | AV167: 0 | AW167: 0 | AX167: 0 | AY167: 0 | AZ167: 0 | BA167: 0 | BB167: 1 | BC167: 2 | BD167: 0 | BE167: 0 | BG167: 0 | BH167: 1 | BI167: 0 | BJ167: 1 | BK167: 0 | BL167: 1 | BM167: 0 | BN167: 8 | BO167: 0 | BP167: 8 | BQ167: 0 | BR167: 0 | BS167: 1 | BT167: 0 | BU167: 0 | BV167: 1 | BW167: 0 | BX167: 2 | BY167: 0 | BZ167: 0 | CA167: 1 | CB167: 0 | CC167: 0 | CD167: 0 | CE167: 0 | CF167: 1 | CG167: 0 | CH167: 0 | CI167: 0 | CJ167: 0 | CK167: 6 | CL167: 0 | CM167: 0 | CN167: 0 | CO167: 0 | CP167: n | CQ167: 7 | CR167: 0 | CS167: 8
D168: 163 | E168: 8 | F168: 0 | G168: 1 | H168: 4 | I168: 1 | J168: 2 | K168: LW | L168: n | M168: 810 | N168: LW.0810kW.01412 | O168: 163 | P168: 4 | Q168: 5689 | R168: DN100 | T168: 5 | U168: 2 | V168: 0 | W168: 0 | X168: 1 | Y168: 0 | Z168: 0 | AA168: 2 | AB168: 0 | AC168: 0 | AD168: 0 | AE168: 0 | AF168: 1 | AG168: 0 | AH168: 0 | AI168: 6 | AJ168: 2 | AK168: 0 | AL168: 0 | AM168: 0 | AN168: 0 | AO168: 0 | AP168: 0 | AQ168: 0 | AR168: 1 | AS168: 0 | AT168: 1 | AU168: 0 | AV168: 0 | AW168: 0 | AX168: 0 | AY168: 0 | AZ168: 0 | BA168: 0 | BB168: 1 | BC168: 2 | BD168: 0 | BE168: 0 | BG168: 0 | BH168: 1 | BI168: 0 | BJ168: 1 | BK168: 0 | BL168: 1 | BM168: 0 | BN168: 8 | BO168: 0 | BP168: 8 | BQ168: 0 | BR168: 0 | BS168: 1 | BT168: 0 | BU168: 0 | BV168: 1 | BW168: 0 | BX168: 2 | BY168: 0 | BZ168: 0 | CA168: 1 | CB168: 0 | CC168: 0 | CD168: 0 | CE168: 0 | CF168: 1 | CG168: 0 | CH168: 0 | CI168: 0 | CJ168: 0 | CK168: 6 | CL168: 0 | CM168: 0 | CN168: 0 | CO168: 1 | CP168: n | CQ168: 7 | CR168: 0 | CS168: 8
D169: 164 | E169: 8 | F169: 1 | G169: 0 | H169: 4 | I169: 1 | J169: 2 | K169: LW | L169: n | M169: 789 | N169: LW.0789kW.10412 | O169: 164 | P169: 4 | Q169: 5689 | R169: DN100 | T169: 5 | U169: 2 | V169: 0 | W169: 0 | X169: 1 | Y169: 0 | Z169: 0 | AA169: 2 | AB169: 0 | AC169: 0 | AD169: 0 | AE169: 0 | AF169: 1 | AG169: 0 | AH169: 0 | AI169: 6 | AJ169: 2 | AK169: 0 | AL169: 0 | AM169: 0 | AN169: 0 | AO169: 0 | AP169: 0 | AQ169: 0 | AR169: 1 | AS169: 0 | AT169: 1 | AU169: 0 | AV169: 0 | AW169: 0 | AX169: 0 | AY169: 0 | AZ169: 0 | BA169: 0 | BB169: 1 | BC169: 2 | BD169: 0 | BE169: 0 | BG169: 0 | BH169: 1 | BI169: 0 | BJ169: 1 | BK169: 0 | BL169: 1 | BM169: 0 | BN169: 8 | BO169: 0 | BP169: 8 | BQ169: 0 | BR169: 0 | BS169: 1 | BT169: 0 | BU169: 0 | BV169: 1 | BW169: 0 | BX169: 2 | BY169: 0 | BZ169: 0 | CA169: 1 | CB169: 0 | CC169: 0 | CD169: 0 | CE169: 0 | CF169: 1 | CG169: 0 | CH169: 0 | CI169: 0 | CJ169: 0 | CK169: 6 | CL169: 0 | CM169: 0 | CN169: 0 | CO169: 1 | CP169: n | CQ169: 7 | CR169: 0 | CS169: 8
D170: 165 | E170: 8 | F170: 0 | G170: 2 | H170: 3 | I170: 1 | J170: 2 | K170: LW | L170: n | M170: 787 | N170: LW.0787kW.02312 | O170: 165 | P170: 4 | Q170: 5689 | R170: DN100 | T170: 4 | U170: 2 | V170: 0 | W170: 0 | X170: 1 | Y170: 0 | Z170: 0 | AA170: 2 | AB170: 0 | AC170: 0 | AD170: 0 | AE170: 0 | AF170: 1 | AG170: 0 | AH170: 0 | AI170: 6 | AJ170: 2 | AK170: 0 | AL170: 0 | AM170: 0 | AN170: 0 | AO170: 0 | AP170: 0 | AQ170: 0 | AR170: 1 | AS170: 0 | AT170: 1 | AU170: 0 | AV170: 0 | AW170: 0 | AX170: 0 | AY170: 0 | AZ170: 0 | BA170: 0 | BB170: 1 | BC170: 2 | BD170: 0 | BE170: 0 | BG170: 0 | BH170: 1 | BI170: 0 | BJ170: 1 | BK170: 0 | BL170: 1 | BM170: 0 | BN170: 8 | BO170: 0 | BP170: 8 | BQ170: 0 | BR170: 0 | BS170: 1 | BT170: 0 | BU170: 0 | BV170: 1 | BW170: 0 | BX170: 2 | BY170: 0 | BZ170: 0 | CA170: 1 | CB170: 0 | CC170: 0 | CD170: 0 | CE170: 0 | CF170: 1 | CG170: 0 | CH170: 0 | CI170: 0 | CJ170: 0 | CK170: 6 | CL170: 0 | CM170: 0 | CN170: 0 | CO170: 2 | CP170: n | CQ170: 7 | CR170: 0 | CS170: 8
D171: 166 | E171: 8 | F171: 1 | G171: 1 | H171: 3 | I171: 1 | J171: 2 | K171: LW | L171: n | M171: 766 | N171: LW.0766kW.11312 | O171: 166 | P171: 5 | Q171: 5689 | R171: DN100 | T171: 4 | U171: 2 | V171: 0 | W171: 0 | X171: 1 | Y171: 0 | Z171: 0 | AA171: 2 | AB171: 0 | AC171: 0 | AD171: 0 | AE171: 0 | AF171: 1 | AG171: 0 | AH171: 0 | AI171: 6 | AJ171: 2 | AK171: 0 | AL171: 0 | AM171: 0 | AN171: 0 | AO171: 0 | AP171: 0 | AQ171: 0 | AR171: 1 | AS171: 0 | AT171: 1 | AU171: 0 | AV171: 0 | AW171: 0 | AX171: 0 | AY171: 0 | AZ171: 0 | BA171: 0 | BB171: 1 | BC171: 2 | BD171: 0 | BE171: 0 | BG171: 0 | BH171: 1 | BI171: 0 | BJ171: 1 | BK171: 0 | BL171: 1 | BM171: 0 | BN171: 8 | BO171: 0 | BP171: 8 | BQ171: 0 | BR171: 0 | BS171: 1 | BT171: 0 | BU171: 0 | BV171: 1 | BW171: 0 | BX171: 2 | BY171: 0 | BZ171: 0 | CA171: 1 | CB171: 0 | CC171: 0 | CD171: 0 | CE171: 0 | CF171: 1 | CG171: 0 | CH171: 0 | CI171: 0 | CJ171: 0 | CK171: 6 | CL171: 0 | CM171: 0 | CN171: 0 | CO171: 2 | CP171: n | CQ171: 7 | CR171: 0 | CS171: 8
D172: 167 | E172: 8 | F172: 2 | G172: 0 | H172: 3 | I172: 1 | J172: 2 | K172: LW | L172: n | M172: 745 | N172: LW.0745kW.20312 | O172: 167 | P172: 4 | Q172: 5689 | R172: DN100 | T172: 4 | U172: 2 | V172: 0 | W172: 0 | X172: 1 | Y172: 0 | Z172: 0 | AA172: 2 | AB172: 0 | AC172: 0 | AD172: 0 | AE172: 0 | AF172: 1 | AG172: 0 | AH172: 0 | AI172: 6 | AJ172: 2 | AK172: 0 | AL172: 0 | AM172: 0 | AN172: 0 | AO172: 0 | AP172: 0 | AQ172: 0 | AR172: 1 | AS172: 0 | AT172: 1 | AU172: 0 | AV172: 0 | AW172: 0 | AX172: 0 | AY172: 0 | AZ172: 0 | BA172: 0 | BB172: 1 | BC172: 2 | BD172: 0 | BE172: 0 | BG172: 0 | BH172: 1 | BI172: 0 | BJ172: 1 | BK172: 0 | BL172: 1 | BM172: 0 | BN172: 8 | BO172: 0 | BP172: 8 | BQ172: 0 | BR172: 0 | BS172: 1 | BT172: 0 | BU172: 0 | BV172: 1 | BW172: 0 | BX172: 2 | BY172: 0 | BZ172: 0 | CA172: 1 | CB172: 0 | CC172: 0 | CD172: 0 | CE172: 0 | CF172: 1 | CG172: 0 | CH172: 0 | CI172: 0 | CJ172: 0 | CK172: 6 | CL172: 0 | CM172: 0 | CN172: 0 | CO172: 2 | CP172: n | CQ172: 7 | CR172: 0 | CS172: 8
D173: 168 | E173: 8 | F173: 0 | G173: 3 | H173: 2 | I173: 1 | J173: 2 | K173: LW | L173: n | M173: 764 | N173: LW.0764kW.03212 | O173: 168 | P173: 4 | Q173: 5689 | R173: DN100 | T173: 3 | U173: 2 | V173: 0 | W173: 0 | X173: 1 | Y173: 0 | Z173: 0 | AA173: 2 | AB173: 0 | AC173: 0 | AD173: 0 | AE173: 0 | AF173: 1 | AG173: 0 | AH173: 0 | AI173: 6 | AJ173: 2 | AK173: 0 | AL173: 0 | AM173: 0 | AN173: 0 | AO173: 0 | AP173: 0 | AQ173: 0 | AR173: 1 | AS173: 0 | AT173: 1 | AU173: 0 | AV173: 0 | AW173: 0 | AX173: 0 | AY173: 0 | AZ173: 0 | BA173: 0 | BB173: 1 | BC173: 2 | BD173: 0 | BE173: 0 | BG173: 0 | BH173: 1 | BI173: 0 | BJ173: 1 | BK173: 0 | BL173: 1 | BM173: 0 | BN173: 8 | BO173: 0 | BP173: 8 | BQ173: 0 | BR173: 0 | BS173: 1 | BT173: 0 | BU173: 0 | BV173: 1 | BW173: 0 | BX173: 2 | BY173: 0 | BZ173: 0 | CA173: 1 | CB173: 0 | CC173: 0 | CD173: 0 | CE173: 0 | CF173: 1 | CG173: 0 | CH173: 0 | CI173: 0 | CJ173: 0 | CK173: 6 | CL173: 0 | CM173: 0 | CN173: 0 | CO173: 3 | CP173: n | CQ173: 7 | CR173: 0 | CS173: 8
D174: 169 | E174: 8 | F174: 1 | G174: 2 | H174: 2 | I174: 1 | J174: 2 | K174: LW | L174: n | M174: 743 | N174: LW.0743kW.12212 | O174: 169 | P174: 5 | Q174: 5689 | R174: DN100 | T174: 3 | U174: 2 | V174: 0 | W174: 0 | X174: 1 | Y174: 0 | Z174: 0 | AA174: 2 | AB174: 0 | AC174: 0 | AD174: 0 | AE174: 0 | AF174: 1 | AG174: 0 | AH174: 0 | AI174: 6 | AJ174: 2 | AK174: 0 | AL174: 0 | AM174: 0 | AN174: 0 | AO174: 0 | AP174: 0 | AQ174: 0 | AR174: 1 | AS174: 0 | AT174: 1 | AU174: 0 | AV174: 0 | AW174: 0 | AX174: 0 | AY174: 0 | AZ174: 0 | BA174: 0 | BB174: 1 | BC174: 2 | BD174: 0 | BE174: 0 | BG174: 0 | BH174: 1 | BI174: 0 | BJ174: 1 | BK174: 0 | BL174: 1 | BM174: 0 | BN174: 8 | BO174: 0 | BP174: 8 | BQ174: 0 | BR174: 0 | BS174: 1 | BT174: 0 | BU174: 0 | BV174: 1 | BW174: 0 | BX174: 2 | BY174: 0 | BZ174: 0 | CA174: 1 | CB174: 0 | CC174: 0 | CD174: 0 | CE174: 0 | CF174: 1 | CG174: 0 | CH174: 0 | CI174: 0 | CJ174: 0 | CK174: 6 | CL174: 0 | CM174: 0 | CN174: 0 | CO174: 3 | CP174: n | CQ174: 7 | CR174: 0 | CS174: 8
D175: 170 | E175: 8 | F175: 2 | G175: 1 | H175: 2 | I175: 1 | J175: 2 | K175: LW | L175: n | M175: 723 | N175: LW.0723kW.21212 | O175: 170 | P175: 5 | Q175: 5689 | R175: DN100 | T175: 3 | U175: 2 | V175: 0 | W175: 0 | X175: 1 | Y175: 0 | Z175: 0 | AA175: 2 | AB175: 0 | AC175: 0 | AD175: 0 | AE175: 0 | AF175: 1 | AG175: 0 | AH175: 0 | AI175: 6 | AJ175: 2 | AK175: 0 | AL175: 0 | AM175: 0 | AN175: 0 | AO175: 0 | AP175: 0 | AQ175: 0 | AR175: 1 | AS175: 0 | AT175: 1 | AU175: 0 | AV175: 0 | AW175: 0 | AX175: 0 | AY175: 0 | AZ175: 0 | BA175: 0 | BB175: 1 | BC175: 2 | BD175: 0 | BE175: 0 | BG175: 0 | BH175: 1 | BI175: 0 | BJ175: 1 | BK175: 0 | BL175: 1 | BM175: 0 | BN175: 8 | BO175: 0 | BP175: 8 | BQ175: 0 | BR175: 0 | BS175: 1 | BT175: 0 | BU175: 0 | BV175: 1 | BW175: 0 | BX175: 2 | BY175: 0 | BZ175: 0 | CA175: 1 | CB175: 0 | CC175: 0 | CD175: 0 | CE175: 0 | CF175: 1 | CG175: 0 | CH175: 0 | CI175: 0 | CJ175: 0 | CK175: 6 | CL175: 0 | CM175: 0 | CN175: 0 | CO175: 3 | CP175: n | CQ175: 7 | CR175: 0 | CS175: 8
D176: 171 | E176: 8 | F176: 3 | G176: 0 | H176: 2 | I176: 1 | J176: 2 | K176: LW | L176: n | M176: 702 | N176: LW.0702kW.30212 | O176: 171 | P176: 4 | Q176: 5689 | R176: DN100 | T176: 3 | U176: 2 | V176: 0 | W176: 0 | X176: 1 | Y176: 0 | Z176: 0 | AA176: 2 | AB176: 0 | AC176: 0 | AD176: 0 | AE176: 0 | AF176: 1 | AG176: 0 | AH176: 0 | AI176: 6 | AJ176: 2 | AK176: 0 | AL176: 0 | AM176: 0 | AN176: 0 | AO176: 0 | AP176: 0 | AQ176: 0 | AR176: 1 | AS176: 0 | AT176: 1 | AU176: 0 | AV176: 0 | AW176: 0 | AX176: 0 | AY176: 0 | AZ176: 0 | BA176: 0 | BB176: 1 | BC176: 2 | BD176: 0 | BE176: 0 | BG176: 0 | BH176: 1 | BI176: 0 | BJ176: 1 | BK176: 0 | BL176: 1 | BM176: 0 | BN176: 8 | BO176: 0 | BP176: 8 | BQ176: 0 | BR176: 0 | BS176: 1 | BT176: 0 | BU176: 0 | BV176: 1 | BW176: 0 | BX176: 2 | BY176: 0 | BZ176: 0 | CA176: 1 | CB176: 0 | CC176: 0 | CD176: 0 | CE176: 0 | CF176: 1 | CG176: 0 | CH176: 0 | CI176: 0 | CJ176: 0 | CK176: 6 | CL176: 0 | CM176: 0 | CN176: 0 | CO176: 3 | CP176: n | CQ176: 7 | CR176: 0 | CS176: 8
D177: 172 | E177: 8 | F177: 0 | G177: 4 | H177: 1 | I177: 1 | J177: 2 | K177: LW | L177: n | M177: 741 | N177: LW.0741kW.04112 | O177: 172 | P177: 4 | Q177: 5689 | R177: DN100 | T177: 2 | U177: 2 | V177: 0 | W177: 0 | X177: 1 | Y177: 0 | Z177: 0 | AA177: 2 | AB177: 0 | AC177: 0 | AD177: 0 | AE177: 0 | AF177: 1 | AG177: 0 | AH177: 0 | AI177: 6 | AJ177: 2 | AK177: 0 | AL177: 0 | AM177: 0 | AN177: 0 | AO177: 0 | AP177: 0 | AQ177: 0 | AR177: 1 | AS177: 0 | AT177: 1 | AU177: 0 | AV177: 0 | AW177: 0 | AX177: 0 | AY177: 0 | AZ177: 0 | BA177: 0 | BB177: 1 | BC177: 2 | BD177: 0 | BE177: 0 | BG177: 0 | BH177: 1 | BI177: 0 | BJ177: 1 | BK177: 0 | BL177: 1 | BM177: 0 | BN177: 8 | BO177: 0 | BP177: 8 | BQ177: 0 | BR177: 0 | BS177: 1 | BT177: 0 | BU177: 0 | BV177: 1 | BW177: 0 | BX177: 2 | BY177: 0 | BZ177: 0 | CA177: 1 | CB177: 0 | CC177: 0 | CD177: 0 | CE177: 0 | CF177: 1 | CG177: 0 | CH177: 0 | CI177: 0 | CJ177: 0 | CK177: 6 | CL177: 0 | CM177: 0 | CN177: 0 | CO177: 4 | CP177: n | CQ177: 7 | CR177: 0 | CS177: 8
D178: 173 | E178: 8 | F178: 1 | G178: 3 | H178: 1 | I178: 1 | J178: 2 | K178: LW | L178: n | M178: 721 | N178: LW.0721kW.13112 | O178: 173 | P178: 5 | Q178: 5689 | R178: DN100 | T178: 2 | U178: 2 | V178: 0 | W178: 0 | X178: 1 | Y178: 0 | Z178: 0 | AA178: 2 | AB178: 0 | AC178: 0 | AD178: 0 | AE178: 0 | AF178: 1 | AG178: 0 | AH178: 0 | AI178: 6 | AJ178: 2 | AK178: 0 | AL178: 0 | AM178: 0 | AN178: 0 | AO178: 0 | AP178: 0 | AQ178: 0 | AR178: 1 | AS178: 0 | AT178: 1 | AU178: 0 | AV178: 0 | AW178: 0 | AX178: 0 | AY178: 0 | AZ178: 0 | BA178: 0 | BB178: 1 | BC178: 2 | BD178: 0 | BE178: 0 | BG178: 0 | BH178: 1 | BI178: 0 | BJ178: 1 | BK178: 0 | BL178: 1 | BM178: 0 | BN178: 8 | BO178: 0 | BP178: 8 | BQ178: 0 | BR178: 0 | BS178: 1 | BT178: 0 | BU178: 0 | BV178: 1 | BW178: 0 | BX178: 2 | BY178: 0 | BZ178: 0 | CA178: 1 | CB178: 0 | CC178: 0 | CD178: 0 | CE178: 0 | CF178: 1 | CG178: 0 | CH178: 0 | CI178: 0 | CJ178: 0 | CK178: 6 | CL178: 0 | CM178: 0 | CN178: 0 | CO178: 4 | CP178: n | CQ178: 7 | CR178: 0 | CS178: 8
D179: 174 | E179: 8 | F179: 2 | G179: 2 | H179: 1 | I179: 1 | J179: 2 | K179: LW | L179: n | M179: 700 | N179: LW.0700kW.22112 | O179: 174 | P179: 5 | Q179: 5689 | R179: DN100 | T179: 2 | U179: 2 | V179: 0 | W179: 0 | X179: 1 | Y179: 0 | Z179: 0 | AA179: 2 | AB179: 0 | AC179: 0 | AD179: 0 | AE179: 0 | AF179: 1 | AG179: 0 | AH179: 0 | AI179: 6 | AJ179: 2 | AK179: 0 | AL179: 0 | AM179: 0 | AN179: 0 | AO179: 0 | AP179: 0 | AQ179: 0 | AR179: 1 | AS179: 0 | AT179: 1 | AU179: 0 | AV179: 0 | AW179: 0 | AX179: 0 | AY179: 0 | AZ179: 0 | BA179: 0 | BB179: 1 | BC179: 2 | BD179: 0 | BE179: 0 | BG179: 0 | BH179: 1 | BI179: 0 | BJ179: 1 | BK179: 0 | BL179: 1 | BM179: 0 | BN179: 8 | BO179: 0 | BP179: 8 | BQ179: 0 | BR179: 0 | BS179: 1 | BT179: 0 | BU179: 0 | BV179: 1 | BW179: 0 | BX179: 2 | BY179: 0 | BZ179: 0 | CA179: 1 | CB179: 0 | CC179: 0 | CD179: 0 | CE179: 0 | CF179: 1 | CG179: 0 | CH179: 0 | CI179: 0 | CJ179: 0 | CK179: 6 | CL179: 0 | CM179: 0 | CN179: 0 | CO179: 4 | CP179: n | CQ179: 7 | CR179: 0 | CS179: 8
D180: 175 | E180: 8 | F180: 3 | G180: 1 | H180: 1 | I180: 1 | J180: 2 | K180: LW | L180: n | M180: 679 | N180: LW.0679kW.31112 | O180: 175 | P180: 5 | Q180: 5689 | R180: DN100 | T180: 2 | U180: 2 | V180: 0 | W180: 0 | X180: 1 | Y180: 0 | Z180: 0 | AA180: 2 | AB180: 0 | AC180: 0 | AD180: 0 | AE180: 0 | AF180: 1 | AG180: 0 | AH180: 0 | AI180: 6 | AJ180: 2 | AK180: 0 | AL180: 0 | AM180: 0 | AN180: 0 | AO180: 0 | AP180: 0 | AQ180: 0 | AR180: 1 | AS180: 0 | AT180: 1 | AU180: 0 | AV180: 0 | AW180: 0 | AX180: 0 | AY180: 0 | AZ180: 0 | BA180: 0 | BB180: 1 | BC180: 2 | BD180: 0 | BE180: 0 | BG180: 0 | BH180: 1 | BI180: 0 | BJ180: 1 | BK180: 0 | BL180: 1 | BM180: 0 | BN180: 8 | BO180: 0 | BP180: 8 | BQ180: 0 | BR180: 0 | BS180: 1 | BT180: 0 | BU180: 0 | BV180: 1 | BW180: 0 | BX180: 2 | BY180: 0 | BZ180: 0 | CA180: 1 | CB180: 0 | CC180: 0 | CD180: 0 | CE180: 0 | CF180: 1 | CG180: 0 | CH180: 0 | CI180: 0 | CJ180: 0 | CK180: 6 | CL180: 0 | CM180: 0 | CN180: 0 | CO180: 4 | CP180: n | CQ180: 7 | CR180: 0 | CS180: 8
D181: 176 | E181: 8 | F181: 4 | G181: 0 | H181: 1 | I181: 1 | J181: 2 | K181: LW | L181: n | M181: 659 | N181: LW.0659kW.40112 | O181: 176 | P181: 4 | Q181: 5689 | R181: DN100 | T181: 2 | U181: 2 | V181: 0 | W181: 0 | X181: 1 | Y181: 0 | Z181: 0 | AA181: 2 | AB181: 0 | AC181: 0 | AD181: 0 | AE181: 0 | AF181: 1 | AG181: 0 | AH181: 0 | AI181: 6 | AJ181: 2 | AK181: 0 | AL181: 0 | AM181: 0 | AN181: 0 | AO181: 0 | AP181: 0 | AQ181: 0 | AR181: 1 | AS181: 0 | AT181: 1 | AU181: 0 | AV181: 0 | AW181: 0 | AX181: 0 | AY181: 0 | AZ181: 0 | BA181: 0 | BB181: 1 | BC181: 2 | BD181: 0 | BE181: 0 | BG181: 0 | BH181: 1 | BI181: 0 | BJ181: 1 | BK181: 0 | BL181: 1 | BM181: 0 | BN181: 8 | BO181: 0 | BP181: 8 | BQ181: 0 | BR181: 0 | BS181: 1 | BT181: 0 | BU181: 0 | BV181: 1 | BW181: 0 | BX181: 2 | BY181: 0 | BZ181: 0 | CA181: 1 | CB181: 0 | CC181: 0 | CD181: 0 | CE181: 0 | CF181: 1 | CG181: 0 | CH181: 0 | CI181: 0 | CJ181: 0 | CK181: 6 | CL181: 0 | CM181: 0 | CN181: 0 | CO181: 4 | CP181: n | CQ181: 7 | CR181: 0 | CS181: 8
D182: 177 | E182: 8 | F182: 0 | G182: 5 | H182: 0 | I182: 1 | J182: 2 | K182: LW | L182: n | M182: 719 | N182: LW.0719kW.05012 | O182: 177 | P182: 3 | Q182: 5689 | R182: DN100 | T182: 1 | U182: 2 | V182: 0 | W182: 0 | X182: 1 | Y182: 0 | Z182: 0 | AA182: 2 | AB182: 0 | AC182: 0 | AD182: 0 | AE182: 0 | AF182: 1 | AG182: 0 | AH182: 0 | AI182: 6 | AJ182: 2 | AK182: 0 | AL182: 0 | AM182: 0 | AN182: 0 | AO182: 0 | AP182: 0 | AQ182: 0 | AR182: 1 | AS182: 0 | AT182: 1 | AU182: 0 | AV182: 0 | AW182: 0 | AX182: 0 | AY182: 0 | AZ182: 0 | BA182: 0 | BB182: 1 | BC182: 2 | BD182: 0 | BE182: 0 | BG182: 0 | BH182: 1 | BI182: 0 | BJ182: 1 | BK182: 0 | BL182: 1 | BM182: 0 | BN182: 8 | BO182: 0 | BP182: 8 | BQ182: 0 | BR182: 0 | BS182: 1 | BT182: 0 | BU182: 0 | BV182: 1 | BW182: 0 | BX182: 2 | BY182: 0 | BZ182: 0 | CA182: 1 | CB182: 0 | CC182: 0 | CD182: 0 | CE182: 0 | CF182: 1 | CG182: 0 | CH182: 0 | CI182: 0 | CJ182: 0 | CK182: 6 | CL182: 0 | CM182: 0 | CN182: 0 | CO182: 5 | CP182: n | CQ182: 7 | CR182: 0 | CS182: 8
D183: 178 | E183: 8 | F183: 1 | G183: 4 | H183: 0 | I183: 1 | J183: 2 | K183: LW | L183: n | M183: 698 | N183: LW.0698kW.14012 | O183: 178 | P183: 4 | Q183: 5689 | R183: DN100 | T183: 1 | U183: 2 | V183: 0 | W183: 0 | X183: 1 | Y183: 0 | Z183: 0 | AA183: 2 | AB183: 0 | AC183: 0 | AD183: 0 | AE183: 0 | AF183: 1 | AG183: 0 | AH183: 0 | AI183: 6 | AJ183: 2 | AK183: 0 | AL183: 0 | AM183: 0 | AN183: 0 | AO183: 0 | AP183: 0 | AQ183: 0 | AR183: 1 | AS183: 0 | AT183: 1 | AU183: 0 | AV183: 0 | AW183: 0 | AX183: 0 | AY183: 0 | AZ183: 0 | BA183: 0 | BB183: 1 | BC183: 2 | BD183: 0 | BE183: 0 | BG183: 0 | BH183: 1 | BI183: 0 | BJ183: 1 | BK183: 0 | BL183: 1 | BM183: 0 | BN183: 8 | BO183: 0 | BP183: 8 | BQ183: 0 | BR183: 0 | BS183: 1 | BT183: 0 | BU183: 0 | BV183: 1 | BW183: 0 | BX183: 2 | BY183: 0 | BZ183: 0 | CA183: 1 | CB183: 0 | CC183: 0 | CD183: 0 | CE183: 0 | CF183: 1 | CG183: 0 | CH183: 0 | CI183: 0 | CJ183: 0 | CK183: 6 | CL183: 0 | CM183: 0 | CN183: 0 | CO183: 5 | CP183: n | CQ183: 7 | CR183: 0 | CS183: 8
D184: 179 | E184: 8 | F184: 2 | G184: 3 | H184: 0 | I184: 1 | J184: 2 | K184: LW | L184: n | M184: 677 | N184: LW.0677kW.23012 | O184: 179 | P184: 4 | Q184: 5689 | R184: DN100 | T184: 1 | U184: 2 | V184: 0 | W184: 0 | X184: 1 | Y184: 0 | Z184: 0 | AA184: 2 | AB184: 0 | AC184: 0 | AD184: 0 | AE184: 0 | AF184: 1 | AG184: 0 | AH184: 0 | AI184: 6 | AJ184: 2 | AK184: 0 | AL184: 0 | AM184: 0 | AN184: 0 | AO184: 0 | AP184: 0 | AQ184: 0 | AR184: 1 | AS184: 0 | AT184: 1 | AU184: 0 | AV184: 0 | AW184: 0 | AX184: 0 | AY184: 0 | AZ184: 0 | BA184: 0 | BB184: 1 | BC184: 2 | BD184: 0 | BE184: 0 | BG184: 0 | BH184: 1 | BI184: 0 | BJ184: 1 | BK184: 0 | BL184: 1 | BM184: 0 | BN184: 8 | BO184: 0 | BP184: 8 | BQ184: 0 | BR184: 0 | BS184: 1 | BT184: 0 | BU184: 0 | BV184: 1 | BW184: 0 | BX184: 2 | BY184: 0 | BZ184: 0 | CA184: 1 | CB184: 0 | CC184: 0 | CD184: 0 | CE184: 0 | CF184: 1 | CG184: 0 | CH184: 0 | CI184: 0 | CJ184: 0 | CK184: 6 | CL184: 0 | CM184: 0 | CN184: 0 | CO184: 5 | CP184: n | CQ184: 7 | CR184: 0 | CS184: 8
D185: 180 | E185: 8 | F185: 3 | G185: 2 | H185: 0 | I185: 1 | J185: 2 | K185: LW | L185: n | M185: 657 | N185: LW.0657kW.32012 | O185: 180 | P185: 4 | Q185: 5689 | R185: DN100 | T185: 1 | U185: 2 | V185: 0 | W185: 0 | X185: 1 | Y185: 0 | Z185: 0 | AA185: 2 | AB185: 0 | AC185: 0 | AD185: 0 | AE185: 0 | AF185: 1 | AG185: 0 | AH185: 0 | AI185: 6 | AJ185: 2 | AK185: 0 | AL185: 0 | AM185: 0 | AN185: 0 | AO185: 0 | AP185: 0 | AQ185: 0 | AR185: 1 | AS185: 0 | AT185: 1 | AU185: 0 | AV185: 0 | AW185: 0 | AX185: 0 | AY185: 0 | AZ185: 0 | BA185: 0 | BB185: 1 | BC185: 2 | BD185: 0 | BE185: 0 | BG185: 0 | BH185: 1 | BI185: 0 | BJ185: 1 | BK185: 0 | BL185: 1 | BM185: 0 | BN185: 8 | BO185: 0 | BP185: 8 | BQ185: 0 | BR185: 0 | BS185: 1 | BT185: 0 | BU185: 0 | BV185: 1 | BW185: 0 | BX185: 2 | BY185: 0 | BZ185: 0 | CA185: 1 | CB185: 0 | CC185: 0 | CD185: 0 | CE185: 0 | CF185: 1 | CG185: 0 | CH185: 0 | CI185: 0 | CJ185: 0 | CK185: 6 | CL185: 0 | CM185: 0 | CN185: 0 | CO185: 5 | CP185: n | CQ185: 7 | CR185: 0 | CS185: 8
D186: 181 | E186: 8 | F186: 4 | G186: 1 | H186: 0 | I186: 1 | J186: 2 | K186: LW | L186: n | M186: 636 | N186: LW.0636kW.41012 | O186: 181 | P186: 4 | Q186: 5689 | R186: DN100 | T186: 1 | U186: 2 | V186: 0 | W186: 0 | X186: 1 | Y186: 0 | Z186: 0 | AA186: 2 | AB186: 0 | AC186: 0 | AD186: 0 | AE186: 0 | AF186: 1 | AG186: 0 | AH186: 0 | AI186: 6 | AJ186: 2 | AK186: 0 | AL186: 0 | AM186: 0 | AN186: 0 | AO186: 0 | AP186: 0 | AQ186: 0 | AR186: 1 | AS186: 0 | AT186: 1 | AU186: 0 | AV186: 0 | AW186: 0 | AX186: 0 | AY186: 0 | AZ186: 0 | BA186: 0 | BB186: 1 | BC186: 2 | BD186: 0 | BE186: 0 | BG186: 0 | BH186: 1 | BI186: 0 | BJ186: 1 | BK186: 0 | BL186: 1 | BM186: 0 | BN186: 8 | BO186: 0 | BP186: 8 | BQ186: 0 | BR186: 0 | BS186: 1 | BT186: 0 | BU186: 0 | BV186: 1 | BW186: 0 | BX186: 2 | BY186: 0 | BZ186: 0 | CA186: 1 | CB186: 0 | CC186: 0 | CD186: 0 | CE186: 0 | CF186: 1 | CG186: 0 | CH186: 0 | CI186: 0 | CJ186: 0 | CK186: 6 | CL186: 0 | CM186: 0 | CN186: 0 | CO186: 5 | CP186: n | CQ186: 7 | CR186: 0 | CS186: 8
D187: 182 | E187: 8 | F187: 5 | G187: 0 | H187: 0 | I187: 1 | J187: 2 | K187: LW | L187: n | M187: 615 | N187: LW.0615kW.50012 | O187: 182 | P187: 3 | Q187: 5689 | R187: DN100 | T187: 1 | U187: 2 | V187: 0 | W187: 0 | X187: 1 | Y187: 0 | Z187: 0 | AA187: 2 | AB187: 0 | AC187: 0 | AD187: 0 | AE187: 0 | AF187: 1 | AG187: 0 | AH187: 0 | AI187: 6 | AJ187: 2 | AK187: 0 | AL187: 0 | AM187: 0 | AN187: 0 | AO187: 0 | AP187: 0 | AQ187: 0 | AR187: 1 | AS187: 0 | AT187: 1 | AU187: 0 | AV187: 0 | AW187: 0 | AX187: 0 | AY187: 0 | AZ187: 0 | BA187: 0 | BB187: 1 | BC187: 2 | BD187: 0 | BE187: 0 | BG187: 0 | BH187: 1 | BI187: 0 | BJ187: 1 | BK187: 0 | BL187: 1 | BM187: 0 | BN187: 8 | BO187: 0 | BP187: 8 | BQ187: 0 | BR187: 0 | BS187: 1 | BT187: 0 | BU187: 0 | BV187: 1 | BW187: 0 | BX187: 2 | BY187: 0 | BZ187: 0 | CA187: 1 | CB187: 0 | CC187: 0 | CD187: 0 | CE187: 0 | CF187: 1 | CG187: 0 | CH187: 0 | CI187: 0 | CJ187: 0 | CK187: 6 | CL187: 0 | CM187: 0 | CN187: 0 | CO187: 5 | CP187: n | CQ187: 7 | CR187: 0 | CS187: 8
D188: 183 | E188: 8 | F188: 0 | G188: 0 | H188: 6 | I188: 0 | J188: 2 | K188: LW | L188: n | M188: 809 | N188: LW.0809kW.00602 | O188: 183 | P188: 2 | Q188: 5689 | R188: DN100 | T188: 6 | U188: 2 | V188: 0 | W188: 0 | X188: 1 | Y188: 0 | Z188: 0 | AA188: 2 | AB188: 0 | AC188: 0 | AD188: 0 | AE188: 0 | AF188: 1 | AG188: 0 | AH188: 0 | AI188: 6 | AJ188: 2 | AK188: 0 | AL188: 0 | AM188: 0 | AN188: 0 | AO188: 0 | AP188: 0 | AQ188: 0 | AR188: 1 | AS188: 0 | AT188: 1 | AU188: 0 | AV188: 0 | AW188: 0 | AX188: 0 | AY188: 0 | AZ188: 0 | BA188: 0 | BB188: 1 | BC188: 2 | BD188: 0 | BE188: 0 | BG188: 0 | BH188: 1 | BI188: 0 | BJ188: 1 | BK188: 0 | BL188: 1 | BM188: 0 | BN188: 8 | BO188: 0 | BP188: 8 | BQ188: 0 | BR188: 0 | BS188: 1 | BT188: 0 | BU188: 0 | BV188: 1 | BW188: 0 | BX188: 2 | BY188: 0 | BZ188: 0 | CA188: 1 | CB188: 0 | CC188: 0 | CD188: 0 | CE188: 0 | CF188: 1 | CG188: 0 | CH188: 0 | CI188: 0 | CJ188: 0 | CK188: 6 | CL188: 0 | CM188: 0 | CN188: 0 | CO188: 0 | CP188: n | CQ188: 7 | CR188: 0 | CS188: 8
D189: 184 | E189: 8 | F189: 0 | G189: 1 | H189: 5 | I189: 0 | J189: 2 | K189: LW | L189: n | M189: 787 | N189: LW.0787kW.01502 | O189: 184 | P189: 3 | Q189: 5689 | R189: DN100 | T189: 5 | U189: 2 | V189: 0 | W189: 0 | X189: 1 | Y189: 0 | Z189: 0 | AA189: 2 | AB189: 0 | AC189: 0 | AD189: 0 | AE189: 0 | AF189: 1 | AG189: 0 | AH189: 0 | AI189: 6 | AJ189: 2 | AK189: 0 | AL189: 0 | AM189: 0 | AN189: 0 | AO189: 0 | AP189: 0 | AQ189: 0 | AR189: 1 | AS189: 0 | AT189: 1 | AU189: 0 | AV189: 0 | AW189: 0 | AX189: 0 | AY189: 0 | AZ189: 0 | BA189: 0 | BB189: 1 | BC189: 2 | BD189: 0 | BE189: 0 | BG189: 0 | BH189: 1 | BI189: 0 | BJ189: 1 | BK189: 0 | BL189: 1 | BM189: 0 | BN189: 8 | BO189: 0 | BP189: 8 | BQ189: 0 | BR189: 0 | BS189: 1 | BT189: 0 | BU189: 0 | BV189: 1 | BW189: 0 | BX189: 2 | BY189: 0 | BZ189: 0 | CA189: 1 | CB189: 0 | CC189: 0 | CD189: 0 | CE189: 0 | CF189: 1 | CG189: 0 | CH189: 0 | CI189: 0 | CJ189: 0 | CK189: 6 | CL189: 0 | CM189: 0 | CN189: 0 | CO189: 1 | CP189: n | CQ189: 7 | CR189: 0 | CS189: 8
D190: 185 | E190: 8 | F190: 1 | G190: 0 | H190: 5 | I190: 0 | J190: 2 | K190: LW | L190: n | M190: 766 | N190: LW.0766kW.10502 | O190: 185 | P190: 3 | Q190: 5689 | R190: DN100 | T190: 5 | U190: 2 | V190: 0 | W190: 0 | X190: 1 | Y190: 0 | Z190: 0 | AA190: 2 | AB190: 0 | AC190: 0 | AD190: 0 | AE190: 0 | AF190: 1 | AG190: 0 | AH190: 0 | AI190: 6 | AJ190: 2 | AK190: 0 | AL190: 0 | AM190: 0 | AN190: 0 | AO190: 0 | AP190: 0 | AQ190: 0 | AR190: 1 | AS190: 0 | AT190: 1 | AU190: 0 | AV190: 0 | AW190: 0 | AX190: 0 | AY190: 0 | AZ190: 0 | BA190: 0 | BB190: 1 | BC190: 2 | BD190: 0 | BE190: 0 | BG190: 0 | BH190: 1 | BI190: 0 | BJ190: 1 | BK190: 0 | BL190: 1 | BM190: 0 | BN190: 8 | BO190: 0 | BP190: 8 | BQ190: 0 | BR190: 0 | BS190: 1 | BT190: 0 | BU190: 0 | BV190: 1 | BW190: 0 | BX190: 2 | BY190: 0 | BZ190: 0 | CA190: 1 | CB190: 0 | CC190: 0 | CD190: 0 | CE190: 0 | CF190: 1 | CG190: 0 | CH190: 0 | CI190: 0 | CJ190: 0 | CK190: 6 | CL190: 0 | CM190: 0 | CN190: 0 | CO190: 1 | CP190: n | CQ190: 7 | CR190: 0 | CS190: 8
D191: 186 | E191: 8 | F191: 0 | G191: 2 | H191: 4 | I191: 0 | J191: 2 | K191: LW | L191: n | M191: 764 | N191: LW.0764kW.02402 | O191: 186 | P191: 3 | Q191: 5689 | R191: DN100 | T191: 4 | U191: 2 | V191: 0 | W191: 0 | X191: 1 | Y191: 0 | Z191: 0 | AA191: 2 | AB191: 0 | AC191: 0 | AD191: 0 | AE191: 0 | AF191: 1 | AG191: 0 | AH191: 0 | AI191: 6 | AJ191: 2 | AK191: 0 | AL191: 0 | AM191: 0 | AN191: 0 | AO191: 0 | AP191: 0 | AQ191: 0 | AR191: 1 | AS191: 0 | AT191: 1 | AU191: 0 | AV191: 0 | AW191: 0 | AX191: 0 | AY191: 0 | AZ191: 0 | BA191: 0 | BB191: 1 | BC191: 2 | BD191: 0 | BE191: 0 | BG191: 0 | BH191: 1 | BI191: 0 | BJ191: 1 | BK191: 0 | BL191: 1 | BM191: 0 | BN191: 8 | BO191: 0 | BP191: 8 | BQ191: 0 | BR191: 0 | BS191: 1 | BT191: 0 | BU191: 0 | BV191: 1 | BW191: 0 | BX191: 2 | BY191: 0 | BZ191: 0 | CA191: 1 | CB191: 0 | CC191: 0 | CD191: 0 | CE191: 0 | CF191: 1 | CG191: 0 | CH191: 0 | CI191: 0 | CJ191: 0 | CK191: 6 | CL191: 0 | CM191: 0 | CN191: 0 | CO191: 2 | CP191: n | CQ191: 7 | CR191: 0 | CS191: 8
D192: 187 | E192: 8 | F192: 1 | G192: 1 | H192: 4 | I192: 0 | J192: 2 | K192: LW | L192: n | M192: 743 | N192: LW.0743kW.11402 | O192: 187 | P192: 4 | Q192: 5689 | R192: DN100 | T192: 4 | U192: 2 | V192: 0 | W192: 0 | X192: 1 | Y192: 0 | Z192: 0 | AA192: 2 | AB192: 0 | AC192: 0 | AD192: 0 | AE192: 0 | AF192: 1 | AG192: 0 | AH192: 0 | AI192: 6 | AJ192: 2 | AK192: 0 | AL192: 0 | AM192: 0 | AN192: 0 | AO192: 0 | AP192: 0 | AQ192: 0 | AR192: 1 | AS192: 0 | AT192: 1 | AU192: 0 | AV192: 0 | AW192: 0 | AX192: 0 | AY192: 0 | AZ192: 0 | BA192: 0 | BB192: 1 | BC192: 2 | BD192: 0 | BE192: 0 | BG192: 0 | BH192: 1 | BI192: 0 | BJ192: 1 | BK192: 0 | BL192: 1 | BM192: 0 | BN192: 8 | BO192: 0 | BP192: 8 | BQ192: 0 | BR192: 0 | BS192: 1 | BT192: 0 | BU192: 0 | BV192: 1 | BW192: 0 | BX192: 2 | BY192: 0 | BZ192: 0 | CA192: 1 | CB192: 0 | CC192: 0 | CD192: 0 | CE192: 0 | CF192: 1 | CG192: 0 | CH192: 0 | CI192: 0 | CJ192: 0 | CK192: 6 | CL192: 0 | CM192: 0 | CN192: 0 | CO192: 2 | CP192: n | CQ192: 7 | CR192: 0 | CS192: 8
D193: 188 | E193: 8 | F193: 2 | G193: 0 | H193: 4 | I193: 0 | J193: 2 | K193: LW | L193: n | M193: 723 | N193: LW.0723kW.20402 | O193: 188 | P193: 3 | Q193: 5689 | R193: DN100 | T193: 4 | U193: 2 | V193: 0 | W193: 0 | X193: 1 | Y193: 0 | Z193: 0 | AA193: 2 | AB193: 0 | AC193: 0 | AD193: 0 | AE193: 0 | AF193: 1 | AG193: 0 | AH193: 0 | AI193: 6 | AJ193: 2 | AK193: 0 | AL193: 0 | AM193: 0 | AN193: 0 | AO193: 0 | AP193: 0 | AQ193: 0 | AR193: 1 | AS193: 0 | AT193: 1 | AU193: 0 | AV193: 0 | AW193: 0 | AX193: 0 | AY193: 0 | AZ193: 0 | BA193: 0 | BB193: 1 | BC193: 2 | BD193: 0 | BE193: 0 | BG193: 0 | BH193: 1 | BI193: 0 | BJ193: 1 | BK193: 0 | BL193: 1 | BM193: 0 | BN193: 8 | BO193: 0 | BP193: 8 | BQ193: 0 | BR193: 0 | BS193: 1 | BT193: 0 | BU193: 0 | BV193: 1 | BW193: 0 | BX193: 2 | BY193: 0 | BZ193: 0 | CA193: 1 | CB193: 0 | CC193: 0 | CD193: 0 | CE193: 0 | CF193: 1 | CG193: 0 | CH193: 0 | CI193: 0 | CJ193: 0 | CK193: 6 | CL193: 0 | CM193: 0 | CN193: 0 | CO193: 2 | CP193: n | CQ193: 7 | CR193: 0 | CS193: 8
D194: 189 | E194: 8 | F194: 0 | G194: 3 | H194: 3 | I194: 0 | J194: 2 | K194: LW | L194: n | M194: 741 | N194: LW.0741kW.03302 | O194: 189 | P194: 3 | Q194: 5689 | R194: DN100 | T194: 3 | U194: 2 | V194: 0 | W194: 0 | X194: 1 | Y194: 0 | Z194: 0 | AA194: 2 | AB194: 0 | AC194: 0 | AD194: 0 | AE194: 0 | AF194: 1 | AG194: 0 | AH194: 0 | AI194: 6 | AJ194: 2 | AK194: 0 | AL194: 0 | AM194: 0 | AN194: 0 | AO194: 0 | AP194: 0 | AQ194: 0 | AR194: 1 | AS194: 0 | AT194: 1 | AU194: 0 | AV194: 0 | AW194: 0 | AX194: 0 | AY194: 0 | AZ194: 0 | BA194: 0 | BB194: 1 | BC194: 2 | BD194: 0 | BE194: 0 | BG194: 0 | BH194: 1 | BI194: 0 | BJ194: 1 | BK194: 0 | BL194: 1 | BM194: 0 | BN194: 8 | BO194: 0 | BP194: 8 | BQ194: 0 | BR194: 0 | BS194: 1 | BT194: 0 | BU194: 0 | BV194: 1 | BW194: 0 | BX194: 2 | BY194: 0 | BZ194: 0 | CA194: 1 | CB194: 0 | CC194: 0 | CD194: 0 | CE194: 0 | CF194: 1 | CG194: 0 | CH194: 0 | CI194: 0 | CJ194: 0 | CK194: 6 | CL194: 0 | CM194: 0 | CN194: 0 | CO194: 3 | CP194: n | CQ194: 7 | CR194: 0 | CS194: 8
D195: 190 | E195: 8 | F195: 1 | G195: 2 | H195: 3 | I195: 0 | J195: 2 | K195: LW | L195: n | M195: 721 | N195: LW.0721kW.12302 | O195: 190 | P195: 4 | Q195: 5689 | R195: DN100 | T195: 3 | U195: 2 | V195: 0 | W195: 0 | X195: 1 | Y195: 0 | Z195: 0 | AA195: 2 | AB195: 0 | AC195: 0 | AD195: 0 | AE195: 0 | AF195: 1 | AG195: 0 | AH195: 0 | AI195: 6 | AJ195: 2 | AK195: 0 | AL195: 0 | AM195: 0 | AN195: 0 | AO195: 0 | AP195: 0 | AQ195: 0 | AR195: 1 | AS195: 0 | AT195: 1 | AU195: 0 | AV195: 0 | AW195: 0 | AX195: 0 | AY195: 0 | AZ195: 0 | BA195: 0 | BB195: 1 | BC195: 2 | BD195: 0 | BE195: 0 | BG195: 0 | BH195: 1 | BI195: 0 | BJ195: 1 | BK195: 0 | BL195: 1 | BM195: 0 | BN195: 8 | BO195: 0 | BP195: 8 | BQ195: 0 | BR195: 0 | BS195: 1 | BT195: 0 | BU195: 0 | BV195: 1 | BW195: 0 | BX195: 2 | BY195: 0 | BZ195: 0 | CA195: 1 | CB195: 0 | CC195: 0 | CD195: 0 | CE195: 0 | CF195: 1 | CG195: 0 | CH195: 0 | CI195: 0 | CJ195: 0 | CK195: 6 | CL195: 0 | CM195: 0 | CN195: 0 | CO195: 3 | CP195: n | CQ195: 7 | CR195: 0 | CS195: 8
D196: 191 | E196: 8 | F196: 2 | G196: 1 | H196: 3 | I196: 0 | J196: 2 | K196: LW | L196: n | M196: 700 | N196: LW.0700kW.21302 | O196: 191 | P196: 4 | Q196: 5689 | R196: DN100 | T196: 3 | U196: 2 | V196: 0 | W196: 0 | X196: 1 | Y196: 0 | Z196: 0 | AA196: 2 | AB196: 0 | AC196: 0 | AD196: 0 | AE196: 0 | AF196: 1 | AG196: 0 | AH196: 0 | AI196: 6 | AJ196: 2 | AK196: 0 | AL196: 0 | AM196: 0 | AN196: 0 | AO196: 0 | AP196: 0 | AQ196: 0 | AR196: 1 | AS196: 0 | AT196: 1 | AU196: 0 | AV196: 0 | AW196: 0 | AX196: 0 | AY196: 0 | AZ196: 0 | BA196: 0 | BB196: 1 | BC196: 2 | BD196: 0 | BE196: 0 | BG196: 0 | BH196: 1 | BI196: 0 | BJ196: 1 | BK196: 0 | BL196: 1 | BM196: 0 | BN196: 8 | BO196: 0 | BP196: 8 | BQ196: 0 | BR196: 0 | BS196: 1 | BT196: 0 | BU196: 0 | BV196: 1 | BW196: 0 | BX196: 2 | BY196: 0 | BZ196: 0 | CA196: 1 | CB196: 0 | CC196: 0 | CD196: 0 | CE196: 0 | CF196: 1 | CG196: 0 | CH196: 0 | CI196: 0 | CJ196: 0 | CK196: 6 | CL196: 0 | CM196: 0 | CN196: 0 | CO196: 3 | CP196: n | CQ196: 7 | CR196: 0 | CS196: 8
D197: 192 | E197: 8 | F197: 3 | G197: 0 | H197: 3 | I197: 0 | J197: 2 | K197: LW | L197: n | M197: 679 | N197: LW.0679kW.30302 | O197: 192 | P197: 3 | Q197: 5689 | R197: DN100 | T197: 3 | U197: 2 | V197: 0 | W197: 0 | X197: 1 | Y197: 0 | Z197: 0 | AA197: 2 | AB197: 0 | AC197: 0 | AD197: 0 | AE197: 0 | AF197: 1 | AG197: 0 | AH197: 0 | AI197: 6 | AJ197: 2 | AK197: 0 | AL197: 0 | AM197: 0 | AN197: 0 | AO197: 0 | AP197: 0 | AQ197: 0 | AR197: 1 | AS197: 0 | AT197: 1 | AU197: 0 | AV197: 0 | AW197: 0 | AX197: 0 | AY197: 0 | AZ197: 0 | BA197: 0 | BB197: 1 | BC197: 2 | BD197: 0 | BE197: 0 | BG197: 0 | BH197: 1 | BI197: 0 | BJ197: 1 | BK197: 0 | BL197: 1 | BM197: 0 | BN197: 8 | BO197: 0 | BP197: 8 | BQ197: 0 | BR197: 0 | BS197: 1 | BT197: 0 | BU197: 0 | BV197: 1 | BW197: 0 | BX197: 2 | BY197: 0 | BZ197: 0 | CA197: 1 | CB197: 0 | CC197: 0 | CD197: 0 | CE197: 0 | CF197: 1 | CG197: 0 | CH197: 0 | CI197: 0 | CJ197: 0 | CK197: 6 | CL197: 0 | CM197: 0 | CN197: 0 | CO197: 3 | CP197: n | CQ197: 7 | CR197: 0 | CS197: 8
D198: 193 | E198: 8 | F198: 0 | G198: 4 | H198: 2 | I198: 0 | J198: 2 | K198: LW | L198: n | M198: 719 | N198: LW.0719kW.04202 | O198: 193 | P198: 3 | Q198: 5689 | R198: DN100 | T198: 2 | U198: 2 | V198: 0 | W198: 0 | X198: 1 | Y198: 0 | Z198: 0 | AA198: 2 | AB198: 0 | AC198: 0 | AD198: 0 | AE198: 0 | AF198: 1 | AG198: 0 | AH198: 0 | AI198: 6 | AJ198: 2 | AK198: 0 | AL198: 0 | AM198: 0 | AN198: 0 | AO198: 0 | AP198: 0 | AQ198: 0 | AR198: 1 | AS198: 0 | AT198: 1 | AU198: 0 | AV198: 0 | AW198: 0 | AX198: 0 | AY198: 0 | AZ198: 0 | BA198: 0 | BB198: 1 | BC198: 2 | BD198: 0 | BE198: 0 | BG198: 0 | BH198: 1 | BI198: 0 | BJ198: 1 | BK198: 0 | BL198: 1 | BM198: 0 | BN198: 8 | BO198: 0 | BP198: 8 | BQ198: 0 | BR198: 0 | BS198: 1 | BT198: 0 | BU198: 0 | BV198: 1 | BW198: 0 | BX198: 2 | BY198: 0 | BZ198: 0 | CA198: 1 | CB198: 0 | CC198: 0 | CD198: 0 | CE198: 0 | CF198: 1 | CG198: 0 | CH198: 0 | CI198: 0 | CJ198: 0 | CK198: 6 | CL198: 0 | CM198: 0 | CN198: 0 | CO198: 4 | CP198: n | CQ198: =E198-1 -> 7 | CR198: 0 | CS198: 8
D199: 194 | E199: 8 | F199: 1 | G199: 3 | H199: 2 | I199: 0 | J199: 2 | K199: LW | L199: n | M199: =ROUND(SUMPRODUCT($F$3:$J$3,F199:J199),0) -> 698 | N199: =IF(M199>=1000,CONCATENATE(K199,".",M199,"kW.",F199,G199,H199,I199,J199),CONCATENATE(K199,".0",M199,"kW.",F199,G199,H199,I199,J199)) -> LW.0698kW.13202 | O199: 194 | P199: 4 | Q199: 5689 | R199: DN100 | T199: =I199+H199 -> 2 | U199: =J199 -> 2 | V199: 0 | W199: 0 | X199: 1 | Y199: 0 | Z199: 0 | AA199: 2 | AB199: 0 | AC199: 0 | AD199: 0 | AE199: 0 | AF199: 1 | AG199: 0 | AH199: 0 | AI199: 6 | AJ199: 2 | AK199: 0 | AL199: 0 | AM199: 0 | AN199: 0 | AO199: 0 | AP199: 0 | AQ199: 0 | AR199: 1 | AS199: 0 | AT199: 1 | AU199: 0 | AV199: 0 | AW199: 0 | AX199: 0 | AY199: 0 | AZ199: 0 | BA199: 0 | BB199: 1 | BC199: 2 | BD199: 0 | BE199: 0 | BG199: 0 | BH199: 1 | BI199: 0 | BJ199: 1 | BK199: 0 | BL199: 1 | BM199: 0 | BN199: 8 | BO199: 0 | BP199: 8 | BQ199: =+BO199 -> 0 | BR199: 0 | BS199: 1 | BT199: 0 | BU199: 0 | BV199: 1 | BW199: 0 | BX199: 2 | BY199: 0 | BZ199: 0 | CA199: 1 | CB199: 0 | CC199: 0 | CD199: 0 | CE199: 0 | CF199: 1 | CG199: 0 | CH199: 0 | CI199: 0 | CJ199: 0 | CK199: 6 | CL199: 0 | CM199: 0 | CN199: 0 | CO199: =F199+G199 -> 4 | CP199: n | CQ199: 7 | CR199: 0 | CS199: =IF(K199<>"RG",E199,IF(OR(E199=4,E199=6,E199=8),0,1)) -> 8
D200: 195 | E200: 8 | F200: 2 | G200: 2 | H200: 2 | I200: 0 | J200: 2 | K200: LW | L200: n | M200: 677 | N200: LW.0677kW.22202 | O200: 195 | P200: 4 | Q200: 5689 | R200: DN100 | T200: 2 | U200: 2 | V200: 0 | W200: 0 | X200: 1 | Y200: 0 | Z200: 0 | AA200: 2 | AB200: 0 | AC200: 0 | AD200: 0 | AE200: 0 | AF200: 1 | AG200: 0 | AH200: 0 | AI200: 6 | AJ200: 2 | AK200: 0 | AL200: 0 | AM200: 0 | AN200: 0 | AO200: 0 | AP200: 0 | AQ200: 0 | AR200: 1 | AS200: 0 | AT200: 1 | AU200: 0 | AV200: 0 | AW200: 0 | AX200: 0 | AY200: 0 | AZ200: 0 | BA200: 0 | BB200: 1 | BC200: 2 | BD200: 0 | BE200: 0 | BG200: 0 | BH200: 1 | BI200: 0 | BJ200: 1 | BK200: 0 | BL200: 1 | BM200: 0 | BN200: 8 | BO200: 0 | BP200: 8 | BQ200: 0 | BR200: 0 | BS200: 1 | BT200: 0 | BU200: 0 | BV200: 1 | BW200: 0 | BX200: 2 | BY200: 0 | BZ200: 0 | CA200: 1 | CB200: 0 | CC200: 0 | CD200: 0 | CE200: 0 | CF200: 1 | CG200: 0 | CH200: 0 | CI200: 0 | CJ200: 0 | CK200: 6 | CL200: 0 | CM200: 0 | CN200: 0 | CO200: 4 | CP200: n | CQ200: 7 | CR200: 0 | CS200: 8
... 362 more rows

Sheet Cascade AMC (hidden)
B2: Dimensionnement par chaudière
B4: Composition de la cascade
F5: Montage sélectionné
C6: nbchaud | D6: =+'Выбор котлов'!E26 -> 2 | F6: ='Выбор котлов'!$E$22 -> настенное "LW"
C7: =IF(F6=F12,"",2) -> 2
C8: 3 | F8: Indications Montage
C9: 4
C10: 5 | F10: =texte!B40 -> настенное "LW"
C11: 6 | F11: =texte!B41 -> напольное "LV"
C12: 7 | F12: =texte!B42 -> сдвоенное "RG"
C13: 8
V15: Sélection inicontrol
D19: mc_45 | E19: ='Выбор котлов'!G22 -> 2 | H19: mc_65 | I19: ='Выбор котлов'!H22 -> 0 | L19: mc_90 | M19: ='Выбор котлов'!I22 -> 0 | P19: mc_115 | Q19: ='Выбор котлов'!J22 -> 0 | S19: mca_160 | T19: =D6-E19-I19-M19-Q19 -> 0 | W19: =D19 -> mc_45 | X19: =E19 -> 2 | Y19: =H19 -> mc_65 | Z19: =I19 -> 0 | AA19: =L19 -> mc_90 | AB19: =M19 -> 0 | AC19: =P19 -> mc_115 | AD19: =Q19 -> 0 | AE19: =S19 -> mca_160 | AF19: ='Выбор котлов'!K22 -> 0
D20: =D6 -> 2 | E20: =IF(D20<0,"",D20) -> 2 | H20: =D6-E19 -> 0 | I20: =IF(H20<0,"",H20) -> 0 | L20: =D6-E19-I19 -> 0 | M20: =IF(L20<0,"",L20) -> 0 | P20: =D6-E19-I19-M19 -> 0 | Q20: =IF(P20<0,"",P20) -> 0 | W20: =X19 -> 2 | Y20: =Z19 -> 0 | AA20: =AB19 -> 0 | AC20: =AD19 -> 0 | AE20: =IF(AF20<0,"",AF20) -> 0 | AF20: =IF(OR($X$19>0,$Z$19>0,$AB$19>0,$AD$19>0),$AF$19,$AF$19) -> 0
D21: =D20-1 -> 1 | E21: =IF(D21<0,"",D21) -> 1 | H21: =H20-1 -> -1 | I21: =IF(H21<0,"",H21) ->  | L21: =L20-1 -> -1 | M21: =IF(L21<0,"",L21) ->  | P21: =P20-1 -> -1 | Q21: =IF(P21<0,"",P21) ->  | W21: =IFERROR(IF(W20-1<0,"",W20-1),"") -> 1 | Y21: =IFERROR(IF(Y20-1<0,"",Y20-1),"") ->  | AA21: =IFERROR(IF(AA20-1<0,"",AA20-1),"") ->  | AC21: =IFERROR(IF(AC20-1<0,"",AC20-1),"") ->  | AE21: =IF(AF21<0,"",AF21) ->  | AF21: =IF(OR($X$19>0,$Z$19>0,$AB$19>0,$AD$19>0),"",$AF20-1) -> 
D22: =D21-1 -> 0 | E22: 0 | H22: =H21-1 -> -2 | L22: =L21-1 -> -2 | P22: =P21-1 -> -2 | W22: =IFERROR(IF(W21-1<0,"",W21-1),"") -> 0 | Y22: =IFERROR(IF(Y21-1<0,"",Y21-1),"") ->  | AA22: =IFERROR(IF(AA21-1<0,"",AA21-1),"") ->  | AC22: =IFERROR(IF(AC21-1<0,"",AC21-1),"") ->  | AF22: =IF(OR($X$19>0,$Z$19>0,$AB$19>0,$AD$19>0),"",$AF21-1) -> 
D23: -1 | H23: -3 | L23: -3 | P23: -3
D24: -2 | H24: -4 | L24: -4 | P24: -4
D25: -3 | H25: -5 | L25: -5 | P25: -5
D26: -4 | H26: -6 | L26: -6 | P26: -6
D27: -5 | H27: -7 | L27: -7 | P27: -7
D28: -6 | H28: -8 | L28: -8 | P28: -8
D29: -7 | H29: -9 | L29: -9 | P29: -9 | W29: Soit inicontrol ; soit Isystem | AE29: Soit inicontrol ; soit Diematic Evolution
D30: -8 | H30: -10 | L30: -10 | P30: -10
B32: Nom de la cascade
D33: Nom | E33: Nb | F33: Puissance (kW) (80/60°C)
D34: MCA 45 | E34: =+E19 -> 2 | F34: =HLOOKUP(texte!$C$75,Spécificités!$C$4:$V$81,74,FALSE) -> 40.8
D35: MCA 65 | E35: =+I19 -> 0 | F35: =HLOOKUP(texte!$C$75,Spécificités!$C$4:$V$81,75,FALSE) -> 61.5 | H35: Puissance totale (kW)
D36: MCA 90 | E36: =M19 -> 0 | F36: =HLOOKUP(texte!$C$75,Spécificités!$C$4:$V$81,76,FALSE) -> 84.2 | H36: =ROUND(SUMPRODUCT($E$34:$E$38,F34:F38),0) -> 82 | I36: =IF(H36>=1000,H36,CONCATENATE("0",H36)) -> 082
D37: MCA 115 | E37: =Q19 -> 0 | F37: =HLOOKUP(texte!$C$75,Spécificités!$C$4:$V$81,77,FALSE) -> 107.0 | K37: Nom de la cascade | M37: =CONCATENATE(I39,".",I36,"kW.",E19,I19,M19,Q19,T19) -> LW.082kW.20000
D38: MCA 160 | E38: =T19 -> 0 | F38: =HLOOKUP(texte!$C$75,Spécificités!$C$4:$V$81,78,FALSE) -> 152.1 | H38: Montage
H39: ='Выбор котлов'!E22 -> настенное "LW" | I39: =IF(H39=F10,"LW",IF(H39=F11,"LV",IF(H39=F12,"RG",""))) -> LW
B41: Calcul Prix des chaudières
I42: Surcoût pour Diematic Evolution
B43: Nom | C43: Nb | D43: Référence | E43: Prix chaudière inicontrol | I43: Nom | J43: Nb diematic Evolution | K43: Référence inicontrol | L43: Prixinicontrol | M43: Référence Diematic | N43: Prix Diematic | O43: Différence
B44: AMC 45 | C44: ='Выбор котлов'!G22 -> 2 | D44: =IF($N$66=texte!$B$84,Language!$B139,IF($N$66=texte!$B$81,Language!$C139,IF($N$66=texte!$B$82,Language!$D139,IF($N$66=texte!$B$83,Language!$E139,IF($N$66=texte!$B$85,Language!$F139,IF($N$66=texte!$B$86,Language!$G139,IF($N$66=texte!$B$87,Language!$H139,IF($N$66=texte!$B$88,Language!$I139,Language!$J139)))))))) -> 7684462 | E44: =IFERROR(VLOOKUP($D44,'Price List'!$A:$D,4,FALSE),0) -> 3400.00 | I44: MCA 45 | J44: =IF(C44-'Выбор котлов'!G24<0,0,C44-'Выбор котлов'!G24) -> 2 | K44: =IF($N$66=texte!$B$84,Language!$B139,IF($N$66=texte!$B$81,Language!$C139,IF($N$66=texte!$B$82,Language!$D139,IF($N$66=texte!$B$83,Language!$E139,IF($N$66=texte!$B$85,Language!$F139,IF($N$66=texte!$B$86,Language!$G139,IF($N$66=texte!$B$87,Language!$H139,IF($N$66=texte!$B$88,Language!$I139,Language!$J139)))))))) -> 7684462 | L44: =E44 -> 3400.00 | M44: =IF($N$66=texte!$B$84,Language!$B144,IF($N$66=texte!$B$81,Language!$C144,IF($N$66=texte!$B$82,Language!$D144,IF($N$66=texte!$B$83,Language!$E144,IF($N$66=texte!$B$85,Language!$F144,IF($N$66=texte!$B$86,Language!$G144,IF($N$66=texte!$B$87,Language!$H144,IF($N$66=texte!$B$88,Language!$I144,Language!$J144)))))))) -> 7699475 | N44: =VLOOKUP($M44,'Price List'!$A:$D,4,FALSE) -> 3835 | O44: =N44-L44 -> 435.00
B45: AMC 65 | C45: ='Выбор котлов'!H22 -> 0 | D45: =IF($N$66=texte!$B$84,Language!$B140,IF($N$66=texte!$B$81,Language!$C140,IF($N$66=texte!$B$82,Language!$D140,IF($N$66=texte!$B$83,Language!$E140,IF($N$66=texte!$B$85,Language!$F140,IF($N$66=texte!$B$86,Language!$G140,IF($N$66=texte!$B$87,Language!$H140,IF($N$66=texte!$B$88,Language!$I140,Language!$J140)))))))) -> 7684586 | E45: =IFERROR(VLOOKUP($D45,'Price List'!$A:$D,4,FALSE),0) -> 3910.00 | I45: MCA 65 | J45: =IF(C45-'Выбор котлов'!H24<0,0,C45-'Выбор котлов'!H24) -> 0 | K45: =IF($N$66=texte!$B$84,Language!$B140,IF($N$66=texte!$B$81,Language!$C140,IF($N$66=texte!$B$82,Language!$D140,IF($N$66=texte!$B$83,Language!$E140,IF($N$66=texte!$B$85,Language!$F140,IF($N$66=texte!$B$86,Language!$G140,IF($N$66=texte!$B$87,Language!$H140,IF($N$66=texte!$B$88,Language!$I140,Language!$J140)))))))) -> 7684586 | L45: =E45 -> 3910.00 | M45: =IF($N$66=texte!$B$84,Language!$B145,IF($N$66=texte!$B$81,Language!$C145,IF($N$66=texte!$B$82,Language!$D145,IF($N$66=texte!$B$83,Language!$E145,IF($N$66=texte!$B$85,Language!$F145,IF($N$66=texte!$B$86,Language!$G145,IF($N$66=texte!$B$87,Language!$H145,IF($N$66=texte!$B$88,Language!$I145,Language!$J145)))))))) -> 7699476 | N45: =VLOOKUP($M45,'Price List'!$A:$D,4,FALSE) -> 4383 | O45: =N45-L45 -> 473.00
B46: AMC 90 | C46: ='Выбор котлов'!I22 -> 0 | D46: =IF($N$66=texte!$B$84,Language!$B141,IF($N$66=texte!$B$81,Language!$C141,IF($N$66=texte!$B$82,Language!$D141,IF($N$66=texte!$B$83,Language!$E141,IF($N$66=texte!$B$85,Language!$F141,IF($N$66=texte!$B$86,Language!$G141,IF($N$66=texte!$B$87,Language!$H141,IF($N$66=texte!$B$88,Language!$I141,Language!$J141)))))))) -> 7684587 | E46: =IFERROR(VLOOKUP($D46,'Price List'!$A:$D,4,FALSE),0) -> 5161.00 | I46: MCA 90 | J46: =IF(C46-'Выбор котлов'!I24<0,0,C46-'Выбор котлов'!I24) -> 0 | K46: =IF($N$66=texte!$B$84,Language!$B141,IF($N$66=texte!$B$81,Language!$C141,IF($N$66=texte!$B$82,Language!$D141,IF($N$66=texte!$B$83,Language!$E141,IF($N$66=texte!$B$85,Language!$F141,IF($N$66=texte!$B$86,Language!$G141,IF($N$66=texte!$B$87,Language!$H141,IF($N$66=texte!$B$88,Language!$I141,Language!$J141)))))))) -> 7684587 | L46: =E46 -> 5161.00 | M46: =IF($N$66=texte!$B$84,Language!$B146,IF($N$66=texte!$B$81,Language!$C146,IF($N$66=texte!$B$82,Language!$D146,IF($N$66=texte!$B$83,Language!$E146,IF($N$66=texte!$B$85,Language!$F146,IF($N$66=texte!$B$86,Language!$G146,IF($N$66=texte!$B$87,Language!$H146,IF($N$66=texte!$B$88,Language!$I146,Language!$J146)))))))) -> 7699477 | N46: =VLOOKUP($M46,'Price List'!$A:$D,4,FALSE) -> 5726 | O46: =N46-L46 -> 565.00
B47: AMC 115 | C47: ='Выбор котлов'!J22 -> 0 | D47: =IF($N$66=texte!$B$84,Language!$B142,IF($N$66=texte!$B$81,Language!$C142,IF($N$66=texte!$B$82,Language!$D142,IF($N$66=texte!$B$83,Language!$E142,IF($N$66=texte!$B$85,Language!$F142,IF($N$66=texte!$B$86,Language!$G142,IF($N$66=texte!$B$87,Language!$H142,IF($N$66=texte!$B$88,Language!$I142,Language!$J142)))))))) -> 7684588 | E47: =IFERROR(VLOOKUP($D47,'Price List'!$A:$D,4,FALSE),0) -> 5617.00 | I47: MCA 115 | J47: =IF(C47-'Выбор котлов'!J24<0,0,C47-'Выбор котлов'!J24) -> 0 | K47: =IF($N$66=texte!$B$84,Language!$B142,IF($N$66=texte!$B$81,Language!$C142,IF($N$66=texte!$B$82,Language!$D142,IF($N$66=texte!$B$83,Language!$E142,IF($N$66=texte!$B$85,Language!$F142,IF($N$66=texte!$B$86,Language!$G142,IF($N$66=texte!$B$87,Language!$H142,IF($N$66=texte!$B$88,Language!$I142,Language!$J142)))))))) -> 7684588 | L47: =E47 -> 5617.00 | M47: =IF($N$66=texte!$B$84,Language!$B147,IF($N$66=texte!$B$81,Language!$C147,IF($N$66=texte!$B$82,Language!$D147,IF($N$66=texte!$B$83,Language!$E147,IF($N$66=texte!$B$85,Language!$F147,IF($N$66=texte!$B$86,Language!$G147,IF($N$66=texte!$B$87,Language!$H147,IF($N$66=texte!$B$88,Language!$I147,Language!$J147)))))))) -> 7699478 | N47: =VLOOKUP($M47,'Price List'!$A:$D,4,FALSE) -> 6216 | O47: =N47-L47 -> 599.00
